Workbook

Sheet Log (hidden)
A3: 4 | B3: with hot parameter table
A4: 5 | B4: separate ebus scenario with sizes
B5: hot parameter table taken out in the meantime
B6: 3 bus scenarios
C7: 1 e bus
C8: 2 what if not ebus
C9: 3 what if bus lifetime and size composition is different
D10: Other a = computation of discrepancy in PKM
A11: 6 | B11: edits in 1382 row (distribution to fuels)
A12: 7 | B12: edits in the main ebus
C13: need to revise the other scenarios based on this this sheet
A14: 8 | B14: deleted name lists
A15: 9 | B15: electricity
A16: 10 | B16: output - ebus
A17: 11 | B17: deleted some pages
A18: 12 | B18: with CH4 and N2O
A19: 13 | B19: links broken
A20: 14 | B20: fixed new vehicles % iteration
A21: 15 | B21: fixed other table iterat
A22: 16 | B22: emission factor start
C23: euro distribution
A24: 17 | B24: euro distribution put back in non_ebus
A25: 18 | B25: EF database revised
A26: 19
A27: 20 | B27: with adjusted KWh
A28: 21 | B28: Fixed units grid CO2 and CO2e
A29: 24 | B29: SOx
A30: 29 | B30: 2023-03-17
A31: 6 | B31: TUMI6 WTT emissions fro fossils (CO2) only - incoporated
B32: base EF ebuses revised to min
A33: 7 | B33: updated data from TUMI ebus
A34: 8 | B34: auto recover

Sheet COVER
C4: Electric Bus Emissions Assessment Tool
D15: Draft: April 24, 2023

Sheet QUICK GUIDE

Sheet Ebus_IO
B2: City | C2: =RESULTS!C6 -> Mumbai
B3: Country | C3: =VLOOKUP(C2,TUMI_data!$B$3:$C$24,2,FALSE) -> India
B5: Additional E-buses per Year | C5: =RESULTS!C7 -> Enhanced Targets
C7: 2020 | D7: =C7+1 -> 2021 | E7: =D7+1 -> 2022 | F7: 2023 | G7: 2024 | H7: 2025 | I7: 2026 | J7: 2027 | K7: 2028 | L7: 2029 | M7: 2030 | N7: 2031 | O7: 2032 | P7: 2033 | Q7: 2034 | R7: 2035 | S7: 2036 | T7: 2037 | U7: 2038 | V7: 2039 | W7: 2040 | X7: 2041 | Y7: 2042 | Z7: 2043 | AA7: 2044 | AB7: 2045 | AC7: 2046 | AD7: 2047 | AE7: 2048 | AF7: 2049 | AG7: 2050 | AH7: 2051 | AI7: 2052 | AJ7: 2053 | AK7: 2054 | AL7: 2055 | AM7: 2056 | AN7: 2057 | AO7: 2058 | AP7: 2059 | AQ7: 2060
B8: Number of New E-buses | C8: =IF($C$5="Monitored",MONITORED!C41,IFERROR(VLOOKUP($C$2,TUMI_data!$A$36:$AD$57,MATCH(Ebus_IO!C$7,TUMI_data!$A$35:$AD$35,0),FALSE),0)) -> 0 | D8: =IF($C$5="Monitored",MONITORED!D41,IFERROR(VLOOKUP($C$2,TUMI_data!$A$36:$AD$57,MATCH(Ebus_IO!D$7,TUMI_data!$A$35:$AD$35,0),FALSE),0)) -> 0 | E8: =IF($C$5="Monitored",MONITORED!E41,IFERROR(VLOOKUP($C$2,TUMI_data!$A$36:$AD$57,MATCH(Ebus_IO!E$7,TUMI_data!$A$35:$AD$35,0),FALSE),0)) -> 386 | F8: =IF($C$5="Monitored",MONITORED!F41,IFERROR(VLOOKUP($C$2,TUMI_data!$A$36:$AD$57,MATCH(Ebus_IO!F$7,TUMI_data!$A$35:$AD$35,0),FALSE),0)) -> 22 | G8: =IF($C$5="Monitored",MONITORED!G41,IFERROR(VLOOKUP($C$2,TUMI_data!$A$36:$AD$57,MATCH(Ebus_IO!G$7,TUMI_data!$A$35:$AD$35,0),FALSE),0)) -> 2398 | H8: =IF($C$5="Monitored",MONITORED!H41,IFERROR(VLOOKUP($C$2,TUMI_data!$A$36:$AD$57,MATCH(Ebus_IO!H$7,TUMI_data!$A$35:$AD$35,0),FALSE),0)) -> 2399 | I8: =IF($C$5="Monitored",MONITORED!I41,IFERROR(VLOOKUP($C$2,TUMI_data!$A$36:$AD$57,MATCH(Ebus_IO!I$7,TUMI_data!$A$35:$AD$35,0),FALSE),0)) -> 2402 | J8: =IF($C$5="Monitored",MONITORED!J41,IFERROR(VLOOKUP($C$2,TUMI_data!$A$36:$AD$57,MATCH(Ebus_IO!J$7,TUMI_data!$A$35:$AD$35,0),FALSE),0)) -> 2412 | K8: =IF($C$5="Monitored",MONITORED!K41,IFERROR(VLOOKUP($C$2,TUMI_data!$A$36:$AD$57,MATCH(Ebus_IO!K$7,TUMI_data!$A$35:$AD$35,0),FALSE),0)) -> 1100 | L8: =IF($C$5="Monitored",MONITORED!L41,IFERROR(VLOOKUP($C$2,TUMI_data!$A$36:$AD$57,MATCH(Ebus_IO!L$7,TUMI_data!$A$35:$AD$35,0),FALSE),0)) -> 1100 | M8: =IF($C$5="Monitored",MONITORED!M41,IFERROR(VLOOKUP($C$2,TUMI_data!$A$36:$AD$57,MATCH(Ebus_IO!M$7,TUMI_data!$A$35:$AD$35,0),FALSE),0)) -> 1300 | N8: =IF($C$5="Monitored",MONITORED!N41,IFERROR(VLOOKUP($C$2,TUMI_data!$A$36:$AD$57,MATCH(Ebus_IO!N$7,TUMI_data!$A$35:$AD$35,0),FALSE),0)) -> 1300 | O8: =IF($C$5="Monitored",MONITORED!O41,IFERROR(VLOOKUP($C$2,TUMI_data!$A$36:$AD$57,MATCH(Ebus_IO!O$7,TUMI_data!$A$35:$AD$35,0),FALSE),0)) -> 1300 | P8: =IF($C$5="Monitored",MONITORED!P41,IFERROR(VLOOKUP($C$2,TUMI_data!$A$36:$AD$57,MATCH(Ebus_IO!P$7,TUMI_data!$A$35:$AD$35,0),FALSE),0)) -> 1300 | Q8: =IF($C$5="Monitored",MONITORED!Q41,IFERROR(VLOOKUP($C$2,TUMI_data!$A$36:$AD$57,MATCH(Ebus_IO!Q$7,TUMI_data!$A$35:$AD$35,0),FALSE),0)) -> 1300 | R8: =IF($C$5="Monitored",MONITORED!R41,IFERROR(VLOOKUP($C$2,TUMI_data!$A$36:$AD$57,MATCH(Ebus_IO!R$7,TUMI_data!$A$35:$AD$35,0),FALSE),0)) -> 1750 | S8: =IF($C$5="Monitored",MONITORED!S41,IFERROR(VLOOKUP($C$2,TUMI_data!$A$36:$AD$57,MATCH(Ebus_IO!S$7,TUMI_data!$A$35:$AD$35,0),FALSE),0)) -> 1750 | T8: =IF($C$5="Monitored",MONITORED!T41,IFERROR(VLOOKUP($C$2,TUMI_data!$A$36:$AD$57,MATCH(Ebus_IO!T$7,TUMI_data!$A$35:$AD$35,0),FALSE),0)) -> 1750 | U8: =IF($C$5="Monitored",MONITORED!U41,IFERROR(VLOOKUP($C$2,TUMI_data!$A$36:$AD$57,MATCH(Ebus_IO!U$7,TUMI_data!$A$35:$AD$35,0),FALSE),0)) -> 1750 | V8: =IF($C$5="Monitored",MONITORED!V41,IFERROR(VLOOKUP($C$2,TUMI_data!$A$36:$AD$57,MATCH(Ebus_IO!V$7,TUMI_data!$A$35:$AD$35,0),FALSE),0)) -> 1750 | W8: =IF($C$5="Monitored",MONITORED!W41,IFERROR(VLOOKUP($C$2,TUMI_data!$A$36:$AD$57,MATCH(Ebus_IO!W$7,TUMI_data!$A$35:$AD$35,0),FALSE),0)) -> 2000 | X8: =IF($C$5="Monitored",MONITORED!X41,IFERROR(VLOOKUP($C$2,TUMI_data!$A$36:$AD$57,MATCH(Ebus_IO!X$7,TUMI_data!$A$35:$AD$35,0),FALSE),0)) -> 2000 | Y8: =IF($C$5="Monitored",MONITORED!Y41,IFERROR(VLOOKUP($C$2,TUMI_data!$A$36:$AD$57,MATCH(Ebus_IO!Y$7,TUMI_data!$A$35:$AD$35,0),FALSE),0)) -> 2000 | Z8: =IF($C$5="Monitored",MONITORED!Z41,IFERROR(VLOOKUP($C$2,TUMI_data!$A$36:$AD$57,MATCH(Ebus_IO!Z$7,TUMI_data!$A$35:$AD$35,0),FALSE),0)) -> 2000 | AA8: =IF($C$5="Monitored",MONITORED!AA41,IFERROR(VLOOKUP($C$2,TUMI_data!$A$36:$AD$57,MATCH(Ebus_IO!AA$7,TUMI_data!$A$35:$AD$35,0),FALSE),0)) -> 2000 | AB8: =IF($C$5="Monitored",MONITORED!AB41,IFERROR(VLOOKUP($C$2,TUMI_data!$A$36:$AD$57,MATCH(Ebus_IO!AB$7,TUMI_data!$A$35:$AD$35,0),FALSE),0)) -> 2114 | AC8: =IF($C$5="Monitored",MONITORED!AC41,IFERROR(VLOOKUP($C$2,TUMI_data!$A$36:$AD$57,MATCH(Ebus_IO!AC$7,TUMI_data!$A$35:$AD$35,0),FALSE),0)) -> 2008 | AD8: =IF($C$5="Monitored",MONITORED!AD41,IFERROR(VLOOKUP($C$2,TUMI_data!$A$36:$AD$57,MATCH(Ebus_IO!AD$7,TUMI_data!$A$35:$AD$35,0),FALSE),0)) -> 2052 | AE8: =IF($C$5="Monitored",MONITORED!AE41,IFERROR(VLOOKUP($C$2,TUMI_data!$A$36:$AD$57,MATCH(Ebus_IO!AE$7,TUMI_data!$A$35:$AD$35,0),FALSE),0)) -> 2114 | AF8: =IF($C$5="Monitored",MONITORED!AF41,IFERROR(VLOOKUP($C$2,TUMI_data!$A$36:$AD$57,MATCH(Ebus_IO!AF$7,TUMI_data!$A$35:$AD$35,0),FALSE),0)) -> 2169 | AG8: =IF($C$5="Monitored",MONITORED!AG41,IFERROR(VLOOKUP($C$2,TUMI_data!$A$36:$AD$57,MATCH(Ebus_IO!AG$7,TUMI_data!$A$35:$AD$35,0),FALSE),0)) -> 2224 | AH8: =IF($C$5="Monitored",MONITORED!AH$21,IFERROR(VLOOKUP($C$2,TUMI_data!$A$36:$AD$57,MATCH(Ebus_IO!AH$7,TUMI_data!$A$35:$AD$35,0),FALSE),0)) -> 0 | AI8: =IF($C$5="Monitored",MONITORED!AI$21,IFERROR(VLOOKUP($C$2,TUMI_data!$A$36:$AD$57,MATCH(Ebus_IO!AI$7,TUMI_data!$A$35:$AD$35,0),FALSE),0)) -> 0 | AJ8: =IF($C$5="Monitored",MONITORED!AJ$21,IFERROR(VLOOKUP($C$2,TUMI_data!$A$36:$AD$57,MATCH(Ebus_IO!AJ$7,TUMI_data!$A$35:$AD$35,0),FALSE),0)) -> 0 | AK8: =IF($C$5="Monitored",MONITORED!AK$21,IFERROR(VLOOKUP($C$2,TUMI_data!$A$36:$AD$57,MATCH(Ebus_IO!AK$7,TUMI_data!$A$35:$AD$35,0),FALSE),0)) -> 0 | AL8: =IF($C$5="Monitored",MONITORED!AL$21,IFERROR(VLOOKUP($C$2,TUMI_data!$A$36:$AD$57,MATCH(Ebus_IO!AL$7,TUMI_data!$A$35:$AD$35,0),FALSE),0)) -> 0 | AM8: =IF($C$5="Monitored",MONITORED!AM$21,IFERROR(VLOOKUP($C$2,TUMI_data!$A$36:$AD$57,MATCH(Ebus_IO!AM$7,TUMI_data!$A$35:$AD$35,0),FALSE),0)) -> 0 | AN8: =IF($C$5="Monitored",MONITORED!AN$21,IFERROR(VLOOKUP($C$2,TUMI_data!$A$36:$AD$57,MATCH(Ebus_IO!AN$7,TUMI_data!$A$35:$AD$35,0),FALSE),0)) -> 0 | AO8: =IF($C$5="Monitored",MONITORED!AO$21,IFERROR(VLOOKUP($C$2,TUMI_data!$A$36:$AD$57,MATCH(Ebus_IO!AO$7,TUMI_data!$A$35:$AD$35,0),FALSE),0)) -> 0 | AP8: =IF($C$5="Monitored",MONITORED!AP$21,IFERROR(VLOOKUP($C$2,TUMI_data!$A$36:$AD$57,MATCH(Ebus_IO!AP$7,TUMI_data!$A$35:$AD$35,0),FALSE),0)) -> 0 | AQ8: =IF($C$5="Monitored",MONITORED!AQ$21,IFERROR(VLOOKUP($C$2,TUMI_data!$A$36:$AD$57,MATCH(Ebus_IO!AQ$7,TUMI_data!$A$35:$AD$35,0),FALSE),0)) -> 0
B10: % Distribution of New E-buses
C11: =C7 -> 2020 | D11: =C11+5 -> 2025 | E11: 2030 | F11: 2035 | G11: 2040 | H11: 2045 | I11: 2050 | J11: 2055 | K11: 2060
A12: 1 | B12: Minibus | C12: =IFERROR(IF(C5="Monitored",MONITORED!C7/MONITORED!C$21,IFERROR(VLOOKUP(_xlfn.CONCAT($C$2,$B12),TUMI_data!$C$477:$K$806,MATCH(Ebus_IO!C$11,TUMI_data!$C$476:$K$476,0),FALSE),"")),"") -> 0% | D12: =IFERROR(IF(D5="Monitored",MONITORED!D7/MONITORED!D$21,IFERROR(VLOOKUP(_xlfn.CONCAT($C$2,$B12),TUMI_data!$C$477:$K$806,MATCH(Ebus_IO!D$11,TUMI_data!$C$476:$K$476,0),FALSE),"")),"") -> 10% | E12: =IFERROR(IF(E5="Monitored",MONITORED!E7/MONITORED!E$21,IFERROR(VLOOKUP(_xlfn.CONCAT($C$2,$B12),TUMI_data!$C$477:$K$806,MATCH(Ebus_IO!E$11,TUMI_data!$C$476:$K$476,0),FALSE),"")),"") -> 10% | F12: =IFERROR(IF(F5="Monitored",MONITORED!F7/MONITORED!F$21,IFERROR(VLOOKUP(_xlfn.CONCAT($C$2,$B12),TUMI_data!$C$477:$K$806,MATCH(Ebus_IO!F$11,TUMI_data!$C$476:$K$476,0),FALSE),"")),"") -> 10% | G12: =IFERROR(IF(G5="Monitored",MONITORED!G7/MONITORED!G$21,IFERROR(VLOOKUP(_xlfn.CONCAT($C$2,$B12),TUMI_data!$C$477:$K$806,MATCH(Ebus_IO!G$11,TUMI_data!$C$476:$K$476,0),FALSE),"")),"") -> 10% | H12: =IFERROR(IF(H5="Monitored",MONITORED!H7/MONITORED!H$21,IFERROR(VLOOKUP(_xlfn.CONCAT($C$2,$B12),TUMI_data!$C$477:$K$806,MATCH(Ebus_IO!H$11,TUMI_data!$C$476:$K$476,0),FALSE),"")),"") -> 10% | I12: =IFERROR(IF(I5="Monitored",MONITORED!I7/MONITORED!I$21,IFERROR(VLOOKUP(_xlfn.CONCAT($C$2,$B12),TUMI_data!$C$477:$K$806,MATCH(Ebus_IO!I$11,TUMI_data!$C$476:$K$476,0),FALSE),"")),"") -> 10% | J12: =IFERROR(VLOOKUP(_xlfn.CONCAT($C$2,$B12),TUMI_data!$C$477:$K$806,MATCH(Ebus_IO!J$11,TUMI_data!$C$476:$K$476,0),FALSE),"") ->  | K12: =IFERROR(VLOOKUP(_xlfn.CONCAT($C$2,$B12),TUMI_data!$C$477:$K$806,MATCH(Ebus_IO!K$11,TUMI_data!$C$476:$K$476,0),FALSE),"") -> 
A13: 2 | B13: Midibus | C13: =IFERROR(IF(C6="Monitored",MONITORED!C8/MONITORED!C$21,IFERROR(VLOOKUP(_xlfn.CONCAT($C$2,$B13),TUMI_data!$C$477:$K$806,MATCH(Ebus_IO!C$11,TUMI_data!$C$476:$K$476,0),FALSE),"")),"") -> 100% | D13: =IFERROR(IF(D6="Monitored",MONITORED!D8/MONITORED!D$21,IFERROR(VLOOKUP(_xlfn.CONCAT($C$2,$B13),TUMI_data!$C$477:$K$806,MATCH(Ebus_IO!D$11,TUMI_data!$C$476:$K$476,0),FALSE),"")),"") -> 19% | E13: =IFERROR(IF(E6="Monitored",MONITORED!E8/MONITORED!E$21,IFERROR(VLOOKUP(_xlfn.CONCAT($C$2,$B13),TUMI_data!$C$477:$K$806,MATCH(Ebus_IO!E$11,TUMI_data!$C$476:$K$476,0),FALSE),"")),"") -> 19% | F13: =IFERROR(IF(F6="Monitored",MONITORED!F8/MONITORED!F$21,IFERROR(VLOOKUP(_xlfn.CONCAT($C$2,$B13),TUMI_data!$C$477:$K$806,MATCH(Ebus_IO!F$11,TUMI_data!$C$476:$K$476,0),FALSE),"")),"") -> 19% | G13: =IFERROR(IF(G6="Monitored",MONITORED!G8/MONITORED!G$21,IFERROR(VLOOKUP(_xlfn.CONCAT($C$2,$B13),TUMI_data!$C$477:$K$806,MATCH(Ebus_IO!G$11,TUMI_data!$C$476:$K$476,0),FALSE),"")),"") -> 19% | H13: =IFERROR(IF(H6="Monitored",MONITORED!H8/MONITORED!H$21,IFERROR(VLOOKUP(_xlfn.CONCAT($C$2,$B13),TUMI_data!$C$477:$K$806,MATCH(Ebus_IO!H$11,TUMI_data!$C$476:$K$476,0),FALSE),"")),"") -> 19% | I13: =IFERROR(IF(I6="Monitored",MONITORED!I8/MONITORED!I$21,IFERROR(VLOOKUP(_xlfn.CONCAT($C$2,$B13),TUMI_data!$C$477:$K$806,MATCH(Ebus_IO!I$11,TUMI_data!$C$476:$K$476,0),FALSE),"")),"") -> 19% | J13: =IFERROR(VLOOKUP(_xlfn.CONCAT($C$2,$B13),TUMI_data!$C$477:$K$806,MATCH(Ebus_IO!J$11,TUMI_data!$C$476:$K$476,0),FALSE),"") ->  | K13: =IFERROR(VLOOKUP(_xlfn.CONCAT($C$2,$B13),TUMI_data!$C$477:$K$806,MATCH(Ebus_IO!K$11,TUMI_data!$C$476:$K$476,0),FALSE),"") -> 
A14: 3 | B14: Standard | C14: =IFERROR(IF(C7="Monitored",MONITORED!C9/MONITORED!C$21,IFERROR(VLOOKUP(_xlfn.CONCAT($C$2,$B14),TUMI_data!$C$477:$K$806,MATCH(Ebus_IO!C$11,TUMI_data!$C$476:$K$476,0),FALSE),"")),"") -> 0% | D14: =IFERROR(IF(D7="Monitored",MONITORED!D9/MONITORED!D$21,IFERROR(VLOOKUP(_xlfn.CONCAT($C$2,$B14),TUMI_data!$C$477:$K$806,MATCH(Ebus_IO!D$11,TUMI_data!$C$476:$K$476,0),FALSE),"")),"") -> 56% | E14: =IFERROR(IF(E7="Monitored",MONITORED!E9/MONITORED!E$21,IFERROR(VLOOKUP(_xlfn.CONCAT($C$2,$B14),TUMI_data!$C$477:$K$806,MATCH(Ebus_IO!E$11,TUMI_data!$C$476:$K$476,0),FALSE),"")),"") -> 56% | F14: =IFERROR(IF(F7="Monitored",MONITORED!F9/MONITORED!F$21,IFERROR(VLOOKUP(_xlfn.CONCAT($C$2,$B14),TUMI_data!$C$477:$K$806,MATCH(Ebus_IO!F$11,TUMI_data!$C$476:$K$476,0),FALSE),"")),"") -> 56% | G14: =IFERROR(IF(G7="Monitored",MONITORED!G9/MONITORED!G$21,IFERROR(VLOOKUP(_xlfn.CONCAT($C$2,$B14),TUMI_data!$C$477:$K$806,MATCH(Ebus_IO!G$11,TUMI_data!$C$476:$K$476,0),FALSE),"")),"") -> 56% | H14: =IFERROR(IF(H7="Monitored",MONITORED!H9/MONITORED!H$21,IFERROR(VLOOKUP(_xlfn.CONCAT($C$2,$B14),TUMI_data!$C$477:$K$806,MATCH(Ebus_IO!H$11,TUMI_data!$C$476:$K$476,0),FALSE),"")),"") -> 56% | I14: =IFERROR(IF(I7="Monitored",MONITORED!I9/MONITORED!I$21,IFERROR(VLOOKUP(_xlfn.CONCAT($C$2,$B14),TUMI_data!$C$477:$K$806,MATCH(Ebus_IO!I$11,TUMI_data!$C$476:$K$476,0),FALSE),"")),"") -> 56% | J14: =IFERROR(VLOOKUP(_xlfn.CONCAT($C$2,$B14),TUMI_data!$C$477:$K$806,MATCH(Ebus_IO!J$11,TUMI_data!$C$476:$K$476,0),FALSE),"") ->  | K14: =IFERROR(VLOOKUP(_xlfn.CONCAT($C$2,$B14),TUMI_data!$C$477:$K$806,MATCH(Ebus_IO!K$11,TUMI_data!$C$476:$K$476,0),FALSE),"") -> 
A15: 4 | B15: Articulated | C15: =IFERROR(IF(C8="Monitored",MONITORED!C10/MONITORED!C$21,IFERROR(VLOOKUP(_xlfn.CONCAT($C$2,$B15),TUMI_data!$C$477:$K$806,MATCH(Ebus_IO!C$11,TUMI_data!$C$476:$K$476,0),FALSE),"")),"") -> 0% | D15: =IFERROR(IF(D8="Monitored",MONITORED!D10/MONITORED!D$21,IFERROR(VLOOKUP(_xlfn.CONCAT($C$2,$B15),TUMI_data!$C$477:$K$806,MATCH(Ebus_IO!D$11,TUMI_data!$C$476:$K$476,0),FALSE),"")),"") -> 0% | E15: =IFERROR(IF(E8="Monitored",MONITORED!E10/MONITORED!E$21,IFERROR(VLOOKUP(_xlfn.CONCAT($C$2,$B15),TUMI_data!$C$477:$K$806,MATCH(Ebus_IO!E$11,TUMI_data!$C$476:$K$476,0),FALSE),"")),"") -> 0% | F15: =IFERROR(IF(F8="Monitored",MONITORED!F10/MONITORED!F$21,IFERROR(VLOOKUP(_xlfn.CONCAT($C$2,$B15),TUMI_data!$C$477:$K$806,MATCH(Ebus_IO!F$11,TUMI_data!$C$476:$K$476,0),FALSE),"")),"") -> 0% | G15: =IFERROR(IF(G8="Monitored",MONITORED!G10/MONITORED!G$21,IFERROR(VLOOKUP(_xlfn.CONCAT($C$2,$B15),TUMI_data!$C$477:$K$806,MATCH(Ebus_IO!G$11,TUMI_data!$C$476:$K$476,0),FALSE),"")),"") -> 0% | H15: =IFERROR(IF(H8="Monitored",MONITORED!H10/MONITORED!H$21,IFERROR(VLOOKUP(_xlfn.CONCAT($C$2,$B15),TUMI_data!$C$477:$K$806,MATCH(Ebus_IO!H$11,TUMI_data!$C$476:$K$476,0),FALSE),"")),"") -> 0% | I15: =IFERROR(IF(I8="Monitored",MONITORED!I10/MONITORED!I$21,IFERROR(VLOOKUP(_xlfn.CONCAT($C$2,$B15),TUMI_data!$C$477:$K$806,MATCH(Ebus_IO!I$11,TUMI_data!$C$476:$K$476,0),FALSE),"")),"") -> 0% | J15: =IFERROR(VLOOKUP(_xlfn.CONCAT($C$2,$B15),TUMI_data!$C$477:$K$806,MATCH(Ebus_IO!J$11,TUMI_data!$C$476:$K$476,0),FALSE),"") ->  | K15: =IFERROR(VLOOKUP(_xlfn.CONCAT($C$2,$B15),TUMI_data!$C$477:$K$806,MATCH(Ebus_IO!K$11,TUMI_data!$C$476:$K$476,0),FALSE),"") -> 
A16: 5 | B16: Double decker | C16: =IFERROR(IF(C9="Monitored",MONITORED!C11/MONITORED!C$21,IFERROR(VLOOKUP(_xlfn.CONCAT($C$2,$B16),TUMI_data!$C$477:$K$806,MATCH(Ebus_IO!C$11,TUMI_data!$C$476:$K$476,0),FALSE),"")),"") -> 0% | D16: =IFERROR(IF(D9="Monitored",MONITORED!D11/MONITORED!D$21,IFERROR(VLOOKUP(_xlfn.CONCAT($C$2,$B16),TUMI_data!$C$477:$K$806,MATCH(Ebus_IO!D$11,TUMI_data!$C$476:$K$476,0),FALSE),"")),"") -> 15% | E16: =IFERROR(IF(E9="Monitored",MONITORED!E11/MONITORED!E$21,IFERROR(VLOOKUP(_xlfn.CONCAT($C$2,$B16),TUMI_data!$C$477:$K$806,MATCH(Ebus_IO!E$11,TUMI_data!$C$476:$K$476,0),FALSE),"")),"") -> 15% | F16: =IFERROR(IF(F9="Monitored",MONITORED!F11/MONITORED!F$21,IFERROR(VLOOKUP(_xlfn.CONCAT($C$2,$B16),TUMI_data!$C$477:$K$806,MATCH(Ebus_IO!F$11,TUMI_data!$C$476:$K$476,0),FALSE),"")),"") -> 15% | G16: =IFERROR(IF(G9="Monitored",MONITORED!G11/MONITORED!G$21,IFERROR(VLOOKUP(_xlfn.CONCAT($C$2,$B16),TUMI_data!$C$477:$K$806,MATCH(Ebus_IO!G$11,TUMI_data!$C$476:$K$476,0),FALSE),"")),"") -> 15% | H16: =IFERROR(IF(H9="Monitored",MONITORED!H11/MONITORED!H$21,IFERROR(VLOOKUP(_xlfn.CONCAT($C$2,$B16),TUMI_data!$C$477:$K$806,MATCH(Ebus_IO!H$11,TUMI_data!$C$476:$K$476,0),FALSE),"")),"") -> 15% | I16: =IFERROR(IF(I9="Monitored",MONITORED!I11/MONITORED!I$21,IFERROR(VLOOKUP(_xlfn.CONCAT($C$2,$B16),TUMI_data!$C$477:$K$806,MATCH(Ebus_IO!I$11,TUMI_data!$C$476:$K$476,0),FALSE),"")),"") -> 15% | J16: =IFERROR(VLOOKUP(_xlfn.CONCAT($C$2,$B16),TUMI_data!$C$477:$K$806,MATCH(Ebus_IO!J$11,TUMI_data!$C$476:$K$476,0),FALSE),"") ->  | K16: =IFERROR(VLOOKUP(_xlfn.CONCAT($C$2,$B16),TUMI_data!$C$477:$K$806,MATCH(Ebus_IO!K$11,TUMI_data!$C$476:$K$476,0),FALSE),"") -> 
A17: 6 | C17: =IFERROR(IF(C10="Monitored",MONITORED!C12/MONITORED!C$21,IFERROR(VLOOKUP(_xlfn.CONCAT($C$2,$B17),TUMI_data!$C$477:$K$806,MATCH(Ebus_IO!C$11,TUMI_data!$C$476:$K$476,0),FALSE),"")),"") ->  | D17: =IFERROR(IF(D10="Monitored",MONITORED!D12/MONITORED!D$21,IFERROR(VLOOKUP(_xlfn.CONCAT($C$2,$B17),TUMI_data!$C$477:$K$806,MATCH(Ebus_IO!D$11,TUMI_data!$C$476:$K$476,0),FALSE),"")),"") ->  | E17: =IFERROR(IF(E10="Monitored",MONITORED!E12/MONITORED!E$21,IFERROR(VLOOKUP(_xlfn.CONCAT($C$2,$B17),TUMI_data!$C$477:$K$806,MATCH(Ebus_IO!E$11,TUMI_data!$C$476:$K$476,0),FALSE),"")),"") ->  | F17: =IFERROR(IF(F10="Monitored",MONITORED!F12/MONITORED!F$21,IFERROR(VLOOKUP(_xlfn.CONCAT($C$2,$B17),TUMI_data!$C$477:$K$806,MATCH(Ebus_IO!F$11,TUMI_data!$C$476:$K$476,0),FALSE),"")),"") ->  | G17: =IFERROR(IF(G10="Monitored",MONITORED!G12/MONITORED!G$21,IFERROR(VLOOKUP(_xlfn.CONCAT($C$2,$B17),TUMI_data!$C$477:$K$806,MATCH(Ebus_IO!G$11,TUMI_data!$C$476:$K$476,0),FALSE),"")),"") ->  | H17: =IFERROR(IF(H10="Monitored",MONITORED!H12/MONITORED!H$21,IFERROR(VLOOKUP(_xlfn.CONCAT($C$2,$B17),TUMI_data!$C$477:$K$806,MATCH(Ebus_IO!H$11,TUMI_data!$C$476:$K$476,0),FALSE),"")),"") ->  | I17: =IFERROR(IF(I10="Monitored",MONITORED!I12/MONITORED!I$21,IFERROR(VLOOKUP(_xlfn.CONCAT($C$2,$B17),TUMI_data!$C$477:$K$806,MATCH(Ebus_IO!I$11,TUMI_data!$C$476:$K$476,0),FALSE),"")),"") ->  | J17: =IFERROR(VLOOKUP(_xlfn.CONCAT($C$2,$B17),TUMI_data!$C$477:$K$806,MATCH(Ebus_IO!J$11,TUMI_data!$C$476:$K$476,0),FALSE),"") ->  | K17: =IFERROR(VLOOKUP(_xlfn.CONCAT($C$2,$B17),TUMI_data!$C$477:$K$806,MATCH(Ebus_IO!K$11,TUMI_data!$C$476:$K$476,0),FALSE),"") -> 
A18: 7 | C18: =IFERROR(IF(C11="Monitored",MONITORED!C13/MONITORED!C$21,IFERROR(VLOOKUP(_xlfn.CONCAT($C$2,$B18),TUMI_data!$C$477:$K$806,MATCH(Ebus_IO!C$11,TUMI_data!$C$476:$K$476,0),FALSE),"")),"") ->  | D18: =IFERROR(IF(D11="Monitored",MONITORED!D13/MONITORED!D$21,IFERROR(VLOOKUP(_xlfn.CONCAT($C$2,$B18),TUMI_data!$C$477:$K$806,MATCH(Ebus_IO!D$11,TUMI_data!$C$476:$K$476,0),FALSE),"")),"") ->  | E18: =IFERROR(IF(E11="Monitored",MONITORED!E13/MONITORED!E$21,IFERROR(VLOOKUP(_xlfn.CONCAT($C$2,$B18),TUMI_data!$C$477:$K$806,MATCH(Ebus_IO!E$11,TUMI_data!$C$476:$K$476,0),FALSE),"")),"") ->  | F18: =IFERROR(IF(F11="Monitored",MONITORED!F13/MONITORED!F$21,IFERROR(VLOOKUP(_xlfn.CONCAT($C$2,$B18),TUMI_data!$C$477:$K$806,MATCH(Ebus_IO!F$11,TUMI_data!$C$476:$K$476,0),FALSE),"")),"") ->  | G18: =IFERROR(IF(G11="Monitored",MONITORED!G13/MONITORED!G$21,IFERROR(VLOOKUP(_xlfn.CONCAT($C$2,$B18),TUMI_data!$C$477:$K$806,MATCH(Ebus_IO!G$11,TUMI_data!$C$476:$K$476,0),FALSE),"")),"") ->  | H18: =IFERROR(IF(H11="Monitored",MONITORED!H13/MONITORED!H$21,IFERROR(VLOOKUP(_xlfn.CONCAT($C$2,$B18),TUMI_data!$C$477:$K$806,MATCH(Ebus_IO!H$11,TUMI_data!$C$476:$K$476,0),FALSE),"")),"") ->  | I18: =IFERROR(IF(I11="Monitored",MONITORED!I13/MONITORED!I$21,IFERROR(VLOOKUP(_xlfn.CONCAT($C$2,$B18),TUMI_data!$C$477:$K$806,MATCH(Ebus_IO!I$11,TUMI_data!$C$476:$K$476,0),FALSE),"")),"") ->  | J18: =IFERROR(VLOOKUP(_xlfn.CONCAT($C$2,$B18),TUMI_data!$C$477:$K$806,MATCH(Ebus_IO!J$11,TUMI_data!$C$476:$K$476,0),FALSE),"") ->  | K18: =IFERROR(VLOOKUP(_xlfn.CONCAT($C$2,$B18),TUMI_data!$C$477:$K$806,MATCH(Ebus_IO!K$11,TUMI_data!$C$476:$K$476,0),FALSE),"") -> 
A19: 8 | C19: =IFERROR(IF(C12="Monitored",MONITORED!C14/MONITORED!C$21,IFERROR(VLOOKUP(_xlfn.CONCAT($C$2,$B19),TUMI_data!$C$477:$K$806,MATCH(Ebus_IO!C$11,TUMI_data!$C$476:$K$476,0),FALSE),"")),"") ->  | D19: =IFERROR(IF(D12="Monitored",MONITORED!D14/MONITORED!D$21,IFERROR(VLOOKUP(_xlfn.CONCAT($C$2,$B19),TUMI_data!$C$477:$K$806,MATCH(Ebus_IO!D$11,TUMI_data!$C$476:$K$476,0),FALSE),"")),"") ->  | E19: =IFERROR(IF(E12="Monitored",MONITORED!E14/MONITORED!E$21,IFERROR(VLOOKUP(_xlfn.CONCAT($C$2,$B19),TUMI_data!$C$477:$K$806,MATCH(Ebus_IO!E$11,TUMI_data!$C$476:$K$476,0),FALSE),"")),"") ->  | F19: =IFERROR(IF(F12="Monitored",MONITORED!F14/MONITORED!F$21,IFERROR(VLOOKUP(_xlfn.CONCAT($C$2,$B19),TUMI_data!$C$477:$K$806,MATCH(Ebus_IO!F$11,TUMI_data!$C$476:$K$476,0),FALSE),"")),"") ->  | G19: =IFERROR(IF(G12="Monitored",MONITORED!G14/MONITORED!G$21,IFERROR(VLOOKUP(_xlfn.CONCAT($C$2,$B19),TUMI_data!$C$477:$K$806,MATCH(Ebus_IO!G$11,TUMI_data!$C$476:$K$476,0),FALSE),"")),"") ->  | H19: =IFERROR(IF(H12="Monitored",MONITORED!H14/MONITORED!H$21,IFERROR(VLOOKUP(_xlfn.CONCAT($C$2,$B19),TUMI_data!$C$477:$K$806,MATCH(Ebus_IO!H$11,TUMI_data!$C$476:$K$476,0),FALSE),"")),"") ->  | I19: =IFERROR(IF(I12="Monitored",MONITORED!I14/MONITORED!I$21,IFERROR(VLOOKUP(_xlfn.CONCAT($C$2,$B19),TUMI_data!$C$477:$K$806,MATCH(Ebus_IO!I$11,TUMI_data!$C$476:$K$476,0),FALSE),"")),"") ->  | J19: =IFERROR(VLOOKUP(_xlfn.CONCAT($C$2,$B19),TUMI_data!$C$477:$K$806,MATCH(Ebus_IO!J$11,TUMI_data!$C$476:$K$476,0),FALSE),"") ->  | K19: =IFERROR(VLOOKUP(_xlfn.CONCAT($C$2,$B19),TUMI_data!$C$477:$K$806,MATCH(Ebus_IO!K$11,TUMI_data!$C$476:$K$476,0),FALSE),"") -> 
A20: 9 | C20: =IFERROR(IF(C13="Monitored",MONITORED!C15/MONITORED!C$21,IFERROR(VLOOKUP(_xlfn.CONCAT($C$2,$B20),TUMI_data!$C$477:$K$806,MATCH(Ebus_IO!C$11,TUMI_data!$C$476:$K$476,0),FALSE),"")),"") ->  | D20: =IFERROR(IF(D13="Monitored",MONITORED!D15/MONITORED!D$21,IFERROR(VLOOKUP(_xlfn.CONCAT($C$2,$B20),TUMI_data!$C$477:$K$806,MATCH(Ebus_IO!D$11,TUMI_data!$C$476:$K$476,0),FALSE),"")),"") ->  | E20: =IFERROR(IF(E13="Monitored",MONITORED!E15/MONITORED!E$21,IFERROR(VLOOKUP(_xlfn.CONCAT($C$2,$B20),TUMI_data!$C$477:$K$806,MATCH(Ebus_IO!E$11,TUMI_data!$C$476:$K$476,0),FALSE),"")),"") ->  | F20: =IFERROR(IF(F13="Monitored",MONITORED!F15/MONITORED!F$21,IFERROR(VLOOKUP(_xlfn.CONCAT($C$2,$B20),TUMI_data!$C$477:$K$806,MATCH(Ebus_IO!F$11,TUMI_data!$C$476:$K$476,0),FALSE),"")),"") ->  | G20: =IFERROR(IF(G13="Monitored",MONITORED!G15/MONITORED!G$21,IFERROR(VLOOKUP(_xlfn.CONCAT($C$2,$B20),TUMI_data!$C$477:$K$806,MATCH(Ebus_IO!G$11,TUMI_data!$C$476:$K$476,0),FALSE),"")),"") ->  | H20: =IFERROR(IF(H13="Monitored",MONITORED!H15/MONITORED!H$21,IFERROR(VLOOKUP(_xlfn.CONCAT($C$2,$B20),TUMI_data!$C$477:$K$806,MATCH(Ebus_IO!H$11,TUMI_data!$C$476:$K$476,0),FALSE),"")),"") ->  | I20: =IFERROR(IF(I13="Monitored",MONITORED!I15/MONITORED!I$21,IFERROR(VLOOKUP(_xlfn.CONCAT($C$2,$B20),TUMI_data!$C$477:$K$806,MATCH(Ebus_IO!I$11,TUMI_data!$C$476:$K$476,0),FALSE),"")),"") ->  | J20: =IFERROR(VLOOKUP(_xlfn.CONCAT($C$2,$B20),TUMI_data!$C$477:$K$806,MATCH(Ebus_IO!J$11,TUMI_data!$C$476:$K$476,0),FALSE),"") ->  | K20: =IFERROR(VLOOKUP(_xlfn.CONCAT($C$2,$B20),TUMI_data!$C$477:$K$806,MATCH(Ebus_IO!K$11,TUMI_data!$C$476:$K$476,0),FALSE),"") -> 
A21: 10 | C21: =IFERROR(IF(C14="Monitored",MONITORED!C16/MONITORED!C$21,IFERROR(VLOOKUP(_xlfn.CONCAT($C$2,$B21),TUMI_data!$C$477:$K$806,MATCH(Ebus_IO!C$11,TUMI_data!$C$476:$K$476,0),FALSE),"")),"") ->  | D21: =IFERROR(IF(D14="Monitored",MONITORED!D16/MONITORED!D$21,IFERROR(VLOOKUP(_xlfn.CONCAT($C$2,$B21),TUMI_data!$C$477:$K$806,MATCH(Ebus_IO!D$11,TUMI_data!$C$476:$K$476,0),FALSE),"")),"") ->  | E21: =IFERROR(IF(E14="Monitored",MONITORED!E16/MONITORED!E$21,IFERROR(VLOOKUP(_xlfn.CONCAT($C$2,$B21),TUMI_data!$C$477:$K$806,MATCH(Ebus_IO!E$11,TUMI_data!$C$476:$K$476,0),FALSE),"")),"") ->  | F21: =IFERROR(IF(F14="Monitored",MONITORED!F16/MONITORED!F$21,IFERROR(VLOOKUP(_xlfn.CONCAT($C$2,$B21),TUMI_data!$C$477:$K$806,MATCH(Ebus_IO!F$11,TUMI_data!$C$476:$K$476,0),FALSE),"")),"") ->  | G21: =IFERROR(IF(G14="Monitored",MONITORED!G16/MONITORED!G$21,IFERROR(VLOOKUP(_xlfn.CONCAT($C$2,$B21),TUMI_data!$C$477:$K$806,MATCH(Ebus_IO!G$11,TUMI_data!$C$476:$K$476,0),FALSE),"")),"") ->  | H21: =IFERROR(IF(H14="Monitored",MONITORED!H16/MONITORED!H$21,IFERROR(VLOOKUP(_xlfn.CONCAT($C$2,$B21),TUMI_data!$C$477:$K$806,MATCH(Ebus_IO!H$11,TUMI_data!$C$476:$K$476,0),FALSE),"")),"") ->  | I21: =IFERROR(IF(I14="Monitored",MONITORED!I16/MONITORED!I$21,IFERROR(VLOOKUP(_xlfn.CONCAT($C$2,$B21),TUMI_data!$C$477:$K$806,MATCH(Ebus_IO!I$11,TUMI_data!$C$476:$K$476,0),FALSE),"")),"") ->  | J21: =IFERROR(VLOOKUP(_xlfn.CONCAT($C$2,$B21),TUMI_data!$C$477:$K$806,MATCH(Ebus_IO!J$11,TUMI_data!$C$476:$K$476,0),FALSE),"") ->  | K21: =IFERROR(VLOOKUP(_xlfn.CONCAT($C$2,$B21),TUMI_data!$C$477:$K$806,MATCH(Ebus_IO!K$11,TUMI_data!$C$476:$K$476,0),FALSE),"") -> 
A22: 11 | C22: =IFERROR(IF(C15="Monitored",MONITORED!C17/MONITORED!C$21,IFERROR(VLOOKUP(_xlfn.CONCAT($C$2,$B22),TUMI_data!$C$477:$K$806,MATCH(Ebus_IO!C$11,TUMI_data!$C$476:$K$476,0),FALSE),"")),"") ->  | D22: =IFERROR(IF(D15="Monitored",MONITORED!D17/MONITORED!D$21,IFERROR(VLOOKUP(_xlfn.CONCAT($C$2,$B22),TUMI_data!$C$477:$K$806,MATCH(Ebus_IO!D$11,TUMI_data!$C$476:$K$476,0),FALSE),"")),"") ->  | E22: =IFERROR(IF(E15="Monitored",MONITORED!E17/MONITORED!E$21,IFERROR(VLOOKUP(_xlfn.CONCAT($C$2,$B22),TUMI_data!$C$477:$K$806,MATCH(Ebus_IO!E$11,TUMI_data!$C$476:$K$476,0),FALSE),"")),"") ->  | F22: =IFERROR(IF(F15="Monitored",MONITORED!F17/MONITORED!F$21,IFERROR(VLOOKUP(_xlfn.CONCAT($C$2,$B22),TUMI_data!$C$477:$K$806,MATCH(Ebus_IO!F$11,TUMI_data!$C$476:$K$476,0),FALSE),"")),"") ->  | G22: =IFERROR(IF(G15="Monitored",MONITORED!G17/MONITORED!G$21,IFERROR(VLOOKUP(_xlfn.CONCAT($C$2,$B22),TUMI_data!$C$477:$K$806,MATCH(Ebus_IO!G$11,TUMI_data!$C$476:$K$476,0),FALSE),"")),"") ->  | H22: =IFERROR(IF(H15="Monitored",MONITORED!H17/MONITORED!H$21,IFERROR(VLOOKUP(_xlfn.CONCAT($C$2,$B22),TUMI_data!$C$477:$K$806,MATCH(Ebus_IO!H$11,TUMI_data!$C$476:$K$476,0),FALSE),"")),"") ->  | I22: =IFERROR(IF(I15="Monitored",MONITORED!I17/MONITORED!I$21,IFERROR(VLOOKUP(_xlfn.CONCAT($C$2,$B22),TUMI_data!$C$477:$K$806,MATCH(Ebus_IO!I$11,TUMI_data!$C$476:$K$476,0),FALSE),"")),"") ->  | J22: =IFERROR(VLOOKUP(_xlfn.CONCAT($C$2,$B22),TUMI_data!$C$477:$K$806,MATCH(Ebus_IO!J$11,TUMI_data!$C$476:$K$476,0),FALSE),"") ->  | K22: =IFERROR(VLOOKUP(_xlfn.CONCAT($C$2,$B22),TUMI_data!$C$477:$K$806,MATCH(Ebus_IO!K$11,TUMI_data!$C$476:$K$476,0),FALSE),"") -> 
A23: 12 | C23: =IFERROR(IF(C16="Monitored",MONITORED!C18/MONITORED!C$21,IFERROR(VLOOKUP(_xlfn.CONCAT($C$2,$B23),TUMI_data!$C$477:$K$806,MATCH(Ebus_IO!C$11,TUMI_data!$C$476:$K$476,0),FALSE),"")),"") ->  | D23: =IFERROR(IF(D16="Monitored",MONITORED!D18/MONITORED!D$21,IFERROR(VLOOKUP(_xlfn.CONCAT($C$2,$B23),TUMI_data!$C$477:$K$806,MATCH(Ebus_IO!D$11,TUMI_data!$C$476:$K$476,0),FALSE),"")),"") ->  | E23: =IFERROR(IF(E16="Monitored",MONITORED!E18/MONITORED!E$21,IFERROR(VLOOKUP(_xlfn.CONCAT($C$2,$B23),TUMI_data!$C$477:$K$806,MATCH(Ebus_IO!E$11,TUMI_data!$C$476:$K$476,0),FALSE),"")),"") ->  | F23: =IFERROR(IF(F16="Monitored",MONITORED!F18/MONITORED!F$21,IFERROR(VLOOKUP(_xlfn.CONCAT($C$2,$B23),TUMI_data!$C$477:$K$806,MATCH(Ebus_IO!F$11,TUMI_data!$C$476:$K$476,0),FALSE),"")),"") ->  | G23: =IFERROR(IF(G16="Monitored",MONITORED!G18/MONITORED!G$21,IFERROR(VLOOKUP(_xlfn.CONCAT($C$2,$B23),TUMI_data!$C$477:$K$806,MATCH(Ebus_IO!G$11,TUMI_data!$C$476:$K$476,0),FALSE),"")),"") ->  | H23: =IFERROR(IF(H16="Monitored",MONITORED!H18/MONITORED!H$21,IFERROR(VLOOKUP(_xlfn.CONCAT($C$2,$B23),TUMI_data!$C$477:$K$806,MATCH(Ebus_IO!H$11,TUMI_data!$C$476:$K$476,0),FALSE),"")),"") ->  | I23: =IFERROR(IF(I16="Monitored",MONITORED!I18/MONITORED!I$21,IFERROR(VLOOKUP(_xlfn.CONCAT($C$2,$B23),TUMI_data!$C$477:$K$806,MATCH(Ebus_IO!I$11,TUMI_data!$C$476:$K$476,0),FALSE),"")),"") ->  | J23: =IFERROR(VLOOKUP(_xlfn.CONCAT($C$2,$B23),TUMI_data!$C$477:$K$806,MATCH(Ebus_IO!J$11,TUMI_data!$C$476:$K$476,0),FALSE),"") ->  | K23: =IFERROR(VLOOKUP(_xlfn.CONCAT($C$2,$B23),TUMI_data!$C$477:$K$806,MATCH(Ebus_IO!K$11,TUMI_data!$C$476:$K$476,0),FALSE),"") -> 
A24: 13 | C24: =IFERROR(IF(C17="Monitored",MONITORED!C19/MONITORED!C$21,IFERROR(VLOOKUP(_xlfn.CONCAT($C$2,$B24),TUMI_data!$C$477:$K$806,MATCH(Ebus_IO!C$11,TUMI_data!$C$476:$K$476,0),FALSE),"")),"") ->  | D24: =IFERROR(IF(D17="Monitored",MONITORED!D19/MONITORED!D$21,IFERROR(VLOOKUP(_xlfn.CONCAT($C$2,$B24),TUMI_data!$C$477:$K$806,MATCH(Ebus_IO!D$11,TUMI_data!$C$476:$K$476,0),FALSE),"")),"") ->  | E24: =IFERROR(IF(E17="Monitored",MONITORED!E19/MONITORED!E$21,IFERROR(VLOOKUP(_xlfn.CONCAT($C$2,$B24),TUMI_data!$C$477:$K$806,MATCH(Ebus_IO!E$11,TUMI_data!$C$476:$K$476,0),FALSE),"")),"") ->  | F24: =IFERROR(IF(F17="Monitored",MONITORED!F19/MONITORED!F$21,IFERROR(VLOOKUP(_xlfn.CONCAT($C$2,$B24),TUMI_data!$C$477:$K$806,MATCH(Ebus_IO!F$11,TUMI_data!$C$476:$K$476,0),FALSE),"")),"") ->  | G24: =IFERROR(IF(G17="Monitored",MONITORED!G19/MONITORED!G$21,IFERROR(VLOOKUP(_xlfn.CONCAT($C$2,$B24),TUMI_data!$C$477:$K$806,MATCH(Ebus_IO!G$11,TUMI_data!$C$476:$K$476,0),FALSE),"")),"") ->  | H24: =IFERROR(IF(H17="Monitored",MONITORED!H19/MONITORED!H$21,IFERROR(VLOOKUP(_xlfn.CONCAT($C$2,$B24),TUMI_data!$C$477:$K$806,MATCH(Ebus_IO!H$11,TUMI_data!$C$476:$K$476,0),FALSE),"")),"") ->  | I24: =IFERROR(IF(I17="Monitored",MONITORED!I19/MONITORED!I$21,IFERROR(VLOOKUP(_xlfn.CONCAT($C$2,$B24),TUMI_data!$C$477:$K$806,MATCH(Ebus_IO!I$11,TUMI_data!$C$476:$K$476,0),FALSE),"")),"") ->  | J24: =IFERROR(VLOOKUP(_xlfn.CONCAT($C$2,$B24),TUMI_data!$C$477:$K$806,MATCH(Ebus_IO!J$11,TUMI_data!$C$476:$K$476,0),FALSE),"") ->  | K24: =IFERROR(VLOOKUP(_xlfn.CONCAT($C$2,$B24),TUMI_data!$C$477:$K$806,MATCH(Ebus_IO!K$11,TUMI_data!$C$476:$K$476,0),FALSE),"") -> 
A25: 14 | C25: =IFERROR(IF(C18="Monitored",MONITORED!C20/MONITORED!C$21,IFERROR(VLOOKUP(_xlfn.CONCAT($C$2,$B25),TUMI_data!$C$477:$K$806,MATCH(Ebus_IO!C$11,TUMI_data!$C$476:$K$476,0),FALSE),"")),"") ->  | D25: =IFERROR(IF(D18="Monitored",MONITORED!D20/MONITORED!D$21,IFERROR(VLOOKUP(_xlfn.CONCAT($C$2,$B25),TUMI_data!$C$477:$K$806,MATCH(Ebus_IO!D$11,TUMI_data!$C$476:$K$476,0),FALSE),"")),"") ->  | E25: =IFERROR(IF(E18="Monitored",MONITORED!E20/MONITORED!E$21,IFERROR(VLOOKUP(_xlfn.CONCAT($C$2,$B25),TUMI_data!$C$477:$K$806,MATCH(Ebus_IO!E$11,TUMI_data!$C$476:$K$476,0),FALSE),"")),"") ->  | F25: =IFERROR(IF(F18="Monitored",MONITORED!F20/MONITORED!F$21,IFERROR(VLOOKUP(_xlfn.CONCAT($C$2,$B25),TUMI_data!$C$477:$K$806,MATCH(Ebus_IO!F$11,TUMI_data!$C$476:$K$476,0),FALSE),"")),"") ->  | G25: =IFERROR(IF(G18="Monitored",MONITORED!G20/MONITORED!G$21,IFERROR(VLOOKUP(_xlfn.CONCAT($C$2,$B25),TUMI_data!$C$477:$K$806,MATCH(Ebus_IO!G$11,TUMI_data!$C$476:$K$476,0),FALSE),"")),"") ->  | H25: =IFERROR(IF(H18="Monitored",MONITORED!H20/MONITORED!H$21,IFERROR(VLOOKUP(_xlfn.CONCAT($C$2,$B25),TUMI_data!$C$477:$K$806,MATCH(Ebus_IO!H$11,TUMI_data!$C$476:$K$476,0),FALSE),"")),"") ->  | I25: =IFERROR(IF(I18="Monitored",MONITORED!I20/MONITORED!I$21,IFERROR(VLOOKUP(_xlfn.CONCAT($C$2,$B25),TUMI_data!$C$477:$K$806,MATCH(Ebus_IO!I$11,TUMI_data!$C$476:$K$476,0),FALSE),"")),"") ->  | J25: =IFERROR(VLOOKUP(_xlfn.CONCAT($C$2,$B25),TUMI_data!$C$477:$K$806,MATCH(Ebus_IO!J$11,TUMI_data!$C$476:$K$476,0),FALSE),"") ->  | K25: =IFERROR(VLOOKUP(_xlfn.CONCAT($C$2,$B25),TUMI_data!$C$477:$K$806,MATCH(Ebus_IO!K$11,TUMI_data!$C$476:$K$476,0),FALSE),"") -> 
C26: =SUM(C12:C25) -> 100% | D26: =SUM(D12:D25) -> 100% | E26: 100% | F26: 100% | G26: 100% | H26: 100% | I26: 100% | J26: 0% | K26: 0%
C28: =MONITORED!C9/MONITORED!C$21 -> 
A29: =A12 -> 1 | B29: =B12 -> Minibus | C29: =C12 -> 0% | D29: =D12 -> 10% | E29: 10% | F29: 10% | G29: 10% | H29: 10% | I29: 10%
A30: =A13 -> 2 | B30: =B13 -> Midibus | C30: 100% | D30: 19% | E30: 19% | F30: 19% | G30: 19% | H30: 19% | I30: 19%
A31: 3 | B31: Standard | C31: 0% | D31: 56% | E31: 56% | F31: 56% | G31: 56% | H31: 56% | I31: 56%
A32: 4 | B32: Articulated | C32: 0% | D32: 0% | E32: 0% | F32: 0% | G32: 0% | H32: 0% | I32: 0%
A33: 5 | B33: Double decker | C33: 0% | D33: 15% | E33: 15% | F33: 15% | G33: 15% | H33: 15% | I33: 15%
A34: 6 | B34: 0
A35: 7 | B35: 0
A36: 8 | B36: 0
A37: 9 | B37: 0
A38: 10 | B38: 0
A39: 11 | B39: 0
A40: 12 | B40: 0
A41: 13 | B41: 0
A42: 14 | B42: 0
B44: Indicate the Average Speed and Road Slope of the Bus Corridors
B68: Characteristics of E-bus Types
C69: Average VKT/year per bus | D69: Crush Capacity | E69: Average Load factor | F69: Average occupancy | G69: Average kWh/VKM
A70: 1 | B70: =IF(B12="","",B12) -> Minibus | C70: =VLOOKUP($C$2,TUMI_data!$A$147:$J$168,MATCH(Ebus_IO!B70,TUMI_data!$A$146:$J$146,0),FALSE) -> 40,000 | D70: =Ebuses!U31 -> 26 | E70: 50% | F70: =ROUND(D70*E70,0) -> 13 | G70: =BEV_EC_adj!C53 -> 0.84
A71: 2 | B71: Midibus | C71: =VLOOKUP($C$2,TUMI_data!$A$147:$J$168,MATCH(Ebus_IO!B71,TUMI_data!$A$146:$J$146,0),FALSE) -> 40,000 | D71: =Ebuses!U32 -> 69 | E71: 50% | F71: =ROUND(D71*E71,0) -> 35 | G71: =BEV_EC_adj!C54 -> 1.61
A72: 3 | B72: Standard | C72: =VLOOKUP($C$2,TUMI_data!$A$147:$J$168,MATCH(Ebus_IO!B72,TUMI_data!$A$146:$J$146,0),FALSE) -> 40,000 | D72: =Ebuses!U33 -> 83 | E72: 50% | F72: 42 | G72: =BEV_EC_adj!C55 -> 1.68
A73: 4 | B73: Articulated | C73: =VLOOKUP($C$2,TUMI_data!$A$147:$J$168,MATCH(Ebus_IO!B73,TUMI_data!$A$146:$J$146,0),FALSE) -> 40,000 | D73: =Ebuses!U34 -> 102 | E73: 50% | F73: 51 | G73: =BEV_EC_adj!C56 -> 2.51
A74: 5 | B74: Double decker | C74: =VLOOKUP($C$2,TUMI_data!$A$147:$J$168,MATCH(Ebus_IO!B74,TUMI_data!$A$146:$J$146,0),FALSE) -> 40,000 | D74: =Ebuses!U35 -> 97 | E74: 50% | F74: 49 | G74: =BEV_EC_adj!C57 -> 2.35
A75: 6 | F75: 0 | G75: =BEV_EC_adj!C58 -> 0
A76: 7 | F76: 0 | G76: =BEV_EC_adj!C59 -> 0
A77: 8 | F77: 0 | G77: =BEV_EC_adj!C60 -> 0
A78: 9 | F78: 0 | G78: =BEV_EC_adj!C61 -> 0
A79: 10 | F79: 0 | G79: =BEV_EC_adj!C62 -> 0
A80: 11 | F80: 0 | G80: =BEV_EC_adj!C63 -> 0
A81: 12 | F81: 0 | G81: =BEV_EC_adj!C64 -> 0
A82: 13 | F82: 0 | G82: =BEV_EC_adj!C65 -> 0
A83: 14 | F83: 0 | G83: =BEV_EC_adj!C66 -> 0
B85: Electricity Generation by Energy Type (%) | D85: =RESULTS!C8 -> Enhanced Targets
C87: =C11 -> 2020 | D87: 2025 | E87: 2030 | F87: 2035 | G87: 2040 | H87: 2045 | I87: 2050 | J87: 2055 | K87: 2060
B88: Coal | C88: =IFERROR(VLOOKUP(_xlfn.CONCAT($C$3,$B88),TUMI_data!$C$221:$AH$283,MATCH(Ebus_IO!C$87,TUMI_data!$C$220:$AH$220,0),FALSE),"") -> 72% | D88: =IFERROR(VLOOKUP(_xlfn.CONCAT($C$3,$B88),TUMI_data!$C$221:$AH$283,MATCH(Ebus_IO!D$87,TUMI_data!$C$220:$AH$220,0),FALSE),"") -> 66% | E88: =IFERROR(VLOOKUP(_xlfn.CONCAT($C$3,$B88),TUMI_data!$C$221:$AH$283,MATCH(Ebus_IO!E$87,TUMI_data!$C$220:$AH$220,0),FALSE),"") -> 57% | F88: =IFERROR(VLOOKUP(_xlfn.CONCAT($C$3,$B88),TUMI_data!$C$221:$AH$283,MATCH(Ebus_IO!F$87,TUMI_data!$C$220:$AH$220,0),FALSE),"") -> 49% | G88: =IFERROR(VLOOKUP(_xlfn.CONCAT($C$3,$B88),TUMI_data!$C$221:$AH$283,MATCH(Ebus_IO!G$87,TUMI_data!$C$220:$AH$220,0),FALSE),"") -> 40% | H88: =IFERROR(VLOOKUP(_xlfn.CONCAT($C$3,$B88),TUMI_data!$C$221:$AH$283,MATCH(Ebus_IO!H$87,TUMI_data!$C$220:$AH$220,0),FALSE),"") -> 32% | I88: =IFERROR(VLOOKUP(_xlfn.CONCAT($C$3,$B88),TUMI_data!$C$221:$AH$283,MATCH(Ebus_IO!I$87,TUMI_data!$C$220:$AH$220,0),FALSE),"") -> 23% | J88: =IFERROR(VLOOKUP(_xlfn.CONCAT($C$3,$B88),TUMI_data!$C$221:$AH$283,MATCH(Ebus_IO!J$87,TUMI_data!$C$220:$AH$220,0),FALSE),"") ->  | K88: =IFERROR(VLOOKUP(_xlfn.CONCAT($C$3,$B88),TUMI_data!$C$221:$AH$283,MATCH(Ebus_IO!K$87,TUMI_data!$C$220:$AH$220,0),FALSE),"") -> 
B89: Fuel oil | C89: =IFERROR(VLOOKUP(_xlfn.CONCAT($C$3,$B89),TUMI_data!$C$221:$AH$283,MATCH(Ebus_IO!C$87,TUMI_data!$C$220:$AH$220,0),FALSE),"") -> 0% | D89: =IFERROR(VLOOKUP(_xlfn.CONCAT($C$3,$B89),TUMI_data!$C$221:$AH$283,MATCH(Ebus_IO!D$87,TUMI_data!$C$220:$AH$220,0),FALSE),"") -> 0% | E89: =IFERROR(VLOOKUP(_xlfn.CONCAT($C$3,$B89),TUMI_data!$C$221:$AH$283,MATCH(Ebus_IO!E$87,TUMI_data!$C$220:$AH$220,0),FALSE),"") -> 0% | F89: =IFERROR(VLOOKUP(_xlfn.CONCAT($C$3,$B89),TUMI_data!$C$221:$AH$283,MATCH(Ebus_IO!F$87,TUMI_data!$C$220:$AH$220,0),FALSE),"") -> 0% | G89: =IFERROR(VLOOKUP(_xlfn.CONCAT($C$3,$B89),TUMI_data!$C$221:$AH$283,MATCH(Ebus_IO!G$87,TUMI_data!$C$220:$AH$220,0),FALSE),"") -> 0% | H89: =IFERROR(VLOOKUP(_xlfn.CONCAT($C$3,$B89),TUMI_data!$C$221:$AH$283,MATCH(Ebus_IO!H$87,TUMI_data!$C$220:$AH$220,0),FALSE),"") -> 0% | I89: =IFERROR(VLOOKUP(_xlfn.CONCAT($C$3,$B89),TUMI_data!$C$221:$AH$283,MATCH(Ebus_IO!I$87,TUMI_data!$C$220:$AH$220,0),FALSE),"") -> 0% | J89: =IFERROR(VLOOKUP(_xlfn.CONCAT($C$3,$B89),TUMI_data!$C$221:$AH$283,MATCH(Ebus_IO!J$87,TUMI_data!$C$220:$AH$220,0),FALSE),"") ->  | K89: =IFERROR(VLOOKUP(_xlfn.CONCAT($C$3,$B89),TUMI_data!$C$221:$AH$283,MATCH(Ebus_IO!K$87,TUMI_data!$C$220:$AH$220,0),FALSE),"") -> 
B90: Gas/diesel oil | C90: =IFERROR(VLOOKUP(_xlfn.CONCAT($C$3,$B90),TUMI_data!$C$221:$AH$283,MATCH(Ebus_IO!C$87,TUMI_data!$C$220:$AH$220,0),FALSE),"") -> 0% | D90: =IFERROR(VLOOKUP(_xlfn.CONCAT($C$3,$B90),TUMI_data!$C$221:$AH$283,MATCH(Ebus_IO!D$87,TUMI_data!$C$220:$AH$220,0),FALSE),"") -> 0% | E90: =IFERROR(VLOOKUP(_xlfn.CONCAT($C$3,$B90),TUMI_data!$C$221:$AH$283,MATCH(Ebus_IO!E$87,TUMI_data!$C$220:$AH$220,0),FALSE),"") -> 0% | F90: =IFERROR(VLOOKUP(_xlfn.CONCAT($C$3,$B90),TUMI_data!$C$221:$AH$283,MATCH(Ebus_IO!F$87,TUMI_data!$C$220:$AH$220,0),FALSE),"") -> 0% | G90: =IFERROR(VLOOKUP(_xlfn.CONCAT($C$3,$B90),TUMI_data!$C$221:$AH$283,MATCH(Ebus_IO!G$87,TUMI_data!$C$220:$AH$220,0),FALSE),"") -> 0% | H90: =IFERROR(VLOOKUP(_xlfn.CONCAT($C$3,$B90),TUMI_data!$C$221:$AH$283,MATCH(Ebus_IO!H$87,TUMI_data!$C$220:$AH$220,0),FALSE),"") -> 0% | I90: =IFERROR(VLOOKUP(_xlfn.CONCAT($C$3,$B90),TUMI_data!$C$221:$AH$283,MATCH(Ebus_IO!I$87,TUMI_data!$C$220:$AH$220,0),FALSE),"") -> 0% | J90: =IFERROR(VLOOKUP(_xlfn.CONCAT($C$3,$B90),TUMI_data!$C$221:$AH$283,MATCH(Ebus_IO!J$87,TUMI_data!$C$220:$AH$220,0),FALSE),"") ->  | K90: =IFERROR(VLOOKUP(_xlfn.CONCAT($C$3,$B90),TUMI_data!$C$221:$AH$283,MATCH(Ebus_IO!K$87,TUMI_data!$C$220:$AH$220,0),FALSE),"") -> 
B91: Natural gas | C91: =IFERROR(VLOOKUP(_xlfn.CONCAT($C$3,$B91),TUMI_data!$C$221:$AH$283,MATCH(Ebus_IO!C$87,TUMI_data!$C$220:$AH$220,0),FALSE),"") -> 4% | D91: =IFERROR(VLOOKUP(_xlfn.CONCAT($C$3,$B91),TUMI_data!$C$221:$AH$283,MATCH(Ebus_IO!D$87,TUMI_data!$C$220:$AH$220,0),FALSE),"") -> 6% | E91: =IFERROR(VLOOKUP(_xlfn.CONCAT($C$3,$B91),TUMI_data!$C$221:$AH$283,MATCH(Ebus_IO!E$87,TUMI_data!$C$220:$AH$220,0),FALSE),"") -> 5% | F91: =IFERROR(VLOOKUP(_xlfn.CONCAT($C$3,$B91),TUMI_data!$C$221:$AH$283,MATCH(Ebus_IO!F$87,TUMI_data!$C$220:$AH$220,0),FALSE),"") -> 4% | G91: =IFERROR(VLOOKUP(_xlfn.CONCAT($C$3,$B91),TUMI_data!$C$221:$AH$283,MATCH(Ebus_IO!G$87,TUMI_data!$C$220:$AH$220,0),FALSE),"") -> 3% | H91: =IFERROR(VLOOKUP(_xlfn.CONCAT($C$3,$B91),TUMI_data!$C$221:$AH$283,MATCH(Ebus_IO!H$87,TUMI_data!$C$220:$AH$220,0),FALSE),"") -> 2% | I91: =IFERROR(VLOOKUP(_xlfn.CONCAT($C$3,$B91),TUMI_data!$C$221:$AH$283,MATCH(Ebus_IO!I$87,TUMI_data!$C$220:$AH$220,0),FALSE),"") -> 1% | J91: =IFERROR(VLOOKUP(_xlfn.CONCAT($C$3,$B91),TUMI_data!$C$221:$AH$283,MATCH(Ebus_IO!J$87,TUMI_data!$C$220:$AH$220,0),FALSE),"") ->  | K91: =IFERROR(VLOOKUP(_xlfn.CONCAT($C$3,$B91),TUMI_data!$C$221:$AH$283,MATCH(Ebus_IO!K$87,TUMI_data!$C$220:$AH$220,0),FALSE),"") -> 
B92: Biomass | C92: =IFERROR(VLOOKUP(_xlfn.CONCAT($C$3,$B92),TUMI_data!$C$221:$AH$283,MATCH(Ebus_IO!C$87,TUMI_data!$C$220:$AH$220,0),FALSE),"") -> 0% | D92: =IFERROR(VLOOKUP(_xlfn.CONCAT($C$3,$B92),TUMI_data!$C$221:$AH$283,MATCH(Ebus_IO!D$87,TUMI_data!$C$220:$AH$220,0),FALSE),"") -> 0% | E92: =IFERROR(VLOOKUP(_xlfn.CONCAT($C$3,$B92),TUMI_data!$C$221:$AH$283,MATCH(Ebus_IO!E$87,TUMI_data!$C$220:$AH$220,0),FALSE),"") -> 0% | F92: =IFERROR(VLOOKUP(_xlfn.CONCAT($C$3,$B92),TUMI_data!$C$221:$AH$283,MATCH(Ebus_IO!F$87,TUMI_data!$C$220:$AH$220,0),FALSE),"") -> 0% | G92: =IFERROR(VLOOKUP(_xlfn.CONCAT($C$3,$B92),TUMI_data!$C$221:$AH$283,MATCH(Ebus_IO!G$87,TUMI_data!$C$220:$AH$220,0),FALSE),"") -> 0% | H92: =IFERROR(VLOOKUP(_xlfn.CONCAT($C$3,$B92),TUMI_data!$C$221:$AH$283,MATCH(Ebus_IO!H$87,TUMI_data!$C$220:$AH$220,0),FALSE),"") -> 0% | I92: =IFERROR(VLOOKUP(_xlfn.CONCAT($C$3,$B92),TUMI_data!$C$221:$AH$283,MATCH(Ebus_IO!I$87,TUMI_data!$C$220:$AH$220,0),FALSE),"") -> 0% | J92: =IFERROR(VLOOKUP(_xlfn.CONCAT($C$3,$B92),TUMI_data!$C$221:$AH$283,MATCH(Ebus_IO!J$87,TUMI_data!$C$220:$AH$220,0),FALSE),"") ->  | K92: =IFERROR(VLOOKUP(_xlfn.CONCAT($C$3,$B92),TUMI_data!$C$221:$AH$283,MATCH(Ebus_IO!K$87,TUMI_data!$C$220:$AH$220,0),FALSE),"") -> 
B93: Liquid biofuel | C93: =IFERROR(VLOOKUP(_xlfn.CONCAT($C$3,$B93),TUMI_data!$C$221:$AH$283,MATCH(Ebus_IO!C$87,TUMI_data!$C$220:$AH$220,0),FALSE),"") -> 2% | D93: =IFERROR(VLOOKUP(_xlfn.CONCAT($C$3,$B93),TUMI_data!$C$221:$AH$283,MATCH(Ebus_IO!D$87,TUMI_data!$C$220:$AH$220,0),FALSE),"") -> 2% | E93: =IFERROR(VLOOKUP(_xlfn.CONCAT($C$3,$B93),TUMI_data!$C$221:$AH$283,MATCH(Ebus_IO!E$87,TUMI_data!$C$220:$AH$220,0),FALSE),"") -> 2% | F93: =IFERROR(VLOOKUP(_xlfn.CONCAT($C$3,$B93),TUMI_data!$C$221:$AH$283,MATCH(Ebus_IO!F$87,TUMI_data!$C$220:$AH$220,0),FALSE),"") -> 2% | G93: =IFERROR(VLOOKUP(_xlfn.CONCAT($C$3,$B93),TUMI_data!$C$221:$AH$283,MATCH(Ebus_IO!G$87,TUMI_data!$C$220:$AH$220,0),FALSE),"") -> 1% | H93: =IFERROR(VLOOKUP(_xlfn.CONCAT($C$3,$B93),TUMI_data!$C$221:$AH$283,MATCH(Ebus_IO!H$87,TUMI_data!$C$220:$AH$220,0),FALSE),"") -> 1% | I93: =IFERROR(VLOOKUP(_xlfn.CONCAT($C$3,$B93),TUMI_data!$C$221:$AH$283,MATCH(Ebus_IO!I$87,TUMI_data!$C$220:$AH$220,0),FALSE),"") -> 1% | J93: =IFERROR(VLOOKUP(_xlfn.CONCAT($C$3,$B93),TUMI_data!$C$221:$AH$283,MATCH(Ebus_IO!J$87,TUMI_data!$C$220:$AH$220,0),FALSE),"") ->  | K93: =IFERROR(VLOOKUP(_xlfn.CONCAT($C$3,$B93),TUMI_data!$C$221:$AH$283,MATCH(Ebus_IO!K$87,TUMI_data!$C$220:$AH$220,0),FALSE),"") -> 
B94: Other/RE | C94: =IFERROR(VLOOKUP(_xlfn.CONCAT($C$3,$B94),TUMI_data!$C$221:$AH$283,MATCH(Ebus_IO!C$87,TUMI_data!$C$220:$AH$220,0),FALSE),"") -> 22% | D94: =IFERROR(VLOOKUP(_xlfn.CONCAT($C$3,$B94),TUMI_data!$C$221:$AH$283,MATCH(Ebus_IO!D$87,TUMI_data!$C$220:$AH$220,0),FALSE),"") -> 26% | E94: =IFERROR(VLOOKUP(_xlfn.CONCAT($C$3,$B94),TUMI_data!$C$221:$AH$283,MATCH(Ebus_IO!E$87,TUMI_data!$C$220:$AH$220,0),FALSE),"") -> 36% | F94: =IFERROR(VLOOKUP(_xlfn.CONCAT($C$3,$B94),TUMI_data!$C$221:$AH$283,MATCH(Ebus_IO!F$87,TUMI_data!$C$220:$AH$220,0),FALSE),"") -> 45% | G94: =IFERROR(VLOOKUP(_xlfn.CONCAT($C$3,$B94),TUMI_data!$C$221:$AH$283,MATCH(Ebus_IO!G$87,TUMI_data!$C$220:$AH$220,0),FALSE),"") -> 55% | H94: =IFERROR(VLOOKUP(_xlfn.CONCAT($C$3,$B94),TUMI_data!$C$221:$AH$283,MATCH(Ebus_IO!H$87,TUMI_data!$C$220:$AH$220,0),FALSE),"") -> 65% | I94: =IFERROR(VLOOKUP(_xlfn.CONCAT($C$3,$B94),TUMI_data!$C$221:$AH$283,MATCH(Ebus_IO!I$87,TUMI_data!$C$220:$AH$220,0),FALSE),"") -> 75% | J94: =IFERROR(VLOOKUP(_xlfn.CONCAT($C$3,$B94),TUMI_data!$C$221:$AH$283,MATCH(Ebus_IO!J$87,TUMI_data!$C$220:$AH$220,0),FALSE),"") ->  | K94: =IFERROR(VLOOKUP(_xlfn.CONCAT($C$3,$B94),TUMI_data!$C$221:$AH$283,MATCH(Ebus_IO!K$87,TUMI_data!$C$220:$AH$220,0),FALSE),"") -> 
B98: =Elec!B29 -> Total | C98: =SUM(C88:C97) -> 100% | D98: 100% | E98: 100% | F98: 100% | G98: 100% | H98: 100% | I98: 100% | J98: 0 | K98: 0
B101: Heat Rate by Energy Source (BTU/kWh)
C102: =C87 -> 2020 | D102: 2025 | E102: 2030 | F102: 2035 | G102: 2040 | H102: 2045 | I102: 2050 | J102: 2055 | K102: 2060 | M102: =Elec!C212 -> Sulphur content in fuel (%) | N102: =Elec!D212 -> Retention of sulphur in ash (%) | O102: =Elec!E212 -> Efficiency of abatement technology Sox (%) | P102: =Elec!F212 -> Net calorific value (TJ/kt or TJ/Gg)
B103: =IF(B88="","",B88) -> Coal | C103: 8,900 | D103: 8,900 | E103: 8,900 | F103: 8,900 | G103: 8,900 | H103: 8,900 | I103: 8,900 | J103: 8900 | K103: 8900 | M103: 2% | N103: 5% | O103: 95% | P103: 25.80 | R103: =AVERAGE(45%,95%) -> 0.7
B104: Fuel oil | C104: 8,900 | D104: 8,900 | E104: 8,900 | F104: 8,900 | G104: 8,900 | H104: 8,900 | I104: 8,900 | J104: 8900 | K104: 8900 | M104: 3% | O104: 95% | P104: 40.40
B105: Gas/diesel oil | C105: 8,900 | D105: 8,900 | E105: 8,900 | F105: 8,900 | G105: 8,900 | H105: 8,900 | I105: 8,900 | J105: 8900 | K105: 8900 | M105: 0% | O105: 95% | P105: 43.00
B106: Natural gas | C106: 6,550 | D106: 6,550 | E106: 6,550 | F106: 6,550 | G106: 6,550 | H106: 6,550 | I106: 6,550 | J106: 6550 | K106: 6550 | M106: 0% | O106: 95% | P106: 48.00
B107: Biomass | C107: 10,107 | D107: =C107 -> 10,107 | E107: =D107 -> 10,107 | F107: 10,107 | G107: 10,107 | H107: 10,107 | I107: 10,107 | J107: 10107 | K107: 10107 | M107: 0.03% | O107: 95% | P107: 11.60
B108: Liquid biofuel | C108: 7,500 | D108: 7,500 | E108: 7,500 | F108: 7,500 | G108: 7,500 | H108: 7,500 | I108: 7,500 | J108: 7500 | K108: 7500 | M108: =M107 -> 0% | O108: 95% | P108: 27.0
B109: Other/RE
B114: Transmission and Distribution Losses (%) | D114: =RESULTS!C9 -> Enhanced Targets
C116: =C102 -> 2020 | D116: =D102 -> 2025 | E116: 2030 | F116: 2035 | G116: 2040 | H116: 2045 | I116: 2050 | J116: 2055 | K116: 2060
B117: Transmission and Distribution Losses (%) | C117: =TUMI_data!AH176 -> 20% | D117: =TUMI_data!AI176 -> 19% | E117: =TUMI_data!AJ176 -> 17% | F117: =TUMI_data!AK176 -> 16% | G117: =TUMI_data!AL176 -> 14% | H117: =TUMI_data!AM176 -> 12% | I117: =TUMI_data!AN176 -> 10% | J117: =TUMI_data!AO176 ->  | K117: =TUMI_data!AP176 -> 

Sheet NoEbus_IO (hidden)
B3: Additional E-buses per Year
C4: =Ebus_IO!C7 -> 2020 | D4: =C4+1 -> 2021 | E4: =D4+1 -> 2022 | F4: 2023 | G4: 2024 | H4: 2025 | I4: 2026 | J4: 2027 | K4: 2028 | L4: 2029 | M4: 2030 | N4: 2031 | O4: 2032 | P4: 2033 | Q4: 2034 | R4: 2035 | S4: 2036 | T4: 2037 | U4: 2038 | V4: 2039 | W4: 2040 | X4: 2041 | Y4: 2042 | Z4: 2043 | AA4: 2044 | AB4: 2045 | AC4: 2046 | AD4: 2047 | AE4: 2048 | AF4: 2049 | AG4: 2050 | AH4: 2051 | AI4: 2052 | AJ4: 2053 | AK4: 2054 | AL4: 2055 | AM4: 2056 | AN4: 2057 | AO4: 2058 | AP4: 2059 | AQ4: 2060
B5: Number of New E-buses | C5: =Ebus_IO!C8 -> 0 | D5: =Ebus_IO!D8 -> 0 | E5: =Ebus_IO!E8 -> 386 | F5: =Ebus_IO!F8 -> 22 | G5: =Ebus_IO!G8 -> 2398 | H5: =Ebus_IO!H8 -> 2399 | I5: =Ebus_IO!I8 -> 2402 | J5: =Ebus_IO!J8 -> 2412 | K5: =Ebus_IO!K8 -> 1100 | L5: =Ebus_IO!L8 -> 1100 | M5: =Ebus_IO!M8 -> 1300 | N5: =Ebus_IO!N8 -> 1300 | O5: =Ebus_IO!O8 -> 1300 | P5: =Ebus_IO!P8 -> 1300 | Q5: =Ebus_IO!Q8 -> 1300 | R5: =Ebus_IO!R8 -> 1750 | S5: =Ebus_IO!S8 -> 1750 | T5: =Ebus_IO!T8 -> 1750 | U5: =Ebus_IO!U8 -> 1750 | V5: =Ebus_IO!V8 -> 1750 | W5: =Ebus_IO!W8 -> 2000 | X5: =Ebus_IO!X8 -> 2000 | Y5: =Ebus_IO!Y8 -> 2000 | Z5: =Ebus_IO!Z8 -> 2000 | AA5: =Ebus_IO!AA8 -> 2000 | AB5: =Ebus_IO!AB8 -> 2114 | AC5: =Ebus_IO!AC8 -> 2008 | AD5: =Ebus_IO!AD8 -> 2052 | AE5: =Ebus_IO!AE8 -> 2114 | AF5: =Ebus_IO!AF8 -> 2169 | AG5: =Ebus_IO!AG8 -> 2224 | AH5: =Ebus_IO!AH8 -> 0 | AI5: =Ebus_IO!AI8 -> 0 | AJ5: =Ebus_IO!AJ8 -> 0 | AK5: =Ebus_IO!AK8 -> 0 | AL5: =Ebus_IO!AL8 -> 0 | AM5: =Ebus_IO!AM8 -> 0 | AN5: =Ebus_IO!AN8 -> 0 | AO5: =Ebus_IO!AO8 -> 0 | AP5: =Ebus_IO!AP8 -> 0 | AQ5: =Ebus_IO!AQ8 -> 0
B7: % Distribution of New E-buses
C8: =C4 -> 2020 | D8: =C8+5 -> 2025 | E8: 2030 | F8: 2035 | G8: 2040 | H8: 2045 | I8: 2050 | J8: 2055 | K8: 2060
A9: 1 | B9: Minibus | C9: =Ebus_IO!C12 -> 0% | D9: =Ebus_IO!D12 -> 10% | E9: =Ebus_IO!E12 -> 10% | F9: =Ebus_IO!F12 -> 10% | G9: =Ebus_IO!G12 -> 10% | H9: =Ebus_IO!H12 -> 10% | I9: =Ebus_IO!I12 -> 10% | J9: =Ebus_IO!J12 ->  | K9: =Ebus_IO!K12 -> 
A10: 2 | B10: Midibus | C10: =Ebus_IO!C13 -> 100% | D10: =Ebus_IO!D13 -> 19% | E10: =Ebus_IO!E13 -> 19% | F10: =Ebus_IO!F13 -> 19% | G10: =Ebus_IO!G13 -> 19% | H10: =Ebus_IO!H13 -> 19% | I10: =Ebus_IO!I13 -> 19% | J10: =Ebus_IO!J13 ->  | K10: =Ebus_IO!K13 -> 
A11: 3 | B11: Standard | C11: =Ebus_IO!C14 -> 0% | D11: =Ebus_IO!D14 -> 56% | E11: =Ebus_IO!E14 -> 56% | F11: =Ebus_IO!F14 -> 56% | G11: =Ebus_IO!G14 -> 56% | H11: =Ebus_IO!H14 -> 56% | I11: =Ebus_IO!I14 -> 56% | J11: =Ebus_IO!J14 ->  | K11: =Ebus_IO!K14 -> 
A12: 4 | B12: Articulated | C12: =Ebus_IO!C15 -> 0% | D12: =Ebus_IO!D15 -> 0% | E12: =Ebus_IO!E15 -> 0% | F12: =Ebus_IO!F15 -> 0% | G12: =Ebus_IO!G15 -> 0% | H12: =Ebus_IO!H15 -> 0% | I12: =Ebus_IO!I15 -> 0% | J12: =Ebus_IO!J15 ->  | K12: =Ebus_IO!K15 -> 
A13: 5 | B13: Double decker | C13: =Ebus_IO!C16 -> 0% | D13: =Ebus_IO!D16 -> 15% | E13: =Ebus_IO!E16 -> 15% | F13: =Ebus_IO!F16 -> 15% | G13: =Ebus_IO!G16 -> 15% | H13: =Ebus_IO!H16 -> 15% | I13: =Ebus_IO!I16 -> 15% | J13: =Ebus_IO!J16 ->  | K13: =Ebus_IO!K16 -> 
A14: 6 | C14: =Ebus_IO!C17 ->  | D14: =Ebus_IO!D17 ->  | E14: =Ebus_IO!E17 ->  | F14: =Ebus_IO!F17 ->  | G14: =Ebus_IO!G17 ->  | H14: =Ebus_IO!H17 ->  | I14: =Ebus_IO!I17 ->  | J14: =Ebus_IO!J17 ->  | K14: =Ebus_IO!K17 -> 
A15: 7 | C15: =Ebus_IO!C18 ->  | D15: =Ebus_IO!D18 ->  | E15: =Ebus_IO!E18 ->  | F15: =Ebus_IO!F18 ->  | G15: =Ebus_IO!G18 ->  | H15: =Ebus_IO!H18 ->  | I15: =Ebus_IO!I18 ->  | J15: =Ebus_IO!J18 ->  | K15: =Ebus_IO!K18 -> 
A16: 8 | C16: =Ebus_IO!C19 ->  | D16: =Ebus_IO!D19 ->  | E16: =Ebus_IO!E19 ->  | F16: =Ebus_IO!F19 ->  | G16: =Ebus_IO!G19 ->  | H16: =Ebus_IO!H19 ->  | I16: =Ebus_IO!I19 ->  | J16: =Ebus_IO!J19 ->  | K16: =Ebus_IO!K19 -> 
A17: 9 | C17: =Ebus_IO!C20 ->  | D17: =Ebus_IO!D20 ->  | E17: =Ebus_IO!E20 ->  | F17: =Ebus_IO!F20 ->  | G17: =Ebus_IO!G20 ->  | H17: =Ebus_IO!H20 ->  | I17: =Ebus_IO!I20 ->  | J17: =Ebus_IO!J20 ->  | K17: =Ebus_IO!K20 -> 
A18: 10 | C18: =Ebus_IO!C21 ->  | D18: =Ebus_IO!D21 ->  | E18: =Ebus_IO!E21 ->  | F18: =Ebus_IO!F21 ->  | G18: =Ebus_IO!G21 ->  | H18: =Ebus_IO!H21 ->  | I18: =Ebus_IO!I21 ->  | J18: =Ebus_IO!J21 ->  | K18: =Ebus_IO!K21 -> 
A19: 11 | C19: =Ebus_IO!C22 ->  | D19: =Ebus_IO!D22 ->  | E19: =Ebus_IO!E22 ->  | F19: =Ebus_IO!F22 ->  | G19: =Ebus_IO!G22 ->  | H19: =Ebus_IO!H22 ->  | I19: =Ebus_IO!I22 ->  | J19: =Ebus_IO!J22 ->  | K19: =Ebus_IO!K22 -> 
A20: 12 | C20: =Ebus_IO!C23 ->  | D20: =Ebus_IO!D23 ->  | E20: =Ebus_IO!E23 ->  | F20: =Ebus_IO!F23 ->  | G20: =Ebus_IO!G23 ->  | H20: =Ebus_IO!H23 ->  | I20: =Ebus_IO!I23 ->  | J20: =Ebus_IO!J23 ->  | K20: =Ebus_IO!K23 -> 
A21: 13 | C21: =Ebus_IO!C24 ->  | D21: =Ebus_IO!D24 ->  | E21: =Ebus_IO!E24 ->  | F21: =Ebus_IO!F24 ->  | G21: =Ebus_IO!G24 ->  | H21: =Ebus_IO!H24 ->  | I21: =Ebus_IO!I24 ->  | J21: =Ebus_IO!J24 ->  | K21: =Ebus_IO!K24 -> 
A22: 14 | C22: =Ebus_IO!C25 ->  | D22: =Ebus_IO!D25 ->  | E22: =Ebus_IO!E25 ->  | F22: =Ebus_IO!F25 ->  | G22: =Ebus_IO!G25 ->  | H22: =Ebus_IO!H25 ->  | I22: =Ebus_IO!I25 ->  | J22: =Ebus_IO!J25 ->  | K22: =Ebus_IO!K25 -> 
C23: =SUM(C9:C22) -> 100% | D23: =SUM(D9:D22) -> 100% | E23: 100% | F23: 100% | G23: 100% | H23: 100% | I23: 100% | J23: 0% | K23: 0%
A26: =A9 -> 1 | B26: =B9 -> Minibus | C26: =IF(C$5=0,0,C9) -> 0% | D26: =IF(H$5=0,0,D9) -> 10% | E26: =IF(M$5=0,0,E9) -> 10% | F26: =IF(R$5=0,0,F9) -> 10% | G26: =IF(W$5=0,0,G9) -> 10% | H26: =IF(AB$5=0,0,H9) -> 10% | I26: =IF(AG$5=0,0,I9) -> 10% | J26: =IF(AL$5=0,0,J9) -> 0% | K26: =IF(AQ$5=0,0,K9) -> 0%
A27: =A10 -> 2 | B27: Midibus | C27: =IF(C$5=0,0,C10) -> 0% | D27: =IF(H$5=0,0,D10) -> 19% | E27: =IF(M$5=0,0,E10) -> 19% | F27: =IF(R$5=0,0,F10) -> 19% | G27: =IF(W$5=0,0,G10) -> 19% | H27: =IF(AB$5=0,0,H10) -> 19% | I27: =IF(AG$5=0,0,I10) -> 19% | J27: =IF(AL$5=0,0,J10) -> 0% | K27: =IF(AQ$5=0,0,K10) -> 0%
A28: 3 | B28: Standard | C28: 0% | D28: 56% | E28: 56% | F28: 56% | G28: 56% | H28: 56% | I28: 56% | J28: 0% | K28: 0%
A29: 4 | B29: Articulated | C29: 0% | D29: 0% | E29: 0% | F29: 0% | G29: 0% | H29: 0% | I29: 0% | J29: 0% | K29: 0%
A30: 5 | B30: Double decker | C30: 0% | D30: 15% | E30: 15% | F30: 15% | G30: 15% | H30: 15% | I30: 15% | J30: 0% | K30: 0%
A31: 6 | B31: 0 | C31: 0% | J31: 0% | K31: 0%
A32: 7 | B32: 0 | C32: 0% | J32: 0% | K32: 0%
A33: 8 | B33: 0 | C33: 0% | J33: 0% | K33: 0%
A34: 9 | B34: 0 | C34: 0% | J34: 0% | K34: 0%
A35: 10 | B35: 0 | C35: 0% | J35: 0% | K35: 0%
A36: 11 | B36: 0 | C36: 0% | J36: 0% | K36: 0%
A37: 12 | B37: 0 | C37: 0% | J37: 0% | K37: 0%
A38: 13 | B38: 0 | C38: 0% | J38: 0% | K38: 0%
A39: 14 | B39: 0 | C39: 0% | J39: 0% | K39: 0%
B42: In case your city will not be using BEV buses, please indicate the potential distribution of the buses that you had indicated in the previous sheet into the following motor energy categories.
C45: =C8 -> 2020 | D45: =D8 -> 2025 | E45: 2030 | F45: 2035 | G45: 2040 | H45: 2045 | I45: 2050 | J45: 2055 | K45: 2060
A46: 1 | B46: Battery electric
A47: 2 | B47: Biodiesel
A48: 3 | B48: Bioethanol
A49: 4 | B49: Diesel (excluding hybrids) | C49: 100% | D49: 100% | E49: 100% | F49: 100% | G49: 100% | H49: 100% | I49: 100% | J49: 1 | K49: 1
A50: 5 | B50: Bi-fuel
A51: 6 | B51: Hybrid diesel-electric
A52: 7 | B52: Hybrid petrol-electric
A53: 8 | B53: Hydrogen and fuel cells
A54: 9 | B54: LPG
A55: 10 | B55: CNG
A56: 11 | B56: Other
A57: 12 | B57: Petrol (excluding hybrids)
A58: 13 | B58: Plug-in hybrid diesel-electric
A59: 14 | B59: Plug-in hybrid petrol-electric
C60: =SUM(C46:C59) -> 100% | D60: =SUM(D46:D59) -> 100% | E60: 100% | F60: 100% | G60: 100% | H60: 100% | I60: 100% | J60: 1 | K60: 1
A63: =A46 -> 1 | B63: Battery electric | C63: =IF(C$5=0,0,C46) -> 0% | D63: =IF(H$5=0,0,D46) -> 0% | E63: =IF(M$5=0,0,E46) -> 0% | F63: =IF(R$5=0,0,F46) -> 0% | G63: =IF(W$5=0,0,G46) -> 0% | H63: =IF(AB$5=0,0,H46) -> 0% | I63: =IF(AG$5=0,0,I46) -> 0% | J63: =IF(AL$5=0,0,J46) -> 0% | K63: =IF(AQ$5=0,0,K46) -> 0%
A64: 2 | B64: Biodiesel | C64: =IF(C$5=0,0,C47) -> 0% | D64: =IF(H$5=0,0,D47) -> 0% | E64: =IF(M$5=0,0,E47) -> 0% | F64: =IF(R$5=0,0,F47) -> 0% | G64: =IF(W$5=0,0,G47) -> 0% | H64: =IF(AB$5=0,0,H47) -> 0% | I64: =IF(AG$5=0,0,I47) -> 0% | J64: =IF(AL$5=0,0,J47) -> 0% | K64: =IF(AQ$5=0,0,K47) -> 0%
A65: 3 | B65: Bioethanol | C65: 0% | D65: 0% | E65: 0% | F65: 0% | G65: 0% | H65: 0% | I65: 0% | J65: 0% | K65: 0%
A66: 4 | B66: Diesel (excluding hybrids) | C66: 0% | D66: 100% | E66: 100% | F66: 100% | G66: 100% | H66: 100% | I66: 100% | J66: 0% | K66: 0%
A67: 5 | B67: Bi-fuel | C67: 0% | D67: 0% | E67: 0% | F67: 0% | G67: 0% | H67: 0% | I67: 0% | J67: 0% | K67: 0%
A68: 6 | B68: Hybrid diesel-electric | C68: 0% | D68: 0% | E68: 0% | F68: 0% | G68: 0% | H68: 0% | I68: 0% | J68: 0% | K68: 0%
A69: 7 | B69: Hybrid petrol-electric | C69: 0% | D69: 0% | E69: 0% | F69: 0% | G69: 0% | H69: 0% | I69: 0% | J69: 0% | K69: 0%
A70: 8 | B70: Hydrogen and fuel cells | C70: 0% | D70: 0% | E70: 0% | F70: 0% | G70: 0% | H70: 0% | I70: 0% | J70: 0% | K70: 0%
A71: 9 | B71: LPG | C71: 0% | D71: 0% | E71: 0% | F71: 0% | G71: 0% | H71: 0% | I71: 0% | J71: 0% | K71: 0%
A72: 10 | B72: CNG | C72: 0% | D72: 0% | E72: 0% | F72: 0% | G72: 0% | H72: 0% | I72: 0% | J72: 0% | K72: 0%
A73: 11 | B73: Other | C73: 0% | D73: 0% | E73: 0% | F73: 0% | G73: 0% | H73: 0% | I73: 0% | J73: 0% | K73: 0%
A74: 12 | B74: Petrol (excluding hybrids) | C74: 0% | D74: 0% | E74: 0% | F74: 0% | G74: 0% | H74: 0% | I74: 0% | J74: 0% | K74: 0%
A75: 13 | B75: Plug-in hybrid diesel-electric | C75: 0% | D75: 0% | E75: 0% | F75: 0% | G75: 0% | H75: 0% | I75: 0% | J75: 0% | K75: 0%
A76: 14 | B76: Plug-in hybrid petrol-electric | C76: 0% | D76: 0% | E76: 0% | F76: 0% | G76: 0% | H76: 0% | I76: 0% | J76: 0% | K76: 0%
B80: Characteristics of E-bus Types
C81: Average VKT/year per bus | D81: Crush Capacity | E81: Average Load factor | F81: Average occupancy
A82: 1 | B82: =IF(B9="","",B9) -> Minibus | C82: 40,000 | D82: =Ebuses!U31 -> 26 | E82: 50% | F82: =ROUND(D82*E82,0) -> 13
A83: 2 | B83: Midibus | C83: 40,000 | D83: =Ebuses!U32 -> 69 | E83: 50% | F83: =ROUND(D83*E83,0) -> 35
A84: 3 | B84: Standard | C84: 40,000 | D84: =Ebuses!U33 -> 83 | E84: 50% | F84: 42
A85: 4 | B85: Articulated | C85: 40,000 | D85: =Ebuses!U34 -> 102 | E85: 50% | F85: 51
A86: 5 | B86: Double decker | C86: 40,000 | D86: =Ebuses!U35 -> 97 | E86: 50% | F86: 49
A87: 6 | F87: 0
A88: 7 | F88: 0
A89: 8 | F89: 0
A90: 9 | F90: 0
A91: 10 | F91: 0
A92: 11 | F92: 0
A93: 12 | F93: 0
A94: 13 | F94: 0
A95: 14 | F95: 0
B98: Electricity Genearation by Energy Type (%)
C99: =NoEbus_IO!C8 -> 2020 | D99: =NoEbus_IO!D8 -> 2025 | E99: =NoEbus_IO!E8 -> 2030 | F99: =NoEbus_IO!F8 -> 2035 | G99: =NoEbus_IO!G8 -> 2040 | H99: =NoEbus_IO!H8 -> 2045 | I99: =NoEbus_IO!I8 -> 2050 | J99: =NoEbus_IO!J8 -> 2055 | K99: =NoEbus_IO!K8 -> 2060 | M99: for demo only
B100: Coal | C100: 50% | D100: 50% | E100: 50% | F100: 40% | G100: 40% | H100: 40% | I100: 40% | J100: 40% | K100: 40% | M100: 0.5 | N100: 0.5 | O100: 0.5 | P100: 0.4 | Q100: 0.3 | R100: 0.25 | S100: 0.2 | T100: 0.05 | U100: 0.02
B101: Fuel oil | C101: 20% | D101: 20% | E101: 20% | F101: 20% | G101: 20% | H101: 20% | I101: 20% | J101: 20% | K101: 20% | M101: 0.2 | N101: 0.2 | O101: 0.2 | P101: 0.2 | Q101: 0.2 | R101: 0.15 | S101: 0.1 | T101: 0.05 | U101: 0.02
B102: Gas/diesel oil | C102: 20% | D102: 20% | E102: 20% | F102: 20% | G102: 20% | H102: 20% | I102: 20% | J102: 20% | K102: 20% | M102: 0.2 | N102: 0.2 | O102: 0.2 | P102: 0.2 | Q102: 0.2 | R102: 0.15 | S102: 0.1 | T102: 0.05 | U102: 0.01
B103: Natural gas | C103: 10% | D103: 10% | E103: 10% | F103: 10% | G103: 10% | H103: 10% | I103: 10% | J103: 10% | K103: 10% | M103: 0.1 | N103: 0.1 | O103: 0.1 | P103: 0.1 | Q103: 0.1 | R103: 0.1 | S103: 0.1 | T103: 0.05 | U103: 0
B104: Wind | F104: 10% | G104: 10% | H104: 10% | I104: 10% | J104: 10% | K104: 10% | P104: 0.1 | Q104: 0.1 | R104: 0.2 | S104: 0.25 | T104: 0.4 | U104: 0.45
B105: Solar | Q105: 0.1 | R105: 0.15 | S105: 0.25 | T105: 0.4 | U105: 0.4
B110: =Elec!B29 -> Total | C110: =SUM(C100:C109) -> 100% | D110: 100% | E110: 100% | F110: 100% | G110: 100% | H110: 100% | I110: 100% | J110: 100% | K110: 100%
B114: Heat Rate by Energy Source (BTU/kWh)
C115: =C99 -> 2020 | D115: 2025 | E115: 2030 | F115: 2035 | G115: 2040 | H115: 2045 | I115: 2050 | J115: 2055 | K115: 2060
B116: =IF(B100="","",B100) -> Coal | C116: 10,583 | D116: 10,583 | E116: 10,583 | F116: 10,583 | G116: 10,583 | H116: 10,583 | I116: 10,583 | J116: 10,583 | K116: 10,583
B117: =IF(B101="","",B101) -> Fuel oil | C117: 11,223 | D117: 11,223 | E117: 11,223 | F117: 11,223 | G117: 11,223 | H117: 11,223 | I117: 11,223 | J117: 11,223 | K117: 11,223
B118: Gas/diesel oil | C118: 11,223 | D118: 11,223 | E118: 11,223 | F118: 11,223 | G118: 11,223 | H118: 11,223 | I118: 11,223 | J118: 11,223 | K118: 11,223
B119: Natural gas | C119: 7,687 | D119: 7,687 | E119: 7,687 | F119: 7,687 | G119: 7,687 | H119: 7,687 | I119: 7,687 | J119: 7,687 | K119: 7,687
B120: Wind
B121: Solar
B127: Vehicle Emission Standards Timeline (if not applicable, please enter "n/a"
B128: Euro I | C128: =HLOOKUP(Ebus_IO!$C$3,TUMI_data!$B$429:$J$435,MATCH(NoEbus_IO!$B128,TUMI_data!$A$429:$A$435,0),FALSE) -> x
B129: Euro II | C129: =HLOOKUP(Ebus_IO!$C$3,TUMI_data!$B$429:$J$435,MATCH(NoEbus_IO!$B129,TUMI_data!$A$429:$A$435,0),FALSE) -> 2000
B130: Euro III | C130: =HLOOKUP(Ebus_IO!$C$3,TUMI_data!$B$429:$J$435,MATCH(NoEbus_IO!$B130,TUMI_data!$A$429:$A$435,0),FALSE) -> 2010
B131: Euro IV | C131: =HLOOKUP(Ebus_IO!$C$3,TUMI_data!$B$429:$J$435,MATCH(NoEbus_IO!$B131,TUMI_data!$A$429:$A$435,0),FALSE) -> 2017
B132: Euro V | C132: =HLOOKUP(Ebus_IO!$C$3,TUMI_data!$B$429:$J$435,MATCH(NoEbus_IO!$B132,TUMI_data!$A$429:$A$435,0),FALSE) -> x
B133: Euro VI | C133: =HLOOKUP(Ebus_IO!$C$3,TUMI_data!$B$429:$J$435,MATCH(NoEbus_IO!$B133,TUMI_data!$A$429:$A$435,0),FALSE) -> 2020
C135: =C4 -> 2020 | D135: =D4 -> 2021 | E135: 2022 | F135: 2023 | G135: 2024 | H135: 2025 | I135: 2026 | J135: 2027 | K135: 2028 | L135: 2029 | M135: 2030 | N135: 2031 | O135: 2032 | P135: 2033 | Q135: 2034 | R135: 2035 | S135: 2036 | T135: 2037 | U135: 2038 | V135: 2039 | W135: 2040 | X135: 2041 | Y135: 2042 | Z135: 2043 | AA135: 2044 | AB135: 2045 | AC135: 2046 | AD135: 2047 | AE135: 2048 | AF135: 2049 | AG135: 2050 | AH135: 2051 | AI135: 2052 | AJ135: 2053 | AK135: 2054 | AL135: 2055 | AM135: 2056 | AN135: 2057 | AO135: 2058 | AP135: 2059 | AQ135: 2060
B136: % Bioethanol | C136: =IFERROR(VLOOKUP(Ebus_IO!$C$3,TUMI_data!$A$446:$AF$454,MATCH(NoEbus_IO!C$135,TUMI_data!$A$445:$AF$445,0),FALSE),"") -> 5% | D136: =IFERROR(VLOOKUP(Ebus_IO!$C$3,TUMI_data!$A$446:$AF$454,MATCH(NoEbus_IO!D$135,TUMI_data!$A$445:$AF$445,0),FALSE),"") -> 8% | E136: =IFERROR(VLOOKUP(Ebus_IO!$C$3,TUMI_data!$A$446:$AF$454,MATCH(NoEbus_IO!E$135,TUMI_data!$A$445:$AF$445,0),FALSE),"") -> 9% | F136: =IFERROR(VLOOKUP(Ebus_IO!$C$3,TUMI_data!$A$446:$AF$454,MATCH(NoEbus_IO!F$135,TUMI_data!$A$445:$AF$445,0),FALSE),"") -> 9% | G136: =IFERROR(VLOOKUP(Ebus_IO!$C$3,TUMI_data!$A$446:$AF$454,MATCH(NoEbus_IO!G$135,TUMI_data!$A$445:$AF$445,0),FALSE),"") -> 9% | H136: =IFERROR(VLOOKUP(Ebus_IO!$C$3,TUMI_data!$A$446:$AF$454,MATCH(NoEbus_IO!H$135,TUMI_data!$A$445:$AF$445,0),FALSE),"") -> 20% | I136: =IFERROR(VLOOKUP(Ebus_IO!$C$3,TUMI_data!$A$446:$AF$454,MATCH(NoEbus_IO!I$135,TUMI_data!$A$445:$AF$445,0),FALSE),"") -> 20% | J136: =IFERROR(VLOOKUP(Ebus_IO!$C$3,TUMI_data!$A$446:$AF$454,MATCH(NoEbus_IO!J$135,TUMI_data!$A$445:$AF$445,0),FALSE),"") -> 20% | K136: =IFERROR(VLOOKUP(Ebus_IO!$C$3,TUMI_data!$A$446:$AF$454,MATCH(NoEbus_IO!K$135,TUMI_data!$A$445:$AF$445,0),FALSE),"") -> 20% | L136: =IFERROR(VLOOKUP(Ebus_IO!$C$3,TUMI_data!$A$446:$AF$454,MATCH(NoEbus_IO!L$135,TUMI_data!$A$445:$AF$445,0),FALSE),"") -> 20% | M136: =IFERROR(VLOOKUP(Ebus_IO!$C$3,TUMI_data!$A$446:$AF$454,MATCH(NoEbus_IO!M$135,TUMI_data!$A$445:$AF$445,0),FALSE),"") -> 20% | N136: =IFERROR(VLOOKUP(Ebus_IO!$C$3,TUMI_data!$A$446:$AF$454,MATCH(NoEbus_IO!N$135,TUMI_data!$A$445:$AF$445,0),FALSE),"") -> 20% | O136: =IFERROR(VLOOKUP(Ebus_IO!$C$3,TUMI_data!$A$446:$AF$454,MATCH(NoEbus_IO!O$135,TUMI_data!$A$445:$AF$445,0),FALSE),"") -> 20% | P136: =IFERROR(VLOOKUP(Ebus_IO!$C$3,TUMI_data!$A$446:$AF$454,MATCH(NoEbus_IO!P$135,TUMI_data!$A$445:$AF$445,0),FALSE),"") -> 20% | Q136: =IFERROR(VLOOKUP(Ebus_IO!$C$3,TUMI_data!$A$446:$AF$454,MATCH(NoEbus_IO!Q$135,TUMI_data!$A$445:$AF$445,0),FALSE),"") -> 20% | R136: =IFERROR(VLOOKUP(Ebus_IO!$C$3,TUMI_data!$A$446:$AF$454,MATCH(NoEbus_IO!R$135,TUMI_data!$A$445:$AF$445,0),FALSE),"") -> 20% | S136: =IFERROR(VLOOKUP(Ebus_IO!$C$3,TUMI_data!$A$446:$AF$454,MATCH(NoEbus_IO!S$135,TUMI_data!$A$445:$AF$445,0),FALSE),"") -> 20% | T136: =IFERROR(VLOOKUP(Ebus_IO!$C$3,TUMI_data!$A$446:$AF$454,MATCH(NoEbus_IO!T$135,TUMI_data!$A$445:$AF$445,0),FALSE),"") -> 20% | U136: =IFERROR(VLOOKUP(Ebus_IO!$C$3,TUMI_data!$A$446:$AF$454,MATCH(NoEbus_IO!U$135,TUMI_data!$A$445:$AF$445,0),FALSE),"") -> 20% | V136: =IFERROR(VLOOKUP(Ebus_IO!$C$3,TUMI_data!$A$446:$AF$454,MATCH(NoEbus_IO!V$135,TUMI_data!$A$445:$AF$445,0),FALSE),"") -> 20% | W136: =IFERROR(VLOOKUP(Ebus_IO!$C$3,TUMI_data!$A$446:$AF$454,MATCH(NoEbus_IO!W$135,TUMI_data!$A$445:$AF$445,0),FALSE),"") -> 20% | X136: =IFERROR(VLOOKUP(Ebus_IO!$C$3,TUMI_data!$A$446:$AF$454,MATCH(NoEbus_IO!X$135,TUMI_data!$A$445:$AF$445,0),FALSE),"") -> 20% | Y136: =IFERROR(VLOOKUP(Ebus_IO!$C$3,TUMI_data!$A$446:$AF$454,MATCH(NoEbus_IO!Y$135,TUMI_data!$A$445:$AF$445,0),FALSE),"") -> 20% | Z136: =IFERROR(VLOOKUP(Ebus_IO!$C$3,TUMI_data!$A$446:$AF$454,MATCH(NoEbus_IO!Z$135,TUMI_data!$A$445:$AF$445,0),FALSE),"") -> 20% | AA136: =IFERROR(VLOOKUP(Ebus_IO!$C$3,TUMI_data!$A$446:$AF$454,MATCH(NoEbus_IO!AA$135,TUMI_data!$A$445:$AF$445,0),FALSE),"") -> 20% | AB136: =IFERROR(VLOOKUP(Ebus_IO!$C$3,TUMI_data!$A$446:$AF$454,MATCH(NoEbus_IO!AB$135,TUMI_data!$A$445:$AF$445,0),FALSE),"") -> 20% | AC136: =IFERROR(VLOOKUP(Ebus_IO!$C$3,TUMI_data!$A$446:$AF$454,MATCH(NoEbus_IO!AC$135,TUMI_data!$A$445:$AF$445,0),FALSE),"") -> 20% | AD136: =IFERROR(VLOOKUP(Ebus_IO!$C$3,TUMI_data!$A$446:$AF$454,MATCH(NoEbus_IO!AD$135,TUMI_data!$A$445:$AF$445,0),FALSE),"") -> 20% | AE136: =IFERROR(VLOOKUP(Ebus_IO!$C$3,TUMI_data!$A$446:$AF$454,MATCH(NoEbus_IO!AE$135,TUMI_data!$A$445:$AF$445,0),FALSE),"") -> 20% | AF136: =IFERROR(VLOOKUP(Ebus_IO!$C$3,TUMI_data!$A$446:$AF$454,MATCH(NoEbus_IO!AF$135,TUMI_data!$A$445:$AF$445,0),FALSE),"") -> 20% | AG136: =IFERROR(VLOOKUP(Ebus_IO!$C$3,TUMI_data!$A$446:$AF$454,MATCH(NoEbus_IO!AG$135,TUMI_data!$A$445:$AF$445,0),FALSE),"") -> 20% | AH136: =IFERROR(VLOOKUP(Ebus_IO!$C$3,TUMI_data!$A$446:$AF$454,MATCH(NoEbus_IO!AH$135,TUMI_data!$A$445:$AF$445,0),FALSE),"") ->  | AI136: =IFERROR(VLOOKUP(Ebus_IO!$C$3,TUMI_data!$A$446:$AF$454,MATCH(NoEbus_IO!AI$135,TUMI_data!$A$445:$AF$445,0),FALSE),"") ->  | AJ136: =IFERROR(VLOOKUP(Ebus_IO!$C$3,TUMI_data!$A$446:$AF$454,MATCH(NoEbus_IO!AJ$135,TUMI_data!$A$445:$AF$445,0),FALSE),"") ->  | AK136: =IFERROR(VLOOKUP(Ebus_IO!$C$3,TUMI_data!$A$446:$AF$454,MATCH(NoEbus_IO!AK$135,TUMI_data!$A$445:$AF$445,0),FALSE),"") ->  | AL136: =IFERROR(VLOOKUP(Ebus_IO!$C$3,TUMI_data!$A$446:$AF$454,MATCH(NoEbus_IO!AL$135,TUMI_data!$A$445:$AF$445,0),FALSE),"") ->  | AM136: =IFERROR(VLOOKUP(Ebus_IO!$C$3,TUMI_data!$A$446:$AF$454,MATCH(NoEbus_IO!AM$135,TUMI_data!$A$445:$AF$445,0),FALSE),"") ->  | AN136: =IFERROR(VLOOKUP(Ebus_IO!$C$3,TUMI_data!$A$446:$AF$454,MATCH(NoEbus_IO!AN$135,TUMI_data!$A$445:$AF$445,0),FALSE),"") ->  | AO136: =IFERROR(VLOOKUP(Ebus_IO!$C$3,TUMI_data!$A$446:$AF$454,MATCH(NoEbus_IO!AO$135,TUMI_data!$A$445:$AF$445,0),FALSE),"") ->  | AP136: =IFERROR(VLOOKUP(Ebus_IO!$C$3,TUMI_data!$A$446:$AF$454,MATCH(NoEbus_IO!AP$135,TUMI_data!$A$445:$AF$445,0),FALSE),"") ->  | AQ136: =IFERROR(VLOOKUP(Ebus_IO!$C$3,TUMI_data!$A$446:$AF$454,MATCH(NoEbus_IO!AQ$135,TUMI_data!$A$445:$AF$445,0),FALSE),"") -> 
B137: % Biodiesel | C137: =IFERROR(VLOOKUP(Ebus_IO!$C$3,TUMI_data!$A$459:$AF$467,MATCH(NoEbus_IO!C$135,TUMI_data!$A$458:$AF$458,0),FALSE),"") -> 0% | D137: =IFERROR(VLOOKUP(Ebus_IO!$C$3,TUMI_data!$A$459:$AF$467,MATCH(NoEbus_IO!D$135,TUMI_data!$A$458:$AF$458,0),FALSE),"") -> 0% | E137: =IFERROR(VLOOKUP(Ebus_IO!$C$3,TUMI_data!$A$459:$AF$467,MATCH(NoEbus_IO!E$135,TUMI_data!$A$458:$AF$458,0),FALSE),"") -> 0% | F137: =IFERROR(VLOOKUP(Ebus_IO!$C$3,TUMI_data!$A$459:$AF$467,MATCH(NoEbus_IO!F$135,TUMI_data!$A$458:$AF$458,0),FALSE),"") -> 0% | G137: =IFERROR(VLOOKUP(Ebus_IO!$C$3,TUMI_data!$A$459:$AF$467,MATCH(NoEbus_IO!G$135,TUMI_data!$A$458:$AF$458,0),FALSE),"") -> 0% | H137: =IFERROR(VLOOKUP(Ebus_IO!$C$3,TUMI_data!$A$459:$AF$467,MATCH(NoEbus_IO!H$135,TUMI_data!$A$458:$AF$458,0),FALSE),"") -> 0% | I137: =IFERROR(VLOOKUP(Ebus_IO!$C$3,TUMI_data!$A$459:$AF$467,MATCH(NoEbus_IO!I$135,TUMI_data!$A$458:$AF$458,0),FALSE),"") -> 0% | J137: =IFERROR(VLOOKUP(Ebus_IO!$C$3,TUMI_data!$A$459:$AF$467,MATCH(NoEbus_IO!J$135,TUMI_data!$A$458:$AF$458,0),FALSE),"") -> 0% | K137: =IFERROR(VLOOKUP(Ebus_IO!$C$3,TUMI_data!$A$459:$AF$467,MATCH(NoEbus_IO!K$135,TUMI_data!$A$458:$AF$458,0),FALSE),"") -> 0% | L137: =IFERROR(VLOOKUP(Ebus_IO!$C$3,TUMI_data!$A$459:$AF$467,MATCH(NoEbus_IO!L$135,TUMI_data!$A$458:$AF$458,0),FALSE),"") -> 0% | M137: =IFERROR(VLOOKUP(Ebus_IO!$C$3,TUMI_data!$A$459:$AF$467,MATCH(NoEbus_IO!M$135,TUMI_data!$A$458:$AF$458,0),FALSE),"") -> 5% | N137: =IFERROR(VLOOKUP(Ebus_IO!$C$3,TUMI_data!$A$459:$AF$467,MATCH(NoEbus_IO!N$135,TUMI_data!$A$458:$AF$458,0),FALSE),"") -> 5% | O137: =IFERROR(VLOOKUP(Ebus_IO!$C$3,TUMI_data!$A$459:$AF$467,MATCH(NoEbus_IO!O$135,TUMI_data!$A$458:$AF$458,0),FALSE),"") -> 5% | P137: =IFERROR(VLOOKUP(Ebus_IO!$C$3,TUMI_data!$A$459:$AF$467,MATCH(NoEbus_IO!P$135,TUMI_data!$A$458:$AF$458,0),FALSE),"") -> 5% | Q137: =IFERROR(VLOOKUP(Ebus_IO!$C$3,TUMI_data!$A$459:$AF$467,MATCH(NoEbus_IO!Q$135,TUMI_data!$A$458:$AF$458,0),FALSE),"") -> 5% | R137: =IFERROR(VLOOKUP(Ebus_IO!$C$3,TUMI_data!$A$459:$AF$467,MATCH(NoEbus_IO!R$135,TUMI_data!$A$458:$AF$458,0),FALSE),"") -> 5% | S137: =IFERROR(VLOOKUP(Ebus_IO!$C$3,TUMI_data!$A$459:$AF$467,MATCH(NoEbus_IO!S$135,TUMI_data!$A$458:$AF$458,0),FALSE),"") -> 5% | T137: =IFERROR(VLOOKUP(Ebus_IO!$C$3,TUMI_data!$A$459:$AF$467,MATCH(NoEbus_IO!T$135,TUMI_data!$A$458:$AF$458,0),FALSE),"") -> 5% | U137: =IFERROR(VLOOKUP(Ebus_IO!$C$3,TUMI_data!$A$459:$AF$467,MATCH(NoEbus_IO!U$135,TUMI_data!$A$458:$AF$458,0),FALSE),"") -> 5% | V137: =IFERROR(VLOOKUP(Ebus_IO!$C$3,TUMI_data!$A$459:$AF$467,MATCH(NoEbus_IO!V$135,TUMI_data!$A$458:$AF$458,0),FALSE),"") -> 5% | W137: =IFERROR(VLOOKUP(Ebus_IO!$C$3,TUMI_data!$A$459:$AF$467,MATCH(NoEbus_IO!W$135,TUMI_data!$A$458:$AF$458,0),FALSE),"") -> 5% | X137: =IFERROR(VLOOKUP(Ebus_IO!$C$3,TUMI_data!$A$459:$AF$467,MATCH(NoEbus_IO!X$135,TUMI_data!$A$458:$AF$458,0),FALSE),"") -> 5% | Y137: =IFERROR(VLOOKUP(Ebus_IO!$C$3,TUMI_data!$A$459:$AF$467,MATCH(NoEbus_IO!Y$135,TUMI_data!$A$458:$AF$458,0),FALSE),"") -> 5% | Z137: =IFERROR(VLOOKUP(Ebus_IO!$C$3,TUMI_data!$A$459:$AF$467,MATCH(NoEbus_IO!Z$135,TUMI_data!$A$458:$AF$458,0),FALSE),"") -> 5% | AA137: =IFERROR(VLOOKUP(Ebus_IO!$C$3,TUMI_data!$A$459:$AF$467,MATCH(NoEbus_IO!AA$135,TUMI_data!$A$458:$AF$458,0),FALSE),"") -> 5% | AB137: =IFERROR(VLOOKUP(Ebus_IO!$C$3,TUMI_data!$A$459:$AF$467,MATCH(NoEbus_IO!AB$135,TUMI_data!$A$458:$AF$458,0),FALSE),"") -> 5% | AC137: =IFERROR(VLOOKUP(Ebus_IO!$C$3,TUMI_data!$A$459:$AF$467,MATCH(NoEbus_IO!AC$135,TUMI_data!$A$458:$AF$458,0),FALSE),"") -> 5% | AD137: =IFERROR(VLOOKUP(Ebus_IO!$C$3,TUMI_data!$A$459:$AF$467,MATCH(NoEbus_IO!AD$135,TUMI_data!$A$458:$AF$458,0),FALSE),"") -> 5% | AE137: =IFERROR(VLOOKUP(Ebus_IO!$C$3,TUMI_data!$A$459:$AF$467,MATCH(NoEbus_IO!AE$135,TUMI_data!$A$458:$AF$458,0),FALSE),"") -> 5% | AF137: =IFERROR(VLOOKUP(Ebus_IO!$C$3,TUMI_data!$A$459:$AF$467,MATCH(NoEbus_IO!AF$135,TUMI_data!$A$458:$AF$458,0),FALSE),"") -> 5% | AG137: =IFERROR(VLOOKUP(Ebus_IO!$C$3,TUMI_data!$A$459:$AF$467,MATCH(NoEbus_IO!AG$135,TUMI_data!$A$458:$AF$458,0),FALSE),"") -> 5% | AH137: =IFERROR(VLOOKUP(Ebus_IO!$C$3,TUMI_data!$A$459:$AF$467,MATCH(NoEbus_IO!AH$135,TUMI_data!$A$458:$AF$458,0),FALSE),"") ->  | AI137: =IFERROR(VLOOKUP(Ebus_IO!$C$3,TUMI_data!$A$459:$AF$467,MATCH(NoEbus_IO!AI$135,TUMI_data!$A$458:$AF$458,0),FALSE),"") ->  | AJ137: =IFERROR(VLOOKUP(Ebus_IO!$C$3,TUMI_data!$A$459:$AF$467,MATCH(NoEbus_IO!AJ$135,TUMI_data!$A$458:$AF$458,0),FALSE),"") ->  | AK137: =IFERROR(VLOOKUP(Ebus_IO!$C$3,TUMI_data!$A$459:$AF$467,MATCH(NoEbus_IO!AK$135,TUMI_data!$A$458:$AF$458,0),FALSE),"") ->  | AL137: =IFERROR(VLOOKUP(Ebus_IO!$C$3,TUMI_data!$A$459:$AF$467,MATCH(NoEbus_IO!AL$135,TUMI_data!$A$458:$AF$458,0),FALSE),"") ->  | AM137: =IFERROR(VLOOKUP(Ebus_IO!$C$3,TUMI_data!$A$459:$AF$467,MATCH(NoEbus_IO!AM$135,TUMI_data!$A$458:$AF$458,0),FALSE),"") ->  | AN137: =IFERROR(VLOOKUP(Ebus_IO!$C$3,TUMI_data!$A$459:$AF$467,MATCH(NoEbus_IO!AN$135,TUMI_data!$A$458:$AF$458,0),FALSE),"") ->  | AO137: =IFERROR(VLOOKUP(Ebus_IO!$C$3,TUMI_data!$A$459:$AF$467,MATCH(NoEbus_IO!AO$135,TUMI_data!$A$458:$AF$458,0),FALSE),"") ->  | AP137: =IFERROR(VLOOKUP(Ebus_IO!$C$3,TUMI_data!$A$459:$AF$467,MATCH(NoEbus_IO!AP$135,TUMI_data!$A$458:$AF$458,0),FALSE),"") ->  | AQ137: =IFERROR(VLOOKUP(Ebus_IO!$C$3,TUMI_data!$A$459:$AF$467,MATCH(NoEbus_IO!AQ$135,TUMI_data!$A$458:$AF$458,0),FALSE),"") -> 

Sheet RESULTS
B3: Scenario Selector
B6: City | C6: Mumbai
B7: Bus target | C7: Enhanced Targets
B8: Grid target | C8: =C7 -> Enhanced Targets
B9: T&D | C9: =C7 -> Enhanced Targets
B13: Checker
B14: year | C14: 2023
C16: g/VKM | G16: g/Wh
D17: Ebus | E17: Non-ebus | H17: Ebus | I17: Non-ebus
C18: =Ebus!C1749 -> CO2 | D18: =HLOOKUP($C$14,Ebus!$D$1748:$AS$1760,MATCH($C18,Ebus!$C$1748:$C$1760,FALSE),FALSE) -> 1,301 | E18: =HLOOKUP($C$14,Non_ebus!$D$1748:$AS$1760,MATCH($C18,Non_ebus!$C$1748:$C$1760,FALSE),FALSE) -> 1,029 | G18: =C18 -> CO2 | H18: =HLOOKUP($C$14,Ebus!$D$1763:$AS$1775,MATCH($C18,Ebus!$C$1763:$C$1775,FALSE),FALSE) -> 1.301 | I18: =HLOOKUP($C$14,Non_ebus!$D$1763:$AS$1775,MATCH($C18,Non_ebus!$C$1763:$C$1775,FALSE),FALSE) -> 1.029
C19: =Ebus!C1750 -> BC | D19: =HLOOKUP($C$14,Ebus!$D$1748:$AS$1760,MATCH($C19,Ebus!$C$1748:$C$1760,FALSE),FALSE) -> 0.002 | E19: =HLOOKUP($C$14,Non_ebus!$D$1748:$AS$1760,MATCH($C19,Non_ebus!$C$1748:$C$1760,FALSE),FALSE) -> 0.012 | G19: =C19 -> BC | H19: =HLOOKUP($C$14,Ebus!$D$1763:$AS$1775,MATCH($C19,Ebus!$C$1763:$C$1775,FALSE),FALSE) -> 0.002 | I19: =HLOOKUP($C$14,Non_ebus!$D$1763:$AS$1775,MATCH($C19,Non_ebus!$C$1763:$C$1775,FALSE),FALSE) -> 0.012
C20: =Ebus!C1751 -> CO | D20: =HLOOKUP($C$14,Ebus!$D$1748:$AS$1760,MATCH($C20,Ebus!$C$1748:$C$1760,FALSE),FALSE) -> 0.063 | E20: =HLOOKUP($C$14,Non_ebus!$D$1748:$AS$1760,MATCH($C20,Non_ebus!$C$1748:$C$1760,FALSE),FALSE) -> 0.250 | G20: CO | H20: =HLOOKUP($C$14,Ebus!$D$1763:$AS$1775,MATCH($C20,Ebus!$C$1763:$C$1775,FALSE),FALSE) -> 0.063 | I20: =HLOOKUP($C$14,Non_ebus!$D$1763:$AS$1775,MATCH($C20,Non_ebus!$C$1763:$C$1775,FALSE),FALSE) -> 0.250
C21: =Ebus!C1752 -> NMVOC | D21: =HLOOKUP($C$14,Ebus!$D$1748:$AS$1760,MATCH($C21,Ebus!$C$1748:$C$1760,FALSE),FALSE) -> 0.018 | E21: =HLOOKUP($C$14,Non_ebus!$D$1748:$AS$1760,MATCH($C21,Non_ebus!$C$1748:$C$1760,FALSE),FALSE) -> 0.041 | G21: NMVOC | H21: =HLOOKUP($C$14,Ebus!$D$1763:$AS$1775,MATCH($C21,Ebus!$C$1763:$C$1775,FALSE),FALSE) -> 0.018 | I21: =HLOOKUP($C$14,Non_ebus!$D$1763:$AS$1775,MATCH($C21,Non_ebus!$C$1763:$C$1775,FALSE),FALSE) -> 0.041
C22: =Ebus!C1753 -> NOx | D22: =HLOOKUP($C$14,Ebus!$D$1748:$AS$1760,MATCH($C22,Ebus!$C$1748:$C$1760,FALSE),FALSE) -> 1.226 | E22: =HLOOKUP($C$14,Non_ebus!$D$1748:$AS$1760,MATCH($C22,Non_ebus!$C$1748:$C$1760,FALSE),FALSE) -> 0.529 | G22: NOx | H22: =HLOOKUP($C$14,Ebus!$D$1763:$AS$1775,MATCH($C22,Ebus!$C$1763:$C$1775,FALSE),FALSE) -> 1.226 | I22: =HLOOKUP($C$14,Non_ebus!$D$1763:$AS$1775,MATCH($C22,Non_ebus!$C$1763:$C$1775,FALSE),FALSE) -> 0.529
C23: =Ebus!C1754 -> PM10 | D23: =HLOOKUP($C$14,Ebus!$D$1748:$AS$1760,MATCH($C23,Ebus!$C$1748:$C$1760,FALSE),FALSE) -> 0.046 | E23: =HLOOKUP($C$14,Non_ebus!$D$1748:$AS$1760,MATCH($C23,Non_ebus!$C$1748:$C$1760,FALSE),FALSE) -> 0.145 | G23: PM10 | H23: =HLOOKUP($C$14,Ebus!$D$1763:$AS$1775,MATCH($C23,Ebus!$C$1763:$C$1775,FALSE),FALSE) -> 0.046 | I23: =HLOOKUP($C$14,Non_ebus!$D$1763:$AS$1775,MATCH($C23,Non_ebus!$C$1763:$C$1775,FALSE),FALSE) -> 0.145
C24: =Ebus!C1755 -> PM2.5 | D24: =HLOOKUP($C$14,Ebus!$D$1748:$AS$1760,MATCH($C24,Ebus!$C$1748:$C$1760,FALSE),FALSE) -> 0.022 | E24: =HLOOKUP($C$14,Non_ebus!$D$1748:$AS$1760,MATCH($C24,Non_ebus!$C$1748:$C$1760,FALSE),FALSE) -> 0.077 | G24: PM2.5 | H24: =HLOOKUP($C$14,Ebus!$D$1763:$AS$1775,MATCH($C24,Ebus!$C$1763:$C$1775,FALSE),FALSE) -> 0.022 | I24: =HLOOKUP($C$14,Non_ebus!$D$1763:$AS$1775,MATCH($C24,Non_ebus!$C$1763:$C$1775,FALSE),FALSE) -> 0.077
C25: =Ebus!C1756 -> SOx | D25: =HLOOKUP($C$14,Ebus!$D$1748:$AS$1760,MATCH($C25,Ebus!$C$1748:$C$1760,FALSE),FALSE) -> 0.079 | E25: =HLOOKUP($C$14,Non_ebus!$D$1748:$AS$1760,MATCH($C25,Non_ebus!$C$1748:$C$1760,FALSE),FALSE) -> 0.003 | G25: SOx | H25: =HLOOKUP($C$14,Ebus!$D$1763:$AS$1775,MATCH($C25,Ebus!$C$1763:$C$1775,FALSE),FALSE) -> 0.079 | I25: =HLOOKUP($C$14,Non_ebus!$D$1763:$AS$1775,MATCH($C25,Non_ebus!$C$1763:$C$1775,FALSE),FALSE) -> 0.003
C26: =Ebus!C1757 -> TSP | D26: =HLOOKUP($C$14,Ebus!$D$1748:$AS$1760,MATCH($C26,Ebus!$C$1748:$C$1760,FALSE),FALSE) -> 0.067 | E26: =HLOOKUP($C$14,Non_ebus!$D$1748:$AS$1760,MATCH($C26,Non_ebus!$C$1748:$C$1760,FALSE),FALSE) -> 0.218 | G26: TSP | H26: =HLOOKUP($C$14,Ebus!$D$1763:$AS$1775,MATCH($C26,Ebus!$C$1763:$C$1775,FALSE),FALSE) -> 0.067 | I26: =HLOOKUP($C$14,Non_ebus!$D$1763:$AS$1775,MATCH($C26,Non_ebus!$C$1763:$C$1775,FALSE),FALSE) -> 0.218
C27: =Ebus!C1758 -> CH4 | D27: =HLOOKUP($C$14,Ebus!$D$1748:$AS$1760,MATCH($C27,Ebus!$C$1748:$C$1760,FALSE),FALSE) -> 0.008 | E27: =HLOOKUP($C$14,Non_ebus!$D$1748:$AS$1760,MATCH($C27,Non_ebus!$C$1748:$C$1760,FALSE),FALSE) -> 0.035 | G27: CH4 | H27: =HLOOKUP($C$14,Ebus!$D$1763:$AS$1775,MATCH($C27,Ebus!$C$1763:$C$1775,FALSE),FALSE) -> 0.008 | I27: =HLOOKUP($C$14,Non_ebus!$D$1763:$AS$1775,MATCH($C27,Non_ebus!$C$1763:$C$1775,FALSE),FALSE) -> 0.035
C28: =Ebus!C1759 -> N2O | D28: =HLOOKUP($C$14,Ebus!$D$1748:$AS$1760,MATCH($C28,Ebus!$C$1748:$C$1760,FALSE),FALSE) -> 0.008 | E28: =HLOOKUP($C$14,Non_ebus!$D$1748:$AS$1760,MATCH($C28,Non_ebus!$C$1748:$C$1760,FALSE),FALSE) -> 0.007 | G28: N2O | H28: =HLOOKUP($C$14,Ebus!$D$1763:$AS$1775,MATCH($C28,Ebus!$C$1763:$C$1775,FALSE),FALSE) -> 0.008 | I28: =HLOOKUP($C$14,Non_ebus!$D$1763:$AS$1775,MATCH($C28,Non_ebus!$C$1763:$C$1775,FALSE),FALSE) -> 0.007
C29: EC (MJ/vkm) | D29: =(HLOOKUP($C$14,Ebus!$D$1354:$AS$1369,16,FALSE))*3600/HLOOKUP($C$14,Ebus!$D$1315:$AS$1330,16,FALSE) -> 7.46 | E29: =(HLOOKUP($C$14,Non_ebus!$D$1354:$AS$1369,16,FALSE))*3600/HLOOKUP($C$14,Non_ebus!$D$1315:$AS$1330,16,FALSE) -> 11.6 | K29: =D29/E29 -> 0.64
B33: Results per Sub-scenario
D36: =Ebus!D$1335 -> 2019 | E36: =Ebus!E$1335 -> 2020 | F36: =Ebus!F$1335 -> 2021 | G36: =Ebus!G$1335 -> 2022 | H36: =Ebus!H$1335 -> 2023 | I36: =Ebus!I$1335 -> 2024 | J36: =Ebus!J$1335 -> 2025 | K36: =Ebus!K$1335 -> 2026 | L36: =Ebus!L$1335 -> 2027 | M36: =Ebus!M$1335 -> 2028 | N36: =Ebus!N$1335 -> 2029 | O36: =Ebus!O$1335 -> 2030 | P36: =Ebus!P$1335 -> 2031 | Q36: =Ebus!Q$1335 -> 2032 | R36: =Ebus!R$1335 -> 2033 | S36: =Ebus!S$1335 -> 2034 | T36: =Ebus!T$1335 -> 2035 | U36: =Ebus!U$1335 -> 2036 | V36: =Ebus!V$1335 -> 2037 | W36: =Ebus!W$1335 -> 2038 | X36: =Ebus!X$1335 -> 2039 | Y36: =Ebus!Y$1335 -> 2040 | Z36: =Ebus!Z$1335 -> 2041 | AA36: =Ebus!AA$1335 -> 2042 | AB36: =Ebus!AB$1335 -> 2043 | AC36: =Ebus!AC$1335 -> 2044 | AD36: =Ebus!AD$1335 -> 2045 | AE36: =Ebus!AE$1335 -> 2046 | AF36: =Ebus!AF$1335 -> 2047 | AG36: =Ebus!AG$1335 -> 2048 | AH36: =Ebus!AH$1335 -> 2049 | AI36: =Ebus!AI$1335 -> 2050 | AJ36: =Ebus!AJ$1335 -> 2051 | AK36: =Ebus!AK$1335 -> 2052 | AL36: =Ebus!AL$1335 -> 2053 | AM36: =Ebus!AM$1335 -> 2054 | AN36: =Ebus!AN$1335 -> 2055 | AO36: =Ebus!AO$1335 -> 2056 | AP36: =Ebus!AP$1335 -> 2057 | AQ36: =Ebus!AQ$1335 -> 2058 | AR36: =Ebus!AR$1335 -> 2059 | AS36: =Ebus!AS$1335 -> 2060 | AV36: 2022-2050
B37: BC (kg/year) | C37: Ebus scenario | D37: =VLOOKUP($B37,Ebus!$A$1716:$AS$1727,MATCH(D$36,Ebus!$A$1715:$AS$1715,FALSE),FALSE) -> 0 | E37: =VLOOKUP($B37,Ebus!$A$1716:$AS$1727,MATCH(E$36,Ebus!$A$1715:$AS$1715,FALSE),FALSE) -> 0 | F37: =VLOOKUP($B37,Ebus!$A$1716:$AS$1727,MATCH(F$36,Ebus!$A$1715:$AS$1715,FALSE),FALSE) -> 0 | G37: =VLOOKUP($B37,Ebus!$A$1716:$AS$1727,MATCH(G$36,Ebus!$A$1715:$AS$1715,FALSE),FALSE) -> 29 | H37: =VLOOKUP($B37,Ebus!$A$1716:$AS$1727,MATCH(H$36,Ebus!$A$1715:$AS$1715,FALSE),FALSE) -> 31 | I37: =VLOOKUP($B37,Ebus!$A$1716:$AS$1727,MATCH(I$36,Ebus!$A$1715:$AS$1715,FALSE),FALSE) -> 211 | J37: =VLOOKUP($B37,Ebus!$A$1716:$AS$1727,MATCH(J$36,Ebus!$A$1715:$AS$1715,FALSE),FALSE) -> 390 | K37: =VLOOKUP($B37,Ebus!$A$1716:$AS$1727,MATCH(K$36,Ebus!$A$1715:$AS$1715,FALSE),FALSE) -> 557 | L37: =VLOOKUP($B37,Ebus!$A$1716:$AS$1727,MATCH(L$36,Ebus!$A$1715:$AS$1715,FALSE),FALSE) -> 715 | M37: =VLOOKUP($B37,Ebus!$A$1716:$AS$1727,MATCH(M$36,Ebus!$A$1715:$AS$1715,FALSE),FALSE) -> 773 | N37: =VLOOKUP($B37,Ebus!$A$1716:$AS$1727,MATCH(N$36,Ebus!$A$1715:$AS$1715,FALSE),FALSE) -> 823 | O37: =VLOOKUP($B37,Ebus!$A$1716:$AS$1727,MATCH(O$36,Ebus!$A$1715:$AS$1715,FALSE),FALSE) -> 874 | P37: =VLOOKUP($B37,Ebus!$A$1716:$AS$1727,MATCH(P$36,Ebus!$A$1715:$AS$1715,FALSE),FALSE) -> 905 | Q37: =VLOOKUP($B37,Ebus!$A$1716:$AS$1727,MATCH(Q$36,Ebus!$A$1715:$AS$1715,FALSE),FALSE) -> 913 | R37: =VLOOKUP($B37,Ebus!$A$1716:$AS$1727,MATCH(R$36,Ebus!$A$1715:$AS$1715,FALSE),FALSE) -> 896 | S37: =VLOOKUP($B37,Ebus!$A$1716:$AS$1727,MATCH(S$36,Ebus!$A$1715:$AS$1715,FALSE),FALSE) -> 855 | T37: =VLOOKUP($B37,Ebus!$A$1716:$AS$1727,MATCH(T$36,Ebus!$A$1715:$AS$1715,FALSE),FALSE) -> 821 | U37: =VLOOKUP($B37,Ebus!$A$1716:$AS$1727,MATCH(U$36,Ebus!$A$1715:$AS$1715,FALSE),FALSE) -> 779 | V37: =VLOOKUP($B37,Ebus!$A$1716:$AS$1727,MATCH(V$36,Ebus!$A$1715:$AS$1715,FALSE),FALSE) -> 742 | W37: =VLOOKUP($B37,Ebus!$A$1716:$AS$1727,MATCH(W$36,Ebus!$A$1715:$AS$1715,FALSE),FALSE) -> 714 | X37: =VLOOKUP($B37,Ebus!$A$1716:$AS$1727,MATCH(X$36,Ebus!$A$1715:$AS$1715,FALSE),FALSE) -> 695 | Y37: =VLOOKUP($B37,Ebus!$A$1716:$AS$1727,MATCH(Y$36,Ebus!$A$1715:$AS$1715,FALSE),FALSE) -> 692 | Z37: =VLOOKUP($B37,Ebus!$A$1716:$AS$1727,MATCH(Z$36,Ebus!$A$1715:$AS$1715,FALSE),FALSE) -> 687 | AA37: =VLOOKUP($B37,Ebus!$A$1716:$AS$1727,MATCH(AA$36,Ebus!$A$1715:$AS$1715,FALSE),FALSE) -> 678 | AB37: =VLOOKUP($B37,Ebus!$A$1716:$AS$1727,MATCH(AB$36,Ebus!$A$1715:$AS$1715,FALSE),FALSE) -> 665 | AC37: =VLOOKUP($B37,Ebus!$A$1716:$AS$1727,MATCH(AC$36,Ebus!$A$1715:$AS$1715,FALSE),FALSE) -> 648 | AD37: =VLOOKUP($B37,Ebus!$A$1716:$AS$1727,MATCH(AD$36,Ebus!$A$1715:$AS$1715,FALSE),FALSE) -> 629 | AE37: =VLOOKUP($B37,Ebus!$A$1716:$AS$1727,MATCH(AE$36,Ebus!$A$1715:$AS$1715,FALSE),FALSE) -> 600 | AF37: =VLOOKUP($B37,Ebus!$A$1716:$AS$1727,MATCH(AF$36,Ebus!$A$1715:$AS$1715,FALSE),FALSE) -> 570 | AG37: =VLOOKUP($B37,Ebus!$A$1716:$AS$1727,MATCH(AG$36,Ebus!$A$1715:$AS$1715,FALSE),FALSE) -> 538 | AH37: =VLOOKUP($B37,Ebus!$A$1716:$AS$1727,MATCH(AH$36,Ebus!$A$1715:$AS$1715,FALSE),FALSE) -> 506 | AI37: =VLOOKUP($B37,Ebus!$A$1716:$AS$1727,MATCH(AI$36,Ebus!$A$1715:$AS$1715,FALSE),FALSE) -> 474 | AJ37: =VLOOKUP($B37,Ebus!$A$1716:$AS$1727,MATCH(AJ$36,Ebus!$A$1715:$AS$1715,FALSE),FALSE) -> 0 | AK37: =VLOOKUP($B37,Ebus!$A$1716:$AS$1727,MATCH(AK$36,Ebus!$A$1715:$AS$1715,FALSE),FALSE) -> 0 | AL37: =VLOOKUP($B37,Ebus!$A$1716:$AS$1727,MATCH(AL$36,Ebus!$A$1715:$AS$1715,FALSE),FALSE) -> 0 | AM37: =VLOOKUP($B37,Ebus!$A$1716:$AS$1727,MATCH(AM$36,Ebus!$A$1715:$AS$1715,FALSE),FALSE) -> 0 | AN37: =VLOOKUP($B37,Ebus!$A$1716:$AS$1727,MATCH(AN$36,Ebus!$A$1715:$AS$1715,FALSE),FALSE) -> 0 | AO37: =VLOOKUP($B37,Ebus!$A$1716:$AS$1727,MATCH(AO$36,Ebus!$A$1715:$AS$1715,FALSE),FALSE) -> 0 | AP37: =VLOOKUP($B37,Ebus!$A$1716:$AS$1727,MATCH(AP$36,Ebus!$A$1715:$AS$1715,FALSE),FALSE) -> 0 | AQ37: =VLOOKUP($B37,Ebus!$A$1716:$AS$1727,MATCH(AQ$36,Ebus!$A$1715:$AS$1715,FALSE),FALSE) -> 0 | AR37: =VLOOKUP($B37,Ebus!$A$1716:$AS$1727,MATCH(AR$36,Ebus!$A$1715:$AS$1715,FALSE),FALSE) -> 0 | AS37: =VLOOKUP($B37,Ebus!$A$1716:$AS$1727,MATCH(AS$36,Ebus!$A$1715:$AS$1715,FALSE),FALSE) -> 0 | AV37: =SUM(G37:AI37) -> 18,410
B38: BC (kg/year) | C38: Other scenario | D38: =VLOOKUP($B38,Non_ebus!$A$1716:$AS$1727,MATCH(D$36,Non_ebus!$A$1715:$AS$1715,FALSE),FALSE) -> 0 | E38: =VLOOKUP($B38,Non_ebus!$A$1716:$AS$1727,MATCH(E$36,Non_ebus!$A$1715:$AS$1715,FALSE),FALSE) -> 0 | F38: =VLOOKUP($B38,Non_ebus!$A$1716:$AS$1727,MATCH(F$36,Non_ebus!$A$1715:$AS$1715,FALSE),FALSE) -> 0 | G38: =VLOOKUP($B38,Non_ebus!$A$1716:$AS$1727,MATCH(G$36,Non_ebus!$A$1715:$AS$1715,FALSE),FALSE) -> 179 | H38: =VLOOKUP($B38,Non_ebus!$A$1716:$AS$1727,MATCH(H$36,Non_ebus!$A$1715:$AS$1715,FALSE),FALSE) -> 189 | I38: =VLOOKUP($B38,Non_ebus!$A$1716:$AS$1727,MATCH(I$36,Non_ebus!$A$1715:$AS$1715,FALSE),FALSE) -> 1,291 | J38: =VLOOKUP($B38,Non_ebus!$A$1716:$AS$1727,MATCH(J$36,Non_ebus!$A$1715:$AS$1715,FALSE),FALSE) -> 2,381 | K38: =VLOOKUP($B38,Non_ebus!$A$1716:$AS$1727,MATCH(K$36,Non_ebus!$A$1715:$AS$1715,FALSE),FALSE) -> 3,490 | L38: =VLOOKUP($B38,Non_ebus!$A$1716:$AS$1727,MATCH(L$36,Non_ebus!$A$1715:$AS$1715,FALSE),FALSE) -> 4,614 | M38: =VLOOKUP($B38,Non_ebus!$A$1716:$AS$1727,MATCH(M$36,Non_ebus!$A$1715:$AS$1715,FALSE),FALSE) -> 5,133 | N38: =VLOOKUP($B38,Non_ebus!$A$1716:$AS$1727,MATCH(N$36,Non_ebus!$A$1715:$AS$1715,FALSE),FALSE) -> 5,629 | O38: =VLOOKUP($B38,Non_ebus!$A$1716:$AS$1727,MATCH(O$36,Non_ebus!$A$1715:$AS$1715,FALSE),FALSE) -> 6,555 | P38: =VLOOKUP($B38,Non_ebus!$A$1716:$AS$1727,MATCH(P$36,Non_ebus!$A$1715:$AS$1715,FALSE),FALSE) -> 7,022 | Q38: =VLOOKUP($B38,Non_ebus!$A$1716:$AS$1727,MATCH(Q$36,Non_ebus!$A$1715:$AS$1715,FALSE),FALSE) -> 7,340 | R38: =VLOOKUP($B38,Non_ebus!$A$1716:$AS$1727,MATCH(R$36,Non_ebus!$A$1715:$AS$1715,FALSE),FALSE) -> 7,470 | S38: =VLOOKUP($B38,Non_ebus!$A$1716:$AS$1727,MATCH(S$36,Non_ebus!$A$1715:$AS$1715,FALSE),FALSE) -> 7,406 | T38: =VLOOKUP($B38,Non_ebus!$A$1716:$AS$1727,MATCH(T$36,Non_ebus!$A$1715:$AS$1715,FALSE),FALSE) -> 7,416 | U38: =VLOOKUP($B38,Non_ebus!$A$1716:$AS$1727,MATCH(U$36,Non_ebus!$A$1715:$AS$1715,FALSE),FALSE) -> 7,362 | V38: =VLOOKUP($B38,Non_ebus!$A$1716:$AS$1727,MATCH(V$36,Non_ebus!$A$1715:$AS$1715,FALSE),FALSE) -> 7,340 | W38: =VLOOKUP($B38,Non_ebus!$A$1716:$AS$1727,MATCH(W$36,Non_ebus!$A$1715:$AS$1715,FALSE),FALSE) -> 7,405 | X38: =VLOOKUP($B38,Non_ebus!$A$1716:$AS$1727,MATCH(X$36,Non_ebus!$A$1715:$AS$1715,FALSE),FALSE) -> 7,560 | Y38: =VLOOKUP($B38,Non_ebus!$A$1716:$AS$1727,MATCH(Y$36,Non_ebus!$A$1715:$AS$1715,FALSE),FALSE) -> 7,895 | Z38: =VLOOKUP($B38,Non_ebus!$A$1716:$AS$1727,MATCH(Z$36,Non_ebus!$A$1715:$AS$1715,FALSE),FALSE) -> 8,245 | AA38: =VLOOKUP($B38,Non_ebus!$A$1716:$AS$1727,MATCH(AA$36,Non_ebus!$A$1715:$AS$1715,FALSE),FALSE) -> 8,579 | AB38: =VLOOKUP($B38,Non_ebus!$A$1716:$AS$1727,MATCH(AB$36,Non_ebus!$A$1715:$AS$1715,FALSE),FALSE) -> 8,881 | AC38: =VLOOKUP($B38,Non_ebus!$A$1716:$AS$1727,MATCH(AC$36,Non_ebus!$A$1715:$AS$1715,FALSE),FALSE) -> 9,142 | AD38: =VLOOKUP($B38,Non_ebus!$A$1716:$AS$1727,MATCH(AD$36,Non_ebus!$A$1715:$AS$1715,FALSE),FALSE) -> 9,413 | AE38: =VLOOKUP($B38,Non_ebus!$A$1716:$AS$1727,MATCH(AE$36,Non_ebus!$A$1715:$AS$1715,FALSE),FALSE) -> 9,587 | AF38: =VLOOKUP($B38,Non_ebus!$A$1716:$AS$1727,MATCH(AF$36,Non_ebus!$A$1715:$AS$1715,FALSE),FALSE) -> 9,744 | AG38: =VLOOKUP($B38,Non_ebus!$A$1716:$AS$1727,MATCH(AG$36,Non_ebus!$A$1715:$AS$1715,FALSE),FALSE) -> 9,902 | AH38: =VLOOKUP($B38,Non_ebus!$A$1716:$AS$1727,MATCH(AH$36,Non_ebus!$A$1715:$AS$1715,FALSE),FALSE) -> 10,061 | AI38: =VLOOKUP($B38,Non_ebus!$A$1716:$AS$1727,MATCH(AI$36,Non_ebus!$A$1715:$AS$1715,FALSE),FALSE) -> 10,222 | AJ38: =VLOOKUP($B38,Non_ebus!$A$1716:$AS$1727,MATCH(AJ$36,Non_ebus!$A$1715:$AS$1715,FALSE),FALSE) -> 0 | AK38: =VLOOKUP($B38,Non_ebus!$A$1716:$AS$1727,MATCH(AK$36,Non_ebus!$A$1715:$AS$1715,FALSE),FALSE) -> 0 | AL38: =VLOOKUP($B38,Non_ebus!$A$1716:$AS$1727,MATCH(AL$36,Non_ebus!$A$1715:$AS$1715,FALSE),FALSE) -> 0 | AM38: =VLOOKUP($B38,Non_ebus!$A$1716:$AS$1727,MATCH(AM$36,Non_ebus!$A$1715:$AS$1715,FALSE),FALSE) -> 0 | AN38: =VLOOKUP($B38,Non_ebus!$A$1716:$AS$1727,MATCH(AN$36,Non_ebus!$A$1715:$AS$1715,FALSE),FALSE) -> 0 | AO38: =VLOOKUP($B38,Non_ebus!$A$1716:$AS$1727,MATCH(AO$36,Non_ebus!$A$1715:$AS$1715,FALSE),FALSE) -> 0 | AP38: =VLOOKUP($B38,Non_ebus!$A$1716:$AS$1727,MATCH(AP$36,Non_ebus!$A$1715:$AS$1715,FALSE),FALSE) -> 0 | AQ38: =VLOOKUP($B38,Non_ebus!$A$1716:$AS$1727,MATCH(AQ$36,Non_ebus!$A$1715:$AS$1715,FALSE),FALSE) -> 0 | AR38: =VLOOKUP($B38,Non_ebus!$A$1716:$AS$1727,MATCH(AR$36,Non_ebus!$A$1715:$AS$1715,FALSE),FALSE) -> 0 | AS38: =VLOOKUP($B38,Non_ebus!$A$1716:$AS$1727,MATCH(AS$36,Non_ebus!$A$1715:$AS$1715,FALSE),FALSE) -> 0 | AV38: =SUM(G38:AI38) -> 197,451
B39: CH4 (kg/year) | C39: Ebus scenario | D39: =VLOOKUP($B39,Ebus!$A$1716:$AS$1727,MATCH(D$36,Ebus!$A$1715:$AS$1715,FALSE),FALSE) -> 0 | E39: =VLOOKUP($B39,Ebus!$A$1716:$AS$1727,MATCH(E$36,Ebus!$A$1715:$AS$1715,FALSE),FALSE) -> 0 | F39: =VLOOKUP($B39,Ebus!$A$1716:$AS$1727,MATCH(F$36,Ebus!$A$1715:$AS$1715,FALSE),FALSE) -> 0 | G39: =VLOOKUP($B39,Ebus!$A$1716:$AS$1727,MATCH(G$36,Ebus!$A$1715:$AS$1715,FALSE),FALSE) -> 122 | H39: =VLOOKUP($B39,Ebus!$A$1716:$AS$1727,MATCH(H$36,Ebus!$A$1715:$AS$1715,FALSE),FALSE) -> 128 | I39: =VLOOKUP($B39,Ebus!$A$1716:$AS$1727,MATCH(I$36,Ebus!$A$1715:$AS$1715,FALSE),FALSE) -> 867 | J39: =VLOOKUP($B39,Ebus!$A$1716:$AS$1727,MATCH(J$36,Ebus!$A$1715:$AS$1715,FALSE),FALSE) -> 1,588 | K39: =VLOOKUP($B39,Ebus!$A$1716:$AS$1727,MATCH(K$36,Ebus!$A$1715:$AS$1715,FALSE),FALSE) -> 2,257 | L39: =VLOOKUP($B39,Ebus!$A$1716:$AS$1727,MATCH(L$36,Ebus!$A$1715:$AS$1715,FALSE),FALSE) -> 2,887 | M39: =VLOOKUP($B39,Ebus!$A$1716:$AS$1727,MATCH(M$36,Ebus!$A$1715:$AS$1715,FALSE),FALSE) -> 3,108 | N39: =VLOOKUP($B39,Ebus!$A$1716:$AS$1727,MATCH(N$36,Ebus!$A$1715:$AS$1715,FALSE),FALSE) -> 3,295 | O39: =VLOOKUP($B39,Ebus!$A$1716:$AS$1727,MATCH(O$36,Ebus!$A$1715:$AS$1715,FALSE),FALSE) -> 3,482 | P39: =VLOOKUP($B39,Ebus!$A$1716:$AS$1727,MATCH(P$36,Ebus!$A$1715:$AS$1715,FALSE),FALSE) -> 3,598 | Q39: =VLOOKUP($B39,Ebus!$A$1716:$AS$1727,MATCH(Q$36,Ebus!$A$1715:$AS$1715,FALSE),FALSE) -> 3,621 | R39: =VLOOKUP($B39,Ebus!$A$1716:$AS$1727,MATCH(R$36,Ebus!$A$1715:$AS$1715,FALSE),FALSE) -> 3,543 | S39: =VLOOKUP($B39,Ebus!$A$1716:$AS$1727,MATCH(S$36,Ebus!$A$1715:$AS$1715,FALSE),FALSE) -> 3,369 | T39: =VLOOKUP($B39,Ebus!$A$1716:$AS$1727,MATCH(T$36,Ebus!$A$1715:$AS$1715,FALSE),FALSE) -> 3,225 | U39: =VLOOKUP($B39,Ebus!$A$1716:$AS$1727,MATCH(U$36,Ebus!$A$1715:$AS$1715,FALSE),FALSE) -> 3,055 | V39: =VLOOKUP($B39,Ebus!$A$1716:$AS$1727,MATCH(V$36,Ebus!$A$1715:$AS$1715,FALSE),FALSE) -> 2,901 | W39: =VLOOKUP($B39,Ebus!$A$1716:$AS$1727,MATCH(W$36,Ebus!$A$1715:$AS$1715,FALSE),FALSE) -> 2,785 | X39: =VLOOKUP($B39,Ebus!$A$1716:$AS$1727,MATCH(X$36,Ebus!$A$1715:$AS$1715,FALSE),FALSE) -> 2,704 | Y39: =VLOOKUP($B39,Ebus!$A$1716:$AS$1727,MATCH(Y$36,Ebus!$A$1715:$AS$1715,FALSE),FALSE) -> 2,682 | Z39: =VLOOKUP($B39,Ebus!$A$1716:$AS$1727,MATCH(Z$36,Ebus!$A$1715:$AS$1715,FALSE),FALSE) -> 2,656 | AA39: =VLOOKUP($B39,Ebus!$A$1716:$AS$1727,MATCH(AA$36,Ebus!$A$1715:$AS$1715,FALSE),FALSE) -> 2,616 | AB39: =VLOOKUP($B39,Ebus!$A$1716:$AS$1727,MATCH(AB$36,Ebus!$A$1715:$AS$1715,FALSE),FALSE) -> 2,559 | AC39: =VLOOKUP($B39,Ebus!$A$1716:$AS$1727,MATCH(AC$36,Ebus!$A$1715:$AS$1715,FALSE),FALSE) -> 2,483 | AD39: =VLOOKUP($B39,Ebus!$A$1716:$AS$1727,MATCH(AD$36,Ebus!$A$1715:$AS$1715,FALSE),FALSE) -> 2,403 | AE39: =VLOOKUP($B39,Ebus!$A$1716:$AS$1727,MATCH(AE$36,Ebus!$A$1715:$AS$1715,FALSE),FALSE) -> 2,291 | AF39: =VLOOKUP($B39,Ebus!$A$1716:$AS$1727,MATCH(AF$36,Ebus!$A$1715:$AS$1715,FALSE),FALSE) -> 2,172 | AG39: =VLOOKUP($B39,Ebus!$A$1716:$AS$1727,MATCH(AG$36,Ebus!$A$1715:$AS$1715,FALSE),FALSE) -> 2,051 | AH39: =VLOOKUP($B39,Ebus!$A$1716:$AS$1727,MATCH(AH$36,Ebus!$A$1715:$AS$1715,FALSE),FALSE) -> 1,927 | AI39: =VLOOKUP($B39,Ebus!$A$1716:$AS$1727,MATCH(AI$36,Ebus!$A$1715:$AS$1715,FALSE),FALSE) -> 1,801 | AJ39: =VLOOKUP($B39,Ebus!$A$1716:$AS$1727,MATCH(AJ$36,Ebus!$A$1715:$AS$1715,FALSE),FALSE) -> 0 | AK39: =VLOOKUP($B39,Ebus!$A$1716:$AS$1727,MATCH(AK$36,Ebus!$A$1715:$AS$1715,FALSE),FALSE) -> 0 | AL39: =VLOOKUP($B39,Ebus!$A$1716:$AS$1727,MATCH(AL$36,Ebus!$A$1715:$AS$1715,FALSE),FALSE) -> 0 | AM39: =VLOOKUP($B39,Ebus!$A$1716:$AS$1727,MATCH(AM$36,Ebus!$A$1715:$AS$1715,FALSE),FALSE) -> 0 | AN39: =VLOOKUP($B39,Ebus!$A$1716:$AS$1727,MATCH(AN$36,Ebus!$A$1715:$AS$1715,FALSE),FALSE) -> 0 | AO39: =VLOOKUP($B39,Ebus!$A$1716:$AS$1727,MATCH(AO$36,Ebus!$A$1715:$AS$1715,FALSE),FALSE) -> 0 | AP39: =VLOOKUP($B39,Ebus!$A$1716:$AS$1727,MATCH(AP$36,Ebus!$A$1715:$AS$1715,FALSE),FALSE) -> 0 | AQ39: =VLOOKUP($B39,Ebus!$A$1716:$AS$1727,MATCH(AQ$36,Ebus!$A$1715:$AS$1715,FALSE),FALSE) -> 0 | AR39: =VLOOKUP($B39,Ebus!$A$1716:$AS$1727,MATCH(AR$36,Ebus!$A$1715:$AS$1715,FALSE),FALSE) -> 0 | AS39: =VLOOKUP($B39,Ebus!$A$1716:$AS$1727,MATCH(AS$36,Ebus!$A$1715:$AS$1715,FALSE),FALSE) -> 0 | AV39: 72,176
B40: CH4 (kg/year) | C40: Other scenario | D40: =VLOOKUP($B40,Non_ebus!$A$1716:$AS$1727,MATCH(D$36,Non_ebus!$A$1715:$AS$1715,FALSE),FALSE) -> 0 | E40: =VLOOKUP($B40,Non_ebus!$A$1716:$AS$1727,MATCH(E$36,Non_ebus!$A$1715:$AS$1715,FALSE),FALSE) -> 0 | F40: =VLOOKUP($B40,Non_ebus!$A$1716:$AS$1727,MATCH(F$36,Non_ebus!$A$1715:$AS$1715,FALSE),FALSE) -> 0 | G40: =VLOOKUP($B40,Non_ebus!$A$1716:$AS$1727,MATCH(G$36,Non_ebus!$A$1715:$AS$1715,FALSE),FALSE) -> 534 | H40: =VLOOKUP($B40,Non_ebus!$A$1716:$AS$1727,MATCH(H$36,Non_ebus!$A$1715:$AS$1715,FALSE),FALSE) -> 567 | I40: =VLOOKUP($B40,Non_ebus!$A$1716:$AS$1727,MATCH(I$36,Non_ebus!$A$1715:$AS$1715,FALSE),FALSE) -> 4,166 | J40: =VLOOKUP($B40,Non_ebus!$A$1716:$AS$1727,MATCH(J$36,Non_ebus!$A$1715:$AS$1715,FALSE),FALSE) -> 7,876 | K40: =VLOOKUP($B40,Non_ebus!$A$1716:$AS$1727,MATCH(K$36,Non_ebus!$A$1715:$AS$1715,FALSE),FALSE) -> 11,652 | L40: =VLOOKUP($B40,Non_ebus!$A$1716:$AS$1727,MATCH(L$36,Non_ebus!$A$1715:$AS$1715,FALSE),FALSE) -> 15,478 | M40: =VLOOKUP($B40,Non_ebus!$A$1716:$AS$1727,MATCH(M$36,Non_ebus!$A$1715:$AS$1715,FALSE),FALSE) -> 17,247 | N40: =VLOOKUP($B40,Non_ebus!$A$1716:$AS$1727,MATCH(N$36,Non_ebus!$A$1715:$AS$1715,FALSE),FALSE) -> 18,943 | O40: =VLOOKUP($B40,Non_ebus!$A$1716:$AS$1727,MATCH(O$36,Non_ebus!$A$1715:$AS$1715,FALSE),FALSE) -> 20,775 | P40: =VLOOKUP($B40,Non_ebus!$A$1716:$AS$1727,MATCH(P$36,Non_ebus!$A$1715:$AS$1715,FALSE),FALSE) -> 22,294 | Q40: =VLOOKUP($B40,Non_ebus!$A$1716:$AS$1727,MATCH(Q$36,Non_ebus!$A$1715:$AS$1715,FALSE),FALSE) -> 23,344 | R40: =VLOOKUP($B40,Non_ebus!$A$1716:$AS$1727,MATCH(R$36,Non_ebus!$A$1715:$AS$1715,FALSE),FALSE) -> 23,799 | S40: =VLOOKUP($B40,Non_ebus!$A$1716:$AS$1727,MATCH(S$36,Non_ebus!$A$1715:$AS$1715,FALSE),FALSE) -> 23,634 | T40: =VLOOKUP($B40,Non_ebus!$A$1716:$AS$1727,MATCH(T$36,Non_ebus!$A$1715:$AS$1715,FALSE),FALSE) -> 23,694 | U40: =VLOOKUP($B40,Non_ebus!$A$1716:$AS$1727,MATCH(U$36,Non_ebus!$A$1715:$AS$1715,FALSE),FALSE) -> 23,544 | V40: =VLOOKUP($B40,Non_ebus!$A$1716:$AS$1727,MATCH(V$36,Non_ebus!$A$1715:$AS$1715,FALSE),FALSE) -> 23,481 | W40: =VLOOKUP($B40,Non_ebus!$A$1716:$AS$1727,MATCH(W$36,Non_ebus!$A$1715:$AS$1715,FALSE),FALSE) -> 23,692 | X40: =VLOOKUP($B40,Non_ebus!$A$1716:$AS$1727,MATCH(X$36,Non_ebus!$A$1715:$AS$1715,FALSE),FALSE) -> 24,189 | Y40: =VLOOKUP($B40,Non_ebus!$A$1716:$AS$1727,MATCH(Y$36,Non_ebus!$A$1715:$AS$1715,FALSE),FALSE) -> 25,262 | Z40: =VLOOKUP($B40,Non_ebus!$A$1716:$AS$1727,MATCH(Z$36,Non_ebus!$A$1715:$AS$1715,FALSE),FALSE) -> 26,381 | AA40: =VLOOKUP($B40,Non_ebus!$A$1716:$AS$1727,MATCH(AA$36,Non_ebus!$A$1715:$AS$1715,FALSE),FALSE) -> 27,449 | AB40: =VLOOKUP($B40,Non_ebus!$A$1716:$AS$1727,MATCH(AB$36,Non_ebus!$A$1715:$AS$1715,FALSE),FALSE) -> 28,416 | AC40: =VLOOKUP($B40,Non_ebus!$A$1716:$AS$1727,MATCH(AC$36,Non_ebus!$A$1715:$AS$1715,FALSE),FALSE) -> 29,252 | AD40: =VLOOKUP($B40,Non_ebus!$A$1716:$AS$1727,MATCH(AD$36,Non_ebus!$A$1715:$AS$1715,FALSE),FALSE) -> 30,120 | AE40: =VLOOKUP($B40,Non_ebus!$A$1716:$AS$1727,MATCH(AE$36,Non_ebus!$A$1715:$AS$1715,FALSE),FALSE) -> 30,675 | AF40: =VLOOKUP($B40,Non_ebus!$A$1716:$AS$1727,MATCH(AF$36,Non_ebus!$A$1715:$AS$1715,FALSE),FALSE) -> 31,178 | AG40: =VLOOKUP($B40,Non_ebus!$A$1716:$AS$1727,MATCH(AG$36,Non_ebus!$A$1715:$AS$1715,FALSE),FALSE) -> 31,684 | AH40: =VLOOKUP($B40,Non_ebus!$A$1716:$AS$1727,MATCH(AH$36,Non_ebus!$A$1715:$AS$1715,FALSE),FALSE) -> 32,193 | AI40: =VLOOKUP($B40,Non_ebus!$A$1716:$AS$1727,MATCH(AI$36,Non_ebus!$A$1715:$AS$1715,FALSE),FALSE) -> 32,707 | AJ40: =VLOOKUP($B40,Non_ebus!$A$1716:$AS$1727,MATCH(AJ$36,Non_ebus!$A$1715:$AS$1715,FALSE),FALSE) -> 0 | AK40: =VLOOKUP($B40,Non_ebus!$A$1716:$AS$1727,MATCH(AK$36,Non_ebus!$A$1715:$AS$1715,FALSE),FALSE) -> 0 | AL40: =VLOOKUP($B40,Non_ebus!$A$1716:$AS$1727,MATCH(AL$36,Non_ebus!$A$1715:$AS$1715,FALSE),FALSE) -> 0 | AM40: =VLOOKUP($B40,Non_ebus!$A$1716:$AS$1727,MATCH(AM$36,Non_ebus!$A$1715:$AS$1715,FALSE),FALSE) -> 0 | AN40: =VLOOKUP($B40,Non_ebus!$A$1716:$AS$1727,MATCH(AN$36,Non_ebus!$A$1715:$AS$1715,FALSE),FALSE) -> 0 | AO40: =VLOOKUP($B40,Non_ebus!$A$1716:$AS$1727,MATCH(AO$36,Non_ebus!$A$1715:$AS$1715,FALSE),FALSE) -> 0 | AP40: =VLOOKUP($B40,Non_ebus!$A$1716:$AS$1727,MATCH(AP$36,Non_ebus!$A$1715:$AS$1715,FALSE),FALSE) -> 0 | AQ40: =VLOOKUP($B40,Non_ebus!$A$1716:$AS$1727,MATCH(AQ$36,Non_ebus!$A$1715:$AS$1715,FALSE),FALSE) -> 0 | AR40: =VLOOKUP($B40,Non_ebus!$A$1716:$AS$1727,MATCH(AR$36,Non_ebus!$A$1715:$AS$1715,FALSE),FALSE) -> 0 | AS40: =VLOOKUP($B40,Non_ebus!$A$1716:$AS$1727,MATCH(AS$36,Non_ebus!$A$1715:$AS$1715,FALSE),FALSE) -> 0 | AV40: 634,226
B41: CO (kg/year) | C41: Ebus scenario | D41: =VLOOKUP($B41,Ebus!$A$1716:$AS$1727,MATCH(D$36,Ebus!$A$1715:$AS$1715,FALSE),FALSE) -> 0 | E41: =VLOOKUP($B41,Ebus!$A$1716:$AS$1727,MATCH(E$36,Ebus!$A$1715:$AS$1715,FALSE),FALSE) -> 0 | F41: =VLOOKUP($B41,Ebus!$A$1716:$AS$1727,MATCH(F$36,Ebus!$A$1715:$AS$1715,FALSE),FALSE) -> 0 | G41: =VLOOKUP($B41,Ebus!$A$1716:$AS$1727,MATCH(G$36,Ebus!$A$1715:$AS$1715,FALSE),FALSE) -> 971 | H41: =VLOOKUP($B41,Ebus!$A$1716:$AS$1727,MATCH(H$36,Ebus!$A$1715:$AS$1715,FALSE),FALSE) -> 1,034 | I41: =VLOOKUP($B41,Ebus!$A$1716:$AS$1727,MATCH(I$36,Ebus!$A$1715:$AS$1715,FALSE),FALSE) -> 7,159 | J41: =VLOOKUP($B41,Ebus!$A$1716:$AS$1727,MATCH(J$36,Ebus!$A$1715:$AS$1715,FALSE),FALSE) -> 13,366 | K41: =VLOOKUP($B41,Ebus!$A$1716:$AS$1727,MATCH(K$36,Ebus!$A$1715:$AS$1715,FALSE),FALSE) -> 18,970 | L41: =VLOOKUP($B41,Ebus!$A$1716:$AS$1727,MATCH(L$36,Ebus!$A$1715:$AS$1715,FALSE),FALSE) -> 24,215 | M41: =VLOOKUP($B41,Ebus!$A$1716:$AS$1727,MATCH(M$36,Ebus!$A$1715:$AS$1715,FALSE),FALSE) -> 26,022 | N41: =VLOOKUP($B41,Ebus!$A$1716:$AS$1727,MATCH(N$36,Ebus!$A$1715:$AS$1715,FALSE),FALSE) -> 27,533 | O41: =VLOOKUP($B41,Ebus!$A$1716:$AS$1727,MATCH(O$36,Ebus!$A$1715:$AS$1715,FALSE),FALSE) -> 29,036 | P41: =VLOOKUP($B41,Ebus!$A$1716:$AS$1727,MATCH(P$36,Ebus!$A$1715:$AS$1715,FALSE),FALSE) -> 29,891 | Q41: =VLOOKUP($B41,Ebus!$A$1716:$AS$1727,MATCH(Q$36,Ebus!$A$1715:$AS$1715,FALSE),FALSE) -> 29,973 | R41: =VLOOKUP($B41,Ebus!$A$1716:$AS$1727,MATCH(R$36,Ebus!$A$1715:$AS$1715,FALSE),FALSE) -> 29,204 | S41: =VLOOKUP($B41,Ebus!$A$1716:$AS$1727,MATCH(S$36,Ebus!$A$1715:$AS$1715,FALSE),FALSE) -> 27,656 | T41: =VLOOKUP($B41,Ebus!$A$1716:$AS$1727,MATCH(T$36,Ebus!$A$1715:$AS$1715,FALSE),FALSE) -> 26,352 | U41: =VLOOKUP($B41,Ebus!$A$1716:$AS$1727,MATCH(U$36,Ebus!$A$1715:$AS$1715,FALSE),FALSE) -> 24,867 | V41: =VLOOKUP($B41,Ebus!$A$1716:$AS$1727,MATCH(V$36,Ebus!$A$1715:$AS$1715,FALSE),FALSE) -> 23,521 | W41: =VLOOKUP($B41,Ebus!$A$1716:$AS$1727,MATCH(W$36,Ebus!$A$1715:$AS$1715,FALSE),FALSE) -> 22,486 | X41: =VLOOKUP($B41,Ebus!$A$1716:$AS$1727,MATCH(X$36,Ebus!$A$1715:$AS$1715,FALSE),FALSE) -> 21,732 | Y41: =VLOOKUP($B41,Ebus!$A$1716:$AS$1727,MATCH(Y$36,Ebus!$A$1715:$AS$1715,FALSE),FALSE) -> 21,448 | Z41: =VLOOKUP($B41,Ebus!$A$1716:$AS$1727,MATCH(Z$36,Ebus!$A$1715:$AS$1715,FALSE),FALSE) -> 21,160 | AA41: =VLOOKUP($B41,Ebus!$A$1716:$AS$1727,MATCH(AA$36,Ebus!$A$1715:$AS$1715,FALSE),FALSE) -> 20,758 | AB41: =VLOOKUP($B41,Ebus!$A$1716:$AS$1727,MATCH(AB$36,Ebus!$A$1715:$AS$1715,FALSE),FALSE) -> 20,211 | AC41: =VLOOKUP($B41,Ebus!$A$1716:$AS$1727,MATCH(AC$36,Ebus!$A$1715:$AS$1715,FALSE),FALSE) -> 19,513 | AD41: =VLOOKUP($B41,Ebus!$A$1716:$AS$1727,MATCH(AD$36,Ebus!$A$1715:$AS$1715,FALSE),FALSE) -> 18,780 | AE41: =VLOOKUP($B41,Ebus!$A$1716:$AS$1727,MATCH(AE$36,Ebus!$A$1715:$AS$1715,FALSE),FALSE) -> 17,881 | AF41: =VLOOKUP($B41,Ebus!$A$1716:$AS$1727,MATCH(AF$36,Ebus!$A$1715:$AS$1715,FALSE),FALSE) -> 16,926 | AG41: =VLOOKUP($B41,Ebus!$A$1716:$AS$1727,MATCH(AG$36,Ebus!$A$1715:$AS$1715,FALSE),FALSE) -> 15,950 | AH41: =VLOOKUP($B41,Ebus!$A$1716:$AS$1727,MATCH(AH$36,Ebus!$A$1715:$AS$1715,FALSE),FALSE) -> 14,954 | AI41: =VLOOKUP($B41,Ebus!$A$1716:$AS$1727,MATCH(AI$36,Ebus!$A$1715:$AS$1715,FALSE),FALSE) -> 13,940 | AJ41: =VLOOKUP($B41,Ebus!$A$1716:$AS$1727,MATCH(AJ$36,Ebus!$A$1715:$AS$1715,FALSE),FALSE) -> 0 | AK41: =VLOOKUP($B41,Ebus!$A$1716:$AS$1727,MATCH(AK$36,Ebus!$A$1715:$AS$1715,FALSE),FALSE) -> 0 | AL41: =VLOOKUP($B41,Ebus!$A$1716:$AS$1727,MATCH(AL$36,Ebus!$A$1715:$AS$1715,FALSE),FALSE) -> 0 | AM41: =VLOOKUP($B41,Ebus!$A$1716:$AS$1727,MATCH(AM$36,Ebus!$A$1715:$AS$1715,FALSE),FALSE) -> 0 | AN41: =VLOOKUP($B41,Ebus!$A$1716:$AS$1727,MATCH(AN$36,Ebus!$A$1715:$AS$1715,FALSE),FALSE) -> 0 | AO41: =VLOOKUP($B41,Ebus!$A$1716:$AS$1727,MATCH(AO$36,Ebus!$A$1715:$AS$1715,FALSE),FALSE) -> 0 | AP41: =VLOOKUP($B41,Ebus!$A$1716:$AS$1727,MATCH(AP$36,Ebus!$A$1715:$AS$1715,FALSE),FALSE) -> 0 | AQ41: =VLOOKUP($B41,Ebus!$A$1716:$AS$1727,MATCH(AQ$36,Ebus!$A$1715:$AS$1715,FALSE),FALSE) -> 0 | AR41: =VLOOKUP($B41,Ebus!$A$1716:$AS$1727,MATCH(AR$36,Ebus!$A$1715:$AS$1715,FALSE),FALSE) -> 0 | AS41: =VLOOKUP($B41,Ebus!$A$1716:$AS$1727,MATCH(AS$36,Ebus!$A$1715:$AS$1715,FALSE),FALSE) -> 0 | AV41: 585,508
B42: CO (kg/year) | C42: Other scenario | D42: =VLOOKUP($B42,Non_ebus!$A$1716:$AS$1727,MATCH(D$36,Non_ebus!$A$1715:$AS$1715,FALSE),FALSE) -> 0 | E42: =VLOOKUP($B42,Non_ebus!$A$1716:$AS$1727,MATCH(E$36,Non_ebus!$A$1715:$AS$1715,FALSE),FALSE) -> 0 | F42: =VLOOKUP($B42,Non_ebus!$A$1716:$AS$1727,MATCH(F$36,Non_ebus!$A$1715:$AS$1715,FALSE),FALSE) -> 0 | G42: =VLOOKUP($B42,Non_ebus!$A$1716:$AS$1727,MATCH(G$36,Non_ebus!$A$1715:$AS$1715,FALSE),FALSE) -> 3,854 | H42: =VLOOKUP($B42,Non_ebus!$A$1716:$AS$1727,MATCH(H$36,Non_ebus!$A$1715:$AS$1715,FALSE),FALSE) -> 4,087 | I42: =VLOOKUP($B42,Non_ebus!$A$1716:$AS$1727,MATCH(I$36,Non_ebus!$A$1715:$AS$1715,FALSE),FALSE) -> 29,576 | J42: =VLOOKUP($B42,Non_ebus!$A$1716:$AS$1727,MATCH(J$36,Non_ebus!$A$1715:$AS$1715,FALSE),FALSE) -> 55,620 | K42: =VLOOKUP($B42,Non_ebus!$A$1716:$AS$1727,MATCH(K$36,Non_ebus!$A$1715:$AS$1715,FALSE),FALSE) -> 82,133 | L42: =VLOOKUP($B42,Non_ebus!$A$1716:$AS$1727,MATCH(L$36,Non_ebus!$A$1715:$AS$1715,FALSE),FALSE) -> 108,998 | M42: =VLOOKUP($B42,Non_ebus!$A$1716:$AS$1727,MATCH(M$36,Non_ebus!$A$1715:$AS$1715,FALSE),FALSE) -> 121,414 | N42: =VLOOKUP($B42,Non_ebus!$A$1716:$AS$1727,MATCH(N$36,Non_ebus!$A$1715:$AS$1715,FALSE),FALSE) -> 133,315 | O42: =VLOOKUP($B42,Non_ebus!$A$1716:$AS$1727,MATCH(O$36,Non_ebus!$A$1715:$AS$1715,FALSE),FALSE) -> 147,201 | P42: =VLOOKUP($B42,Non_ebus!$A$1716:$AS$1727,MATCH(P$36,Non_ebus!$A$1715:$AS$1715,FALSE),FALSE) -> 157,908 | Q42: =VLOOKUP($B42,Non_ebus!$A$1716:$AS$1727,MATCH(Q$36,Non_ebus!$A$1715:$AS$1715,FALSE),FALSE) -> 165,286 | R42: =VLOOKUP($B42,Non_ebus!$A$1716:$AS$1727,MATCH(R$36,Non_ebus!$A$1715:$AS$1715,FALSE),FALSE) -> 168,445 | S42: =VLOOKUP($B42,Non_ebus!$A$1716:$AS$1727,MATCH(S$36,Non_ebus!$A$1715:$AS$1715,FALSE),FALSE) -> 167,222 | T42: =VLOOKUP($B42,Non_ebus!$A$1716:$AS$1727,MATCH(T$36,Non_ebus!$A$1715:$AS$1715,FALSE),FALSE) -> 167,607 | U42: =VLOOKUP($B42,Non_ebus!$A$1716:$AS$1727,MATCH(U$36,Non_ebus!$A$1715:$AS$1715,FALSE),FALSE) -> 166,513 | V42: =VLOOKUP($B42,Non_ebus!$A$1716:$AS$1727,MATCH(V$36,Non_ebus!$A$1715:$AS$1715,FALSE),FALSE) -> 166,059 | W42: =VLOOKUP($B42,Non_ebus!$A$1716:$AS$1727,MATCH(W$36,Non_ebus!$A$1715:$AS$1715,FALSE),FALSE) -> 167,542 | X42: =VLOOKUP($B42,Non_ebus!$A$1716:$AS$1727,MATCH(X$36,Non_ebus!$A$1715:$AS$1715,FALSE),FALSE) -> 171,058 | Y42: =VLOOKUP($B42,Non_ebus!$A$1716:$AS$1727,MATCH(Y$36,Non_ebus!$A$1715:$AS$1715,FALSE),FALSE) -> 178,648 | Z42: =VLOOKUP($B42,Non_ebus!$A$1716:$AS$1727,MATCH(Z$36,Non_ebus!$A$1715:$AS$1715,FALSE),FALSE) -> 186,557 | AA42: =VLOOKUP($B42,Non_ebus!$A$1716:$AS$1727,MATCH(AA$36,Non_ebus!$A$1715:$AS$1715,FALSE),FALSE) -> 194,112 | AB42: =VLOOKUP($B42,Non_ebus!$A$1716:$AS$1727,MATCH(AB$36,Non_ebus!$A$1715:$AS$1715,FALSE),FALSE) -> 200,952 | AC42: =VLOOKUP($B42,Non_ebus!$A$1716:$AS$1727,MATCH(AC$36,Non_ebus!$A$1715:$AS$1715,FALSE),FALSE) -> 206,862 | AD42: =VLOOKUP($B42,Non_ebus!$A$1716:$AS$1727,MATCH(AD$36,Non_ebus!$A$1715:$AS$1715,FALSE),FALSE) -> 212,998 | AE42: =VLOOKUP($B42,Non_ebus!$A$1716:$AS$1727,MATCH(AE$36,Non_ebus!$A$1715:$AS$1715,FALSE),FALSE) -> 216,922 | AF42: =VLOOKUP($B42,Non_ebus!$A$1716:$AS$1727,MATCH(AF$36,Non_ebus!$A$1715:$AS$1715,FALSE),FALSE) -> 220,484 | AG42: =VLOOKUP($B42,Non_ebus!$A$1716:$AS$1727,MATCH(AG$36,Non_ebus!$A$1715:$AS$1715,FALSE),FALSE) -> 224,061 | AH42: =VLOOKUP($B42,Non_ebus!$A$1716:$AS$1727,MATCH(AH$36,Non_ebus!$A$1715:$AS$1715,FALSE),FALSE) -> 227,658 | AI42: =VLOOKUP($B42,Non_ebus!$A$1716:$AS$1727,MATCH(AI$36,Non_ebus!$A$1715:$AS$1715,FALSE),FALSE) -> 231,291 | AJ42: =VLOOKUP($B42,Non_ebus!$A$1716:$AS$1727,MATCH(AJ$36,Non_ebus!$A$1715:$AS$1715,FALSE),FALSE) -> 0 | AK42: =VLOOKUP($B42,Non_ebus!$A$1716:$AS$1727,MATCH(AK$36,Non_ebus!$A$1715:$AS$1715,FALSE),FALSE) -> 0 | AL42: =VLOOKUP($B42,Non_ebus!$A$1716:$AS$1727,MATCH(AL$36,Non_ebus!$A$1715:$AS$1715,FALSE),FALSE) -> 0 | AM42: =VLOOKUP($B42,Non_ebus!$A$1716:$AS$1727,MATCH(AM$36,Non_ebus!$A$1715:$AS$1715,FALSE),FALSE) -> 0 | AN42: =VLOOKUP($B42,Non_ebus!$A$1716:$AS$1727,MATCH(AN$36,Non_ebus!$A$1715:$AS$1715,FALSE),FALSE) -> 0 | AO42: =VLOOKUP($B42,Non_ebus!$A$1716:$AS$1727,MATCH(AO$36,Non_ebus!$A$1715:$AS$1715,FALSE),FALSE) -> 0 | AP42: =VLOOKUP($B42,Non_ebus!$A$1716:$AS$1727,MATCH(AP$36,Non_ebus!$A$1715:$AS$1715,FALSE),FALSE) -> 0 | AQ42: =VLOOKUP($B42,Non_ebus!$A$1716:$AS$1727,MATCH(AQ$36,Non_ebus!$A$1715:$AS$1715,FALSE),FALSE) -> 0 | AR42: =VLOOKUP($B42,Non_ebus!$A$1716:$AS$1727,MATCH(AR$36,Non_ebus!$A$1715:$AS$1715,FALSE),FALSE) -> 0 | AS42: =VLOOKUP($B42,Non_ebus!$A$1716:$AS$1727,MATCH(AS$36,Non_ebus!$A$1715:$AS$1715,FALSE),FALSE) -> 0 | AV42: 4,484,381
B43: CO2 (tons/year) | C43: Ebus scenario | D43: =VLOOKUP($B43,Ebus!$A$1716:$AS$1727,MATCH(D$36,Ebus!$A$1715:$AS$1715,FALSE),FALSE) -> 0 | E43: =VLOOKUP($B43,Ebus!$A$1716:$AS$1727,MATCH(E$36,Ebus!$A$1715:$AS$1715,FALSE),FALSE) -> 0 | F43: =VLOOKUP($B43,Ebus!$A$1716:$AS$1727,MATCH(F$36,Ebus!$A$1715:$AS$1715,FALSE),FALSE) -> 0 | G43: =VLOOKUP($B43,Ebus!$A$1716:$AS$1727,MATCH(G$36,Ebus!$A$1715:$AS$1715,FALSE),FALSE) -> 20,310 | H43: =VLOOKUP($B43,Ebus!$A$1716:$AS$1727,MATCH(H$36,Ebus!$A$1715:$AS$1715,FALSE),FALSE) -> 21,234 | I43: =VLOOKUP($B43,Ebus!$A$1716:$AS$1727,MATCH(I$36,Ebus!$A$1715:$AS$1715,FALSE),FALSE) -> 144,515 | J43: =VLOOKUP($B43,Ebus!$A$1716:$AS$1727,MATCH(J$36,Ebus!$A$1715:$AS$1715,FALSE),FALSE) -> 265,040 | K43: =VLOOKUP($B43,Ebus!$A$1716:$AS$1727,MATCH(K$36,Ebus!$A$1715:$AS$1715,FALSE),FALSE) -> 376,705 | L43: =VLOOKUP($B43,Ebus!$A$1716:$AS$1727,MATCH(L$36,Ebus!$A$1715:$AS$1715,FALSE),FALSE) -> 481,581 | M43: =VLOOKUP($B43,Ebus!$A$1716:$AS$1727,MATCH(M$36,Ebus!$A$1715:$AS$1715,FALSE),FALSE) -> 518,349 | N43: =VLOOKUP($B43,Ebus!$A$1716:$AS$1727,MATCH(N$36,Ebus!$A$1715:$AS$1715,FALSE),FALSE) -> 549,374 | O43: =VLOOKUP($B43,Ebus!$A$1716:$AS$1727,MATCH(O$36,Ebus!$A$1715:$AS$1715,FALSE),FALSE) -> 580,400 | P43: =VLOOKUP($B43,Ebus!$A$1716:$AS$1727,MATCH(P$36,Ebus!$A$1715:$AS$1715,FALSE),FALSE) -> 599,357 | Q43: =VLOOKUP($B43,Ebus!$A$1716:$AS$1727,MATCH(Q$36,Ebus!$A$1715:$AS$1715,FALSE),FALSE) -> 603,007 | R43: =VLOOKUP($B43,Ebus!$A$1716:$AS$1727,MATCH(R$36,Ebus!$A$1715:$AS$1715,FALSE),FALSE) -> 589,632 | S43: =VLOOKUP($B43,Ebus!$A$1716:$AS$1727,MATCH(S$36,Ebus!$A$1715:$AS$1715,FALSE),FALSE) -> 560,517 | T43: =VLOOKUP($B43,Ebus!$A$1716:$AS$1727,MATCH(T$36,Ebus!$A$1715:$AS$1715,FALSE),FALSE) -> 536,290 | U43: =VLOOKUP($B43,Ebus!$A$1716:$AS$1727,MATCH(U$36,Ebus!$A$1715:$AS$1715,FALSE),FALSE) -> 507,691 | V43: =VLOOKUP($B43,Ebus!$A$1716:$AS$1727,MATCH(V$36,Ebus!$A$1715:$AS$1715,FALSE),FALSE) -> 481,894 | W43: =VLOOKUP($B43,Ebus!$A$1716:$AS$1727,MATCH(W$36,Ebus!$A$1715:$AS$1715,FALSE),FALSE) -> 462,420 | X43: =VLOOKUP($B43,Ebus!$A$1716:$AS$1727,MATCH(X$36,Ebus!$A$1715:$AS$1715,FALSE),FALSE) -> 448,745 | Y43: =VLOOKUP($B43,Ebus!$A$1716:$AS$1727,MATCH(Y$36,Ebus!$A$1715:$AS$1715,FALSE),FALSE) -> 444,866 | Z43: =VLOOKUP($B43,Ebus!$A$1716:$AS$1727,MATCH(Z$36,Ebus!$A$1715:$AS$1715,FALSE),FALSE) -> 440,331 | AA43: =VLOOKUP($B43,Ebus!$A$1716:$AS$1727,MATCH(AA$36,Ebus!$A$1715:$AS$1715,FALSE),FALSE) -> 433,525 | AB43: =VLOOKUP($B43,Ebus!$A$1716:$AS$1727,MATCH(AB$36,Ebus!$A$1715:$AS$1715,FALSE),FALSE) -> 423,793 | AC43: =VLOOKUP($B43,Ebus!$A$1716:$AS$1727,MATCH(AC$36,Ebus!$A$1715:$AS$1715,FALSE),FALSE) -> 410,968 | AD43: =VLOOKUP($B43,Ebus!$A$1716:$AS$1727,MATCH(AD$36,Ebus!$A$1715:$AS$1715,FALSE),FALSE) -> 397,484 | AE43: =VLOOKUP($B43,Ebus!$A$1716:$AS$1727,MATCH(AE$36,Ebus!$A$1715:$AS$1715,FALSE),FALSE) -> 378,923 | AF43: =VLOOKUP($B43,Ebus!$A$1716:$AS$1727,MATCH(AF$36,Ebus!$A$1715:$AS$1715,FALSE),FALSE) -> 359,211 | AG43: =VLOOKUP($B43,Ebus!$A$1716:$AS$1727,MATCH(AG$36,Ebus!$A$1715:$AS$1715,FALSE),FALSE) -> 339,057 | AH43: =VLOOKUP($B43,Ebus!$A$1716:$AS$1727,MATCH(AH$36,Ebus!$A$1715:$AS$1715,FALSE),FALSE) -> 318,488 | AI43: =VLOOKUP($B43,Ebus!$A$1716:$AS$1727,MATCH(AI$36,Ebus!$A$1715:$AS$1715,FALSE),FALSE) -> 297,533 | AJ43: =VLOOKUP($B43,Ebus!$A$1716:$AS$1727,MATCH(AJ$36,Ebus!$A$1715:$AS$1715,FALSE),FALSE) -> 0 | AK43: =VLOOKUP($B43,Ebus!$A$1716:$AS$1727,MATCH(AK$36,Ebus!$A$1715:$AS$1715,FALSE),FALSE) -> 0 | AL43: =VLOOKUP($B43,Ebus!$A$1716:$AS$1727,MATCH(AL$36,Ebus!$A$1715:$AS$1715,FALSE),FALSE) -> 0 | AM43: =VLOOKUP($B43,Ebus!$A$1716:$AS$1727,MATCH(AM$36,Ebus!$A$1715:$AS$1715,FALSE),FALSE) -> 0 | AN43: =VLOOKUP($B43,Ebus!$A$1716:$AS$1727,MATCH(AN$36,Ebus!$A$1715:$AS$1715,FALSE),FALSE) -> 0 | AO43: =VLOOKUP($B43,Ebus!$A$1716:$AS$1727,MATCH(AO$36,Ebus!$A$1715:$AS$1715,FALSE),FALSE) -> 0 | AP43: =VLOOKUP($B43,Ebus!$A$1716:$AS$1727,MATCH(AP$36,Ebus!$A$1715:$AS$1715,FALSE),FALSE) -> 0 | AQ43: =VLOOKUP($B43,Ebus!$A$1716:$AS$1727,MATCH(AQ$36,Ebus!$A$1715:$AS$1715,FALSE),FALSE) -> 0 | AR43: =VLOOKUP($B43,Ebus!$A$1716:$AS$1727,MATCH(AR$36,Ebus!$A$1715:$AS$1715,FALSE),FALSE) -> 0 | AS43: =VLOOKUP($B43,Ebus!$A$1716:$AS$1727,MATCH(AS$36,Ebus!$A$1715:$AS$1715,FALSE),FALSE) -> 0 | AV43: 11,991,239
B44: CO2 (tons/year) | C44: Other scenario | D44: =VLOOKUP($B44,Non_ebus!$A$1716:$AS$1727,MATCH(D$36,Non_ebus!$A$1715:$AS$1715,FALSE),FALSE) -> 0 | E44: =VLOOKUP($B44,Non_ebus!$A$1716:$AS$1727,MATCH(E$36,Non_ebus!$A$1715:$AS$1715,FALSE),FALSE) -> 0 | F44: =VLOOKUP($B44,Non_ebus!$A$1716:$AS$1727,MATCH(F$36,Non_ebus!$A$1715:$AS$1715,FALSE),FALSE) -> 0 | G44: =VLOOKUP($B44,Non_ebus!$A$1716:$AS$1727,MATCH(G$36,Non_ebus!$A$1715:$AS$1715,FALSE),FALSE) -> 15,828 | H44: =VLOOKUP($B44,Non_ebus!$A$1716:$AS$1727,MATCH(H$36,Non_ebus!$A$1715:$AS$1715,FALSE),FALSE) -> 16,791 | I44: =VLOOKUP($B44,Non_ebus!$A$1716:$AS$1727,MATCH(I$36,Non_ebus!$A$1715:$AS$1715,FALSE),FALSE) -> 123,483 | J44: =VLOOKUP($B44,Non_ebus!$A$1716:$AS$1727,MATCH(J$36,Non_ebus!$A$1715:$AS$1715,FALSE),FALSE) -> 233,428 | K44: =VLOOKUP($B44,Non_ebus!$A$1716:$AS$1727,MATCH(K$36,Non_ebus!$A$1715:$AS$1715,FALSE),FALSE) -> 345,340 | L44: =VLOOKUP($B44,Non_ebus!$A$1716:$AS$1727,MATCH(L$36,Non_ebus!$A$1715:$AS$1715,FALSE),FALSE) -> 458,747 | M44: =VLOOKUP($B44,Non_ebus!$A$1716:$AS$1727,MATCH(M$36,Non_ebus!$A$1715:$AS$1715,FALSE),FALSE) -> 511,176 | N44: =VLOOKUP($B44,Non_ebus!$A$1716:$AS$1727,MATCH(N$36,Non_ebus!$A$1715:$AS$1715,FALSE),FALSE) -> 561,456 | O44: =VLOOKUP($B44,Non_ebus!$A$1716:$AS$1727,MATCH(O$36,Non_ebus!$A$1715:$AS$1715,FALSE),FALSE) -> 614,412 | P44: =VLOOKUP($B44,Non_ebus!$A$1716:$AS$1727,MATCH(P$36,Non_ebus!$A$1715:$AS$1715,FALSE),FALSE) -> 659,332 | Q44: =VLOOKUP($B44,Non_ebus!$A$1716:$AS$1727,MATCH(Q$36,Non_ebus!$A$1715:$AS$1715,FALSE),FALSE) -> 690,385 | R44: =VLOOKUP($B44,Non_ebus!$A$1716:$AS$1727,MATCH(R$36,Non_ebus!$A$1715:$AS$1715,FALSE),FALSE) -> 703,829 | S44: =VLOOKUP($B44,Non_ebus!$A$1716:$AS$1727,MATCH(S$36,Non_ebus!$A$1715:$AS$1715,FALSE),FALSE) -> 698,941 | T44: =VLOOKUP($B44,Non_ebus!$A$1716:$AS$1727,MATCH(T$36,Non_ebus!$A$1715:$AS$1715,FALSE),FALSE) -> 700,736 | U44: =VLOOKUP($B44,Non_ebus!$A$1716:$AS$1727,MATCH(U$36,Non_ebus!$A$1715:$AS$1715,FALSE),FALSE) -> 696,282 | V44: =VLOOKUP($B44,Non_ebus!$A$1716:$AS$1727,MATCH(V$36,Non_ebus!$A$1715:$AS$1715,FALSE),FALSE) -> 694,439 | W44: =VLOOKUP($B44,Non_ebus!$A$1716:$AS$1727,MATCH(W$36,Non_ebus!$A$1715:$AS$1715,FALSE),FALSE) -> 700,660 | X44: =VLOOKUP($B44,Non_ebus!$A$1716:$AS$1727,MATCH(X$36,Non_ebus!$A$1715:$AS$1715,FALSE),FALSE) -> 715,371 | Y44: =VLOOKUP($B44,Non_ebus!$A$1716:$AS$1727,MATCH(Y$36,Non_ebus!$A$1715:$AS$1715,FALSE),FALSE) -> 747,111 | Z44: =VLOOKUP($B44,Non_ebus!$A$1716:$AS$1727,MATCH(Z$36,Non_ebus!$A$1715:$AS$1715,FALSE),FALSE) -> 780,185 | AA44: =VLOOKUP($B44,Non_ebus!$A$1716:$AS$1727,MATCH(AA$36,Non_ebus!$A$1715:$AS$1715,FALSE),FALSE) -> 811,781 | AB44: =VLOOKUP($B44,Non_ebus!$A$1716:$AS$1727,MATCH(AB$36,Non_ebus!$A$1715:$AS$1715,FALSE),FALSE) -> 840,386 | AC44: =VLOOKUP($B44,Non_ebus!$A$1716:$AS$1727,MATCH(AC$36,Non_ebus!$A$1715:$AS$1715,FALSE),FALSE) -> 865,104 | AD44: =VLOOKUP($B44,Non_ebus!$A$1716:$AS$1727,MATCH(AD$36,Non_ebus!$A$1715:$AS$1715,FALSE),FALSE) -> 890,762 | AE44: =VLOOKUP($B44,Non_ebus!$A$1716:$AS$1727,MATCH(AE$36,Non_ebus!$A$1715:$AS$1715,FALSE),FALSE) -> 907,172 | AF44: =VLOOKUP($B44,Non_ebus!$A$1716:$AS$1727,MATCH(AF$36,Non_ebus!$A$1715:$AS$1715,FALSE),FALSE) -> 922,070 | AG44: =VLOOKUP($B44,Non_ebus!$A$1716:$AS$1727,MATCH(AG$36,Non_ebus!$A$1715:$AS$1715,FALSE),FALSE) -> 937,027 | AH44: =VLOOKUP($B44,Non_ebus!$A$1716:$AS$1727,MATCH(AH$36,Non_ebus!$A$1715:$AS$1715,FALSE),FALSE) -> 952,070 | AI44: =VLOOKUP($B44,Non_ebus!$A$1716:$AS$1727,MATCH(AI$36,Non_ebus!$A$1715:$AS$1715,FALSE),FALSE) -> 967,263 | AJ44: =VLOOKUP($B44,Non_ebus!$A$1716:$AS$1727,MATCH(AJ$36,Non_ebus!$A$1715:$AS$1715,FALSE),FALSE) -> 0 | AK44: =VLOOKUP($B44,Non_ebus!$A$1716:$AS$1727,MATCH(AK$36,Non_ebus!$A$1715:$AS$1715,FALSE),FALSE) -> 0 | AL44: =VLOOKUP($B44,Non_ebus!$A$1716:$AS$1727,MATCH(AL$36,Non_ebus!$A$1715:$AS$1715,FALSE),FALSE) -> 0 | AM44: =VLOOKUP($B44,Non_ebus!$A$1716:$AS$1727,MATCH(AM$36,Non_ebus!$A$1715:$AS$1715,FALSE),FALSE) -> 0 | AN44: =VLOOKUP($B44,Non_ebus!$A$1716:$AS$1727,MATCH(AN$36,Non_ebus!$A$1715:$AS$1715,FALSE),FALSE) -> 0 | AO44: =VLOOKUP($B44,Non_ebus!$A$1716:$AS$1727,MATCH(AO$36,Non_ebus!$A$1715:$AS$1715,FALSE),FALSE) -> 0 | AP44: =VLOOKUP($B44,Non_ebus!$A$1716:$AS$1727,MATCH(AP$36,Non_ebus!$A$1715:$AS$1715,FALSE),FALSE) -> 0 | AQ44: =VLOOKUP($B44,Non_ebus!$A$1716:$AS$1727,MATCH(AQ$36,Non_ebus!$A$1715:$AS$1715,FALSE),FALSE) -> 0 | AR44: =VLOOKUP($B44,Non_ebus!$A$1716:$AS$1727,MATCH(AR$36,Non_ebus!$A$1715:$AS$1715,FALSE),FALSE) -> 0 | AS44: =VLOOKUP($B44,Non_ebus!$A$1716:$AS$1727,MATCH(AS$36,Non_ebus!$A$1715:$AS$1715,FALSE),FALSE) -> 0 | AV44: 18,761,569
B45: CO2e (tons/year) | C45: Ebus scenario | D45: =VLOOKUP($B45,Ebus!$A$1716:$AS$1727,MATCH(D$36,Ebus!$A$1715:$AS$1715,FALSE),FALSE) -> 0 | E45: =VLOOKUP($B45,Ebus!$A$1716:$AS$1727,MATCH(E$36,Ebus!$A$1715:$AS$1715,FALSE),FALSE) -> 0 | F45: =VLOOKUP($B45,Ebus!$A$1716:$AS$1727,MATCH(F$36,Ebus!$A$1715:$AS$1715,FALSE),FALSE) -> 0 | G45: =VLOOKUP($B45,Ebus!$A$1716:$AS$1727,MATCH(G$36,Ebus!$A$1715:$AS$1715,FALSE),FALSE) -> 20,317 | H45: =VLOOKUP($B45,Ebus!$A$1716:$AS$1727,MATCH(H$36,Ebus!$A$1715:$AS$1715,FALSE),FALSE) -> 21,241 | I45: =VLOOKUP($B45,Ebus!$A$1716:$AS$1727,MATCH(I$36,Ebus!$A$1715:$AS$1715,FALSE),FALSE) -> 144,564 | J45: =VLOOKUP($B45,Ebus!$A$1716:$AS$1727,MATCH(J$36,Ebus!$A$1715:$AS$1715,FALSE),FALSE) -> 265,131 | K45: =VLOOKUP($B45,Ebus!$A$1716:$AS$1727,MATCH(K$36,Ebus!$A$1715:$AS$1715,FALSE),FALSE) -> 376,833 | L45: =VLOOKUP($B45,Ebus!$A$1716:$AS$1727,MATCH(L$36,Ebus!$A$1715:$AS$1715,FALSE),FALSE) -> 481,745 | M45: =VLOOKUP($B45,Ebus!$A$1716:$AS$1727,MATCH(M$36,Ebus!$A$1715:$AS$1715,FALSE),FALSE) -> 518,526 | N45: =VLOOKUP($B45,Ebus!$A$1716:$AS$1727,MATCH(N$36,Ebus!$A$1715:$AS$1715,FALSE),FALSE) -> 549,562 | O45: =VLOOKUP($B45,Ebus!$A$1716:$AS$1727,MATCH(O$36,Ebus!$A$1715:$AS$1715,FALSE),FALSE) -> 580,598 | P45: =VLOOKUP($B45,Ebus!$A$1716:$AS$1727,MATCH(P$36,Ebus!$A$1715:$AS$1715,FALSE),FALSE) -> 599,562 | Q45: =VLOOKUP($B45,Ebus!$A$1716:$AS$1727,MATCH(Q$36,Ebus!$A$1715:$AS$1715,FALSE),FALSE) -> 603,213 | R45: =VLOOKUP($B45,Ebus!$A$1716:$AS$1727,MATCH(R$36,Ebus!$A$1715:$AS$1715,FALSE),FALSE) -> 589,834 | S45: =VLOOKUP($B45,Ebus!$A$1716:$AS$1727,MATCH(S$36,Ebus!$A$1715:$AS$1715,FALSE),FALSE) -> 560,709 | T45: =VLOOKUP($B45,Ebus!$A$1716:$AS$1727,MATCH(T$36,Ebus!$A$1715:$AS$1715,FALSE),FALSE) -> 536,474 | U45: =VLOOKUP($B45,Ebus!$A$1716:$AS$1727,MATCH(U$36,Ebus!$A$1715:$AS$1715,FALSE),FALSE) -> 507,865 | V45: =VLOOKUP($B45,Ebus!$A$1716:$AS$1727,MATCH(V$36,Ebus!$A$1715:$AS$1715,FALSE),FALSE) -> 482,059 | W45: =VLOOKUP($B45,Ebus!$A$1716:$AS$1727,MATCH(W$36,Ebus!$A$1715:$AS$1715,FALSE),FALSE) -> 462,579 | X45: =VLOOKUP($B45,Ebus!$A$1716:$AS$1727,MATCH(X$36,Ebus!$A$1715:$AS$1715,FALSE),FALSE) -> 448,899 | Y45: =VLOOKUP($B45,Ebus!$A$1716:$AS$1727,MATCH(Y$36,Ebus!$A$1715:$AS$1715,FALSE),FALSE) -> 445,019 | Z45: =VLOOKUP($B45,Ebus!$A$1716:$AS$1727,MATCH(Z$36,Ebus!$A$1715:$AS$1715,FALSE),FALSE) -> 440,482 | AA45: =VLOOKUP($B45,Ebus!$A$1716:$AS$1727,MATCH(AA$36,Ebus!$A$1715:$AS$1715,FALSE),FALSE) -> 433,674 | AB45: =VLOOKUP($B45,Ebus!$A$1716:$AS$1727,MATCH(AB$36,Ebus!$A$1715:$AS$1715,FALSE),FALSE) -> 423,939 | AC45: =VLOOKUP($B45,Ebus!$A$1716:$AS$1727,MATCH(AC$36,Ebus!$A$1715:$AS$1715,FALSE),FALSE) -> 411,109 | AD45: =VLOOKUP($B45,Ebus!$A$1716:$AS$1727,MATCH(AD$36,Ebus!$A$1715:$AS$1715,FALSE),FALSE) -> 397,621 | AE45: =VLOOKUP($B45,Ebus!$A$1716:$AS$1727,MATCH(AE$36,Ebus!$A$1715:$AS$1715,FALSE),FALSE) -> 379,054 | AF45: =VLOOKUP($B45,Ebus!$A$1716:$AS$1727,MATCH(AF$36,Ebus!$A$1715:$AS$1715,FALSE),FALSE) -> 359,335 | AG45: =VLOOKUP($B45,Ebus!$A$1716:$AS$1727,MATCH(AG$36,Ebus!$A$1715:$AS$1715,FALSE),FALSE) -> 339,174 | AH45: =VLOOKUP($B45,Ebus!$A$1716:$AS$1727,MATCH(AH$36,Ebus!$A$1715:$AS$1715,FALSE),FALSE) -> 318,598 | AI45: =VLOOKUP($B45,Ebus!$A$1716:$AS$1727,MATCH(AI$36,Ebus!$A$1715:$AS$1715,FALSE),FALSE) -> 297,636 | AJ45: =VLOOKUP($B45,Ebus!$A$1716:$AS$1727,MATCH(AJ$36,Ebus!$A$1715:$AS$1715,FALSE),FALSE) -> 0 | AK45: =VLOOKUP($B45,Ebus!$A$1716:$AS$1727,MATCH(AK$36,Ebus!$A$1715:$AS$1715,FALSE),FALSE) -> 0 | AL45: =VLOOKUP($B45,Ebus!$A$1716:$AS$1727,MATCH(AL$36,Ebus!$A$1715:$AS$1715,FALSE),FALSE) -> 0 | AM45: =VLOOKUP($B45,Ebus!$A$1716:$AS$1727,MATCH(AM$36,Ebus!$A$1715:$AS$1715,FALSE),FALSE) -> 0 | AN45: =VLOOKUP($B45,Ebus!$A$1716:$AS$1727,MATCH(AN$36,Ebus!$A$1715:$AS$1715,FALSE),FALSE) -> 0 | AO45: =VLOOKUP($B45,Ebus!$A$1716:$AS$1727,MATCH(AO$36,Ebus!$A$1715:$AS$1715,FALSE),FALSE) -> 0 | AP45: =VLOOKUP($B45,Ebus!$A$1716:$AS$1727,MATCH(AP$36,Ebus!$A$1715:$AS$1715,FALSE),FALSE) -> 0 | AQ45: =VLOOKUP($B45,Ebus!$A$1716:$AS$1727,MATCH(AQ$36,Ebus!$A$1715:$AS$1715,FALSE),FALSE) -> 0 | AR45: =VLOOKUP($B45,Ebus!$A$1716:$AS$1727,MATCH(AR$36,Ebus!$A$1715:$AS$1715,FALSE),FALSE) -> 0 | AS45: =VLOOKUP($B45,Ebus!$A$1716:$AS$1727,MATCH(AS$36,Ebus!$A$1715:$AS$1715,FALSE),FALSE) -> 0 | AV45: 11,995,353
B46: CO2e (tons/year) | C46: Other scenario | D46: =VLOOKUP($B46,Non_ebus!$A$1716:$AS$1727,MATCH(D$36,Non_ebus!$A$1715:$AS$1715,FALSE),FALSE) -> 0 | E46: =VLOOKUP($B46,Non_ebus!$A$1716:$AS$1727,MATCH(E$36,Non_ebus!$A$1715:$AS$1715,FALSE),FALSE) -> 0 | F46: =VLOOKUP($B46,Non_ebus!$A$1716:$AS$1727,MATCH(F$36,Non_ebus!$A$1715:$AS$1715,FALSE),FALSE) -> 0 | G46: =VLOOKUP($B46,Non_ebus!$A$1716:$AS$1727,MATCH(G$36,Non_ebus!$A$1715:$AS$1715,FALSE),FALSE) -> 15,846 | H46: =VLOOKUP($B46,Non_ebus!$A$1716:$AS$1727,MATCH(H$36,Non_ebus!$A$1715:$AS$1715,FALSE),FALSE) -> 16,811 | I46: =VLOOKUP($B46,Non_ebus!$A$1716:$AS$1727,MATCH(I$36,Non_ebus!$A$1715:$AS$1715,FALSE),FALSE) -> 123,630 | J46: =VLOOKUP($B46,Non_ebus!$A$1716:$AS$1727,MATCH(J$36,Non_ebus!$A$1715:$AS$1715,FALSE),FALSE) -> 233,706 | K46: =VLOOKUP($B46,Non_ebus!$A$1716:$AS$1727,MATCH(K$36,Non_ebus!$A$1715:$AS$1715,FALSE),FALSE) -> 345,751 | L46: =VLOOKUP($B46,Non_ebus!$A$1716:$AS$1727,MATCH(L$36,Non_ebus!$A$1715:$AS$1715,FALSE),FALSE) -> 459,293 | M46: =VLOOKUP($B46,Non_ebus!$A$1716:$AS$1727,MATCH(M$36,Non_ebus!$A$1715:$AS$1715,FALSE),FALSE) -> 511,783 | N46: =VLOOKUP($B46,Non_ebus!$A$1716:$AS$1727,MATCH(N$36,Non_ebus!$A$1715:$AS$1715,FALSE),FALSE) -> 562,124 | O46: =VLOOKUP($B46,Non_ebus!$A$1716:$AS$1727,MATCH(O$36,Non_ebus!$A$1715:$AS$1715,FALSE),FALSE) -> 615,145 | P46: =VLOOKUP($B46,Non_ebus!$A$1716:$AS$1727,MATCH(P$36,Non_ebus!$A$1715:$AS$1715,FALSE),FALSE) -> 660,118 | Q46: =VLOOKUP($B46,Non_ebus!$A$1716:$AS$1727,MATCH(Q$36,Non_ebus!$A$1715:$AS$1715,FALSE),FALSE) -> 691,208 | R46: =VLOOKUP($B46,Non_ebus!$A$1716:$AS$1727,MATCH(R$36,Non_ebus!$A$1715:$AS$1715,FALSE),FALSE) -> 704,667 | S46: =VLOOKUP($B46,Non_ebus!$A$1716:$AS$1727,MATCH(S$36,Non_ebus!$A$1715:$AS$1715,FALSE),FALSE) -> 699,774 | T46: =VLOOKUP($B46,Non_ebus!$A$1716:$AS$1727,MATCH(T$36,Non_ebus!$A$1715:$AS$1715,FALSE),FALSE) -> 701,571 | U46: =VLOOKUP($B46,Non_ebus!$A$1716:$AS$1727,MATCH(U$36,Non_ebus!$A$1715:$AS$1715,FALSE),FALSE) -> 697,112 | V46: =VLOOKUP($B46,Non_ebus!$A$1716:$AS$1727,MATCH(V$36,Non_ebus!$A$1715:$AS$1715,FALSE),FALSE) -> 695,267 | W46: =VLOOKUP($B46,Non_ebus!$A$1716:$AS$1727,MATCH(W$36,Non_ebus!$A$1715:$AS$1715,FALSE),FALSE) -> 701,495 | X46: =VLOOKUP($B46,Non_ebus!$A$1716:$AS$1727,MATCH(X$36,Non_ebus!$A$1715:$AS$1715,FALSE),FALSE) -> 716,223 | Y46: =VLOOKUP($B46,Non_ebus!$A$1716:$AS$1727,MATCH(Y$36,Non_ebus!$A$1715:$AS$1715,FALSE),FALSE) -> 748,002 | Z46: =VLOOKUP($B46,Non_ebus!$A$1716:$AS$1727,MATCH(Z$36,Non_ebus!$A$1715:$AS$1715,FALSE),FALSE) -> 781,115 | AA46: =VLOOKUP($B46,Non_ebus!$A$1716:$AS$1727,MATCH(AA$36,Non_ebus!$A$1715:$AS$1715,FALSE),FALSE) -> 812,748 | AB46: =VLOOKUP($B46,Non_ebus!$A$1716:$AS$1727,MATCH(AB$36,Non_ebus!$A$1715:$AS$1715,FALSE),FALSE) -> 841,388 | AC46: =VLOOKUP($B46,Non_ebus!$A$1716:$AS$1727,MATCH(AC$36,Non_ebus!$A$1715:$AS$1715,FALSE),FALSE) -> 866,135 | AD46: =VLOOKUP($B46,Non_ebus!$A$1716:$AS$1727,MATCH(AD$36,Non_ebus!$A$1715:$AS$1715,FALSE),FALSE) -> 891,824 | AE46: =VLOOKUP($B46,Non_ebus!$A$1716:$AS$1727,MATCH(AE$36,Non_ebus!$A$1715:$AS$1715,FALSE),FALSE) -> 908,253 | AF46: =VLOOKUP($B46,Non_ebus!$A$1716:$AS$1727,MATCH(AF$36,Non_ebus!$A$1715:$AS$1715,FALSE),FALSE) -> 923,169 | AG46: =VLOOKUP($B46,Non_ebus!$A$1716:$AS$1727,MATCH(AG$36,Non_ebus!$A$1715:$AS$1715,FALSE),FALSE) -> 938,144 | AH46: =VLOOKUP($B46,Non_ebus!$A$1716:$AS$1727,MATCH(AH$36,Non_ebus!$A$1715:$AS$1715,FALSE),FALSE) -> 953,204 | AI46: =VLOOKUP($B46,Non_ebus!$A$1716:$AS$1727,MATCH(AI$36,Non_ebus!$A$1715:$AS$1715,FALSE),FALSE) -> 968,416 | AJ46: =VLOOKUP($B46,Non_ebus!$A$1716:$AS$1727,MATCH(AJ$36,Non_ebus!$A$1715:$AS$1715,FALSE),FALSE) -> 0 | AK46: =VLOOKUP($B46,Non_ebus!$A$1716:$AS$1727,MATCH(AK$36,Non_ebus!$A$1715:$AS$1715,FALSE),FALSE) -> 0 | AL46: =VLOOKUP($B46,Non_ebus!$A$1716:$AS$1727,MATCH(AL$36,Non_ebus!$A$1715:$AS$1715,FALSE),FALSE) -> 0 | AM46: =VLOOKUP($B46,Non_ebus!$A$1716:$AS$1727,MATCH(AM$36,Non_ebus!$A$1715:$AS$1715,FALSE),FALSE) -> 0 | AN46: =VLOOKUP($B46,Non_ebus!$A$1716:$AS$1727,MATCH(AN$36,Non_ebus!$A$1715:$AS$1715,FALSE),FALSE) -> 0 | AO46: =VLOOKUP($B46,Non_ebus!$A$1716:$AS$1727,MATCH(AO$36,Non_ebus!$A$1715:$AS$1715,FALSE),FALSE) -> 0 | AP46: =VLOOKUP($B46,Non_ebus!$A$1716:$AS$1727,MATCH(AP$36,Non_ebus!$A$1715:$AS$1715,FALSE),FALSE) -> 0 | AQ46: =VLOOKUP($B46,Non_ebus!$A$1716:$AS$1727,MATCH(AQ$36,Non_ebus!$A$1715:$AS$1715,FALSE),FALSE) -> 0 | AR46: =VLOOKUP($B46,Non_ebus!$A$1716:$AS$1727,MATCH(AR$36,Non_ebus!$A$1715:$AS$1715,FALSE),FALSE) -> 0 | AS46: =VLOOKUP($B46,Non_ebus!$A$1716:$AS$1727,MATCH(AS$36,Non_ebus!$A$1715:$AS$1715,FALSE),FALSE) -> 0 | AV46: 18,783,920
B47: Energy consumption (MWh) | C47: Ebus scenario | D47: =Ebus!$D$1369 -> 0 | E47: =Ebus!E1369 -> 0 | F47: =Ebus!F1369 -> 0 | G47: =Ebus!G1369 -> 31,896 | H47: =Ebus!H1369 -> 33,798 | I47: =Ebus!I1369 -> 233,163 | J47: =Ebus!J1369 -> 433,543 | K47: =Ebus!K1369 -> 632,945 | L47: =Ebus!L1369 -> 831,761 | M47: =Ebus!M1369 -> 920,992 | N47: =Ebus!N1369 -> 1,004,996 | O47: =Ebus!O1369 -> 1,094,123 | P47: =Ebus!P1369 -> 1,165,064 | Q47: =Ebus!Q1369 -> 1,209,856 | R47: =Ebus!R1369 -> 1,222,331 | S47: =Ebus!S1369 -> 1,201,911 | T47: =Ebus!T1369 -> 1,190,893 | U47: =Ebus!U1369 -> 1,169,174 | V47: =Ebus!V1369 -> 1,152,484 | W47: =Ebus!W1369 -> 1,150,186 | X47: =Ebus!X1369 -> 1,162,721 | Y47: =Ebus!Y1369 -> 1,202,833 | Z47: =Ebus!Z1369 -> 1,244,992 | AA47: =Ebus!AA1369 -> 1,284,462 | AB47: =Ebus!AB1369 -> 1,318,798 | AC47: =Ebus!AC1369 -> 1,346,634 | AD47: =Ebus!AD1369 -> 1,375,308 | AE47: =Ebus!AE1369 -> 1,389,492 | AF47: =Ebus!AF1369 -> 1,400,988 | AG47: =Ebus!AG1369 -> 1,412,208 | AH47: =Ebus!AH1369 -> 1,423,210 | AI47: =Ebus!AI1369 -> 1,434,080 | AJ47: =Ebus!AJ1369 -> 0 | AK47: =Ebus!AK1369 -> 0 | AL47: =Ebus!AL1369 -> 0 | AM47: =Ebus!AM1369 -> 0 | AN47: =Ebus!AN1369 -> 0 | AO47: =Ebus!AO1369 -> 0 | AP47: =Ebus!AP1369 -> 0 | AQ47: =Ebus!AQ1369 -> 0 | AR47: =Ebus!AR1369 -> 0 | AS47: =Ebus!AS1369 -> 0 | AV47: 30,674,841
B48: Energy consumption (MWh) | C48: Other scenario | D48: =Non_ebus!$D$1369 -> 0 | E48: =Non_ebus!E1369 -> 0 | F48: =Non_ebus!F1369 -> 0 | G48: =Non_ebus!G1369 -> 49,446 | H48: =Non_ebus!H1369 -> 52,455 | I48: =Non_ebus!I1369 -> 385,761 | J48: =Non_ebus!J1369 -> 729,231 | K48: =Non_ebus!K1369 -> 1,078,846 | L48: =Non_ebus!L1369 -> 1,433,130 | M48: =Non_ebus!M1369 -> 1,596,916 | N48: =Non_ebus!N1369 -> 1,753,994 | O48: =Non_ebus!O1369 -> 1,923,652 | P48: =Non_ebus!P1369 -> 2,064,290 | Q48: =Non_ebus!Q1369 -> 2,161,513 | R48: =Non_ebus!R1369 -> 2,203,604 | S48: =Non_ebus!S1369 -> 2,188,301 | T48: =Non_ebus!T1369 -> 2,193,920 | U48: =Non_ebus!U1369 -> 2,179,977 | V48: =Non_ebus!V1369 -> 2,174,207 | W48: =Non_ebus!W1369 -> 2,193,682 | X48: =Non_ebus!X1369 -> 2,239,740 | Y48: =Non_ebus!Y1369 -> 2,339,117 | Z48: =Non_ebus!Z1369 -> 2,442,666 | AA48: =Non_ebus!AA1369 -> 2,541,590 | AB48: =Non_ebus!AB1369 -> 2,631,149 | AC48: =Non_ebus!AC1369 -> 2,708,538 | AD48: =Non_ebus!AD1369 -> 2,788,871 | AE48: =Non_ebus!AE1369 -> 2,840,248 | AF48: =Non_ebus!AF1369 -> 2,886,891 | AG48: =Non_ebus!AG1369 -> 2,933,721 | AH48: =Non_ebus!AH1369 -> 2,980,818 | AI48: =Non_ebus!AI1369 -> 3,028,386 | AJ48: =Non_ebus!AJ1369 -> 2,742,476 | AK48: =Non_ebus!AK1369 -> 2,450,058 | AL48: =Non_ebus!AL1369 -> 2,151,427 | AM48: =Non_ebus!AM1369 -> 1,848,088 | AN48: =Non_ebus!AN1369 -> 1,541,936 | AO48: =Non_ebus!AO1369 -> 1,236,892 | AP48: =Non_ebus!AP1369 -> 940,450 | AQ48: =Non_ebus!AQ1369 -> 664,513 | AR48: =Non_ebus!AR1369 -> 424,732 | AS48: =Non_ebus!AS1369 -> 236,877 | AV48: 58,724,658
B49: N2O (kg/year) | C49: Ebus scenario | D49: =VLOOKUP($B49,Ebus!$A$1716:$AS$1727,MATCH(D$36,Ebus!$A$1715:$AS$1715,FALSE),FALSE) -> 0 | E49: =VLOOKUP($B49,Ebus!$A$1716:$AS$1727,MATCH(E$36,Ebus!$A$1715:$AS$1715,FALSE),FALSE) -> 0 | F49: =VLOOKUP($B49,Ebus!$A$1716:$AS$1727,MATCH(F$36,Ebus!$A$1715:$AS$1715,FALSE),FALSE) -> 0 | G49: =VLOOKUP($B49,Ebus!$A$1716:$AS$1727,MATCH(G$36,Ebus!$A$1715:$AS$1715,FALSE),FALSE) -> 122 | H49: =VLOOKUP($B49,Ebus!$A$1716:$AS$1727,MATCH(H$36,Ebus!$A$1715:$AS$1715,FALSE),FALSE) -> 128 | I49: =VLOOKUP($B49,Ebus!$A$1716:$AS$1727,MATCH(I$36,Ebus!$A$1715:$AS$1715,FALSE),FALSE) -> 867 | J49: =VLOOKUP($B49,Ebus!$A$1716:$AS$1727,MATCH(J$36,Ebus!$A$1715:$AS$1715,FALSE),FALSE) -> 1,588 | K49: =VLOOKUP($B49,Ebus!$A$1716:$AS$1727,MATCH(K$36,Ebus!$A$1715:$AS$1715,FALSE),FALSE) -> 2,257 | L49: =VLOOKUP($B49,Ebus!$A$1716:$AS$1727,MATCH(L$36,Ebus!$A$1715:$AS$1715,FALSE),FALSE) -> 2,887 | M49: =VLOOKUP($B49,Ebus!$A$1716:$AS$1727,MATCH(M$36,Ebus!$A$1715:$AS$1715,FALSE),FALSE) -> 3,108 | N49: =VLOOKUP($B49,Ebus!$A$1716:$AS$1727,MATCH(N$36,Ebus!$A$1715:$AS$1715,FALSE),FALSE) -> 3,295 | O49: =VLOOKUP($B49,Ebus!$A$1716:$AS$1727,MATCH(O$36,Ebus!$A$1715:$AS$1715,FALSE),FALSE) -> 3,482 | P49: =VLOOKUP($B49,Ebus!$A$1716:$AS$1727,MATCH(P$36,Ebus!$A$1715:$AS$1715,FALSE),FALSE) -> 3,598 | Q49: =VLOOKUP($B49,Ebus!$A$1716:$AS$1727,MATCH(Q$36,Ebus!$A$1715:$AS$1715,FALSE),FALSE) -> 3,621 | R49: =VLOOKUP($B49,Ebus!$A$1716:$AS$1727,MATCH(R$36,Ebus!$A$1715:$AS$1715,FALSE),FALSE) -> 3,543 | S49: =VLOOKUP($B49,Ebus!$A$1716:$AS$1727,MATCH(S$36,Ebus!$A$1715:$AS$1715,FALSE),FALSE) -> 3,369 | T49: =VLOOKUP($B49,Ebus!$A$1716:$AS$1727,MATCH(T$36,Ebus!$A$1715:$AS$1715,FALSE),FALSE) -> 3,225 | U49: =VLOOKUP($B49,Ebus!$A$1716:$AS$1727,MATCH(U$36,Ebus!$A$1715:$AS$1715,FALSE),FALSE) -> 3,055 | V49: =VLOOKUP($B49,Ebus!$A$1716:$AS$1727,MATCH(V$36,Ebus!$A$1715:$AS$1715,FALSE),FALSE) -> 2,901 | W49: =VLOOKUP($B49,Ebus!$A$1716:$AS$1727,MATCH(W$36,Ebus!$A$1715:$AS$1715,FALSE),FALSE) -> 2,785 | X49: =VLOOKUP($B49,Ebus!$A$1716:$AS$1727,MATCH(X$36,Ebus!$A$1715:$AS$1715,FALSE),FALSE) -> 2,704 | Y49: =VLOOKUP($B49,Ebus!$A$1716:$AS$1727,MATCH(Y$36,Ebus!$A$1715:$AS$1715,FALSE),FALSE) -> 2,682 | Z49: =VLOOKUP($B49,Ebus!$A$1716:$AS$1727,MATCH(Z$36,Ebus!$A$1715:$AS$1715,FALSE),FALSE) -> 2,656 | AA49: =VLOOKUP($B49,Ebus!$A$1716:$AS$1727,MATCH(AA$36,Ebus!$A$1715:$AS$1715,FALSE),FALSE) -> 2,616 | AB49: =VLOOKUP($B49,Ebus!$A$1716:$AS$1727,MATCH(AB$36,Ebus!$A$1715:$AS$1715,FALSE),FALSE) -> 2,559 | AC49: =VLOOKUP($B49,Ebus!$A$1716:$AS$1727,MATCH(AC$36,Ebus!$A$1715:$AS$1715,FALSE),FALSE) -> 2,483 | AD49: =VLOOKUP($B49,Ebus!$A$1716:$AS$1727,MATCH(AD$36,Ebus!$A$1715:$AS$1715,FALSE),FALSE) -> 2,403 | AE49: =VLOOKUP($B49,Ebus!$A$1716:$AS$1727,MATCH(AE$36,Ebus!$A$1715:$AS$1715,FALSE),FALSE) -> 2,291 | AF49: =VLOOKUP($B49,Ebus!$A$1716:$AS$1727,MATCH(AF$36,Ebus!$A$1715:$AS$1715,FALSE),FALSE) -> 2,172 | AG49: =VLOOKUP($B49,Ebus!$A$1716:$AS$1727,MATCH(AG$36,Ebus!$A$1715:$AS$1715,FALSE),FALSE) -> 2,051 | AH49: =VLOOKUP($B49,Ebus!$A$1716:$AS$1727,MATCH(AH$36,Ebus!$A$1715:$AS$1715,FALSE),FALSE) -> 1,927 | AI49: =VLOOKUP($B49,Ebus!$A$1716:$AS$1727,MATCH(AI$36,Ebus!$A$1715:$AS$1715,FALSE),FALSE) -> 1,801 | AJ49: =VLOOKUP($B49,Ebus!$A$1716:$AS$1727,MATCH(AJ$36,Ebus!$A$1715:$AS$1715,FALSE),FALSE) -> 0 | AK49: =VLOOKUP($B49,Ebus!$A$1716:$AS$1727,MATCH(AK$36,Ebus!$A$1715:$AS$1715,FALSE),FALSE) -> 0 | AL49: =VLOOKUP($B49,Ebus!$A$1716:$AS$1727,MATCH(AL$36,Ebus!$A$1715:$AS$1715,FALSE),FALSE) -> 0 | AM49: =VLOOKUP($B49,Ebus!$A$1716:$AS$1727,MATCH(AM$36,Ebus!$A$1715:$AS$1715,FALSE),FALSE) -> 0 | AN49: =VLOOKUP($B49,Ebus!$A$1716:$AS$1727,MATCH(AN$36,Ebus!$A$1715:$AS$1715,FALSE),FALSE) -> 0 | AO49: =VLOOKUP($B49,Ebus!$A$1716:$AS$1727,MATCH(AO$36,Ebus!$A$1715:$AS$1715,FALSE),FALSE) -> 0 | AP49: =VLOOKUP($B49,Ebus!$A$1716:$AS$1727,MATCH(AP$36,Ebus!$A$1715:$AS$1715,FALSE),FALSE) -> 0 | AQ49: =VLOOKUP($B49,Ebus!$A$1716:$AS$1727,MATCH(AQ$36,Ebus!$A$1715:$AS$1715,FALSE),FALSE) -> 0 | AR49: =VLOOKUP($B49,Ebus!$A$1716:$AS$1727,MATCH(AR$36,Ebus!$A$1715:$AS$1715,FALSE),FALSE) -> 0 | AS49: =VLOOKUP($B49,Ebus!$A$1716:$AS$1727,MATCH(AS$36,Ebus!$A$1715:$AS$1715,FALSE),FALSE) -> 0 | AV49: 72,176
B50: N2O (kg/year) | C50: Other scenario | D50: =VLOOKUP($B50,Non_ebus!$A$1716:$AS$1727,MATCH(D$36,Non_ebus!$A$1715:$AS$1715,FALSE),FALSE) -> 0 | E50: =VLOOKUP($B50,Non_ebus!$A$1716:$AS$1727,MATCH(E$36,Non_ebus!$A$1715:$AS$1715,FALSE),FALSE) -> 0 | F50: =VLOOKUP($B50,Non_ebus!$A$1716:$AS$1727,MATCH(F$36,Non_ebus!$A$1715:$AS$1715,FALSE),FALSE) -> 0 | G50: =VLOOKUP($B50,Non_ebus!$A$1716:$AS$1727,MATCH(G$36,Non_ebus!$A$1715:$AS$1715,FALSE),FALSE) -> 107 | H50: =VLOOKUP($B50,Non_ebus!$A$1716:$AS$1727,MATCH(H$36,Non_ebus!$A$1715:$AS$1715,FALSE),FALSE) -> 113 | I50: =VLOOKUP($B50,Non_ebus!$A$1716:$AS$1727,MATCH(I$36,Non_ebus!$A$1715:$AS$1715,FALSE),FALSE) -> 833 | J50: =VLOOKUP($B50,Non_ebus!$A$1716:$AS$1727,MATCH(J$36,Non_ebus!$A$1715:$AS$1715,FALSE),FALSE) -> 1,575 | K50: =VLOOKUP($B50,Non_ebus!$A$1716:$AS$1727,MATCH(K$36,Non_ebus!$A$1715:$AS$1715,FALSE),FALSE) -> 2,330 | L50: =VLOOKUP($B50,Non_ebus!$A$1716:$AS$1727,MATCH(L$36,Non_ebus!$A$1715:$AS$1715,FALSE),FALSE) -> 3,096 | M50: =VLOOKUP($B50,Non_ebus!$A$1716:$AS$1727,MATCH(M$36,Non_ebus!$A$1715:$AS$1715,FALSE),FALSE) -> 3,449 | N50: =VLOOKUP($B50,Non_ebus!$A$1716:$AS$1727,MATCH(N$36,Non_ebus!$A$1715:$AS$1715,FALSE),FALSE) -> 3,789 | O50: =VLOOKUP($B50,Non_ebus!$A$1716:$AS$1727,MATCH(O$36,Non_ebus!$A$1715:$AS$1715,FALSE),FALSE) -> 4,155 | P50: =VLOOKUP($B50,Non_ebus!$A$1716:$AS$1727,MATCH(P$36,Non_ebus!$A$1715:$AS$1715,FALSE),FALSE) -> 4,459 | Q50: =VLOOKUP($B50,Non_ebus!$A$1716:$AS$1727,MATCH(Q$36,Non_ebus!$A$1715:$AS$1715,FALSE),FALSE) -> 4,669 | R50: =VLOOKUP($B50,Non_ebus!$A$1716:$AS$1727,MATCH(R$36,Non_ebus!$A$1715:$AS$1715,FALSE),FALSE) -> 4,760 | S50: =VLOOKUP($B50,Non_ebus!$A$1716:$AS$1727,MATCH(S$36,Non_ebus!$A$1715:$AS$1715,FALSE),FALSE) -> 4,727 | T50: =VLOOKUP($B50,Non_ebus!$A$1716:$AS$1727,MATCH(T$36,Non_ebus!$A$1715:$AS$1715,FALSE),FALSE) -> 4,739 | U50: =VLOOKUP($B50,Non_ebus!$A$1716:$AS$1727,MATCH(U$36,Non_ebus!$A$1715:$AS$1715,FALSE),FALSE) -> 4,709 | V50: =VLOOKUP($B50,Non_ebus!$A$1716:$AS$1727,MATCH(V$36,Non_ebus!$A$1715:$AS$1715,FALSE),FALSE) -> 4,696 | W50: =VLOOKUP($B50,Non_ebus!$A$1716:$AS$1727,MATCH(W$36,Non_ebus!$A$1715:$AS$1715,FALSE),FALSE) -> 4,738 | X50: =VLOOKUP($B50,Non_ebus!$A$1716:$AS$1727,MATCH(X$36,Non_ebus!$A$1715:$AS$1715,FALSE),FALSE) -> 4,838 | Y50: =VLOOKUP($B50,Non_ebus!$A$1716:$AS$1727,MATCH(Y$36,Non_ebus!$A$1715:$AS$1715,FALSE),FALSE) -> 5,052 | Z50: =VLOOKUP($B50,Non_ebus!$A$1716:$AS$1727,MATCH(Z$36,Non_ebus!$A$1715:$AS$1715,FALSE),FALSE) -> 5,276 | AA50: =VLOOKUP($B50,Non_ebus!$A$1716:$AS$1727,MATCH(AA$36,Non_ebus!$A$1715:$AS$1715,FALSE),FALSE) -> 5,490 | AB50: =VLOOKUP($B50,Non_ebus!$A$1716:$AS$1727,MATCH(AB$36,Non_ebus!$A$1715:$AS$1715,FALSE),FALSE) -> 5,683 | AC50: =VLOOKUP($B50,Non_ebus!$A$1716:$AS$1727,MATCH(AC$36,Non_ebus!$A$1715:$AS$1715,FALSE),FALSE) -> 5,850 | AD50: =VLOOKUP($B50,Non_ebus!$A$1716:$AS$1727,MATCH(AD$36,Non_ebus!$A$1715:$AS$1715,FALSE),FALSE) -> 6,024 | AE50: =VLOOKUP($B50,Non_ebus!$A$1716:$AS$1727,MATCH(AE$36,Non_ebus!$A$1715:$AS$1715,FALSE),FALSE) -> 6,135 | AF50: =VLOOKUP($B50,Non_ebus!$A$1716:$AS$1727,MATCH(AF$36,Non_ebus!$A$1715:$AS$1715,FALSE),FALSE) -> 6,236 | AG50: =VLOOKUP($B50,Non_ebus!$A$1716:$AS$1727,MATCH(AG$36,Non_ebus!$A$1715:$AS$1715,FALSE),FALSE) -> 6,337 | AH50: =VLOOKUP($B50,Non_ebus!$A$1716:$AS$1727,MATCH(AH$36,Non_ebus!$A$1715:$AS$1715,FALSE),FALSE) -> 6,439 | AI50: =VLOOKUP($B50,Non_ebus!$A$1716:$AS$1727,MATCH(AI$36,Non_ebus!$A$1715:$AS$1715,FALSE),FALSE) -> 6,541 | AJ50: =VLOOKUP($B50,Non_ebus!$A$1716:$AS$1727,MATCH(AJ$36,Non_ebus!$A$1715:$AS$1715,FALSE),FALSE) -> 0 | AK50: =VLOOKUP($B50,Non_ebus!$A$1716:$AS$1727,MATCH(AK$36,Non_ebus!$A$1715:$AS$1715,FALSE),FALSE) -> 0 | AL50: =VLOOKUP($B50,Non_ebus!$A$1716:$AS$1727,MATCH(AL$36,Non_ebus!$A$1715:$AS$1715,FALSE),FALSE) -> 0 | AM50: =VLOOKUP($B50,Non_ebus!$A$1716:$AS$1727,MATCH(AM$36,Non_ebus!$A$1715:$AS$1715,FALSE),FALSE) -> 0 | AN50: =VLOOKUP($B50,Non_ebus!$A$1716:$AS$1727,MATCH(AN$36,Non_ebus!$A$1715:$AS$1715,FALSE),FALSE) -> 0 | AO50: =VLOOKUP($B50,Non_ebus!$A$1716:$AS$1727,MATCH(AO$36,Non_ebus!$A$1715:$AS$1715,FALSE),FALSE) -> 0 | AP50: =VLOOKUP($B50,Non_ebus!$A$1716:$AS$1727,MATCH(AP$36,Non_ebus!$A$1715:$AS$1715,FALSE),FALSE) -> 0 | AQ50: =VLOOKUP($B50,Non_ebus!$A$1716:$AS$1727,MATCH(AQ$36,Non_ebus!$A$1715:$AS$1715,FALSE),FALSE) -> 0 | AR50: =VLOOKUP($B50,Non_ebus!$A$1716:$AS$1727,MATCH(AR$36,Non_ebus!$A$1715:$AS$1715,FALSE),FALSE) -> 0 | AS50: =VLOOKUP($B50,Non_ebus!$A$1716:$AS$1727,MATCH(AS$36,Non_ebus!$A$1715:$AS$1715,FALSE),FALSE) -> 0 | AV50: 126,845
B51: NMVOC (kg/year) | C51: Ebus scenario | D51: =VLOOKUP($B51,Ebus!$A$1716:$AS$1727,MATCH(D$36,Ebus!$A$1715:$AS$1715,FALSE),FALSE) -> 0 | E51: =VLOOKUP($B51,Ebus!$A$1716:$AS$1727,MATCH(E$36,Ebus!$A$1715:$AS$1715,FALSE),FALSE) -> 0 | F51: =VLOOKUP($B51,Ebus!$A$1716:$AS$1727,MATCH(F$36,Ebus!$A$1715:$AS$1715,FALSE),FALSE) -> 0 | G51: =VLOOKUP($B51,Ebus!$A$1716:$AS$1727,MATCH(G$36,Ebus!$A$1715:$AS$1715,FALSE),FALSE) -> 274 | H51: =VLOOKUP($B51,Ebus!$A$1716:$AS$1727,MATCH(H$36,Ebus!$A$1715:$AS$1715,FALSE),FALSE) -> 300 | I51: =VLOOKUP($B51,Ebus!$A$1716:$AS$1727,MATCH(I$36,Ebus!$A$1715:$AS$1715,FALSE),FALSE) -> 2,137 | J51: =VLOOKUP($B51,Ebus!$A$1716:$AS$1727,MATCH(J$36,Ebus!$A$1715:$AS$1715,FALSE),FALSE) -> 4,095 | K51: =VLOOKUP($B51,Ebus!$A$1716:$AS$1727,MATCH(K$36,Ebus!$A$1715:$AS$1715,FALSE),FALSE) -> 5,799 | L51: =VLOOKUP($B51,Ebus!$A$1716:$AS$1727,MATCH(L$36,Ebus!$A$1715:$AS$1715,FALSE),FALSE) -> 7,383 | M51: =VLOOKUP($B51,Ebus!$A$1716:$AS$1727,MATCH(M$36,Ebus!$A$1715:$AS$1715,FALSE),FALSE) -> 7,913 | N51: =VLOOKUP($B51,Ebus!$A$1716:$AS$1727,MATCH(N$36,Ebus!$A$1715:$AS$1715,FALSE),FALSE) -> 8,349 | O51: =VLOOKUP($B51,Ebus!$A$1716:$AS$1727,MATCH(O$36,Ebus!$A$1715:$AS$1715,FALSE),FALSE) -> 8,777 | P51: =VLOOKUP($B51,Ebus!$A$1716:$AS$1727,MATCH(P$36,Ebus!$A$1715:$AS$1715,FALSE),FALSE) -> 8,992 | Q51: =VLOOKUP($B51,Ebus!$A$1716:$AS$1727,MATCH(Q$36,Ebus!$A$1715:$AS$1715,FALSE),FALSE) -> 8,969 | R51: =VLOOKUP($B51,Ebus!$A$1716:$AS$1727,MATCH(R$36,Ebus!$A$1715:$AS$1715,FALSE),FALSE) -> 8,689 | S51: =VLOOKUP($B51,Ebus!$A$1716:$AS$1727,MATCH(S$36,Ebus!$A$1715:$AS$1715,FALSE),FALSE) -> 8,178 | T51: =VLOOKUP($B51,Ebus!$A$1716:$AS$1727,MATCH(T$36,Ebus!$A$1715:$AS$1715,FALSE),FALSE) -> 7,740 | U51: =VLOOKUP($B51,Ebus!$A$1716:$AS$1727,MATCH(U$36,Ebus!$A$1715:$AS$1715,FALSE),FALSE) -> 7,266 | V51: =VLOOKUP($B51,Ebus!$A$1716:$AS$1727,MATCH(V$36,Ebus!$A$1715:$AS$1715,FALSE),FALSE) -> 6,833 | W51: =VLOOKUP($B51,Ebus!$A$1716:$AS$1727,MATCH(W$36,Ebus!$A$1715:$AS$1715,FALSE),FALSE) -> 6,491 | X51: =VLOOKUP($B51,Ebus!$A$1716:$AS$1727,MATCH(X$36,Ebus!$A$1715:$AS$1715,FALSE),FALSE) -> 6,230 | Y51: =VLOOKUP($B51,Ebus!$A$1716:$AS$1727,MATCH(Y$36,Ebus!$A$1715:$AS$1715,FALSE),FALSE) -> 6,102 | Z51: =VLOOKUP($B51,Ebus!$A$1716:$AS$1727,MATCH(Z$36,Ebus!$A$1715:$AS$1715,FALSE),FALSE) -> 5,986 | AA51: =VLOOKUP($B51,Ebus!$A$1716:$AS$1727,MATCH(AA$36,Ebus!$A$1715:$AS$1715,FALSE),FALSE) -> 5,835 | AB51: =VLOOKUP($B51,Ebus!$A$1716:$AS$1727,MATCH(AB$36,Ebus!$A$1715:$AS$1715,FALSE),FALSE) -> 5,642 | AC51: =VLOOKUP($B51,Ebus!$A$1716:$AS$1727,MATCH(AC$36,Ebus!$A$1715:$AS$1715,FALSE),FALSE) -> 5,404 | AD51: =VLOOKUP($B51,Ebus!$A$1716:$AS$1727,MATCH(AD$36,Ebus!$A$1715:$AS$1715,FALSE),FALSE) -> 5,155 | AE51: =VLOOKUP($B51,Ebus!$A$1716:$AS$1727,MATCH(AE$36,Ebus!$A$1715:$AS$1715,FALSE),FALSE) -> 4,896 | AF51: =VLOOKUP($B51,Ebus!$A$1716:$AS$1727,MATCH(AF$36,Ebus!$A$1715:$AS$1715,FALSE),FALSE) -> 4,623 | AG51: =VLOOKUP($B51,Ebus!$A$1716:$AS$1727,MATCH(AG$36,Ebus!$A$1715:$AS$1715,FALSE),FALSE) -> 4,343 | AH51: =VLOOKUP($B51,Ebus!$A$1716:$AS$1727,MATCH(AH$36,Ebus!$A$1715:$AS$1715,FALSE),FALSE) -> 4,058 | AI51: =VLOOKUP($B51,Ebus!$A$1716:$AS$1727,MATCH(AI$36,Ebus!$A$1715:$AS$1715,FALSE),FALSE) -> 3,767 | AJ51: =VLOOKUP($B51,Ebus!$A$1716:$AS$1727,MATCH(AJ$36,Ebus!$A$1715:$AS$1715,FALSE),FALSE) -> 0 | AK51: =VLOOKUP($B51,Ebus!$A$1716:$AS$1727,MATCH(AK$36,Ebus!$A$1715:$AS$1715,FALSE),FALSE) -> 0 | AL51: =VLOOKUP($B51,Ebus!$A$1716:$AS$1727,MATCH(AL$36,Ebus!$A$1715:$AS$1715,FALSE),FALSE) -> 0 | AM51: =VLOOKUP($B51,Ebus!$A$1716:$AS$1727,MATCH(AM$36,Ebus!$A$1715:$AS$1715,FALSE),FALSE) -> 0 | AN51: =VLOOKUP($B51,Ebus!$A$1716:$AS$1727,MATCH(AN$36,Ebus!$A$1715:$AS$1715,FALSE),FALSE) -> 0 | AO51: =VLOOKUP($B51,Ebus!$A$1716:$AS$1727,MATCH(AO$36,Ebus!$A$1715:$AS$1715,FALSE),FALSE) -> 0 | AP51: =VLOOKUP($B51,Ebus!$A$1716:$AS$1727,MATCH(AP$36,Ebus!$A$1715:$AS$1715,FALSE),FALSE) -> 0 | AQ51: =VLOOKUP($B51,Ebus!$A$1716:$AS$1727,MATCH(AQ$36,Ebus!$A$1715:$AS$1715,FALSE),FALSE) -> 0 | AR51: =VLOOKUP($B51,Ebus!$A$1716:$AS$1727,MATCH(AR$36,Ebus!$A$1715:$AS$1715,FALSE),FALSE) -> 0 | AS51: =VLOOKUP($B51,Ebus!$A$1716:$AS$1727,MATCH(AS$36,Ebus!$A$1715:$AS$1715,FALSE),FALSE) -> 0 | AV51: 170,225
B52: NMVOC (kg/year) | C52: Other scenario | D52: =VLOOKUP($B52,Non_ebus!$A$1716:$AS$1727,MATCH(D$36,Non_ebus!$A$1715:$AS$1715,FALSE),FALSE) -> 0 | E52: =VLOOKUP($B52,Non_ebus!$A$1716:$AS$1727,MATCH(E$36,Non_ebus!$A$1715:$AS$1715,FALSE),FALSE) -> 0 | F52: =VLOOKUP($B52,Non_ebus!$A$1716:$AS$1727,MATCH(F$36,Non_ebus!$A$1715:$AS$1715,FALSE),FALSE) -> 0 | G52: =VLOOKUP($B52,Non_ebus!$A$1716:$AS$1727,MATCH(G$36,Non_ebus!$A$1715:$AS$1715,FALSE),FALSE) -> 637 | H52: =VLOOKUP($B52,Non_ebus!$A$1716:$AS$1727,MATCH(H$36,Non_ebus!$A$1715:$AS$1715,FALSE),FALSE) -> 675 | I52: =VLOOKUP($B52,Non_ebus!$A$1716:$AS$1727,MATCH(I$36,Non_ebus!$A$1715:$AS$1715,FALSE),FALSE) -> 4,909 | J52: =VLOOKUP($B52,Non_ebus!$A$1716:$AS$1727,MATCH(J$36,Non_ebus!$A$1715:$AS$1715,FALSE),FALSE) -> 9,246 | K52: =VLOOKUP($B52,Non_ebus!$A$1716:$AS$1727,MATCH(K$36,Non_ebus!$A$1715:$AS$1715,FALSE),FALSE) -> 13,662 | L52: =VLOOKUP($B52,Non_ebus!$A$1716:$AS$1727,MATCH(L$36,Non_ebus!$A$1715:$AS$1715,FALSE),FALSE) -> 18,136 | M52: =VLOOKUP($B52,Non_ebus!$A$1716:$AS$1727,MATCH(M$36,Non_ebus!$A$1715:$AS$1715,FALSE),FALSE) -> 20,204 | N52: =VLOOKUP($B52,Non_ebus!$A$1716:$AS$1727,MATCH(N$36,Non_ebus!$A$1715:$AS$1715,FALSE),FALSE) -> 22,186 | O52: =VLOOKUP($B52,Non_ebus!$A$1716:$AS$1727,MATCH(O$36,Non_ebus!$A$1715:$AS$1715,FALSE),FALSE) -> 24,500 | P52: =VLOOKUP($B52,Non_ebus!$A$1716:$AS$1727,MATCH(P$36,Non_ebus!$A$1715:$AS$1715,FALSE),FALSE) -> 26,284 | Q52: =VLOOKUP($B52,Non_ebus!$A$1716:$AS$1727,MATCH(Q$36,Non_ebus!$A$1715:$AS$1715,FALSE),FALSE) -> 27,515 | R52: =VLOOKUP($B52,Non_ebus!$A$1716:$AS$1727,MATCH(R$36,Non_ebus!$A$1715:$AS$1715,FALSE),FALSE) -> 28,044 | S52: =VLOOKUP($B52,Non_ebus!$A$1716:$AS$1727,MATCH(S$36,Non_ebus!$A$1715:$AS$1715,FALSE),FALSE) -> 27,843 | T52: =VLOOKUP($B52,Non_ebus!$A$1716:$AS$1727,MATCH(T$36,Non_ebus!$A$1715:$AS$1715,FALSE),FALSE) -> 27,910 | U52: =VLOOKUP($B52,Non_ebus!$A$1716:$AS$1727,MATCH(U$36,Non_ebus!$A$1715:$AS$1715,FALSE),FALSE) -> 27,729 | V52: =VLOOKUP($B52,Non_ebus!$A$1716:$AS$1727,MATCH(V$36,Non_ebus!$A$1715:$AS$1715,FALSE),FALSE) -> 27,654 | W52: =VLOOKUP($B52,Non_ebus!$A$1716:$AS$1727,MATCH(W$36,Non_ebus!$A$1715:$AS$1715,FALSE),FALSE) -> 27,901 | X52: =VLOOKUP($B52,Non_ebus!$A$1716:$AS$1727,MATCH(X$36,Non_ebus!$A$1715:$AS$1715,FALSE),FALSE) -> 28,487 | Y52: =VLOOKUP($B52,Non_ebus!$A$1716:$AS$1727,MATCH(Y$36,Non_ebus!$A$1715:$AS$1715,FALSE),FALSE) -> 29,751 | Z52: =VLOOKUP($B52,Non_ebus!$A$1716:$AS$1727,MATCH(Z$36,Non_ebus!$A$1715:$AS$1715,FALSE),FALSE) -> 31,068 | AA52: =VLOOKUP($B52,Non_ebus!$A$1716:$AS$1727,MATCH(AA$36,Non_ebus!$A$1715:$AS$1715,FALSE),FALSE) -> 32,326 | AB52: =VLOOKUP($B52,Non_ebus!$A$1716:$AS$1727,MATCH(AB$36,Non_ebus!$A$1715:$AS$1715,FALSE),FALSE) -> 33,465 | AC52: =VLOOKUP($B52,Non_ebus!$A$1716:$AS$1727,MATCH(AC$36,Non_ebus!$A$1715:$AS$1715,FALSE),FALSE) -> 34,450 | AD52: =VLOOKUP($B52,Non_ebus!$A$1716:$AS$1727,MATCH(AD$36,Non_ebus!$A$1715:$AS$1715,FALSE),FALSE) -> 35,471 | AE52: =VLOOKUP($B52,Non_ebus!$A$1716:$AS$1727,MATCH(AE$36,Non_ebus!$A$1715:$AS$1715,FALSE),FALSE) -> 36,125 | AF52: =VLOOKUP($B52,Non_ebus!$A$1716:$AS$1727,MATCH(AF$36,Non_ebus!$A$1715:$AS$1715,FALSE),FALSE) -> 36,718 | AG52: =VLOOKUP($B52,Non_ebus!$A$1716:$AS$1727,MATCH(AG$36,Non_ebus!$A$1715:$AS$1715,FALSE),FALSE) -> 37,314 | AH52: =VLOOKUP($B52,Non_ebus!$A$1716:$AS$1727,MATCH(AH$36,Non_ebus!$A$1715:$AS$1715,FALSE),FALSE) -> 37,913 | AI52: =VLOOKUP($B52,Non_ebus!$A$1716:$AS$1727,MATCH(AI$36,Non_ebus!$A$1715:$AS$1715,FALSE),FALSE) -> 38,518 | AJ52: =VLOOKUP($B52,Non_ebus!$A$1716:$AS$1727,MATCH(AJ$36,Non_ebus!$A$1715:$AS$1715,FALSE),FALSE) -> 0 | AK52: =VLOOKUP($B52,Non_ebus!$A$1716:$AS$1727,MATCH(AK$36,Non_ebus!$A$1715:$AS$1715,FALSE),FALSE) -> 0 | AL52: =VLOOKUP($B52,Non_ebus!$A$1716:$AS$1727,MATCH(AL$36,Non_ebus!$A$1715:$AS$1715,FALSE),FALSE) -> 0 | AM52: =VLOOKUP($B52,Non_ebus!$A$1716:$AS$1727,MATCH(AM$36,Non_ebus!$A$1715:$AS$1715,FALSE),FALSE) -> 0 | AN52: =VLOOKUP($B52,Non_ebus!$A$1716:$AS$1727,MATCH(AN$36,Non_ebus!$A$1715:$AS$1715,FALSE),FALSE) -> 0 | AO52: =VLOOKUP($B52,Non_ebus!$A$1716:$AS$1727,MATCH(AO$36,Non_ebus!$A$1715:$AS$1715,FALSE),FALSE) -> 0 | AP52: =VLOOKUP($B52,Non_ebus!$A$1716:$AS$1727,MATCH(AP$36,Non_ebus!$A$1715:$AS$1715,FALSE),FALSE) -> 0 | AQ52: =VLOOKUP($B52,Non_ebus!$A$1716:$AS$1727,MATCH(AQ$36,Non_ebus!$A$1715:$AS$1715,FALSE),FALSE) -> 0 | AR52: =VLOOKUP($B52,Non_ebus!$A$1716:$AS$1727,MATCH(AR$36,Non_ebus!$A$1715:$AS$1715,FALSE),FALSE) -> 0 | AS52: =VLOOKUP($B52,Non_ebus!$A$1716:$AS$1727,MATCH(AS$36,Non_ebus!$A$1715:$AS$1715,FALSE),FALSE) -> 0 | AV52: 746,641
B53: NOx (kg/year) | C53: Ebus scenario | D53: =VLOOKUP($B53,Ebus!$A$1716:$AS$1727,MATCH(D$36,Ebus!$A$1715:$AS$1715,FALSE),FALSE) -> 0 | E53: =VLOOKUP($B53,Ebus!$A$1716:$AS$1727,MATCH(E$36,Ebus!$A$1715:$AS$1715,FALSE),FALSE) -> 0 | F53: =VLOOKUP($B53,Ebus!$A$1716:$AS$1727,MATCH(F$36,Ebus!$A$1715:$AS$1715,FALSE),FALSE) -> 0 | G53: =VLOOKUP($B53,Ebus!$A$1716:$AS$1727,MATCH(G$36,Ebus!$A$1715:$AS$1715,FALSE),FALSE) -> 19,136 | H53: =VLOOKUP($B53,Ebus!$A$1716:$AS$1727,MATCH(H$36,Ebus!$A$1715:$AS$1715,FALSE),FALSE) -> 20,012 | I53: =VLOOKUP($B53,Ebus!$A$1716:$AS$1727,MATCH(I$36,Ebus!$A$1715:$AS$1715,FALSE),FALSE) -> 136,238 | J53: =VLOOKUP($B53,Ebus!$A$1716:$AS$1727,MATCH(J$36,Ebus!$A$1715:$AS$1715,FALSE),FALSE) -> 249,931 | K53: =VLOOKUP($B53,Ebus!$A$1716:$AS$1727,MATCH(K$36,Ebus!$A$1715:$AS$1715,FALSE),FALSE) -> 355,261 | L53: =VLOOKUP($B53,Ebus!$A$1716:$AS$1727,MATCH(L$36,Ebus!$A$1715:$AS$1715,FALSE),FALSE) -> 454,208 | M53: =VLOOKUP($B53,Ebus!$A$1716:$AS$1727,MATCH(M$36,Ebus!$A$1715:$AS$1715,FALSE),FALSE) -> 488,934 | N53: =VLOOKUP($B53,Ebus!$A$1716:$AS$1727,MATCH(N$36,Ebus!$A$1715:$AS$1715,FALSE),FALSE) -> 518,252 | O53: =VLOOKUP($B53,Ebus!$A$1716:$AS$1727,MATCH(O$36,Ebus!$A$1715:$AS$1715,FALSE),FALSE) -> 547,580 | P53: =VLOOKUP($B53,Ebus!$A$1716:$AS$1727,MATCH(P$36,Ebus!$A$1715:$AS$1715,FALSE),FALSE) -> 565,490 | Q53: =VLOOKUP($B53,Ebus!$A$1716:$AS$1727,MATCH(Q$36,Ebus!$A$1715:$AS$1715,FALSE),FALSE) -> 568,961 | R53: =VLOOKUP($B53,Ebus!$A$1716:$AS$1727,MATCH(R$36,Ebus!$A$1715:$AS$1715,FALSE),FALSE) -> 556,369 | S53: =VLOOKUP($B53,Ebus!$A$1716:$AS$1727,MATCH(S$36,Ebus!$A$1715:$AS$1715,FALSE),FALSE) -> 528,925 | T53: =VLOOKUP($B53,Ebus!$A$1716:$AS$1727,MATCH(T$36,Ebus!$A$1715:$AS$1715,FALSE),FALSE) -> 506,093 | U53: =VLOOKUP($B53,Ebus!$A$1716:$AS$1727,MATCH(U$36,Ebus!$A$1715:$AS$1715,FALSE),FALSE) -> 479,126 | V53: =VLOOKUP($B53,Ebus!$A$1716:$AS$1727,MATCH(V$36,Ebus!$A$1715:$AS$1715,FALSE),FALSE) -> 454,802 | W53: =VLOOKUP($B53,Ebus!$A$1716:$AS$1727,MATCH(W$36,Ebus!$A$1715:$AS$1715,FALSE),FALSE) -> 436,446 | X53: =VLOOKUP($B53,Ebus!$A$1716:$AS$1727,MATCH(X$36,Ebus!$A$1715:$AS$1715,FALSE),FALSE) -> 423,563 | Y53: =VLOOKUP($B53,Ebus!$A$1716:$AS$1727,MATCH(Y$36,Ebus!$A$1715:$AS$1715,FALSE),FALSE) -> 419,928 | Z53: =VLOOKUP($B53,Ebus!$A$1716:$AS$1727,MATCH(Z$36,Ebus!$A$1715:$AS$1715,FALSE),FALSE) -> 415,666 | AA53: =VLOOKUP($B53,Ebus!$A$1716:$AS$1727,MATCH(AA$36,Ebus!$A$1715:$AS$1715,FALSE),FALSE) -> 409,261 | AB53: =VLOOKUP($B53,Ebus!$A$1716:$AS$1727,MATCH(AB$36,Ebus!$A$1715:$AS$1715,FALSE),FALSE) -> 400,096 | AC53: =VLOOKUP($B53,Ebus!$A$1716:$AS$1727,MATCH(AC$36,Ebus!$A$1715:$AS$1715,FALSE),FALSE) -> 388,011 | AD53: =VLOOKUP($B53,Ebus!$A$1716:$AS$1727,MATCH(AD$36,Ebus!$A$1715:$AS$1715,FALSE),FALSE) -> 375,305 | AE53: =VLOOKUP($B53,Ebus!$A$1716:$AS$1727,MATCH(AE$36,Ebus!$A$1715:$AS$1715,FALSE),FALSE) -> 357,787 | AF53: =VLOOKUP($B53,Ebus!$A$1716:$AS$1727,MATCH(AF$36,Ebus!$A$1715:$AS$1715,FALSE),FALSE) -> 339,180 | AG53: =VLOOKUP($B53,Ebus!$A$1716:$AS$1727,MATCH(AG$36,Ebus!$A$1715:$AS$1715,FALSE),FALSE) -> 320,157 | AH53: =VLOOKUP($B53,Ebus!$A$1716:$AS$1727,MATCH(AH$36,Ebus!$A$1715:$AS$1715,FALSE),FALSE) -> 300,743 | AI53: =VLOOKUP($B53,Ebus!$A$1716:$AS$1727,MATCH(AI$36,Ebus!$A$1715:$AS$1715,FALSE),FALSE) -> 280,964 | AJ53: =VLOOKUP($B53,Ebus!$A$1716:$AS$1727,MATCH(AJ$36,Ebus!$A$1715:$AS$1715,FALSE),FALSE) -> 0 | AK53: =VLOOKUP($B53,Ebus!$A$1716:$AS$1727,MATCH(AK$36,Ebus!$A$1715:$AS$1715,FALSE),FALSE) -> 0 | AL53: =VLOOKUP($B53,Ebus!$A$1716:$AS$1727,MATCH(AL$36,Ebus!$A$1715:$AS$1715,FALSE),FALSE) -> 0 | AM53: =VLOOKUP($B53,Ebus!$A$1716:$AS$1727,MATCH(AM$36,Ebus!$A$1715:$AS$1715,FALSE),FALSE) -> 0 | AN53: =VLOOKUP($B53,Ebus!$A$1716:$AS$1727,MATCH(AN$36,Ebus!$A$1715:$AS$1715,FALSE),FALSE) -> 0 | AO53: =VLOOKUP($B53,Ebus!$A$1716:$AS$1727,MATCH(AO$36,Ebus!$A$1715:$AS$1715,FALSE),FALSE) -> 0 | AP53: =VLOOKUP($B53,Ebus!$A$1716:$AS$1727,MATCH(AP$36,Ebus!$A$1715:$AS$1715,FALSE),FALSE) -> 0 | AQ53: =VLOOKUP($B53,Ebus!$A$1716:$AS$1727,MATCH(AQ$36,Ebus!$A$1715:$AS$1715,FALSE),FALSE) -> 0 | AR53: =VLOOKUP($B53,Ebus!$A$1716:$AS$1727,MATCH(AR$36,Ebus!$A$1715:$AS$1715,FALSE),FALSE) -> 0 | AS53: =VLOOKUP($B53,Ebus!$A$1716:$AS$1727,MATCH(AS$36,Ebus!$A$1715:$AS$1715,FALSE),FALSE) -> 0 | AV53: 11,316,424
B54: NOx (kg/year) | C54: Other scenario | D54: =VLOOKUP($B54,Non_ebus!$A$1716:$AS$1727,MATCH(D$36,Non_ebus!$A$1715:$AS$1715,FALSE),FALSE) -> 0 | E54: =VLOOKUP($B54,Non_ebus!$A$1716:$AS$1727,MATCH(E$36,Non_ebus!$A$1715:$AS$1715,FALSE),FALSE) -> 0 | F54: =VLOOKUP($B54,Non_ebus!$A$1716:$AS$1727,MATCH(F$36,Non_ebus!$A$1715:$AS$1715,FALSE),FALSE) -> 0 | G54: =VLOOKUP($B54,Non_ebus!$A$1716:$AS$1727,MATCH(G$36,Non_ebus!$A$1715:$AS$1715,FALSE),FALSE) -> 8,149 | H54: =VLOOKUP($B54,Non_ebus!$A$1716:$AS$1727,MATCH(H$36,Non_ebus!$A$1715:$AS$1715,FALSE),FALSE) -> 8,630 | I54: =VLOOKUP($B54,Non_ebus!$A$1716:$AS$1727,MATCH(I$36,Non_ebus!$A$1715:$AS$1715,FALSE),FALSE) -> 60,387 | J54: =VLOOKUP($B54,Non_ebus!$A$1716:$AS$1727,MATCH(J$36,Non_ebus!$A$1715:$AS$1715,FALSE),FALSE) -> 112,287 | K54: =VLOOKUP($B54,Non_ebus!$A$1716:$AS$1727,MATCH(K$36,Non_ebus!$A$1715:$AS$1715,FALSE),FALSE) -> 165,132 | L54: =VLOOKUP($B54,Non_ebus!$A$1716:$AS$1727,MATCH(L$36,Non_ebus!$A$1715:$AS$1715,FALSE),FALSE) -> 218,675 | M54: =VLOOKUP($B54,Non_ebus!$A$1716:$AS$1727,MATCH(M$36,Non_ebus!$A$1715:$AS$1715,FALSE),FALSE) -> 243,403 | N54: =VLOOKUP($B54,Non_ebus!$A$1716:$AS$1727,MATCH(N$36,Non_ebus!$A$1715:$AS$1715,FALSE),FALSE) -> 267,073 | O54: =VLOOKUP($B54,Non_ebus!$A$1716:$AS$1727,MATCH(O$36,Non_ebus!$A$1715:$AS$1715,FALSE),FALSE) -> 294,665 | P54: =VLOOKUP($B54,Non_ebus!$A$1716:$AS$1727,MATCH(P$36,Non_ebus!$A$1715:$AS$1715,FALSE),FALSE) -> 315,851 | Q54: =VLOOKUP($B54,Non_ebus!$A$1716:$AS$1727,MATCH(Q$36,Non_ebus!$A$1715:$AS$1715,FALSE),FALSE) -> 330,346 | R54: =VLOOKUP($B54,Non_ebus!$A$1716:$AS$1727,MATCH(R$36,Non_ebus!$A$1715:$AS$1715,FALSE),FALSE) -> 336,397 | S54: =VLOOKUP($B54,Non_ebus!$A$1716:$AS$1727,MATCH(S$36,Non_ebus!$A$1715:$AS$1715,FALSE),FALSE) -> 333,716 | T54: =VLOOKUP($B54,Non_ebus!$A$1716:$AS$1727,MATCH(T$36,Non_ebus!$A$1715:$AS$1715,FALSE),FALSE) -> 334,285 | U54: =VLOOKUP($B54,Non_ebus!$A$1716:$AS$1727,MATCH(U$36,Non_ebus!$A$1715:$AS$1715,FALSE),FALSE) -> 331,978 | V54: =VLOOKUP($B54,Non_ebus!$A$1716:$AS$1727,MATCH(V$36,Non_ebus!$A$1715:$AS$1715,FALSE),FALSE) -> 331,012 | W54: =VLOOKUP($B54,Non_ebus!$A$1716:$AS$1727,MATCH(W$36,Non_ebus!$A$1715:$AS$1715,FALSE),FALSE) -> 333,947 | X54: =VLOOKUP($B54,Non_ebus!$A$1716:$AS$1727,MATCH(X$36,Non_ebus!$A$1715:$AS$1715,FALSE),FALSE) -> 340,953 | Y54: =VLOOKUP($B54,Non_ebus!$A$1716:$AS$1727,MATCH(Y$36,Non_ebus!$A$1715:$AS$1715,FALSE),FALSE) -> 356,080 | Z54: =VLOOKUP($B54,Non_ebus!$A$1716:$AS$1727,MATCH(Z$36,Non_ebus!$A$1715:$AS$1715,FALSE),FALSE) -> 371,843 | AA54: =VLOOKUP($B54,Non_ebus!$A$1716:$AS$1727,MATCH(AA$36,Non_ebus!$A$1715:$AS$1715,FALSE),FALSE) -> 386,902 | AB54: =VLOOKUP($B54,Non_ebus!$A$1716:$AS$1727,MATCH(AB$36,Non_ebus!$A$1715:$AS$1715,FALSE),FALSE) -> 400,535 | AC54: =VLOOKUP($B54,Non_ebus!$A$1716:$AS$1727,MATCH(AC$36,Non_ebus!$A$1715:$AS$1715,FALSE),FALSE) -> 412,316 | AD54: =VLOOKUP($B54,Non_ebus!$A$1716:$AS$1727,MATCH(AD$36,Non_ebus!$A$1715:$AS$1715,FALSE),FALSE) -> 424,545 | AE54: =VLOOKUP($B54,Non_ebus!$A$1716:$AS$1727,MATCH(AE$36,Non_ebus!$A$1715:$AS$1715,FALSE),FALSE) -> 432,366 | AF54: =VLOOKUP($B54,Non_ebus!$A$1716:$AS$1727,MATCH(AF$36,Non_ebus!$A$1715:$AS$1715,FALSE),FALSE) -> 439,467 | AG54: =VLOOKUP($B54,Non_ebus!$A$1716:$AS$1727,MATCH(AG$36,Non_ebus!$A$1715:$AS$1715,FALSE),FALSE) -> 446,595 | AH54: =VLOOKUP($B54,Non_ebus!$A$1716:$AS$1727,MATCH(AH$36,Non_ebus!$A$1715:$AS$1715,FALSE),FALSE) -> 453,765 | AI54: =VLOOKUP($B54,Non_ebus!$A$1716:$AS$1727,MATCH(AI$36,Non_ebus!$A$1715:$AS$1715,FALSE),FALSE) -> 461,006 | AJ54: =VLOOKUP($B54,Non_ebus!$A$1716:$AS$1727,MATCH(AJ$36,Non_ebus!$A$1715:$AS$1715,FALSE),FALSE) -> 0 | AK54: =VLOOKUP($B54,Non_ebus!$A$1716:$AS$1727,MATCH(AK$36,Non_ebus!$A$1715:$AS$1715,FALSE),FALSE) -> 0 | AL54: =VLOOKUP($B54,Non_ebus!$A$1716:$AS$1727,MATCH(AL$36,Non_ebus!$A$1715:$AS$1715,FALSE),FALSE) -> 0 | AM54: =VLOOKUP($B54,Non_ebus!$A$1716:$AS$1727,MATCH(AM$36,Non_ebus!$A$1715:$AS$1715,FALSE),FALSE) -> 0 | AN54: =VLOOKUP($B54,Non_ebus!$A$1716:$AS$1727,MATCH(AN$36,Non_ebus!$A$1715:$AS$1715,FALSE),FALSE) -> 0 | AO54: =VLOOKUP($B54,Non_ebus!$A$1716:$AS$1727,MATCH(AO$36,Non_ebus!$A$1715:$AS$1715,FALSE),FALSE) -> 0 | AP54: =VLOOKUP($B54,Non_ebus!$A$1716:$AS$1727,MATCH(AP$36,Non_ebus!$A$1715:$AS$1715,FALSE),FALSE) -> 0 | AQ54: =VLOOKUP($B54,Non_ebus!$A$1716:$AS$1727,MATCH(AQ$36,Non_ebus!$A$1715:$AS$1715,FALSE),FALSE) -> 0 | AR54: =VLOOKUP($B54,Non_ebus!$A$1716:$AS$1727,MATCH(AR$36,Non_ebus!$A$1715:$AS$1715,FALSE),FALSE) -> 0 | AS54: =VLOOKUP($B54,Non_ebus!$A$1716:$AS$1727,MATCH(AS$36,Non_ebus!$A$1715:$AS$1715,FALSE),FALSE) -> 0 | AV54: 8,952,305
B55: PM10 (kg/year) | C55: Ebus scenario | D55: =VLOOKUP($B55,Ebus!$A$1716:$AS$1727,MATCH(D$36,Ebus!$A$1715:$AS$1715,FALSE),FALSE) -> 0 | E55: =VLOOKUP($B55,Ebus!$A$1716:$AS$1727,MATCH(E$36,Ebus!$A$1715:$AS$1715,FALSE),FALSE) -> 0 | F55: =VLOOKUP($B55,Ebus!$A$1716:$AS$1727,MATCH(F$36,Ebus!$A$1715:$AS$1715,FALSE),FALSE) -> 0 | G55: =VLOOKUP($B55,Ebus!$A$1716:$AS$1727,MATCH(G$36,Ebus!$A$1715:$AS$1715,FALSE),FALSE) -> 722 | H55: =VLOOKUP($B55,Ebus!$A$1716:$AS$1727,MATCH(H$36,Ebus!$A$1715:$AS$1715,FALSE),FALSE) -> 755 | I55: =VLOOKUP($B55,Ebus!$A$1716:$AS$1727,MATCH(I$36,Ebus!$A$1715:$AS$1715,FALSE),FALSE) -> 5,138 | J55: =VLOOKUP($B55,Ebus!$A$1716:$AS$1727,MATCH(J$36,Ebus!$A$1715:$AS$1715,FALSE),FALSE) -> 9,422 | K55: =VLOOKUP($B55,Ebus!$A$1716:$AS$1727,MATCH(K$36,Ebus!$A$1715:$AS$1715,FALSE),FALSE) -> 13,403 | L55: =VLOOKUP($B55,Ebus!$A$1716:$AS$1727,MATCH(L$36,Ebus!$A$1715:$AS$1715,FALSE),FALSE) -> 17,149 | M55: =VLOOKUP($B55,Ebus!$A$1716:$AS$1727,MATCH(M$36,Ebus!$A$1715:$AS$1715,FALSE),FALSE) -> 18,475 | N55: =VLOOKUP($B55,Ebus!$A$1716:$AS$1727,MATCH(N$36,Ebus!$A$1715:$AS$1715,FALSE),FALSE) -> 19,599 | O55: =VLOOKUP($B55,Ebus!$A$1716:$AS$1727,MATCH(O$36,Ebus!$A$1715:$AS$1715,FALSE),FALSE) -> 20,727 | P55: =VLOOKUP($B55,Ebus!$A$1716:$AS$1727,MATCH(P$36,Ebus!$A$1715:$AS$1715,FALSE),FALSE) -> 21,419 | Q55: =VLOOKUP($B55,Ebus!$A$1716:$AS$1727,MATCH(Q$36,Ebus!$A$1715:$AS$1715,FALSE),FALSE) -> 21,565 | R55: =VLOOKUP($B55,Ebus!$A$1716:$AS$1727,MATCH(R$36,Ebus!$A$1715:$AS$1715,FALSE),FALSE) -> 21,103 | S55: =VLOOKUP($B55,Ebus!$A$1716:$AS$1727,MATCH(S$36,Ebus!$A$1715:$AS$1715,FALSE),FALSE) -> 20,078 | T55: =VLOOKUP($B55,Ebus!$A$1716:$AS$1727,MATCH(T$36,Ebus!$A$1715:$AS$1715,FALSE),FALSE) -> 19,228 | U55: =VLOOKUP($B55,Ebus!$A$1716:$AS$1727,MATCH(U$36,Ebus!$A$1715:$AS$1715,FALSE),FALSE) -> 18,215 | V55: =VLOOKUP($B55,Ebus!$A$1716:$AS$1727,MATCH(V$36,Ebus!$A$1715:$AS$1715,FALSE),FALSE) -> 17,303 | W55: =VLOOKUP($B55,Ebus!$A$1716:$AS$1727,MATCH(W$36,Ebus!$A$1715:$AS$1715,FALSE),FALSE) -> 16,617 | X55: =VLOOKUP($B55,Ebus!$A$1716:$AS$1727,MATCH(X$36,Ebus!$A$1715:$AS$1715,FALSE),FALSE) -> 16,140 | Y55: =VLOOKUP($B55,Ebus!$A$1716:$AS$1727,MATCH(Y$36,Ebus!$A$1715:$AS$1715,FALSE),FALSE) -> 16,016 | Z55: =VLOOKUP($B55,Ebus!$A$1716:$AS$1727,MATCH(Z$36,Ebus!$A$1715:$AS$1715,FALSE),FALSE) -> 15,864 | AA55: =VLOOKUP($B55,Ebus!$A$1716:$AS$1727,MATCH(AA$36,Ebus!$A$1715:$AS$1715,FALSE),FALSE) -> 15,631 | AB55: =VLOOKUP($B55,Ebus!$A$1716:$AS$1727,MATCH(AB$36,Ebus!$A$1715:$AS$1715,FALSE),FALSE) -> 15,293 | AC55: =VLOOKUP($B55,Ebus!$A$1716:$AS$1727,MATCH(AC$36,Ebus!$A$1715:$AS$1715,FALSE),FALSE) -> 14,844 | AD55: =VLOOKUP($B55,Ebus!$A$1716:$AS$1727,MATCH(AD$36,Ebus!$A$1715:$AS$1715,FALSE),FALSE) -> 14,372 | AE55: =VLOOKUP($B55,Ebus!$A$1716:$AS$1727,MATCH(AE$36,Ebus!$A$1715:$AS$1715,FALSE),FALSE) -> 13,704 | AF55: =VLOOKUP($B55,Ebus!$A$1716:$AS$1727,MATCH(AF$36,Ebus!$A$1715:$AS$1715,FALSE),FALSE) -> 12,995 | AG55: =VLOOKUP($B55,Ebus!$A$1716:$AS$1727,MATCH(AG$36,Ebus!$A$1715:$AS$1715,FALSE),FALSE) -> 12,270 | AH55: =VLOOKUP($B55,Ebus!$A$1716:$AS$1727,MATCH(AH$36,Ebus!$A$1715:$AS$1715,FALSE),FALSE) -> 11,531 | AI55: =VLOOKUP($B55,Ebus!$A$1716:$AS$1727,MATCH(AI$36,Ebus!$A$1715:$AS$1715,FALSE),FALSE) -> 10,777 | AJ55: =VLOOKUP($B55,Ebus!$A$1716:$AS$1727,MATCH(AJ$36,Ebus!$A$1715:$AS$1715,FALSE),FALSE) -> 0 | AK55: =VLOOKUP($B55,Ebus!$A$1716:$AS$1727,MATCH(AK$36,Ebus!$A$1715:$AS$1715,FALSE),FALSE) -> 0 | AL55: =VLOOKUP($B55,Ebus!$A$1716:$AS$1727,MATCH(AL$36,Ebus!$A$1715:$AS$1715,FALSE),FALSE) -> 0 | AM55: =VLOOKUP($B55,Ebus!$A$1716:$AS$1727,MATCH(AM$36,Ebus!$A$1715:$AS$1715,FALSE),FALSE) -> 0 | AN55: =VLOOKUP($B55,Ebus!$A$1716:$AS$1727,MATCH(AN$36,Ebus!$A$1715:$AS$1715,FALSE),FALSE) -> 0 | AO55: =VLOOKUP($B55,Ebus!$A$1716:$AS$1727,MATCH(AO$36,Ebus!$A$1715:$AS$1715,FALSE),FALSE) -> 0 | AP55: =VLOOKUP($B55,Ebus!$A$1716:$AS$1727,MATCH(AP$36,Ebus!$A$1715:$AS$1715,FALSE),FALSE) -> 0 | AQ55: =VLOOKUP($B55,Ebus!$A$1716:$AS$1727,MATCH(AQ$36,Ebus!$A$1715:$AS$1715,FALSE),FALSE) -> 0 | AR55: =VLOOKUP($B55,Ebus!$A$1716:$AS$1727,MATCH(AR$36,Ebus!$A$1715:$AS$1715,FALSE),FALSE) -> 0 | AS55: =VLOOKUP($B55,Ebus!$A$1716:$AS$1727,MATCH(AS$36,Ebus!$A$1715:$AS$1715,FALSE),FALSE) -> 0 | AV55: 430,357
B56: PM10 (kg/year) | C56: Other scenario | D56: =VLOOKUP($B56,Non_ebus!$A$1716:$AS$1727,MATCH(D$36,Non_ebus!$A$1715:$AS$1715,FALSE),FALSE) -> 0 | E56: =VLOOKUP($B56,Non_ebus!$A$1716:$AS$1727,MATCH(E$36,Non_ebus!$A$1715:$AS$1715,FALSE),FALSE) -> 0 | F56: =VLOOKUP($B56,Non_ebus!$A$1716:$AS$1727,MATCH(F$36,Non_ebus!$A$1715:$AS$1715,FALSE),FALSE) -> 0 | G56: =VLOOKUP($B56,Non_ebus!$A$1716:$AS$1727,MATCH(G$36,Non_ebus!$A$1715:$AS$1715,FALSE),FALSE) -> 2,232 | H56: =VLOOKUP($B56,Non_ebus!$A$1716:$AS$1727,MATCH(H$36,Non_ebus!$A$1715:$AS$1715,FALSE),FALSE) -> 2,362 | I56: =VLOOKUP($B56,Non_ebus!$A$1716:$AS$1727,MATCH(I$36,Non_ebus!$A$1715:$AS$1715,FALSE),FALSE) -> 16,085 | J56: =VLOOKUP($B56,Non_ebus!$A$1716:$AS$1727,MATCH(J$36,Non_ebus!$A$1715:$AS$1715,FALSE),FALSE) -> 29,628 | K56: =VLOOKUP($B56,Non_ebus!$A$1716:$AS$1727,MATCH(K$36,Non_ebus!$A$1715:$AS$1715,FALSE),FALSE) -> 43,420 | L56: =VLOOKUP($B56,Non_ebus!$A$1716:$AS$1727,MATCH(L$36,Non_ebus!$A$1715:$AS$1715,FALSE),FALSE) -> 57,394 | M56: =VLOOKUP($B56,Non_ebus!$A$1716:$AS$1727,MATCH(M$36,Non_ebus!$A$1715:$AS$1715,FALSE),FALSE) -> 63,843 | N56: =VLOOKUP($B56,Non_ebus!$A$1716:$AS$1727,MATCH(N$36,Non_ebus!$A$1715:$AS$1715,FALSE),FALSE) -> 70,010 | O56: =VLOOKUP($B56,Non_ebus!$A$1716:$AS$1727,MATCH(O$36,Non_ebus!$A$1715:$AS$1715,FALSE),FALSE) -> 76,900 | P56: =VLOOKUP($B56,Non_ebus!$A$1716:$AS$1727,MATCH(P$36,Non_ebus!$A$1715:$AS$1715,FALSE),FALSE) -> 82,374 | Q56: =VLOOKUP($B56,Non_ebus!$A$1716:$AS$1727,MATCH(Q$36,Non_ebus!$A$1715:$AS$1715,FALSE),FALSE) -> 86,096 | R56: =VLOOKUP($B56,Non_ebus!$A$1716:$AS$1727,MATCH(R$36,Non_ebus!$A$1715:$AS$1715,FALSE),FALSE) -> 87,613 | S56: =VLOOKUP($B56,Non_ebus!$A$1716:$AS$1727,MATCH(S$36,Non_ebus!$A$1715:$AS$1715,FALSE),FALSE) -> 86,862 | T56: =VLOOKUP($B56,Non_ebus!$A$1716:$AS$1727,MATCH(T$36,Non_ebus!$A$1715:$AS$1715,FALSE),FALSE) -> 86,965 | U56: =VLOOKUP($B56,Non_ebus!$A$1716:$AS$1727,MATCH(U$36,Non_ebus!$A$1715:$AS$1715,FALSE),FALSE) -> 86,337 | V56: =VLOOKUP($B56,Non_ebus!$A$1716:$AS$1727,MATCH(V$36,Non_ebus!$A$1715:$AS$1715,FALSE),FALSE) -> 86,072 | W56: =VLOOKUP($B56,Non_ebus!$A$1716:$AS$1727,MATCH(W$36,Non_ebus!$A$1715:$AS$1715,FALSE),FALSE) -> 86,831 | X56: =VLOOKUP($B56,Non_ebus!$A$1716:$AS$1727,MATCH(X$36,Non_ebus!$A$1715:$AS$1715,FALSE),FALSE) -> 88,651 | Y56: =VLOOKUP($B56,Non_ebus!$A$1716:$AS$1727,MATCH(Y$36,Non_ebus!$A$1715:$AS$1715,FALSE),FALSE) -> 92,584 | Z56: =VLOOKUP($B56,Non_ebus!$A$1716:$AS$1727,MATCH(Z$36,Non_ebus!$A$1715:$AS$1715,FALSE),FALSE) -> 96,683 | AA56: =VLOOKUP($B56,Non_ebus!$A$1716:$AS$1727,MATCH(AA$36,Non_ebus!$A$1715:$AS$1715,FALSE),FALSE) -> 100,598 | AB56: =VLOOKUP($B56,Non_ebus!$A$1716:$AS$1727,MATCH(AB$36,Non_ebus!$A$1715:$AS$1715,FALSE),FALSE) -> 104,143 | AC56: =VLOOKUP($B56,Non_ebus!$A$1716:$AS$1727,MATCH(AC$36,Non_ebus!$A$1715:$AS$1715,FALSE),FALSE) -> 107,206 | AD56: =VLOOKUP($B56,Non_ebus!$A$1716:$AS$1727,MATCH(AD$36,Non_ebus!$A$1715:$AS$1715,FALSE),FALSE) -> 110,386 | AE56: =VLOOKUP($B56,Non_ebus!$A$1716:$AS$1727,MATCH(AE$36,Non_ebus!$A$1715:$AS$1715,FALSE),FALSE) -> 112,419 | AF56: =VLOOKUP($B56,Non_ebus!$A$1716:$AS$1727,MATCH(AF$36,Non_ebus!$A$1715:$AS$1715,FALSE),FALSE) -> 114,266 | AG56: =VLOOKUP($B56,Non_ebus!$A$1716:$AS$1727,MATCH(AG$36,Non_ebus!$A$1715:$AS$1715,FALSE),FALSE) -> 116,119 | AH56: =VLOOKUP($B56,Non_ebus!$A$1716:$AS$1727,MATCH(AH$36,Non_ebus!$A$1715:$AS$1715,FALSE),FALSE) -> 117,983 | AI56: =VLOOKUP($B56,Non_ebus!$A$1716:$AS$1727,MATCH(AI$36,Non_ebus!$A$1715:$AS$1715,FALSE),FALSE) -> 119,866 | AJ56: =VLOOKUP($B56,Non_ebus!$A$1716:$AS$1727,MATCH(AJ$36,Non_ebus!$A$1715:$AS$1715,FALSE),FALSE) -> 0 | AK56: =VLOOKUP($B56,Non_ebus!$A$1716:$AS$1727,MATCH(AK$36,Non_ebus!$A$1715:$AS$1715,FALSE),FALSE) -> 0 | AL56: =VLOOKUP($B56,Non_ebus!$A$1716:$AS$1727,MATCH(AL$36,Non_ebus!$A$1715:$AS$1715,FALSE),FALSE) -> 0 | AM56: =VLOOKUP($B56,Non_ebus!$A$1716:$AS$1727,MATCH(AM$36,Non_ebus!$A$1715:$AS$1715,FALSE),FALSE) -> 0 | AN56: =VLOOKUP($B56,Non_ebus!$A$1716:$AS$1727,MATCH(AN$36,Non_ebus!$A$1715:$AS$1715,FALSE),FALSE) -> 0 | AO56: =VLOOKUP($B56,Non_ebus!$A$1716:$AS$1727,MATCH(AO$36,Non_ebus!$A$1715:$AS$1715,FALSE),FALSE) -> 0 | AP56: =VLOOKUP($B56,Non_ebus!$A$1716:$AS$1727,MATCH(AP$36,Non_ebus!$A$1715:$AS$1715,FALSE),FALSE) -> 0 | AQ56: =VLOOKUP($B56,Non_ebus!$A$1716:$AS$1727,MATCH(AQ$36,Non_ebus!$A$1715:$AS$1715,FALSE),FALSE) -> 0 | AR56: =VLOOKUP($B56,Non_ebus!$A$1716:$AS$1727,MATCH(AR$36,Non_ebus!$A$1715:$AS$1715,FALSE),FALSE) -> 0 | AS56: =VLOOKUP($B56,Non_ebus!$A$1716:$AS$1727,MATCH(AS$36,Non_ebus!$A$1715:$AS$1715,FALSE),FALSE) -> 0 | AV56: 2,331,928
B57: PM2.5 (kg/year) | C57: Ebus scenario | D57: =VLOOKUP($B57,Ebus!$A$1716:$AS$1727,MATCH(D$36,Ebus!$A$1715:$AS$1715,FALSE),FALSE) -> 0 | E57: =VLOOKUP($B57,Ebus!$A$1716:$AS$1727,MATCH(E$36,Ebus!$A$1715:$AS$1715,FALSE),FALSE) -> 0 | F57: =VLOOKUP($B57,Ebus!$A$1716:$AS$1727,MATCH(F$36,Ebus!$A$1715:$AS$1715,FALSE),FALSE) -> 0 | G57: =VLOOKUP($B57,Ebus!$A$1716:$AS$1727,MATCH(G$36,Ebus!$A$1715:$AS$1715,FALSE),FALSE) -> 344 | H57: =VLOOKUP($B57,Ebus!$A$1716:$AS$1727,MATCH(H$36,Ebus!$A$1715:$AS$1715,FALSE),FALSE) -> 361 | I57: =VLOOKUP($B57,Ebus!$A$1716:$AS$1727,MATCH(I$36,Ebus!$A$1715:$AS$1715,FALSE),FALSE) -> 2,458 | J57: =VLOOKUP($B57,Ebus!$A$1716:$AS$1727,MATCH(J$36,Ebus!$A$1715:$AS$1715,FALSE),FALSE) -> 4,516 | K57: =VLOOKUP($B57,Ebus!$A$1716:$AS$1727,MATCH(K$36,Ebus!$A$1715:$AS$1715,FALSE),FALSE) -> 6,426 | L57: =VLOOKUP($B57,Ebus!$A$1716:$AS$1727,MATCH(L$36,Ebus!$A$1715:$AS$1715,FALSE),FALSE) -> 8,225 | M57: =VLOOKUP($B57,Ebus!$A$1716:$AS$1727,MATCH(M$36,Ebus!$A$1715:$AS$1715,FALSE),FALSE) -> 8,865 | N57: =VLOOKUP($B57,Ebus!$A$1716:$AS$1727,MATCH(N$36,Ebus!$A$1715:$AS$1715,FALSE),FALSE) -> 9,408 | O57: =VLOOKUP($B57,Ebus!$A$1716:$AS$1727,MATCH(O$36,Ebus!$A$1715:$AS$1715,FALSE),FALSE) -> 9,954 | P57: =VLOOKUP($B57,Ebus!$A$1716:$AS$1727,MATCH(P$36,Ebus!$A$1715:$AS$1715,FALSE),FALSE) -> 10,287 | Q57: =VLOOKUP($B57,Ebus!$A$1716:$AS$1727,MATCH(Q$36,Ebus!$A$1715:$AS$1715,FALSE),FALSE) -> 10,359 | R57: =VLOOKUP($B57,Ebus!$A$1716:$AS$1727,MATCH(R$36,Ebus!$A$1715:$AS$1715,FALSE),FALSE) -> 10,139 | S57: =VLOOKUP($B57,Ebus!$A$1716:$AS$1727,MATCH(S$36,Ebus!$A$1715:$AS$1715,FALSE),FALSE) -> 9,648 | T57: =VLOOKUP($B57,Ebus!$A$1716:$AS$1727,MATCH(T$36,Ebus!$A$1715:$AS$1715,FALSE),FALSE) -> 9,240 | U57: =VLOOKUP($B57,Ebus!$A$1716:$AS$1727,MATCH(U$36,Ebus!$A$1715:$AS$1715,FALSE),FALSE) -> 8,755 | V57: =VLOOKUP($B57,Ebus!$A$1716:$AS$1727,MATCH(V$36,Ebus!$A$1715:$AS$1715,FALSE),FALSE) -> 8,317 | W57: =VLOOKUP($B57,Ebus!$A$1716:$AS$1727,MATCH(W$36,Ebus!$A$1715:$AS$1715,FALSE),FALSE) -> 7,989 | X57: =VLOOKUP($B57,Ebus!$A$1716:$AS$1727,MATCH(X$36,Ebus!$A$1715:$AS$1715,FALSE),FALSE) -> 7,760 | Y57: =VLOOKUP($B57,Ebus!$A$1716:$AS$1727,MATCH(Y$36,Ebus!$A$1715:$AS$1715,FALSE),FALSE) -> 7,702 | Z57: =VLOOKUP($B57,Ebus!$A$1716:$AS$1727,MATCH(Z$36,Ebus!$A$1715:$AS$1715,FALSE),FALSE) -> 7,630 | AA57: =VLOOKUP($B57,Ebus!$A$1716:$AS$1727,MATCH(AA$36,Ebus!$A$1715:$AS$1715,FALSE),FALSE) -> 7,518 | AB57: =VLOOKUP($B57,Ebus!$A$1716:$AS$1727,MATCH(AB$36,Ebus!$A$1715:$AS$1715,FALSE),FALSE) -> 7,357 | AC57: =VLOOKUP($B57,Ebus!$A$1716:$AS$1727,MATCH(AC$36,Ebus!$A$1715:$AS$1715,FALSE),FALSE) -> 7,142 | AD57: =VLOOKUP($B57,Ebus!$A$1716:$AS$1727,MATCH(AD$36,Ebus!$A$1715:$AS$1715,FALSE),FALSE) -> 6,916 | AE57: =VLOOKUP($B57,Ebus!$A$1716:$AS$1727,MATCH(AE$36,Ebus!$A$1715:$AS$1715,FALSE),FALSE) -> 6,595 | AF57: =VLOOKUP($B57,Ebus!$A$1716:$AS$1727,MATCH(AF$36,Ebus!$A$1715:$AS$1715,FALSE),FALSE) -> 6,254 | AG57: =VLOOKUP($B57,Ebus!$A$1716:$AS$1727,MATCH(AG$36,Ebus!$A$1715:$AS$1715,FALSE),FALSE) -> 5,906 | AH57: =VLOOKUP($B57,Ebus!$A$1716:$AS$1727,MATCH(AH$36,Ebus!$A$1715:$AS$1715,FALSE),FALSE) -> 5,550 | AI57: =VLOOKUP($B57,Ebus!$A$1716:$AS$1727,MATCH(AI$36,Ebus!$A$1715:$AS$1715,FALSE),FALSE) -> 5,187 | AJ57: =VLOOKUP($B57,Ebus!$A$1716:$AS$1727,MATCH(AJ$36,Ebus!$A$1715:$AS$1715,FALSE),FALSE) -> 0 | AK57: =VLOOKUP($B57,Ebus!$A$1716:$AS$1727,MATCH(AK$36,Ebus!$A$1715:$AS$1715,FALSE),FALSE) -> 0 | AL57: =VLOOKUP($B57,Ebus!$A$1716:$AS$1727,MATCH(AL$36,Ebus!$A$1715:$AS$1715,FALSE),FALSE) -> 0 | AM57: =VLOOKUP($B57,Ebus!$A$1716:$AS$1727,MATCH(AM$36,Ebus!$A$1715:$AS$1715,FALSE),FALSE) -> 0 | AN57: =VLOOKUP($B57,Ebus!$A$1716:$AS$1727,MATCH(AN$36,Ebus!$A$1715:$AS$1715,FALSE),FALSE) -> 0 | AO57: =VLOOKUP($B57,Ebus!$A$1716:$AS$1727,MATCH(AO$36,Ebus!$A$1715:$AS$1715,FALSE),FALSE) -> 0 | AP57: =VLOOKUP($B57,Ebus!$A$1716:$AS$1727,MATCH(AP$36,Ebus!$A$1715:$AS$1715,FALSE),FALSE) -> 0 | AQ57: =VLOOKUP($B57,Ebus!$A$1716:$AS$1727,MATCH(AQ$36,Ebus!$A$1715:$AS$1715,FALSE),FALSE) -> 0 | AR57: =VLOOKUP($B57,Ebus!$A$1716:$AS$1727,MATCH(AR$36,Ebus!$A$1715:$AS$1715,FALSE),FALSE) -> 0 | AS57: =VLOOKUP($B57,Ebus!$A$1716:$AS$1727,MATCH(AS$36,Ebus!$A$1715:$AS$1715,FALSE),FALSE) -> 0 | AV57: 206,809
B58: PM2.5 (kg/year) | C58: Other scenario | D58: =VLOOKUP($B58,Non_ebus!$A$1716:$AS$1727,MATCH(D$36,Non_ebus!$A$1715:$AS$1715,FALSE),FALSE) -> 0 | E58: =VLOOKUP($B58,Non_ebus!$A$1716:$AS$1727,MATCH(E$36,Non_ebus!$A$1715:$AS$1715,FALSE),FALSE) -> 0 | F58: =VLOOKUP($B58,Non_ebus!$A$1716:$AS$1727,MATCH(F$36,Non_ebus!$A$1715:$AS$1715,FALSE),FALSE) -> 0 | G58: =VLOOKUP($B58,Non_ebus!$A$1716:$AS$1727,MATCH(G$36,Non_ebus!$A$1715:$AS$1715,FALSE),FALSE) -> 1,190 | H58: =VLOOKUP($B58,Non_ebus!$A$1716:$AS$1727,MATCH(H$36,Non_ebus!$A$1715:$AS$1715,FALSE),FALSE) -> 1,259 | I58: =VLOOKUP($B58,Non_ebus!$A$1716:$AS$1727,MATCH(I$36,Non_ebus!$A$1715:$AS$1715,FALSE),FALSE) -> 8,600 | J58: =VLOOKUP($B58,Non_ebus!$A$1716:$AS$1727,MATCH(J$36,Non_ebus!$A$1715:$AS$1715,FALSE),FALSE) -> 15,857 | K58: =VLOOKUP($B58,Non_ebus!$A$1716:$AS$1727,MATCH(K$36,Non_ebus!$A$1715:$AS$1715,FALSE),FALSE) -> 23,249 | L58: =VLOOKUP($B58,Non_ebus!$A$1716:$AS$1727,MATCH(L$36,Non_ebus!$A$1715:$AS$1715,FALSE),FALSE) -> 30,738 | M58: =VLOOKUP($B58,Non_ebus!$A$1716:$AS$1727,MATCH(M$36,Non_ebus!$A$1715:$AS$1715,FALSE),FALSE) -> 34,194 | N58: =VLOOKUP($B58,Non_ebus!$A$1716:$AS$1727,MATCH(N$36,Non_ebus!$A$1715:$AS$1715,FALSE),FALSE) -> 37,500 | O58: =VLOOKUP($B58,Non_ebus!$A$1716:$AS$1727,MATCH(O$36,Non_ebus!$A$1715:$AS$1715,FALSE),FALSE) -> 41,349 | P58: =VLOOKUP($B58,Non_ebus!$A$1716:$AS$1727,MATCH(P$36,Non_ebus!$A$1715:$AS$1715,FALSE),FALSE) -> 44,296 | Q58: =VLOOKUP($B58,Non_ebus!$A$1716:$AS$1727,MATCH(Q$36,Non_ebus!$A$1715:$AS$1715,FALSE),FALSE) -> 46,301 | R58: =VLOOKUP($B58,Non_ebus!$A$1716:$AS$1727,MATCH(R$36,Non_ebus!$A$1715:$AS$1715,FALSE),FALSE) -> 47,121 | S58: =VLOOKUP($B58,Non_ebus!$A$1716:$AS$1727,MATCH(S$36,Non_ebus!$A$1715:$AS$1715,FALSE),FALSE) -> 46,720 | T58: =VLOOKUP($B58,Non_ebus!$A$1716:$AS$1727,MATCH(T$36,Non_ebus!$A$1715:$AS$1715,FALSE),FALSE) -> 46,779 | U58: =VLOOKUP($B58,Non_ebus!$A$1716:$AS$1727,MATCH(U$36,Non_ebus!$A$1715:$AS$1715,FALSE),FALSE) -> 46,443 | V58: =VLOOKUP($B58,Non_ebus!$A$1716:$AS$1727,MATCH(V$36,Non_ebus!$A$1715:$AS$1715,FALSE),FALSE) -> 46,301 | W58: =VLOOKUP($B58,Non_ebus!$A$1716:$AS$1727,MATCH(W$36,Non_ebus!$A$1715:$AS$1715,FALSE),FALSE) -> 46,710 | X58: =VLOOKUP($B58,Non_ebus!$A$1716:$AS$1727,MATCH(X$36,Non_ebus!$A$1715:$AS$1715,FALSE),FALSE) -> 47,689 | Y58: =VLOOKUP($B58,Non_ebus!$A$1716:$AS$1727,MATCH(Y$36,Non_ebus!$A$1715:$AS$1715,FALSE),FALSE) -> 49,805 | Z58: =VLOOKUP($B58,Non_ebus!$A$1716:$AS$1727,MATCH(Z$36,Non_ebus!$A$1715:$AS$1715,FALSE),FALSE) -> 52,009 | AA58: =VLOOKUP($B58,Non_ebus!$A$1716:$AS$1727,MATCH(AA$36,Non_ebus!$A$1715:$AS$1715,FALSE),FALSE) -> 54,116 | AB58: =VLOOKUP($B58,Non_ebus!$A$1716:$AS$1727,MATCH(AB$36,Non_ebus!$A$1715:$AS$1715,FALSE),FALSE) -> 56,023 | AC58: =VLOOKUP($B58,Non_ebus!$A$1716:$AS$1727,MATCH(AC$36,Non_ebus!$A$1715:$AS$1715,FALSE),FALSE) -> 57,670 | AD58: =VLOOKUP($B58,Non_ebus!$A$1716:$AS$1727,MATCH(AD$36,Non_ebus!$A$1715:$AS$1715,FALSE),FALSE) -> 59,381 | AE58: =VLOOKUP($B58,Non_ebus!$A$1716:$AS$1727,MATCH(AE$36,Non_ebus!$A$1715:$AS$1715,FALSE),FALSE) -> 60,475 | AF58: =VLOOKUP($B58,Non_ebus!$A$1716:$AS$1727,MATCH(AF$36,Non_ebus!$A$1715:$AS$1715,FALSE),FALSE) -> 61,468 | AG58: =VLOOKUP($B58,Non_ebus!$A$1716:$AS$1727,MATCH(AG$36,Non_ebus!$A$1715:$AS$1715,FALSE),FALSE) -> 62,465 | AH58: =VLOOKUP($B58,Non_ebus!$A$1716:$AS$1727,MATCH(AH$36,Non_ebus!$A$1715:$AS$1715,FALSE),FALSE) -> 63,468 | AI58: =VLOOKUP($B58,Non_ebus!$A$1716:$AS$1727,MATCH(AI$36,Non_ebus!$A$1715:$AS$1715,FALSE),FALSE) -> 64,481 | AJ58: =VLOOKUP($B58,Non_ebus!$A$1716:$AS$1727,MATCH(AJ$36,Non_ebus!$A$1715:$AS$1715,FALSE),FALSE) -> 0 | AK58: =VLOOKUP($B58,Non_ebus!$A$1716:$AS$1727,MATCH(AK$36,Non_ebus!$A$1715:$AS$1715,FALSE),FALSE) -> 0 | AL58: =VLOOKUP($B58,Non_ebus!$A$1716:$AS$1727,MATCH(AL$36,Non_ebus!$A$1715:$AS$1715,FALSE),FALSE) -> 0 | AM58: =VLOOKUP($B58,Non_ebus!$A$1716:$AS$1727,MATCH(AM$36,Non_ebus!$A$1715:$AS$1715,FALSE),FALSE) -> 0 | AN58: =VLOOKUP($B58,Non_ebus!$A$1716:$AS$1727,MATCH(AN$36,Non_ebus!$A$1715:$AS$1715,FALSE),FALSE) -> 0 | AO58: =VLOOKUP($B58,Non_ebus!$A$1716:$AS$1727,MATCH(AO$36,Non_ebus!$A$1715:$AS$1715,FALSE),FALSE) -> 0 | AP58: =VLOOKUP($B58,Non_ebus!$A$1716:$AS$1727,MATCH(AP$36,Non_ebus!$A$1715:$AS$1715,FALSE),FALSE) -> 0 | AQ58: =VLOOKUP($B58,Non_ebus!$A$1716:$AS$1727,MATCH(AQ$36,Non_ebus!$A$1715:$AS$1715,FALSE),FALSE) -> 0 | AR58: =VLOOKUP($B58,Non_ebus!$A$1716:$AS$1727,MATCH(AR$36,Non_ebus!$A$1715:$AS$1715,FALSE),FALSE) -> 0 | AS58: =VLOOKUP($B58,Non_ebus!$A$1716:$AS$1727,MATCH(AS$36,Non_ebus!$A$1715:$AS$1715,FALSE),FALSE) -> 0 | AV58: 1,253,656
B59: SOx (kg/year) | C59: Ebus scenario | D59: =VLOOKUP($B59,Ebus!$A$1716:$AS$1727,MATCH(D$36,Ebus!$A$1715:$AS$1715,FALSE),FALSE) -> 0 | E59: =VLOOKUP($B59,Ebus!$A$1716:$AS$1727,MATCH(E$36,Ebus!$A$1715:$AS$1715,FALSE),FALSE) -> 0 | F59: =VLOOKUP($B59,Ebus!$A$1716:$AS$1727,MATCH(F$36,Ebus!$A$1715:$AS$1715,FALSE),FALSE) -> 0 | G59: =VLOOKUP($B59,Ebus!$A$1716:$AS$1727,MATCH(G$36,Ebus!$A$1715:$AS$1715,FALSE),FALSE) -> 1,232 | H59: =VLOOKUP($B59,Ebus!$A$1716:$AS$1727,MATCH(H$36,Ebus!$A$1715:$AS$1715,FALSE),FALSE) -> 1,285 | I59: =VLOOKUP($B59,Ebus!$A$1716:$AS$1727,MATCH(I$36,Ebus!$A$1715:$AS$1715,FALSE),FALSE) -> 8,730 | J59: =VLOOKUP($B59,Ebus!$A$1716:$AS$1727,MATCH(J$36,Ebus!$A$1715:$AS$1715,FALSE),FALSE) -> 15,979 | K59: =VLOOKUP($B59,Ebus!$A$1716:$AS$1727,MATCH(K$36,Ebus!$A$1715:$AS$1715,FALSE),FALSE) -> 22,715 | L59: =VLOOKUP($B59,Ebus!$A$1716:$AS$1727,MATCH(L$36,Ebus!$A$1715:$AS$1715,FALSE),FALSE) -> 29,045 | M59: =VLOOKUP($B59,Ebus!$A$1716:$AS$1727,MATCH(M$36,Ebus!$A$1715:$AS$1715,FALSE),FALSE) -> 31,269 | N59: =VLOOKUP($B59,Ebus!$A$1716:$AS$1727,MATCH(N$36,Ebus!$A$1715:$AS$1715,FALSE),FALSE) -> 33,148 | O59: =VLOOKUP($B59,Ebus!$A$1716:$AS$1727,MATCH(O$36,Ebus!$A$1715:$AS$1715,FALSE),FALSE) -> 35,029 | P59: =VLOOKUP($B59,Ebus!$A$1716:$AS$1727,MATCH(P$36,Ebus!$A$1715:$AS$1715,FALSE),FALSE) -> 36,187 | Q59: =VLOOKUP($B59,Ebus!$A$1716:$AS$1727,MATCH(Q$36,Ebus!$A$1715:$AS$1715,FALSE),FALSE) -> 36,422 | R59: =VLOOKUP($B59,Ebus!$A$1716:$AS$1727,MATCH(R$36,Ebus!$A$1715:$AS$1715,FALSE),FALSE) -> 35,630 | S59: =VLOOKUP($B59,Ebus!$A$1716:$AS$1727,MATCH(S$36,Ebus!$A$1715:$AS$1715,FALSE),FALSE) -> 33,886 | T59: =VLOOKUP($B59,Ebus!$A$1716:$AS$1727,MATCH(T$36,Ebus!$A$1715:$AS$1715,FALSE),FALSE) -> 32,438 | U59: =VLOOKUP($B59,Ebus!$A$1716:$AS$1727,MATCH(U$36,Ebus!$A$1715:$AS$1715,FALSE),FALSE) -> 30,720 | V59: =VLOOKUP($B59,Ebus!$A$1716:$AS$1727,MATCH(V$36,Ebus!$A$1715:$AS$1715,FALSE),FALSE) -> 29,171 | W59: =VLOOKUP($B59,Ebus!$A$1716:$AS$1727,MATCH(W$36,Ebus!$A$1715:$AS$1715,FALSE),FALSE) -> 28,005 | X59: =VLOOKUP($B59,Ebus!$A$1716:$AS$1727,MATCH(X$36,Ebus!$A$1715:$AS$1715,FALSE),FALSE) -> 27,190 | Y59: =VLOOKUP($B59,Ebus!$A$1716:$AS$1727,MATCH(Y$36,Ebus!$A$1715:$AS$1715,FALSE),FALSE) -> 26,969 | Z59: =VLOOKUP($B59,Ebus!$A$1716:$AS$1727,MATCH(Z$36,Ebus!$A$1715:$AS$1715,FALSE),FALSE) -> 26,704 | AA59: =VLOOKUP($B59,Ebus!$A$1716:$AS$1727,MATCH(AA$36,Ebus!$A$1715:$AS$1715,FALSE),FALSE) -> 26,303 | AB59: =VLOOKUP($B59,Ebus!$A$1716:$AS$1727,MATCH(AB$36,Ebus!$A$1715:$AS$1715,FALSE),FALSE) -> 25,724 | AC59: =VLOOKUP($B59,Ebus!$A$1716:$AS$1727,MATCH(AC$36,Ebus!$A$1715:$AS$1715,FALSE),FALSE) -> 24,958 | AD59: =VLOOKUP($B59,Ebus!$A$1716:$AS$1727,MATCH(AD$36,Ebus!$A$1715:$AS$1715,FALSE),FALSE) -> 24,153 | AE59: =VLOOKUP($B59,Ebus!$A$1716:$AS$1727,MATCH(AE$36,Ebus!$A$1715:$AS$1715,FALSE),FALSE) -> 23,029 | AF59: =VLOOKUP($B59,Ebus!$A$1716:$AS$1727,MATCH(AF$36,Ebus!$A$1715:$AS$1715,FALSE),FALSE) -> 21,835 | AG59: =VLOOKUP($B59,Ebus!$A$1716:$AS$1727,MATCH(AG$36,Ebus!$A$1715:$AS$1715,FALSE),FALSE) -> 20,613 | AH59: =VLOOKUP($B59,Ebus!$A$1716:$AS$1727,MATCH(AH$36,Ebus!$A$1715:$AS$1715,FALSE),FALSE) -> 19,367 | AI59: =VLOOKUP($B59,Ebus!$A$1716:$AS$1727,MATCH(AI$36,Ebus!$A$1715:$AS$1715,FALSE),FALSE) -> 18,097 | AJ59: =VLOOKUP($B59,Ebus!$A$1716:$AS$1727,MATCH(AJ$36,Ebus!$A$1715:$AS$1715,FALSE),FALSE) -> 0 | AK59: =VLOOKUP($B59,Ebus!$A$1716:$AS$1727,MATCH(AK$36,Ebus!$A$1715:$AS$1715,FALSE),FALSE) -> 0 | AL59: =VLOOKUP($B59,Ebus!$A$1716:$AS$1727,MATCH(AL$36,Ebus!$A$1715:$AS$1715,FALSE),FALSE) -> 0 | AM59: =VLOOKUP($B59,Ebus!$A$1716:$AS$1727,MATCH(AM$36,Ebus!$A$1715:$AS$1715,FALSE),FALSE) -> 0 | AN59: =VLOOKUP($B59,Ebus!$A$1716:$AS$1727,MATCH(AN$36,Ebus!$A$1715:$AS$1715,FALSE),FALSE) -> 0 | AO59: =VLOOKUP($B59,Ebus!$A$1716:$AS$1727,MATCH(AO$36,Ebus!$A$1715:$AS$1715,FALSE),FALSE) -> 0 | AP59: =VLOOKUP($B59,Ebus!$A$1716:$AS$1727,MATCH(AP$36,Ebus!$A$1715:$AS$1715,FALSE),FALSE) -> 0 | AQ59: =VLOOKUP($B59,Ebus!$A$1716:$AS$1727,MATCH(AQ$36,Ebus!$A$1715:$AS$1715,FALSE),FALSE) -> 0 | AR59: =VLOOKUP($B59,Ebus!$A$1716:$AS$1727,MATCH(AR$36,Ebus!$A$1715:$AS$1715,FALSE),FALSE) -> 0 | AS59: =VLOOKUP($B59,Ebus!$A$1716:$AS$1727,MATCH(AS$36,Ebus!$A$1715:$AS$1715,FALSE),FALSE) -> 0 | AV59: 725,834
B60: SOx (kg/year) | C60: Other scenario | D60: =VLOOKUP($B60,Non_ebus!$A$1716:$AS$1727,MATCH(D$36,Non_ebus!$A$1715:$AS$1715,FALSE),FALSE) -> 0 | E60: =VLOOKUP($B60,Non_ebus!$A$1716:$AS$1727,MATCH(E$36,Non_ebus!$A$1715:$AS$1715,FALSE),FALSE) -> 0 | F60: =VLOOKUP($B60,Non_ebus!$A$1716:$AS$1727,MATCH(F$36,Non_ebus!$A$1715:$AS$1715,FALSE),FALSE) -> 0 | G60: =VLOOKUP($B60,Non_ebus!$A$1716:$AS$1727,MATCH(G$36,Non_ebus!$A$1715:$AS$1715,FALSE),FALSE) -> 41 | H60: =VLOOKUP($B60,Non_ebus!$A$1716:$AS$1727,MATCH(H$36,Non_ebus!$A$1715:$AS$1715,FALSE),FALSE) -> 44 | I60: =VLOOKUP($B60,Non_ebus!$A$1716:$AS$1727,MATCH(I$36,Non_ebus!$A$1715:$AS$1715,FALSE),FALSE) -> 323 | J60: =VLOOKUP($B60,Non_ebus!$A$1716:$AS$1727,MATCH(J$36,Non_ebus!$A$1715:$AS$1715,FALSE),FALSE) -> 610 | K60: =VLOOKUP($B60,Non_ebus!$A$1716:$AS$1727,MATCH(K$36,Non_ebus!$A$1715:$AS$1715,FALSE),FALSE) -> 903 | L60: =VLOOKUP($B60,Non_ebus!$A$1716:$AS$1727,MATCH(L$36,Non_ebus!$A$1715:$AS$1715,FALSE),FALSE) -> 1,199 | M60: =VLOOKUP($B60,Non_ebus!$A$1716:$AS$1727,MATCH(M$36,Non_ebus!$A$1715:$AS$1715,FALSE),FALSE) -> 1,336 | N60: =VLOOKUP($B60,Non_ebus!$A$1716:$AS$1727,MATCH(N$36,Non_ebus!$A$1715:$AS$1715,FALSE),FALSE) -> 1,467 | O60: =VLOOKUP($B60,Non_ebus!$A$1716:$AS$1727,MATCH(O$36,Non_ebus!$A$1715:$AS$1715,FALSE),FALSE) -> 1,530 | P60: =VLOOKUP($B60,Non_ebus!$A$1716:$AS$1727,MATCH(P$36,Non_ebus!$A$1715:$AS$1715,FALSE),FALSE) -> 1,642 | Q60: =VLOOKUP($B60,Non_ebus!$A$1716:$AS$1727,MATCH(Q$36,Non_ebus!$A$1715:$AS$1715,FALSE),FALSE) -> 1,719 | R60: =VLOOKUP($B60,Non_ebus!$A$1716:$AS$1727,MATCH(R$36,Non_ebus!$A$1715:$AS$1715,FALSE),FALSE) -> 1,753 | S60: =VLOOKUP($B60,Non_ebus!$A$1716:$AS$1727,MATCH(S$36,Non_ebus!$A$1715:$AS$1715,FALSE),FALSE) -> 1,740 | T60: =VLOOKUP($B60,Non_ebus!$A$1716:$AS$1727,MATCH(T$36,Non_ebus!$A$1715:$AS$1715,FALSE),FALSE) -> 1,745 | U60: =VLOOKUP($B60,Non_ebus!$A$1716:$AS$1727,MATCH(U$36,Non_ebus!$A$1715:$AS$1715,FALSE),FALSE) -> 1,734 | V60: =VLOOKUP($B60,Non_ebus!$A$1716:$AS$1727,MATCH(V$36,Non_ebus!$A$1715:$AS$1715,FALSE),FALSE) -> 1,729 | W60: =VLOOKUP($B60,Non_ebus!$A$1716:$AS$1727,MATCH(W$36,Non_ebus!$A$1715:$AS$1715,FALSE),FALSE) -> 1,745 | X60: =VLOOKUP($B60,Non_ebus!$A$1716:$AS$1727,MATCH(X$36,Non_ebus!$A$1715:$AS$1715,FALSE),FALSE) -> 1,781 | Y60: =VLOOKUP($B60,Non_ebus!$A$1716:$AS$1727,MATCH(Y$36,Non_ebus!$A$1715:$AS$1715,FALSE),FALSE) -> 1,860 | Z60: =VLOOKUP($B60,Non_ebus!$A$1716:$AS$1727,MATCH(Z$36,Non_ebus!$A$1715:$AS$1715,FALSE),FALSE) -> 1,943 | AA60: =VLOOKUP($B60,Non_ebus!$A$1716:$AS$1727,MATCH(AA$36,Non_ebus!$A$1715:$AS$1715,FALSE),FALSE) -> 2,021 | AB60: =VLOOKUP($B60,Non_ebus!$A$1716:$AS$1727,MATCH(AB$36,Non_ebus!$A$1715:$AS$1715,FALSE),FALSE) -> 2,093 | AC60: =VLOOKUP($B60,Non_ebus!$A$1716:$AS$1727,MATCH(AC$36,Non_ebus!$A$1715:$AS$1715,FALSE),FALSE) -> 2,154 | AD60: =VLOOKUP($B60,Non_ebus!$A$1716:$AS$1727,MATCH(AD$36,Non_ebus!$A$1715:$AS$1715,FALSE),FALSE) -> 2,218 | AE60: =VLOOKUP($B60,Non_ebus!$A$1716:$AS$1727,MATCH(AE$36,Non_ebus!$A$1715:$AS$1715,FALSE),FALSE) -> 2,259 | AF60: =VLOOKUP($B60,Non_ebus!$A$1716:$AS$1727,MATCH(AF$36,Non_ebus!$A$1715:$AS$1715,FALSE),FALSE) -> 2,296 | AG60: =VLOOKUP($B60,Non_ebus!$A$1716:$AS$1727,MATCH(AG$36,Non_ebus!$A$1715:$AS$1715,FALSE),FALSE) -> 2,333 | AH60: =VLOOKUP($B60,Non_ebus!$A$1716:$AS$1727,MATCH(AH$36,Non_ebus!$A$1715:$AS$1715,FALSE),FALSE) -> 2,371 | AI60: =VLOOKUP($B60,Non_ebus!$A$1716:$AS$1727,MATCH(AI$36,Non_ebus!$A$1715:$AS$1715,FALSE),FALSE) -> 2,409 | AJ60: =VLOOKUP($B60,Non_ebus!$A$1716:$AS$1727,MATCH(AJ$36,Non_ebus!$A$1715:$AS$1715,FALSE),FALSE) ->  | AK60: =VLOOKUP($B60,Non_ebus!$A$1716:$AS$1727,MATCH(AK$36,Non_ebus!$A$1715:$AS$1715,FALSE),FALSE) ->  | AL60: =VLOOKUP($B60,Non_ebus!$A$1716:$AS$1727,MATCH(AL$36,Non_ebus!$A$1715:$AS$1715,FALSE),FALSE) ->  | AM60: =VLOOKUP($B60,Non_ebus!$A$1716:$AS$1727,MATCH(AM$36,Non_ebus!$A$1715:$AS$1715,FALSE),FALSE) ->  | AN60: =VLOOKUP($B60,Non_ebus!$A$1716:$AS$1727,MATCH(AN$36,Non_ebus!$A$1715:$AS$1715,FALSE),FALSE) ->  | AO60: =VLOOKUP($B60,Non_ebus!$A$1716:$AS$1727,MATCH(AO$36,Non_ebus!$A$1715:$AS$1715,FALSE),FALSE) ->  | AP60: =VLOOKUP($B60,Non_ebus!$A$1716:$AS$1727,MATCH(AP$36,Non_ebus!$A$1715:$AS$1715,FALSE),FALSE) ->  | AQ60: =VLOOKUP($B60,Non_ebus!$A$1716:$AS$1727,MATCH(AQ$36,Non_ebus!$A$1715:$AS$1715,FALSE),FALSE) ->  | AR60: =VLOOKUP($B60,Non_ebus!$A$1716:$AS$1727,MATCH(AR$36,Non_ebus!$A$1715:$AS$1715,FALSE),FALSE) ->  | AS60: =VLOOKUP($B60,Non_ebus!$A$1716:$AS$1727,MATCH(AS$36,Non_ebus!$A$1715:$AS$1715,FALSE),FALSE) ->  | AV60: 46,999
B61: TSP (kg/year) | C61: Ebus scenario | D61: =VLOOKUP($B61,Ebus!$A$1716:$AS$1727,MATCH(D$36,Ebus!$A$1715:$AS$1715,FALSE),FALSE) -> 0 | E61: =VLOOKUP($B61,Ebus!$A$1716:$AS$1727,MATCH(E$36,Ebus!$A$1715:$AS$1715,FALSE),FALSE) -> 0 | F61: =VLOOKUP($B61,Ebus!$A$1716:$AS$1727,MATCH(F$36,Ebus!$A$1715:$AS$1715,FALSE),FALSE) -> 0 | G61: =VLOOKUP($B61,Ebus!$A$1716:$AS$1727,MATCH(G$36,Ebus!$A$1715:$AS$1715,FALSE),FALSE) -> 1,047 | H61: =VLOOKUP($B61,Ebus!$A$1716:$AS$1727,MATCH(H$36,Ebus!$A$1715:$AS$1715,FALSE),FALSE) -> 1,094 | I61: =VLOOKUP($B61,Ebus!$A$1716:$AS$1727,MATCH(I$36,Ebus!$A$1715:$AS$1715,FALSE),FALSE) -> 7,444 | J61: =VLOOKUP($B61,Ebus!$A$1716:$AS$1727,MATCH(J$36,Ebus!$A$1715:$AS$1715,FALSE),FALSE) -> 13,645 | K61: =VLOOKUP($B61,Ebus!$A$1716:$AS$1727,MATCH(K$36,Ebus!$A$1715:$AS$1715,FALSE),FALSE) -> 19,409 | L61: =VLOOKUP($B61,Ebus!$A$1716:$AS$1727,MATCH(L$36,Ebus!$A$1715:$AS$1715,FALSE),FALSE) -> 24,833 | M61: =VLOOKUP($B61,Ebus!$A$1716:$AS$1727,MATCH(M$36,Ebus!$A$1715:$AS$1715,FALSE),FALSE) -> 26,751 | N61: =VLOOKUP($B61,Ebus!$A$1716:$AS$1727,MATCH(N$36,Ebus!$A$1715:$AS$1715,FALSE),FALSE) -> 28,378 | O61: =VLOOKUP($B61,Ebus!$A$1716:$AS$1727,MATCH(O$36,Ebus!$A$1715:$AS$1715,FALSE),FALSE) -> 30,009 | P61: =VLOOKUP($B61,Ebus!$A$1716:$AS$1727,MATCH(P$36,Ebus!$A$1715:$AS$1715,FALSE),FALSE) -> 31,011 | Q61: =VLOOKUP($B61,Ebus!$A$1716:$AS$1727,MATCH(Q$36,Ebus!$A$1715:$AS$1715,FALSE),FALSE) -> 31,224 | R61: =VLOOKUP($B61,Ebus!$A$1716:$AS$1727,MATCH(R$36,Ebus!$A$1715:$AS$1715,FALSE),FALSE) -> 30,556 | S61: =VLOOKUP($B61,Ebus!$A$1716:$AS$1727,MATCH(S$36,Ebus!$A$1715:$AS$1715,FALSE),FALSE) -> 29,072 | T61: =VLOOKUP($B61,Ebus!$A$1716:$AS$1727,MATCH(T$36,Ebus!$A$1715:$AS$1715,FALSE),FALSE) -> 27,841 | U61: =VLOOKUP($B61,Ebus!$A$1716:$AS$1727,MATCH(U$36,Ebus!$A$1715:$AS$1715,FALSE),FALSE) -> 26,375 | V61: =VLOOKUP($B61,Ebus!$A$1716:$AS$1727,MATCH(V$36,Ebus!$A$1715:$AS$1715,FALSE),FALSE) -> 25,054 | W61: =VLOOKUP($B61,Ebus!$A$1716:$AS$1727,MATCH(W$36,Ebus!$A$1715:$AS$1715,FALSE),FALSE) -> 24,062 | X61: =VLOOKUP($B61,Ebus!$A$1716:$AS$1727,MATCH(X$36,Ebus!$A$1715:$AS$1715,FALSE),FALSE) -> 23,371 | Y61: =VLOOKUP($B61,Ebus!$A$1716:$AS$1727,MATCH(Y$36,Ebus!$A$1715:$AS$1715,FALSE),FALSE) -> 23,191 | Z61: =VLOOKUP($B61,Ebus!$A$1716:$AS$1727,MATCH(Z$36,Ebus!$A$1715:$AS$1715,FALSE),FALSE) -> 22,971 | AA61: =VLOOKUP($B61,Ebus!$A$1716:$AS$1727,MATCH(AA$36,Ebus!$A$1715:$AS$1715,FALSE),FALSE) -> 22,634 | AB61: =VLOOKUP($B61,Ebus!$A$1716:$AS$1727,MATCH(AB$36,Ebus!$A$1715:$AS$1715,FALSE),FALSE) -> 22,145 | AC61: =VLOOKUP($B61,Ebus!$A$1716:$AS$1727,MATCH(AC$36,Ebus!$A$1715:$AS$1715,FALSE),FALSE) -> 21,495 | AD61: =VLOOKUP($B61,Ebus!$A$1716:$AS$1727,MATCH(AD$36,Ebus!$A$1715:$AS$1715,FALSE),FALSE) -> 20,811 | AE61: =VLOOKUP($B61,Ebus!$A$1716:$AS$1727,MATCH(AE$36,Ebus!$A$1715:$AS$1715,FALSE),FALSE) -> 19,845 | AF61: =VLOOKUP($B61,Ebus!$A$1716:$AS$1727,MATCH(AF$36,Ebus!$A$1715:$AS$1715,FALSE),FALSE) -> 18,818 | AG61: =VLOOKUP($B61,Ebus!$A$1716:$AS$1727,MATCH(AG$36,Ebus!$A$1715:$AS$1715,FALSE),FALSE) -> 17,769 | AH61: =VLOOKUP($B61,Ebus!$A$1716:$AS$1727,MATCH(AH$36,Ebus!$A$1715:$AS$1715,FALSE),FALSE) -> 16,697 | AI61: =VLOOKUP($B61,Ebus!$A$1716:$AS$1727,MATCH(AI$36,Ebus!$A$1715:$AS$1715,FALSE),FALSE) -> 15,606 | AJ61: =VLOOKUP($B61,Ebus!$A$1716:$AS$1727,MATCH(AJ$36,Ebus!$A$1715:$AS$1715,FALSE),FALSE) -> 0 | AK61: =VLOOKUP($B61,Ebus!$A$1716:$AS$1727,MATCH(AK$36,Ebus!$A$1715:$AS$1715,FALSE),FALSE) -> 0 | AL61: =VLOOKUP($B61,Ebus!$A$1716:$AS$1727,MATCH(AL$36,Ebus!$A$1715:$AS$1715,FALSE),FALSE) -> 0 | AM61: =VLOOKUP($B61,Ebus!$A$1716:$AS$1727,MATCH(AM$36,Ebus!$A$1715:$AS$1715,FALSE),FALSE) -> 0 | AN61: =VLOOKUP($B61,Ebus!$A$1716:$AS$1727,MATCH(AN$36,Ebus!$A$1715:$AS$1715,FALSE),FALSE) -> 0 | AO61: =VLOOKUP($B61,Ebus!$A$1716:$AS$1727,MATCH(AO$36,Ebus!$A$1715:$AS$1715,FALSE),FALSE) -> 0 | AP61: =VLOOKUP($B61,Ebus!$A$1716:$AS$1727,MATCH(AP$36,Ebus!$A$1715:$AS$1715,FALSE),FALSE) -> 0 | AQ61: =VLOOKUP($B61,Ebus!$A$1716:$AS$1727,MATCH(AQ$36,Ebus!$A$1715:$AS$1715,FALSE),FALSE) -> 0 | AR61: =VLOOKUP($B61,Ebus!$A$1716:$AS$1727,MATCH(AR$36,Ebus!$A$1715:$AS$1715,FALSE),FALSE) -> 0 | AS61: =VLOOKUP($B61,Ebus!$A$1716:$AS$1727,MATCH(AS$36,Ebus!$A$1715:$AS$1715,FALSE),FALSE) -> 0 | AV61: 623,160
B62: TSP (kg/year) | C62: Other scenario | D62: =VLOOKUP($B62,Non_ebus!$A$1716:$AS$1727,MATCH(D$36,Non_ebus!$A$1715:$AS$1715,FALSE),FALSE) -> 0 | E62: =VLOOKUP($B62,Non_ebus!$A$1716:$AS$1727,MATCH(E$36,Non_ebus!$A$1715:$AS$1715,FALSE),FALSE) -> 0 | F62: =VLOOKUP($B62,Non_ebus!$A$1716:$AS$1727,MATCH(F$36,Non_ebus!$A$1715:$AS$1715,FALSE),FALSE) -> 0 | G62: =VLOOKUP($B62,Non_ebus!$A$1716:$AS$1727,MATCH(G$36,Non_ebus!$A$1715:$AS$1715,FALSE),FALSE) -> 3,369 | H62: =VLOOKUP($B62,Non_ebus!$A$1716:$AS$1727,MATCH(H$36,Non_ebus!$A$1715:$AS$1715,FALSE),FALSE) -> 3,564 | I62: =VLOOKUP($B62,Non_ebus!$A$1716:$AS$1727,MATCH(I$36,Non_ebus!$A$1715:$AS$1715,FALSE),FALSE) -> 24,243 | J62: =VLOOKUP($B62,Non_ebus!$A$1716:$AS$1727,MATCH(J$36,Non_ebus!$A$1715:$AS$1715,FALSE),FALSE) -> 44,635 | K62: =VLOOKUP($B62,Non_ebus!$A$1716:$AS$1727,MATCH(K$36,Non_ebus!$A$1715:$AS$1715,FALSE),FALSE) -> 65,403 | L62: =VLOOKUP($B62,Non_ebus!$A$1716:$AS$1727,MATCH(L$36,Non_ebus!$A$1715:$AS$1715,FALSE),FALSE) -> 86,444 | M62: =VLOOKUP($B62,Non_ebus!$A$1716:$AS$1727,MATCH(M$36,Non_ebus!$A$1715:$AS$1715,FALSE),FALSE) -> 96,155 | N62: =VLOOKUP($B62,Non_ebus!$A$1716:$AS$1727,MATCH(N$36,Non_ebus!$A$1715:$AS$1715,FALSE),FALSE) -> 105,440 | O62: =VLOOKUP($B62,Non_ebus!$A$1716:$AS$1727,MATCH(O$36,Non_ebus!$A$1715:$AS$1715,FALSE),FALSE) -> 115,400 | P62: =VLOOKUP($B62,Non_ebus!$A$1716:$AS$1727,MATCH(P$36,Non_ebus!$A$1715:$AS$1715,FALSE),FALSE) -> 123,610 | Q62: =VLOOKUP($B62,Non_ebus!$A$1716:$AS$1727,MATCH(Q$36,Non_ebus!$A$1715:$AS$1715,FALSE),FALSE) -> 129,190 | R62: =VLOOKUP($B62,Non_ebus!$A$1716:$AS$1727,MATCH(R$36,Non_ebus!$A$1715:$AS$1715,FALSE),FALSE) -> 131,464 | S62: =VLOOKUP($B62,Non_ebus!$A$1716:$AS$1727,MATCH(S$36,Non_ebus!$A$1715:$AS$1715,FALSE),FALSE) -> 130,332 | T62: =VLOOKUP($B62,Non_ebus!$A$1716:$AS$1727,MATCH(T$36,Non_ebus!$A$1715:$AS$1715,FALSE),FALSE) -> 130,484 | U62: =VLOOKUP($B62,Non_ebus!$A$1716:$AS$1727,MATCH(U$36,Non_ebus!$A$1715:$AS$1715,FALSE),FALSE) -> 129,540 | V62: =VLOOKUP($B62,Non_ebus!$A$1716:$AS$1727,MATCH(V$36,Non_ebus!$A$1715:$AS$1715,FALSE),FALSE) -> 129,141 | W62: =VLOOKUP($B62,Non_ebus!$A$1716:$AS$1727,MATCH(W$36,Non_ebus!$A$1715:$AS$1715,FALSE),FALSE) -> 130,279 | X62: =VLOOKUP($B62,Non_ebus!$A$1716:$AS$1727,MATCH(X$36,Non_ebus!$A$1715:$AS$1715,FALSE),FALSE) -> 133,011 | Y62: =VLOOKUP($B62,Non_ebus!$A$1716:$AS$1727,MATCH(Y$36,Non_ebus!$A$1715:$AS$1715,FALSE),FALSE) -> 138,912 | Z62: =VLOOKUP($B62,Non_ebus!$A$1716:$AS$1727,MATCH(Z$36,Non_ebus!$A$1715:$AS$1715,FALSE),FALSE) -> 145,061 | AA62: =VLOOKUP($B62,Non_ebus!$A$1716:$AS$1727,MATCH(AA$36,Non_ebus!$A$1715:$AS$1715,FALSE),FALSE) -> 150,936 | AB62: =VLOOKUP($B62,Non_ebus!$A$1716:$AS$1727,MATCH(AB$36,Non_ebus!$A$1715:$AS$1715,FALSE),FALSE) -> 156,255 | AC62: =VLOOKUP($B62,Non_ebus!$A$1716:$AS$1727,MATCH(AC$36,Non_ebus!$A$1715:$AS$1715,FALSE),FALSE) -> 160,850 | AD62: =VLOOKUP($B62,Non_ebus!$A$1716:$AS$1727,MATCH(AD$36,Non_ebus!$A$1715:$AS$1715,FALSE),FALSE) -> 165,621 | AE62: =VLOOKUP($B62,Non_ebus!$A$1716:$AS$1727,MATCH(AE$36,Non_ebus!$A$1715:$AS$1715,FALSE),FALSE) -> 168,672 | AF62: =VLOOKUP($B62,Non_ebus!$A$1716:$AS$1727,MATCH(AF$36,Non_ebus!$A$1715:$AS$1715,FALSE),FALSE) -> 171,442 | AG62: =VLOOKUP($B62,Non_ebus!$A$1716:$AS$1727,MATCH(AG$36,Non_ebus!$A$1715:$AS$1715,FALSE),FALSE) -> 174,223 | AH62: =VLOOKUP($B62,Non_ebus!$A$1716:$AS$1727,MATCH(AH$36,Non_ebus!$A$1715:$AS$1715,FALSE),FALSE) -> 177,020 | AI62: =VLOOKUP($B62,Non_ebus!$A$1716:$AS$1727,MATCH(AI$36,Non_ebus!$A$1715:$AS$1715,FALSE),FALSE) -> 179,845 | AJ62: =VLOOKUP($B62,Non_ebus!$A$1716:$AS$1727,MATCH(AJ$36,Non_ebus!$A$1715:$AS$1715,FALSE),FALSE) -> 0 | AK62: =VLOOKUP($B62,Non_ebus!$A$1716:$AS$1727,MATCH(AK$36,Non_ebus!$A$1715:$AS$1715,FALSE),FALSE) -> 0 | AL62: =VLOOKUP($B62,Non_ebus!$A$1716:$AS$1727,MATCH(AL$36,Non_ebus!$A$1715:$AS$1715,FALSE),FALSE) -> 0 | AM62: =VLOOKUP($B62,Non_ebus!$A$1716:$AS$1727,MATCH(AM$36,Non_ebus!$A$1715:$AS$1715,FALSE),FALSE) -> 0 | AN62: =VLOOKUP($B62,Non_ebus!$A$1716:$AS$1727,MATCH(AN$36,Non_ebus!$A$1715:$AS$1715,FALSE),FALSE) -> 0 | AO62: =VLOOKUP($B62,Non_ebus!$A$1716:$AS$1727,MATCH(AO$36,Non_ebus!$A$1715:$AS$1715,FALSE),FALSE) -> 0 | AP62: =VLOOKUP($B62,Non_ebus!$A$1716:$AS$1727,MATCH(AP$36,Non_ebus!$A$1715:$AS$1715,FALSE),FALSE) -> 0 | AQ62: =VLOOKUP($B62,Non_ebus!$A$1716:$AS$1727,MATCH(AQ$36,Non_ebus!$A$1715:$AS$1715,FALSE),FALSE) -> 0 | AR62: =VLOOKUP($B62,Non_ebus!$A$1716:$AS$1727,MATCH(AR$36,Non_ebus!$A$1715:$AS$1715,FALSE),FALSE) -> 0 | AS62: =VLOOKUP($B62,Non_ebus!$A$1716:$AS$1727,MATCH(AS$36,Non_ebus!$A$1715:$AS$1715,FALSE),FALSE) -> 0 | AV62: 3,500,542
B66: Savings/year
C68: UNIT | D68: =D36 -> 2019 | E68: 2020 | F68: 2021 | G68: 2022 | H68: 2023 | I68: 2024 | J68: 2025 | K68: 2026 | L68: 2027 | M68: 2028 | N68: 2029 | O68: 2030 | P68: 2031 | Q68: 2032 | R68: 2033 | S68: 2034 | T68: 2035 | U68: 2036 | V68: 2037 | W68: 2038 | X68: 2039 | Y68: 2040 | Z68: 2041 | AA68: 2042 | AB68: 2043 | AC68: 2044 | AD68: 2045 | AE68: 2046 | AF68: 2047 | AG68: 2048 | AH68: 2049 | AI68: 2050 | AJ68: 2051 | AK68: 2052 | AL68: 2053 | AM68: 2054 | AN68: 2055 | AO68: 2056 | AP68: 2057 | AQ68: 2058 | AR68: 2059 | AS68: 2060 | AV68: Average (unit/year)
C69: BC (kg/year) | D69: =D38-D37 -> 0 | E69: 0 | F69: 0 | G69: 149 | H69: 158 | I69: 1,080 | J69: 1,991 | K69: 2,934 | L69: 3,900 | M69: 4,360 | N69: 4,806 | O69: 5,681 | P69: 6,117 | Q69: 6,426 | R69: 6,574 | S69: 6,552 | T69: 6,595 | U69: 6,583 | V69: 6,598 | W69: 6,690 | X69: 6,864 | Y69: 7,203 | Z69: 7,558 | AA69: 7,900 | AB69: 8,216 | AC69: 8,495 | AD69: 8,784 | AE69: 8,987 | AF69: 9,175 | AG69: 9,364 | AH69: 9,555 | AI69: 9,748 | AJ69: 0 | AK69: 0 | AL69: 0 | AM69: 0 | AN69: 0 | AO69: 0 | AP69: 0 | AQ69: 0 | AR69: 0 | AS69: 0 | AV69: =AVERAGEIF(D69:AI69,"<>0") -> 6,174
C70: CH4 (kg/year) | D70: =D40-D39 -> 0 | E70: 0 | F70: 0 | G70: 412 | H70: 439 | I70: 3,299 | J70: 6,288 | K70: 9,394 | L70: 12,591 | M70: 14,139 | N70: 15,648 | O70: 17,293 | P70: 18,697 | Q70: 19,723 | R70: 20,256 | S70: 20,264 | T70: 20,469 | U70: 20,489 | V70: 20,581 | W70: 20,907 | X70: 21,485 | Y70: 22,580 | Z70: 23,725 | AA70: 24,833 | AB70: 25,858 | AC70: 26,769 | AD70: 27,717 | AE70: 28,384 | AF70: 29,006 | AG70: 29,633 | AH70: 30,266 | AI70: 30,906 | AJ70: 0 | AK70: 0 | AL70: 0 | AM70: 0 | AN70: 0 | AO70: 0 | AP70: 0 | AQ70: 0 | AR70: 0 | AS70: 0 | AV70: 19,381
C71: CO (kg/year) | D71: =D42-D41 -> 0 | E71: 0 | F71: 0 | G71: 2,883 | H71: 3,053 | I71: 22,417 | J71: 42,254 | K71: 63,163 | L71: 84,783 | M71: 95,392 | N71: 105,782 | O71: 118,165 | P71: 128,017 | Q71: 135,313 | R71: 139,241 | S71: 139,566 | T71: 141,255 | U71: 141,647 | V71: 142,538 | W71: 145,056 | X71: 149,327 | Y71: 157,200 | Z71: 165,397 | AA71: 173,354 | AB71: 180,740 | AC71: 187,349 | AD71: 194,217 | AE71: 199,041 | AF71: 203,558 | AG71: 208,111 | AH71: 212,703 | AI71: 217,351 | AJ71: 0 | AK71: 0 | AL71: 0 | AM71: 0 | AN71: 0 | AO71: 0 | AP71: 0 | AQ71: 0 | AR71: 0 | AS71: 0 | AV71: 134,444
C72: CO2 (tons/year) | D72: =D44-D43 -> 0 | E72: 0 | F72: 0 | G72: (4,482) | H72: (4,443) | I72: (21,032) | J72: (31,612) | K72: (31,364) | L72: (22,833) | M72: (7,173) | N72: 12,082 | O72: 34,013 | P72: 59,975 | Q72: 87,378 | R72: 114,196 | S72: 138,424 | T72: 164,446 | U72: 188,592 | V72: 212,545 | W72: 238,240 | X72: 266,626 | Y72: 302,246 | Z72: 339,854 | AA72: 378,256 | AB72: 416,593 | AC72: 454,136 | AD72: 493,278 | AE72: 528,249 | AF72: 562,859 | AG72: 597,970 | AH72: 633,582 | AI72: 669,730 | AJ72: 0 | AK72: 0 | AL72: 0 | AM72: 0 | AN72: 0 | AO72: 0 | AP72: 0 | AQ72: 0 | AR72: 0 | AS72: 0 | AV72: 233,460
C73: CO2e (tons/year) | D73: =D46-D45 -> 0 | E73: 0 | F73: 0 | G73: (4,470) | H73: (4,431) | I73: (20,935) | J73: (31,425) | K73: (31,082) | L73: (22,452) | M73: (6,743) | N73: 12,562 | O73: 34,547 | P73: 60,556 | Q73: 87,994 | R73: 114,833 | S73: 139,065 | T73: 165,097 | U73: 189,247 | V73: 213,208 | W73: 238,916 | X73: 267,324 | Y73: 302,983 | Z73: 340,632 | AA73: 379,074 | AB73: 417,448 | AC73: 455,026 | AD73: 494,203 | AE73: 529,199 | AF73: 563,834 | AG73: 598,970 | AH73: 634,606 | AI73: 670,780 | AJ73: 0 | AK73: 0 | AL73: 0 | AM73: 0 | AN73: 0 | AO73: 0 | AP73: 0 | AQ73: 0 | AR73: 0 | AS73: 0 | AV73: 234,089
C74: N2O (kg/year) | D74: =D50-D49 -> 0 | E74: 0 | F74: 0 | G74: (16) | H74: (14) | I74: (34) | J74: (13) | K74: 73 | L74: 209 | M74: 341 | N74: 494 | O74: 673 | P74: 861 | Q74: 1,048 | R74: 1,217 | S74: 1,357 | T74: 1,513 | U74: 1,654 | V74: 1,795 | W74: 1,953 | X74: 2,134 | Y74: 2,370 | Z74: 2,620 | AA74: 2,874 | AB74: 3,124 | AC74: 3,368 | AD74: 3,621 | AE74: 3,844 | AF74: 4,063 | AG74: 4,286 | AH74: 4,512 | AI74: 4,741 | AJ74: 0 | AK74: 0 | AL74: 0 | AM74: 0 | AN74: 0 | AO74: 0 | AP74: 0 | AQ74: 0 | AR74: 0 | AS74: 0 | AV74: 1,885
C75: NMVOC (kg/year) | D75: =D52-D51 -> 0 | E75: 0 | F75: 0 | G75: 362 | H75: 375 | I75: 2,772 | J75: 5,151 | K75: 7,863 | L75: 10,752 | M75: 12,290 | N75: 13,837 | O75: 15,722 | P75: 17,293 | Q75: 18,546 | R75: 19,355 | S75: 19,665 | T75: 20,169 | U75: 20,464 | V75: 20,821 | W75: 21,410 | X75: 22,257 | Y75: 23,649 | Z75: 25,082 | AA75: 26,491 | AB75: 27,824 | AC75: 29,046 | AD75: 30,317 | AE75: 31,229 | AF75: 32,095 | AG75: 32,971 | AH75: 33,855 | AI75: 34,751 | AJ75: 0 | AK75: 0 | AL75: 0 | AM75: 0 | AN75: 0 | AO75: 0 | AP75: 0 | AQ75: 0 | AR75: 0 | AS75: 0 | AV75: 19,876
C76: NOx (kg/year) | D76: =D54-D53 -> 0 | E76: 0 | F76: 0 | G76: (10,987) | H76: (11,382) | I76: (75,851) | J76: (137,645) | K76: (190,129) | L76: (235,533) | M76: (245,532) | N76: (251,179) | O76: (252,915) | P76: (249,639) | Q76: (238,615) | R76: (219,973) | S76: (195,209) | T76: (171,808) | U76: (147,147) | V76: (123,791) | W76: (102,499) | X76: (82,611) | Y76: (63,848) | Z76: (43,823) | AA76: (22,359) | AB76: 440 | AC76: 24,305 | AD76: 49,240 | AE76: 74,580 | AF76: 100,286 | AG76: 126,438 | AH76: 153,022 | AI76: 180,043 | AJ76: 0 | AK76: 0 | AL76: 0 | AM76: 0 | AN76: 0 | AO76: 0 | AP76: 0 | AQ76: 0 | AR76: 0 | AS76: 0 | AV76: (81,521)
C77: PM10 (kg/year) | D77: =D56-D55 -> 0 | E77: 0 | F77: 0 | G77: 1,510 | H77: 1,607 | I77: 10,947 | J77: 20,206 | K77: 30,017 | L77: 40,245 | M77: 45,368 | N77: 50,411 | O77: 56,174 | P77: 60,956 | Q77: 64,531 | R77: 66,510 | S77: 66,783 | T77: 67,737 | U77: 68,121 | V77: 68,769 | W77: 70,213 | X77: 72,511 | Y77: 76,568 | Z77: 80,819 | AA77: 84,967 | AB77: 88,850 | AC77: 92,362 | AD77: 96,014 | AE77: 98,715 | AF77: 101,270 | AG77: 103,849 | AH77: 106,453 | AI77: 109,089 | AJ77: 0 | AK77: 0 | AL77: 0 | AM77: 0 | AN77: 0 | AO77: 0 | AP77: 0 | AQ77: 0 | AR77: 0 | AS77: 0 | AV77: 65,571
C78: PM2.5 (kg/year) | D78: =D58-D57 -> 0 | E78: 0 | F78: 0 | G78: 845 | H78: 898 | I78: 6,141 | J78: 11,341 | K78: 16,823 | L78: 22,512 | M78: 25,329 | N78: 28,091 | O78: 31,395 | P78: 34,009 | Q78: 35,942 | R78: 36,983 | S78: 37,073 | T78: 37,539 | U78: 37,688 | V78: 37,984 | W78: 38,721 | X78: 39,928 | Y78: 42,103 | Z78: 44,380 | AA78: 46,597 | AB78: 48,666 | AC78: 50,528 | AD78: 52,465 | AE78: 53,880 | AF78: 55,214 | AG78: 56,559 | AH78: 57,918 | AI78: 59,293 | AJ78: 0 | AK78: 0 | AL78: 0 | AM78: 0 | AN78: 0 | AO78: 0 | AP78: 0 | AQ78: 0 | AR78: 0 | AS78: 0 | AV78: 36,098
C79: SOx (kg/year) | D79: =D60-D59 -> 0 | E79: 0 | F79: 0 | G79: (1,190) | H79: (1,241) | I79: (8,408) | J79: (15,369) | K79: (21,813) | L79: (27,846) | M79: (29,933) | N79: (31,681) | O79: (33,499) | P79: (34,545) | Q79: (34,703) | R79: (33,877) | S79: (32,146) | T79: (30,693) | U79: (28,986) | V79: (27,442) | W79: (26,260) | X79: (25,408) | Y79: (25,109) | Z79: (24,762) | AA79: (24,281) | AB79: (23,631) | AC79: (22,804) | AD79: (21,935) | AE79: (20,770) | AF79: (19,538) | AG79: (18,280) | AH79: (16,996) | AI79: (15,689) | AV79: (23,408)
C80: TSP (kg/year) | D80: =D62-D61 -> 0 | E80: 0 | F80: 0 | G80: 2,321 | H80: 2,470 | I80: 16,799 | J80: 30,990 | K80: 45,994 | L80: 61,611 | M80: 69,403 | N80: 77,062 | O80: 85,390 | P80: 92,599 | Q80: 97,967 | R80: 100,908 | S80: 101,260 | T80: 102,644 | U80: 103,165 | V80: 104,087 | W80: 106,218 | X80: 109,640 | Y80: 115,720 | Z80: 122,090 | AA80: 128,302 | AB80: 134,110 | AC80: 139,356 | AD80: 144,810 | AE80: 148,827 | AF80: 152,624 | AG80: 156,455 | AH80: 160,323 | AI80: 164,239 | AJ80: 0 | AK80: 0 | AL80: 0 | AM80: 0 | AN80: 0 | AO80: 0 | AP80: 0 | AQ80: 0 | AR80: 0 | AS80: 0 | AV80: 99,220
C81: Energy consumption (MWh) | D81: =D48-D47 -> 0 | E81: 0 | F81: 0 | G81: =G48-G47 -> 17,549 | H81: 18,657 | I81: 152,598 | J81: 295,688 | K81: 445,901 | L81: 601,368 | M81: 675,924 | N81: 748,998 | O81: 829,529 | P81: 899,226 | Q81: 951,657 | R81: 981,273 | S81: 986,390 | T81: 1,003,027 | U81: 1,010,803 | V81: 1,021,722 | W81: 1,043,496 | X81: 1,077,019 | Y81: 1,136,284 | Z81: 1,197,674 | AA81: 1,257,128 | AB81: 1,312,351 | AC81: 1,361,904 | AD81: 1,413,563 | AE81: 1,450,756 | AF81: 1,485,903 | AG81: 1,521,513 | AH81: 1,557,608 | AI81: 1,594,306 | AJ81: 2,742,476 | AK81: 2,450,058 | AL81: 2,151,427 | AM81: 1,848,088 | AN81: 1,541,936 | AO81: 1,236,892 | AP81: 940,450 | AQ81: 664,513 | AR81: 424,732 | AS81: 236,877 | AV81: 967,235
C82: Energy consumption (TOE) | D82: =0.085984522785899*D81 -> 0 | E82: 0 | F82: 0 | G82: 1,509 | H82: 1,604 | I82: 13,121 | J82: 25,425 | K82: 38,341 | L82: 51,708 | M82: 58,119 | N82: 64,402 | O82: 71,327 | P82: 77,320 | Q82: 81,828 | R82: 84,374 | S82: 84,814 | T82: 86,245 | U82: 86,913 | V82: 87,852 | W82: 89,725 | X82: 92,607 | Y82: 97,703 | Z82: 102,981 | AA82: 108,094 | AB82: 112,842 | AC82: 117,103 | AD82: 121,545 | AE82: 124,743 | AF82: 127,765 | AG82: 130,827 | AH82: 133,930 | AI82: 137,086 | AJ82: 235,811 | AK82: 210,667 | AL82: 184,989 | AM82: 158,907 | AN82: 132,583 | AO82: 106,354 | AP82: 80,864 | AQ82: 57,138 | AR82: 36,520 | AS82: 20,368 | AV82: 83,167
B84: Ebus Stock - Based on Targets
D86: =D68 -> 2019 | E86: 2020 | F86: 2021 | G86: 2022 | H86: 2023 | I86: 2024 | J86: 2025 | K86: 2026 | L86: 2027 | M86: 2028 | N86: 2029 | O86: 2030 | P86: 2031 | Q86: 2032 | R86: 2033 | S86: 2034 | T86: 2035 | U86: 2036 | V86: 2037 | W86: 2038 | X86: 2039 | Y86: 2040 | Z86: 2041 | AA86: 2042 | AB86: 2043 | AC86: 2044 | AD86: 2045 | AE86: 2046 | AF86: 2047 | AG86: 2048 | AH86: 2049 | AI86: 2050 | AJ86: 2051 | AK86: 2052 | AL86: 2053 | AM86: 2054 | AN86: 2055 | AO86: 2056 | AP86: 2057 | AQ86: 2058 | AR86: 2059 | AS86: 2060
C87: E-bus (Stock) | E87: =Ebus!E192 -> 0 | F87: =Ebus!F192 -> 0 | G87: =Ebus!G1007 -> 386 | H87: =Ebus!H1007 -> 408 | I87: =Ebus!I1007 -> 2,806 | J87: =Ebus!J1007 -> 5,204 | K87: =Ebus!K1007 -> 7,602 | L87: =Ebus!L1007 -> 10,000 | M87: =Ebus!M1007 -> 11,058 | N87: =Ebus!N1007 -> 12,053 | O87: =Ebus!O1007 -> 13,124 | P87: =Ebus!P1007 -> 13,989 | Q87: =Ebus!Q1007 -> 14,556 | R87: =Ebus!R1007 -> 14,756 | S87: =Ebus!S1007 -> 14,585 | T87: =Ebus!T1007 -> 14,582 | U87: =Ebus!U1007 -> 14,469 | V87: =Ebus!V1007 -> 14,422 | W87: =Ebus!W1007 -> 14,545 | X87: =Ebus!X1007 -> 14,842 | Y87: =Ebus!Y1007 -> 15,493 | Z87: =Ebus!Z1007 -> 16,167 | AA87: =Ebus!AA1007 -> 16,808 | AB87: =Ebus!AB1007 -> 17,386 | AC87: =Ebus!AC1007 -> 17,883 | AD87: =Ebus!AD1007 -> 18,405 | AE87: =Ebus!AE1007 -> 18,735 | AF87: =Ebus!AF1007 -> 19,035 | AG87: =Ebus!AG1007 -> 19,340 | AH87: =Ebus!AH1007 -> 19,649 | AI87: =Ebus!AI1007 -> 19,963 | AJ87: =Ebus!AJ192 -> 18,007 | AK87: =Ebus!AK192 -> 16,016 | AL87: =Ebus!AL192 -> 14,001 | AM87: =Ebus!AM192 -> 11,973 | AN87: =Ebus!AN192 -> 9,943 | AO87: =Ebus!AO192 -> 7,938 | AP87: =Ebus!AP192 -> 6,005 | AQ87: =Ebus!AQ192 -> 4,221 | AR87: =Ebus!AR192 -> 2,683 | AS87: =Ebus!AS192 -> 1,488
C88: New E-buses | E88: =Ebus_IO!C8 -> 0 | F88: =Ebus_IO!D8 -> 0 | G88: =Ebus_IO!E8 -> 386 | H88: =Ebus_IO!F8 -> 22 | I88: =Ebus_IO!G8 -> 2,398 | J88: =Ebus_IO!H8 -> 2,399 | K88: =Ebus_IO!I8 -> 2,402 | L88: =Ebus_IO!J8 -> 2,412 | M88: =Ebus_IO!K8 -> 1,100 | N88: =Ebus_IO!L8 -> 1,100 | O88: =Ebus_IO!M8 -> 1,300 | P88: =Ebus_IO!N8 -> 1,300 | Q88: =Ebus_IO!O8 -> 1,300 | R88: =Ebus_IO!P8 -> 1,300 | S88: =Ebus_IO!Q8 -> 1,300 | T88: =Ebus_IO!R8 -> 1,750 | U88: =Ebus_IO!S8 -> 1,750 | V88: =Ebus_IO!T8 -> 1,750 | W88: =Ebus_IO!U8 -> 1,750 | X88: =Ebus_IO!V8 -> 1,750 | Y88: =Ebus_IO!W8 -> 2,000 | Z88: =Ebus_IO!X8 -> 2,000 | AA88: =Ebus_IO!Y8 -> 2,000 | AB88: =Ebus_IO!Z8 -> 2,000 | AC88: =Ebus_IO!AA8 -> 2,000 | AD88: =Ebus_IO!AB8 -> 2,114 | AE88: =Ebus_IO!AC8 -> 2,008 | AF88: =Ebus_IO!AD8 -> 2,052 | AG88: =Ebus_IO!AE8 -> 2,114 | AH88: =Ebus_IO!AF8 -> 2,169 | AI88: =Ebus_IO!AG8 -> 2,224
B90: Savings (per bus/year)
D92: =D86 -> 2019 | E92: =E86 -> 2020 | F92: 2021 | G92: 2022 | H92: 2023 | I92: 2024 | J92: 2025 | K92: 2026 | L92: 2027 | M92: 2028 | N92: 2029 | O92: 2030 | P92: 2031 | Q92: 2032 | R92: 2033 | S92: 2034 | T92: 2035 | U92: 2036 | V92: 2037 | W92: 2038 | X92: 2039 | Y92: 2040 | Z92: 2041 | AA92: 2042 | AB92: 2043 | AC92: 2044 | AD92: 2045 | AE92: 2046 | AF92: 2047 | AG92: 2048 | AH92: 2049 | AI92: 2050 | AV92: Average
C93: =_xlfn.CONCAT(C69,"Savings/Ebus") -> BC (kg/year)Savings/Ebus | D93: =IFERROR(D69/D$87,"") ->  | G93: 0 | H93: 0 | I93: 0 | J93: 0 | K93: 0 | L93: 0 | M93: 0 | N93: 0 | O93: 0 | P93: 0 | Q93: 0 | R93: 0 | S93: 0 | T93: 0 | U93: 0 | V93: 0 | W93: 0 | X93: 0 | Y93: 0 | Z93: 0 | AA93: 0 | AB93: 0 | AC93: 0 | AD93: 0 | AE93: 0 | AF93: 0 | AG93: 0 | AH93: 0 | AI93: 0 | AJ93: 0 | AK93: 0 | AL93: 0 | AM93: 0 | AN93: 0 | AO93: 0 | AP93: 0 | AQ93: 0 | AR93: 0 | AS93: 0 | AV93: =AVERAGEIF(D93:AI93,"<>0") -> 0
C94: CH4 (kg/year)Savings/Ebus | D94: =IFERROR(D70/D$87,"") ->  | G94: 1 | H94: 1 | I94: 1 | J94: 1 | K94: 1 | L94: 1 | M94: 1 | N94: 1 | O94: 1 | P94: 1 | Q94: 1 | R94: 1 | S94: 1 | T94: 1 | U94: 1 | V94: 1 | W94: 1 | X94: 1 | Y94: 1 | Z94: 1 | AA94: 1 | AB94: 1 | AC94: 1 | AD94: 2 | AE94: 2 | AF94: 2 | AG94: 2 | AH94: 2 | AI94: 2 | AJ94: 0 | AK94: 0 | AL94: 0 | AM94: 0 | AN94: 0 | AO94: 0 | AP94: 0 | AQ94: 0 | AR94: 0 | AS94: 0 | AV94: 1
C95: CO (kg/year)Savings/Ebus | D95: =IFERROR(D71/D$87,"") ->  | G95: 7 | H95: 7 | I95: 8 | J95: 8 | K95: 8 | L95: 8 | M95: 9 | N95: 9 | O95: 9 | P95: 9 | Q95: 9 | R95: 9 | S95: 10 | T95: 10 | U95: 10 | V95: 10 | W95: 10 | X95: 10 | Y95: 10 | Z95: 10 | AA95: 10 | AB95: 10 | AC95: 10 | AD95: 11 | AE95: 11 | AF95: 11 | AG95: 11 | AH95: 11 | AI95: 11 | AJ95: 0 | AK95: 0 | AL95: 0 | AM95: 0 | AN95: 0 | AO95: 0 | AP95: 0 | AQ95: 0 | AR95: 0 | AS95: 0 | AV95: 10
C96: CO2 (tons/year)Savings/Ebus | D96: =IFERROR(D72/D$87,"") ->  | G96: (12) | H96: (11) | I96: (7) | J96: (6) | K96: (4) | L96: (2) | M96: (1) | N96: 1 | O96: 3 | P96: 4 | Q96: 6 | R96: 8 | S96: 9 | T96: 11 | U96: 13 | V96: 15 | W96: 16 | X96: 18 | Y96: 20 | Z96: 21 | AA96: 23 | AB96: 24 | AC96: 25 | AD96: 27 | AE96: 28 | AF96: 30 | AG96: 31 | AH96: 32 | AI96: 34 | AJ96: 0 | AK96: 0 | AL96: 0 | AM96: 0 | AN96: 0 | AO96: 0 | AP96: 0 | AQ96: 0 | AR96: 0 | AS96: 0 | AV96: 12
C97: CO2e (tons/year)Savings/Ebus | D97: =IFERROR(D73/D$87,"") ->  | G97: (12) | H97: (11) | I97: (7) | J97: (6) | K97: (4) | L97: (2) | M97: (1) | N97: 1 | O97: 3 | P97: 4 | Q97: 6 | R97: 8 | S97: 10 | T97: 11 | U97: 13 | V97: 15 | W97: 16 | X97: 18 | Y97: 20 | Z97: 21 | AA97: 23 | AB97: 24 | AC97: 25 | AD97: 27 | AE97: 28 | AF97: 30 | AG97: 31 | AH97: 32 | AI97: 34 | AJ97: 0 | AK97: 0 | AL97: 0 | AM97: 0 | AN97: 0 | AO97: 0 | AP97: 0 | AQ97: 0 | AR97: 0 | AS97: 0 | AV97: 12
C98: N2O (kg/year)Savings/Ebus | D98: =IFERROR(D74/D$87,"") ->  | G98: (0) | H98: (0) | I98: (0) | J98: (0) | K98: 0 | L98: 0 | M98: 0 | N98: 0 | O98: 0 | P98: 0 | Q98: 0 | R98: 0 | S98: 0 | T98: 0 | U98: 0 | V98: 0 | W98: 0 | X98: 0 | Y98: 0 | Z98: 0 | AA98: 0 | AB98: 0 | AC98: 0 | AD98: 0 | AE98: 0 | AF98: 0 | AG98: 0 | AH98: 0 | AI98: 0 | AJ98: 0 | AK98: 0 | AL98: 0 | AM98: 0 | AN98: 0 | AO98: 0 | AP98: 0 | AQ98: 0 | AR98: 0 | AS98: 0 | AV98: 0
C99: NMVOC (kg/year)Savings/Ebus | D99: =IFERROR(D75/D$87,"") ->  | G99: 1 | H99: 1 | I99: 1 | J99: 1 | K99: 1 | L99: 1 | M99: 1 | N99: 1 | O99: 1 | P99: 1 | Q99: 1 | R99: 1 | S99: 1 | T99: 1 | U99: 1 | V99: 1 | W99: 1 | X99: 1 | Y99: 2 | Z99: 2 | AA99: 2 | AB99: 2 | AC99: 2 | AD99: 2 | AE99: 2 | AF99: 2 | AG99: 2 | AH99: 2 | AI99: 2 | AJ99: 0 | AK99: 0 | AL99: 0 | AM99: 0 | AN99: 0 | AO99: 0 | AP99: 0 | AQ99: 0 | AR99: 0 | AS99: 0 | AV99: 1
C100: NOx (kg/year)Savings/Ebus | D100: =IFERROR(D76/D$87,"") ->  | G100: (28) | H100: (28) | I100: (27) | J100: (26) | K100: (25) | L100: (24) | M100: (22) | N100: (21) | O100: (19) | P100: (18) | Q100: (16) | R100: (15) | S100: (13) | T100: (12) | U100: (10) | V100: (9) | W100: (7) | X100: (6) | Y100: (4) | Z100: (3) | AA100: (1) | AB100: 0 | AC100: 1 | AD100: 3 | AE100: 4 | AF100: 5 | AG100: 7 | AH100: 8 | AI100: 9 | AJ100: 0 | AK100: 0 | AL100: 0 | AM100: 0 | AN100: 0 | AO100: 0 | AP100: 0 | AQ100: 0 | AR100: 0 | AS100: 0 | AV100: (10)
C101: PM10 (kg/year)Savings/Ebus | D101: =IFERROR(D77/D$87,"") ->  | G101: 4 | H101: 4 | I101: 4 | J101: 4 | K101: 4 | L101: 4 | M101: 4 | N101: 4 | O101: 4 | P101: 4 | Q101: 4 | R101: 5 | S101: 5 | T101: 5 | U101: 5 | V101: 5 | W101: 5 | X101: 5 | Y101: 5 | Z101: 5 | AA101: 5 | AB101: 5 | AC101: 5 | AD101: 5 | AE101: 5 | AF101: 5 | AG101: 5 | AH101: 5 | AI101: 5 | AJ101: 0 | AK101: 0 | AL101: 0 | AM101: 0 | AN101: 0 | AO101: 0 | AP101: 0 | AQ101: 0 | AR101: 0 | AS101: 0 | AV101: 5
C102: PM2.5 (kg/year)Savings/Ebus | D102: =IFERROR(D78/D$87,"") ->  | G102: 2 | H102: 2 | I102: 2 | J102: 2 | K102: 2 | L102: 2 | M102: 2 | N102: 2 | O102: 2 | P102: 2 | Q102: 2 | R102: 3 | S102: 3 | T102: 3 | U102: 3 | V102: 3 | W102: 3 | X102: 3 | Y102: 3 | Z102: 3 | AA102: 3 | AB102: 3 | AC102: 3 | AD102: 3 | AE102: 3 | AF102: 3 | AG102: 3 | AH102: 3 | AI102: 3 | AJ102: 0 | AK102: 0 | AL102: 0 | AM102: 0 | AN102: 0 | AO102: 0 | AP102: 0 | AQ102: 0 | AR102: 0 | AS102: 0 | AV102: 3
C103: SOx (kg/year)Savings/Ebus | D103: =IFERROR(D79/D$87,"") ->  | G103: (3) | H103: (3) | I103: (3) | J103: (3) | K103: (3) | L103: (3) | M103: (3) | N103: (3) | O103: (3) | P103: (2) | Q103: (2) | R103: (2) | S103: (2) | T103: (2) | U103: (2) | V103: (2) | W103: (2) | X103: (2) | Y103: (2) | Z103: (2) | AA103: (1) | AB103: (1) | AC103: (1) | AD103: (1) | AE103: (1) | AF103: (1) | AG103: (1) | AH103: (1) | AI103: (1) | AV103: (2)
C104: TSP (kg/year)Savings/Ebus | D104: =IFERROR(D80/D$87,"") ->  | G104: 6 | H104: 6 | I104: 6 | J104: 6 | K104: 6 | L104: 6 | M104: 6 | N104: 6 | O104: 7 | P104: 7 | Q104: 7 | R104: 7 | S104: 7 | T104: 7 | U104: 7 | V104: 7 | W104: 7 | X104: 7 | Y104: 7 | Z104: 8 | AA104: 8 | AB104: 8 | AC104: 8 | AD104: 8 | AE104: 8 | AF104: 8 | AG104: 8 | AH104: 8 | AI104: 8 | AJ104: 0 | AK104: 0 | AL104: 0 | AM104: 0 | AN104: 0 | AO104: 0 | AP104: 0 | AQ104: 0 | AR104: 0 | AS104: 0 | AV104: 7
C105: Energy consumption (MWh)Savings/Ebus | D105: =IFERROR(D81/D$87,"") ->  | G105: 45 | H105: 46 | I105: 54 | J105: 57 | K105: 59 | L105: 60 | M105: 61 | N105: 62 | O105: 63 | P105: 64 | Q105: 65 | R105: 67 | S105: 68 | T105: 69 | U105: 70 | V105: 71 | W105: 72 | X105: 73 | Y105: 73 | Z105: 74 | AA105: 75 | AB105: 75 | AC105: 76 | AD105: 77 | AE105: 77 | AF105: 78 | AG105: 79 | AH105: 79 | AI105: 80 | AJ105: 152.30 | AK105: 152.98 | AL105: 153.66 | AM105: 154.36 | AN105: 155.08 | AO105: 155.83 | AP105: 156.61 | AQ105: 157.44 | AR105: 158.32 | AS105: 159.24 | AV105: 68
C106: =C82 -> Energy consumption (TOE) | D106: =IFERROR(D82/D$87,"") ->  | G106: 4 | H106: 4 | I106: 5 | J106: 5 | K106: 5 | L106: 5 | M106: 5 | N106: 5 | O106: 5 | P106: 6 | Q106: 6 | R106: 6 | S106: 6 | T106: 6 | U106: 6 | V106: 6 | W106: 6 | X106: 6 | Y106: 6 | Z106: 6 | AA106: 6 | AB106: 6 | AC106: 7 | AD106: 7 | AE106: 7 | AF106: 7 | AG106: 7 | AH106: 7 | AI106: 7 | AV106: 6
B109: Savings (Cumulative)
G111: Up to 2030 | H111: Up tp 2050 | I111: % Savings | K111: Total Up to 2050
C112: BC (kg) | G112: =SUM(D69:O69) -> 25,059 | H112: =SUM(D69:AI69) -> 179,041 | I112: =(AV37-AV38)/AV38 -> -90.68% | K112: =-(AV37-AV38) -> 179,041
C113: CH4 (kg) | G113: 79,502 | H113: 562,050 | I113: =(AV39-AV40)/AV40 -> -88.62% | K113: =-(AV39-AV40) -> 562,050
C114: CO (kg) | G114: 537,893 | H114: 3,898,873 | I114: =(AV41-AV42)/AV42 -> -86.94% | K114: =-(AV41-AV42) -> 3,898,873
C115: CO2 (tons) | G115: (76,845) | H115: 6,770,330 | I115: =(AV43-AV44)/AV44 -> -36.09% | K115: =-(AV43-AV44) -> 6,770,330
C116: CO2e (tons) | G116: (74,429) | H116: 6,788,567 | I116: =(AV45-AV46)/AV46 -> -36.14% | K116: =-(AV45-AV46) -> 6,788,567
C117: N2O (kg) | G117: 1,712 | H117: 54,669 | I117: =(AV49-AV50)/AV50 -> -43.10% | K117: =-(AV49-AV50) -> 54,669
C118: NMVOC (kg) | G118: 69,125 | H118: 576,416 | I118: =(AV51-AV52)/AV52 -> -77.20% | K118: =-(AV51-AV52) -> 576,416
C119: NOx (kg) | G119: (1,411,152) | H119: (2,364,119) | I119: =(AV53-AV54)/AV54 -> 26.41% | K119: =-(AV53-AV54) -> (2,364,119)
C120: PM10 (kg) | G120: 256,484 | H120: 1,901,570 | I120: =(AV55-AV56)/AV56 -> -81.54% | K120: =-(AV55-AV56) -> 1,901,570
C121: PM2.5 (kg) | G121: 143,377 | H121: 1,046,847 | I121: =(AV57-AV58)/AV58 -> -83.50% | K121: =-(AV57-AV58) -> 1,046,847
C122: SOx (kg) | G122: (170,980) | H122: (678,835) | I122: =(AV59-AV60)/AV60 -> 1444.37% | K122: =-(AV59-AV60) -> (678,835)
C123: TSP (kg) | G123: 392,042 | H123: 2,877,382 | I123: =(AV61-AV62)/AV62 -> -82.20% | K123: =-(AV61-AV62) -> 2,877,382
C124: Energy consumption (MWh) | G124: 3,786,212 | H124: 28,049,817 | I124: =(AV47-AV48)/AV48 -> -47.76% | K124: =-(AV47-AV48) -> 28,049,817
C125: Energy consumption (TOE) | G125: 325,556 | H125: 2,411,850 | I125: =I124 -> -47.76% | K125: =SUM(G82:AI82) -> 2,411,850
B129: Graphs
O141: `

Sheet MONITORED
B2: =RESULTS!C6 -> Mumbai
B4: Total E-bus Stock (Number of Buses)
C6: 2020 | D6: =C6+1 -> 2021 | E6: =D6+1 -> 2022 | F6: =E6+1 -> 2023 | G6: 2024 | H6: 2025 | I6: 2026 | J6: 2027 | K6: 2028 | L6: 2029 | M6: 2030 | N6: 2031 | O6: 2032 | P6: 2033 | Q6: 2034 | R6: 2035 | S6: 2036 | T6: 2037 | U6: 2038 | V6: 2039 | W6: 2040 | X6: 2041 | Y6: 2042 | Z6: 2043 | AA6: 2044 | AB6: 2045 | AC6: 2046 | AD6: 2047 | AE6: 2048 | AF6: 2049 | AG6: 2050
B7: Minibus
B8: Midibus
B9: Standard | E9: 8 | F9: 16 | G9: 24 | H9: 274 | I9: 524 | J9: 774 | K9: 1,022 | L9: 1,269 | M9: 1,509 | N9: 1,737 | O9: 1,945 | P9: 2,121 | Q9: 2,256 | R9: 2,345 | S9: 2,393 | T9: 2,413 | U9: 2,419 | V9: 2,420 | W9: 2,420 | X9: 2,420 | Y9: 2,420 | Z9: 2,420 | AA9: 2,420 | AB9: 2,420 | AC9: 2,420 | AD9: 2,420 | AE9: 2,420 | AF9: 2,423 | AG9: 2,426
B10: Articulated
B11: Double decker
B21: Total | E21: =SUM(E7:E11) -> 8 | F21: =SUM(F7:F11) -> 16 | G21: 24 | H21: 274 | I21: 524 | J21: 774 | K21: 1,022 | L21: 1,269 | M21: 1,509 | N21: 1,737 | O21: 1,945 | P21: 2,121 | Q21: 2,256 | R21: 2,345 | S21: 2,393 | T21: 2,413 | U21: 2,419 | V21: 2,420 | W21: 2,420 | X21: 2,420 | Y21: 2,420 | Z21: 2,420 | AA21: 2,420 | AB21: 2,420 | AC21: 2,420 | AD21: 2,420 | AE21: 2,420 | AF21: 2,423 | AG21: 2,426
B24: Total Additional E-buses (Number of Buses)
C26: 2020 | D26: =C26+1 -> 2021 | E26: =D26+1 -> 2022 | F26: =E26+1 -> 2023 | G26: =F26+1 -> 2024 | H26: =G26+1 -> 2025 | I26: =H26+1 -> 2026 | J26: =I26+1 -> 2027 | K26: =J26+1 -> 2028 | L26: =K26+1 -> 2029 | M26: =L26+1 -> 2030 | N26: =M26+1 -> 2031 | O26: =N26+1 -> 2032 | P26: =O26+1 -> 2033 | Q26: =P26+1 -> 2034 | R26: =Q26+1 -> 2035 | S26: =R26+1 -> 2036 | T26: =S26+1 -> 2037 | U26: =T26+1 -> 2038 | V26: =U26+1 -> 2039 | W26: =V26+1 -> 2040 | X26: =W26+1 -> 2041 | Y26: =X26+1 -> 2042 | Z26: =Y26+1 -> 2043 | AA26: =Z26+1 -> 2044 | AB26: =AA26+1 -> 2045 | AC26: =AB26+1 -> 2046 | AD26: =AC26+1 -> 2047 | AE26: =AD26+1 -> 2048 | AF26: =AE26+1 -> 2049 | AG26: =AF26+1 -> 2050
B27: Minibus
B28: Midibus
B29: Standard | E29: 8 | F29: 8 | G29: 8 | H29: 250 | I29: 250 | J29: 250 | K29: 250 | L29: 250 | M29: 250 | N29: 250 | O29: 250 | P29: 250 | Q29: 250 | R29: 250 | S29: 250 | T29: 250 | U29: 250 | V29: 250 | W29: 250 | X29: 250 | Y29: 250 | Z29: 250 | AA29: 250 | AB29: 250 | AC29: 250 | AD29: 250 | AE29: 250 | AF29: 253 | AG29: 253
B30: Articulated
B31: Double decker
B41: Total | E41: =SUM(E27:E31) -> 8 | F41: =SUM(F27:F31) -> 8 | G41: 8 | H41: 250 | I41: 250 | J41: 250 | K41: 250 | L41: 250 | M41: 250 | N41: 250 | O41: 250 | P41: 250 | Q41: 250 | R41: 250 | S41: 250 | T41: 250 | U41: 250 | V41: 250 | W41: 250 | X41: 250 | Y41: 250 | Z41: 250 | AA41: 250 | AB41: 250 | AC41: 250 | AD41: 250 | AE41: 250 | AF41: 253 | AG41: 253
B44: Distribution of the new e-buses in a scenario that they are not electric
C46: 2020 | D46: =C46+1 -> 2021 | E46: =D46+1 -> 2022 | F46: =E46+1 -> 2023 | G46: =F46+1 -> 2024 | H46: =G46+1 -> 2025 | I46: =H46+1 -> 2026 | J46: =I46+1 -> 2027 | K46: =J46+1 -> 2028 | L46: =K46+1 -> 2029 | M46: =L46+1 -> 2030 | N46: =M46+1 -> 2031 | O46: =N46+1 -> 2032 | P46: =O46+1 -> 2033 | Q46: =P46+1 -> 2034 | R46: =Q46+1 -> 2035 | S46: =R46+1 -> 2036 | T46: =S46+1 -> 2037 | U46: =T46+1 -> 2038 | V46: =U46+1 -> 2039 | W46: =V46+1 -> 2040 | X46: =W46+1 -> 2041 | Y46: =X46+1 -> 2042 | Z46: =Y46+1 -> 2043 | AA46: =Z46+1 -> 2044 | AB46: =AA46+1 -> 2045 | AC46: =AB46+1 -> 2046 | AD46: =AC46+1 -> 2047 | AE46: =AD46+1 -> 2048 | AF46: =AE46+1 -> 2049 | AG46: =AF46+1 -> 2050
B47: Battery electric
B48: Biodiesel
B49: Bioethanol
B50: Diesel (excluding hybrids) | E50: 100% | F50: 100% | G50: 100% | H50: 100% | I50: 100% | J50: 100% | K50: 100% | L50: 100% | M50: 100% | N50: 100% | O50: 100% | P50: 100% | Q50: 100% | R50: 100% | S50: 100% | T50: 100% | U50: 100% | V50: 100% | W50: 100% | X50: 100% | Y50: 100% | Z50: 100% | AA50: 100% | AB50: 100% | AC50: 100% | AD50: 100% | AE50: 100% | AF50: 100% | AG50: 100%
B51: Bi-fuel
B52: Hybrid diesel-electric
B53: Hybrid petrol-electric
B54: Hydrogen and fuel cells
B55: LPG
B56: CNG
B57: Other
B58: Petrol (excluding hybrids)
B59: Plug-in hybrid diesel-electric
B60: Plug-in hybrid petrol-electric
B61: Total | E61: =SUM(E47:E59) -> 100% | F61: =SUM(F47:F59) -> 100% | G61: 100% | H61: 100% | I61: 100% | J61: 100% | K61: 100% | L61: 100% | M61: 100% | N61: 100% | O61: 100% | P61: 100% | Q61: 100% | R61: 100% | S61: 100% | T61: 100% | U61: 100% | V61: 100% | W61: 100% | X61: 100% | Y61: 100% | Z61: 100% | AA61: 100% | AB61: 100% | AC61: 100% | AD61: 100% | AE61: 100% | AF61: 100% | AG61: 100%
B64: Average VKM/year by Type of E-Bus
C66: 2020 | D66: =C66+1 -> 2021 | E66: =D66+1 -> 2022 | F66: =E66+1 -> 2023 | G66: =F66+1 -> 2024 | H66: =G66+1 -> 2025 | I66: =H66+1 -> 2026 | J66: =I66+1 -> 2027 | K66: =J66+1 -> 2028 | L66: =K66+1 -> 2029 | M66: =L66+1 -> 2030 | N66: =M66+1 -> 2031 | O66: =N66+1 -> 2032 | P66: =O66+1 -> 2033 | Q66: =P66+1 -> 2034 | R66: =Q66+1 -> 2035 | S66: =R66+1 -> 2036 | T66: =S66+1 -> 2037 | U66: =T66+1 -> 2038 | V66: =U66+1 -> 2039 | W66: =V66+1 -> 2040 | X66: =W66+1 -> 2041 | Y66: =X66+1 -> 2042 | Z66: =Y66+1 -> 2043 | AA66: =Z66+1 -> 2044 | AB66: =AA66+1 -> 2045 | AC66: =AB66+1 -> 2046 | AD66: =AC66+1 -> 2047 | AE66: =AD66+1 -> 2048 | AF66: =AE66+1 -> 2049 | AG66: =AF66+1 -> 2050
A67: 1 | B67: Minibus | E67: 40,000 | F67: 40,000 | G67: 40,000 | H67: 40,000 | I67: 40,000 | J67: 40,000 | K67: 40,000 | L67: 40,000 | M67: 40,000 | N67: 40,000 | O67: 40,000 | P67: 40,000 | Q67: 40,000 | R67: 40,000 | S67: 40,000 | T67: 40,000 | U67: 40,000 | V67: 40,000 | W67: 40,000 | X67: 40,000 | Y67: 40,000 | Z67: 40,000 | AA67: 40,000 | AB67: 40,000 | AC67: 40,000 | AD67: 40,000 | AE67: 40,000 | AF67: 40,000 | AG67: 40,000
A68: 2 | B68: Midibus | E68: 40,000 | F68: 40,000 | G68: 40,000 | H68: 40,000 | I68: 40,000 | J68: 40,000 | K68: 40,000 | L68: 40,000 | M68: 40,000 | N68: 40,000 | O68: 40,000 | P68: 40,000 | Q68: 40,000 | R68: 40,000 | S68: 40,000 | T68: 40,000 | U68: 40,000 | V68: 40,000 | W68: 40,000 | X68: 40,000 | Y68: 40,000 | Z68: 40,000 | AA68: 40,000 | AB68: 40,000 | AC68: 40,000 | AD68: 40,000 | AE68: 40,000 | AF68: 40,000 | AG68: 40,000
A69: 3 | B69: Standard | E69: 40,000 | F69: 40,000 | G69: 40,000 | H69: 40,000 | I69: 40,000 | J69: 40,000 | K69: 40,000 | L69: 40,000 | M69: 40,000 | N69: 40,000 | O69: 40,000 | P69: 40,000 | Q69: 40,000 | R69: 40,000 | S69: 40,000 | T69: 40,000 | U69: 40,000 | V69: 40,000 | W69: 40,000 | X69: 40,000 | Y69: 40,000 | Z69: 40,000 | AA69: 40,000 | AB69: 40,000 | AC69: 40,000 | AD69: 40,000 | AE69: 40,000 | AF69: 40,000 | AG69: 40,000
A70: 4 | B70: Articulated | E70: 40,000 | F70: 40,000 | G70: 40,000 | H70: 40,000 | I70: 40,000 | J70: 40,000 | K70: 40,000 | L70: 40,000 | M70: 40,000 | N70: 40,000 | O70: 40,000 | P70: 40,000 | Q70: 40,000 | R70: 40,000 | S70: 40,000 | T70: 40,000 | U70: 40,000 | V70: 40,000 | W70: 40,000 | X70: 40,000 | Y70: 40,000 | Z70: 40,000 | AA70: 40,000 | AB70: 40,000 | AC70: 40,000 | AD70: 40,000 | AE70: 40,000 | AF70: 40,000 | AG70: 40,000
A71: 5 | B71: Double decker | E71: 40,000 | F71: 40,000 | G71: 40,000 | H71: 40,000 | I71: 40,000 | J71: 40,000 | K71: 40,000 | L71: 40,000 | M71: 40,000 | N71: 40,000 | O71: 40,000 | P71: 40,000 | Q71: 40,000 | R71: 40,000 | S71: 40,000 | T71: 40,000 | U71: 40,000 | V71: 40,000 | W71: 40,000 | X71: 40,000 | Y71: 40,000 | Z71: 40,000 | AA71: 40,000 | AB71: 40,000 | AC71: 40,000 | AD71: 40,000 | AE71: 40,000 | AF71: 40,000 | AG71: 40,000
A72: 6
A73: 7
A74: 8
A75: 9
A76: 10
A77: 11
A78: 12
A79: 13
A80: 14
B83: Average Occupancy by Type of E-bus
C85: 2020 | D85: =C85+1 -> 2021 | E85: =D85+1 -> 2022 | F85: =E85+1 -> 2023 | G85: =F85+1 -> 2024 | H85: =G85+1 -> 2025 | I85: =H85+1 -> 2026 | J85: =I85+1 -> 2027 | K85: =J85+1 -> 2028 | L85: =K85+1 -> 2029 | M85: =L85+1 -> 2030 | N85: =M85+1 -> 2031 | O85: =N85+1 -> 2032 | P85: =O85+1 -> 2033 | Q85: =P85+1 -> 2034 | R85: =Q85+1 -> 2035 | S85: =R85+1 -> 2036 | T85: =S85+1 -> 2037 | U85: =T85+1 -> 2038 | V85: =U85+1 -> 2039 | W85: =V85+1 -> 2040 | X85: =W85+1 -> 2041 | Y85: =X85+1 -> 2042 | Z85: =Y85+1 -> 2043 | AA85: =Z85+1 -> 2044 | AB85: =AA85+1 -> 2045 | AC85: =AB85+1 -> 2046 | AD85: =AC85+1 -> 2047 | AE85: =AD85+1 -> 2048 | AF85: =AE85+1 -> 2049 | AG85: =AF85+1 -> 2050
B86: Minibus
B87: Midibus
B88: Standard | E88: 42 | F88: 42 | G88: 42 | H88: 42 | I88: 42 | J88: 42 | K88: 42 | L88: 42 | M88: 42 | N88: 42 | O88: 42 | P88: 42 | Q88: 42 | R88: 42 | S88: 42 | T88: 42 | U88: 42 | V88: 42 | W88: 42 | X88: 42 | Y88: 42 | Z88: 42 | AA88: 42 | AB88: 42 | AC88: 42 | AD88: 42 | AE88: 42 | AF88: 42 | AG88: 50
B89: Articulated
B90: Double decker
B103: Average Energy Efficiency by Type of E-bus (kWh/VKM)
C105: 2020 | D105: =C105+1 -> 2021 | E105: =D105+1 -> 2022 | F105: =E105+1 -> 2023 | G105: =F105+1 -> 2024 | H105: =G105+1 -> 2025 | I105: =H105+1 -> 2026 | J105: =I105+1 -> 2027 | K105: =J105+1 -> 2028 | L105: =K105+1 -> 2029 | M105: =L105+1 -> 2030 | N105: =M105+1 -> 2031 | O105: =N105+1 -> 2032 | P105: =O105+1 -> 2033 | Q105: =P105+1 -> 2034 | R105: =Q105+1 -> 2035 | S105: =R105+1 -> 2036 | T105: =S105+1 -> 2037 | U105: =T105+1 -> 2038 | V105: =U105+1 -> 2039 | W105: =V105+1 -> 2040 | X105: =W105+1 -> 2041 | Y105: =X105+1 -> 2042 | Z105: =Y105+1 -> 2043 | AA105: =Z105+1 -> 2044 | AB105: =AA105+1 -> 2045 | AC105: =AB105+1 -> 2046 | AD105: =AC105+1 -> 2047 | AE105: =AD105+1 -> 2048 | AF105: =AE105+1 -> 2049 | AG105: =AF105+1 -> 2050
B106: Minibus | E106: 0.84 | F106: 0.84 | G106: 0.84 | H106: 0.84 | I106: 0.84 | J106: 0.84 | K106: 0.84 | L106: 0.84 | M106: 0.84 | N106: 0.84 | O106: 0.84 | P106: 0.84 | Q106: 0.84 | R106: 0.84 | S106: 0.84 | T106: 0.84 | U106: 0.84 | V106: 0.84 | W106: 0.84 | X106: 0.84 | Y106: 0.84 | Z106: 0.84 | AA106: 0.84 | AB106: 0.84 | AC106: 0.84 | AD106: 0.84 | AE106: 0.84 | AF106: 0.84 | AG106: 0.84
B107: Midibus | E107: 1.61 | F107: 1.61 | G107: 1.61 | H107: 1.61 | I107: 1.61 | J107: 1.61 | K107: 1.61 | L107: 1.61 | M107: 1.61 | N107: 1.61 | O107: 1.61 | P107: 1.61 | Q107: 1.61 | R107: 1.61 | S107: 1.61 | T107: 1.61 | U107: 1.61 | V107: 1.61 | W107: 1.61 | X107: 1.61 | Y107: 1.61 | Z107: 1.61 | AA107: 1.61 | AB107: 1.61 | AC107: 1.61 | AD107: 1.61 | AE107: 1.61 | AF107: 1.61 | AG107: 1.61
B108: Standard | E108: 1.68 | F108: 1.68 | G108: 1.68 | H108: 1.68 | I108: 1.68 | J108: 1.68 | K108: 1.68 | L108: 1.68 | M108: 1.68 | N108: 1.68 | O108: 1.68 | P108: 1.68 | Q108: 1.68 | R108: 1.68 | S108: 1.68 | T108: 1.68 | U108: 1.68 | V108: 1.68 | W108: 1.68 | X108: 1.68 | Y108: 1.68 | Z108: 1.68 | AA108: 1.68 | AB108: 1.68 | AC108: 1.68 | AD108: 1.68 | AE108: 1.68 | AF108: 1.68 | AG108: 1.68
B109: Articulated | E109: 2.51 | F109: 2.51 | G109: 2.51 | H109: 2.51 | I109: 2.51 | J109: 2.51 | K109: 2.51 | L109: 2.51 | M109: 2.51 | N109: 2.51 | O109: 2.51 | P109: 2.51 | Q109: 2.51 | R109: 2.51 | S109: 2.51 | T109: 2.51 | U109: 2.51 | V109: 2.51 | W109: 2.51 | X109: 2.51 | Y109: 2.51 | Z109: 2.51 | AA109: 2.51 | AB109: 2.51 | AC109: 2.51 | AD109: 2.51 | AE109: 2.51 | AF109: 2.51 | AG109: 2.51
B110: Double decker | E110: 2.35 | F110: 2.35 | G110: 2.35 | H110: 2.35 | I110: 2.35 | J110: 2.35 | K110: 2.35 | L110: 2.35 | M110: 2.35 | N110: 2.35 | O110: 2.35 | P110: 2.35 | Q110: 2.35 | R110: 2.35 | S110: 2.35 | T110: 2.35 | U110: 2.35 | V110: 2.35 | W110: 2.35 | X110: 2.35 | Y110: 2.35 | Z110: 2.35 | AA110: 2.35 | AB110: 2.35 | AC110: 2.35 | AD110: 2.35 | AE110: 2.35 | AF110: 2.35 | AG110: 2.35
B123: Grid % Generation
C125: 2020 | D125: =C125+1 -> 2021 | E125: =D125+1 -> 2022 | F125: =E125+1 -> 2023 | G125: =F125+1 -> 2024 | H125: =G125+1 -> 2025 | I125: =H125+1 -> 2026 | J125: =I125+1 -> 2027 | K125: =J125+1 -> 2028 | L125: =K125+1 -> 2029 | M125: =L125+1 -> 2030 | N125: =M125+1 -> 2031 | O125: =N125+1 -> 2032 | P125: =O125+1 -> 2033 | Q125: =P125+1 -> 2034 | R125: =Q125+1 -> 2035 | S125: =R125+1 -> 2036 | T125: =S125+1 -> 2037 | U125: =T125+1 -> 2038 | V125: =U125+1 -> 2039 | W125: =V125+1 -> 2040 | X125: =W125+1 -> 2041 | Y125: =X125+1 -> 2042 | Z125: =Y125+1 -> 2043 | AA125: =Z125+1 -> 2044 | AB125: =AA125+1 -> 2045 | AC125: =AB125+1 -> 2046 | AD125: =AC125+1 -> 2047 | AE125: =AD125+1 -> 2048 | AF125: =AE125+1 -> 2049 | AG125: =AF125+1 -> 2050
B126: Coal | E126: 2% | F126: 1% | G126: 1% | H126: 1% | I126: 1% | J126: 1% | K126: 1% | L126: 1% | M126: 1% | N126: 1% | O126: 1% | P126: 1% | Q126: 1% | R126: 1% | S126: 1% | T126: 1% | U126: 1% | V126: 1% | W126: 1% | X126: 1% | Y126: 1% | Z126: 1% | AA126: 1% | AB126: 1% | AC126: 1% | AD126: 1% | AE126: 1% | AF126: 1% | AG126: 1%
B127: Fuel oil | E127: 2% | F127: 2% | G127: 2% | H127: 2% | I127: 2% | J127: 2% | K127: 2% | L127: 2% | M127: 2% | N127: 2% | O127: 2% | P127: 2% | Q127: 2% | R127: 2% | S127: 2% | T127: 2% | U127: 2% | V127: 2% | W127: 2% | X127: 2% | Y127: 2% | Z127: 2% | AA127: 2% | AB127: 2% | AC127: 2% | AD127: 2% | AE127: 2% | AF127: 2% | AG127: 2%
B128: Gas/diesel oil | E128: 0% | F128: 0% | G128: 0% | H128: 0% | I128: 0% | J128: 0% | K128: 0% | L128: 0% | M128: 0% | N128: 0% | O128: 0% | P128: 0% | Q128: 0% | R128: 0% | S128: 0% | T128: 0% | U128: 0% | V128: 0% | W128: 0% | X128: 0% | Y128: 0% | Z128: 0% | AA128: 0% | AB128: 0% | AC128: 0% | AD128: 0% | AE128: 0% | AF128: 0% | AG128: 0%
B129: Natural gas | E129: 7% | F129: 5% | G129: 4% | H129: 4% | I129: 4% | J129: 4% | K129: 4% | L129: 4% | M129: 4% | N129: 4% | O129: 4% | P129: 4% | Q129: 4% | R129: 4% | S129: 4% | T129: 4% | U129: 4% | V129: 4% | W129: 4% | X129: 4% | Y129: 4% | Z129: 4% | AA129: 4% | AB129: 4% | AC129: 4% | AD129: 4% | AE129: 4% | AF129: 4% | AG129: 4%
B130: Biomass | E130: 0% | F130: 0% | G130: 0% | H130: 0% | I130: 0% | J130: 0% | K130: 0% | L130: 0% | M130: 0% | N130: 0% | O130: 0% | P130: 0% | Q130: 0% | R130: 0% | S130: 0% | T130: 0% | U130: 0% | V130: 0% | W130: 0% | X130: 0% | Y130: 0% | Z130: 0% | AA130: 0% | AB130: 0% | AC130: 0% | AD130: 0% | AE130: 0% | AF130: 0% | AG130: 0%
B131: Liquid biofuel | E131: 9% | F131: 9% | G131: 8% | H131: 8% | I131: 8% | J131: 8% | K131: 8% | L131: 8% | M131: 8% | N131: 8% | O131: 8% | P131: 8% | Q131: 8% | R131: 8% | S131: 8% | T131: 8% | U131: 8% | V131: 8% | W131: 8% | X131: 8% | Y131: 8% | Z131: 8% | AA131: 8% | AB131: 8% | AC131: 8% | AD131: 8% | AE131: 8% | AF131: 8% | AG131: 8%
B132: Other/RE | E132: 80% | F132: 83% | G132: 85% | H132: 85% | I132: 85% | J132: 85% | K132: 85% | L132: 85% | M132: 85% | N132: 85% | O132: 85% | P132: 85% | Q132: 85% | R132: 85% | S132: 85% | T132: 85% | U132: 85% | V132: 85% | W132: 85% | X132: 85% | Y132: 85% | Z132: 85% | AA132: 85% | AB132: 85% | AC132: 85% | AD132: 85% | AE132: 85% | AF132: 85% | AG132: 85%
B135: Total | E135: =SUM(E126:E134) -> 100% | F135: =SUM(F126:F134) -> 100% | G135: 100% | H135: 100% | I135: 100% | J135: 100% | K135: 100% | L135: 100% | M135: 100% | N135: 100% | O135: 100% | P135: 100% | Q135: 100% | R135: 100% | S135: 100% | T135: 100% | U135: 100% | V135: 100% | W135: 100% | X135: 100% | Y135: 100% | Z135: 100% | AA135: 100% | AB135: 100% | AC135: 100% | AD135: 100% | AE135: 100% | AF135: 100% | AG135: 100%
B138: Transmission and Distribution Losses (%) in the Grid Supplying the Electricity for the Buses
C140: 2020 | D140: =C140+1 -> 2021 | E140: =D140+1 -> 2022 | F140: =E140+1 -> 2023 | G140: =F140+1 -> 2024 | H140: =G140+1 -> 2025 | I140: =H140+1 -> 2026 | J140: =I140+1 -> 2027 | K140: =J140+1 -> 2028 | L140: =K140+1 -> 2029 | M140: =L140+1 -> 2030 | N140: =M140+1 -> 2031 | O140: =N140+1 -> 2032 | P140: =O140+1 -> 2033 | Q140: =P140+1 -> 2034 | R140: =Q140+1 -> 2035 | S140: =R140+1 -> 2036 | T140: =S140+1 -> 2037 | U140: =T140+1 -> 2038 | V140: =U140+1 -> 2039 | W140: =V140+1 -> 2040 | X140: =W140+1 -> 2041 | Y140: =X140+1 -> 2042 | Z140: =Y140+1 -> 2043 | AA140: =Z140+1 -> 2044 | AB140: =AA140+1 -> 2045 | AC140: =AB140+1 -> 2046 | AD140: =AC140+1 -> 2047 | AE140: =AD140+1 -> 2048 | AF140: =AE140+1 -> 2049 | AG140: =AF140+1 -> 2050
B141: % T&D Losses | E141: 18% | F141: 18% | G141: 18% | H141: 18% | I141: 18% | J141: 18% | K141: 18% | L141: 18% | M141: 18% | N141: 18% | O141: 18% | P141: 18% | Q141: 18% | R141: 18% | S141: 18% | T141: 18% | U141: 18% | V141: 18% | W141: 18% | X141: 18% | Y141: 18% | Z141: 18% | AA141: 18% | AB141: 18% | AC141: 18% | AD141: 18% | AE141: 18% | AF141: 18% | AG141: 18%

Sheet Other charts (hidden)

Sheet TUMI_data
A1: Geographical Data
B2: City | C2: Country | D2: Region
A3: 1 | B3: Campinas | C3: Brazil | D3: Latin America
A4: 2 | B4: Curitiba | C4: Brazil | D4: Latin America
A5: 3 | B5: Rio de Janiero | C5: Brazil | D5: Latin America
A6: 4 | B6: Salvador | C6: Brazil | D6: Latin America
A7: 5 | B7: Sao Paolo | C7: Brazil | D7: Latin America
A8: 6 | B8: Barranquilla | C8: Colombia | D8: Latin America
A9: 7 | B9: Bogota | C9: Colombia | D9: Latin America
A10: 8 | B10: Valledupar | C10: Colombia | D10: Latin America
A11: 9 | B11: Ahmedabad | C11: India | D11: Asia
A12: 10 | B12: Bangalore | C12: India | D12: Asia
A13: 11 | B13: Chennai | C13: India | D13: Asia
A14: 12 | B14: Delhi | C14: India | D14: Asia
A15: 13 | B15: Mumbai | C15: India | D15: Asia
A16: 14 | B16: Pune | C16: India | D16: Asia
A17: 15 | B17: Jakarta | C17: Indonesia | D17: Asia
A18: 16 | B18: Nairobi | C18: Kenya | D18: Africa
A19: 17 | B19: Guadalajara | C19: Mexico | D19: Latin America
A20: 18 | B20: Mexico City | C20: Mexico | D20: Latin America
A21: 19 | B21: Monterrey | C21: Mexico | D21: Latin America
A22: 20 | B22: Durban | C22: South Africa | D22: Africa
A23: 21 | B23: Kampala | C23: Uganda | D23: Africa
A24: 22 | B24: Ho Chi Minh | C24: Vietnam | D24: Asia
A27: Type | B27: Base Targets
B28: Enhanced Targets
B29: Monitored
A32: New E-buses
A33: Type | B33: =Ebus_IO!C5 -> Enhanced Targets
B35: 2022 | C35: 2023 | D35: 2024 | E35: 2025 | F35: 2026 | G35: 2027 | H35: 2028 | I35: 2029 | J35: 2030 | K35: 2031 | L35: 2032 | M35: 2033 | N35: 2034 | O35: 2035 | P35: 2036 | Q35: 2037 | R35: 2038 | S35: 2039 | T35: 2040 | U35: 2041 | V35: 2042 | W35: 2043 | X35: 2044 | Y35: 2045 | Z35: 2046 | AA35: 2047 | AB35: 2048 | AC35: 2049 | AD35: 2050
A36: Campinas | B36: =IF($B$33="Monitored","",IF($B$33="Base Targets",B63,IF($B$33="Enhanced Targets",B90))) -> 15 | C36: =IF($B$33="Monitored","",IF($B$33="Base Targets",C63,IF($B$33="Enhanced Targets",C90))) -> 48 | D36: 48 | E36: 48 | F36: 48 | G36: 50 | H36: 50 | I36: 50 | J36: 50 | K36: 50 | L36: 50 | M36: 50 | N36: 50 | O36: 100 | P36: 100 | Q36: 100 | R36: 100 | S36: 100 | T36: 100 | U36: 100 | V36: 100 | W36: 100 | X36: 100 | Y36: 120 | Z36: 120 | AA36: 120 | AB36: 120 | AC36: 120 | AD36: 120
A37: Curitiba | B37: =IF($B$33="Monitored","",IF($B$33="Base Targets",B64,IF($B$33="Enhanced Targets",B91))) -> 0 | C37: 20 | D37: 20 | E37: 146 | F37: 146 | G37: 146 | H37: 146 | I37: 146 | J37: 146 | K37: 146 | L37: 146 | M37: 146 | N37: 146 | O37: 146 | P37: 200 | Q37: 200 | R37: 200 | S37: 200 | T37: 200 | U37: 200 | V37: 200 | W37: 200 | X37: 200 | Y37: 200 | Z37: 224 | AA37: 224 | AB37: 224 | AC37: 224 | AD37: 224
A38: Rio de Janiero | B38: =IF($B$33="Monitored","",IF($B$33="Base Targets",B65,IF($B$33="Enhanced Targets",B92))) -> 0 | C38: 34 | D38: 35 | E38: 143 | F38: 143 | G38: 143 | H38: 143 | I38: 143 | J38: 146 | K38: 823 | L38: 823 | M38: 823 | N38: 823 | O38: 823 | P38: 823 | Q38: 823 | R38: 823 | S38: 823 | T38: 823 | U38: 823 | V38: 823 | W38: 823 | X38: 823 | Y38: 823 | Z38: 823 | AA38: 823 | AB38: 823 | AC38: 823 | AD38: 820
A39: Salvador | B39: =IF($B$33="Monitored","",IF($B$33="Base Targets",B66,IF($B$33="Enhanced Targets",B93))) -> 8 | C39: 8 | D39: 8 | E39: 250 | F39: 250 | G39: 250 | H39: 250 | I39: 250 | J39: 250 | K39: 250 | L39: 300 | M39: 300 | N39: 300 | O39: 300 | P39: 300 | Q39: 300 | R39: 300 | S39: 300 | T39: 320 | U39: 320 | V39: 320 | W39: 320 | X39: 320 | Y39: 339 | Z39: 339 | AA39: 339 | AB39: 339 | AC39: 339 | AD39: 340
A40: Sao Paolo | B40: =IF($B$33="Monitored","",IF($B$33="Base Targets",B67,IF($B$33="Enhanced Targets",B94))) -> 219 | C40: 1,081 | D40: 1,300 | E40: 1,343 | F40: 1,343 | G40: 1,343 | H40: 1,343 | I40: 1,343 | J40: 1,343 | K40: 1,343 | L40: 1,343 | M40: 1,343 | N40: 1,343 | O40: 1,343 | P40: 1,343 | Q40: 1,343 | R40: 1,341 | S40: 1,881 | T40: 1,881 | U40: 1,881 | V40: 1,881 | W40: 1,881 | X40: 1,881 | Y40: 1,881 | Z40: 1,881 | AA40: 1,881 | AB40: 1,881 | AC40: 1,881 | AD40: 1,881
A41: Guadalajara | B41: =IF($B$33="Monitored","",IF($B$33="Base Targets",B68,IF($B$33="Enhanced Targets",B95))) -> 0 | C41: 250 | D41: 115 | E41: 115 | F41: 115 | G41: 115 | H41: 115 | I41: 115 | J41: 112 | K41: 300 | L41: 300 | M41: 300 | N41: 300 | O41: 500 | P41: 500 | Q41: 500 | R41: 500 | S41: 500 | T41: 795 | U41: 795 | V41: 795 | W41: 795 | X41: 795 | Y41: 795 | Z41: 795 | AA41: 795 | AB41: 795 | AC41: 795 | AD41: 789
A42: Mexico City | B42: =IF($B$33="Monitored","",IF($B$33="Base Targets",B69,IF($B$33="Enhanced Targets",B96))) -> 0 | C42: 59 | D42: 94 | E42: 94 | F42: 94 | G42: 94 | H42: 94 | I42: 94 | J42: 94 | K42: 94 | L42: 94 | M42: 94 | N42: 94 | O42: 90 | P42: 1,500 | Q42: 1,500 | R42: 1,500 | S42: 1,500 | T42: 1,500 | U42: 1,500 | V42: 1,500 | W42: 1,500 | X42: 1,500 | Y42: 1,760 | Z42: 1,760 | AA42: 1,760 | AB42: 1,760 | AC42: 1,760 | AD42: 1,757
A43: Monterrey | B43: =IF($B$33="Monitored","",IF($B$33="Base Targets",B70,IF($B$33="Enhanced Targets",B97))) -> 0 | C43: 14 | D43: 14 | E43: 14 | F43: 14 | G43: 14 | H43: 14 | I43: 14 | J43: 16 | K43: 16 | L43: 16 | M43: 16 | N43: 16 | O43: 16 | P43: 16 | Q43: 16 | R43: 16 | S43: 16 | T43: 16 | U43: 16 | V43: 16 | W43: 16 | X43: 16 | Y43: 16 | Z43: 16 | AA43: 16 | AB43: 16 | AC43: 16 | AD43: 16
A44: Barranquilla | B44: =IF($B$33="Monitored","",IF($B$33="Base Targets",B71,IF($B$33="Enhanced Targets",B98))) -> 0 | C44: 300 | D44: 116 | E44: 116 | F44: 116 | G44: 116 | H44: 116 | I44: 116 | J44: 116 | K44: 116 | L44: 116 | M44: 116 | N44: 119 | O44: 400 | P44: 400 | Q44: 400 | R44: 400 | S44: 400 | T44: 400 | U44: 400 | V44: 400 | W44: 400 | X44: 400 | Y44: 511 | Z44: 511 | AA44: 511 | AB44: 511 | AC44: 511 | AD44: 511
A45: Bogota | B45: =IF($B$33="Monitored","",IF($B$33="Base Targets",B72,IF($B$33="Enhanced Targets",B99))) -> 1,485 | C45: 1,200 | D45: 1,200 | E45: 1,200 | F45: 1,200 | G45: 1,200 | H45: 1,200 | I45: 1,200 | J45: 1,300 | K45: 1,300 | L45: 1,300 | M45: 1,300 | N45: 1,300 | O45: 1,500 | P45: 1,500 | Q45: 1,500 | R45: 1,500 | S45: 1,500 | T45: 1,600 | U45: 1,600 | V45: 1,600 | W45: 1,600 | X45: 1,600 | Y45: 1,725 | Z45: 1,725 | AA45: 1,725 | AB45: 1,725 | AC45: 1,725 | AD45: 1,724
A46: Valledupar | B46: =IF($B$33="Monitored","",IF($B$33="Base Targets",B73,IF($B$33="Enhanced Targets",B100))) -> 12 | C46: 4 | D46: 5 | E46: 5 | F46: 5 | G46: 5 | H46: 5 | I46: 5 | J46: 7 | K46: 34 | L46: 34 | M46: 34 | N46: 34 | O46: 32 | P46: 10 | Q46: 12 | R46: 15 | S46: 17 | T46: 23 | U46: 29 | V46: 32 | W46: 33 | X46: 33 | Y46: 29 | Z46: 27 | AA46: 26 | AB46: 25 | AC46: 27 | AD46: 30
A47: Ahmedabad | B47: =IF($B$33="Monitored","",IF($B$33="Base Targets",B74,IF($B$33="Enhanced Targets",B101))) -> 202 | C47: 298 | D47: 500 | E47: 500 | F47: 503 | G47: 500 | H47: 500 | I47: 500 | J47: 500 | K47: 500 | L47: 500 | M47: 500 | N47: 500 | O47: 750 | P47: 750 | Q47: 750 | R47: 750 | S47: 750 | T47: 750 | U47: 750 | V47: 750 | W47: 750 | X47: 750 | Y47: 915 | Z47: 915 | AA47: 915 | AB47: 915 | AC47: 915 | AD47: 961
A48: Bangalore | B48: =IF($B$33="Monitored","",IF($B$33="Base Targets",B75,IF($B$33="Enhanced Targets",B102))) -> 210 | C48: 1,145 | D48: 1,145 | E48: 900 | F48: 900 | G48: 900 | H48: 900 | I48: 900 | J48: 1,218 | K48: 1,218 | L48: 1,218 | M48: 1,218 | N48: 1,218 | O48: 1,218 | P48: 1,284 | Q48: 1,312 | R48: 1,351 | S48: 1,411 | T48: 1,482 | U48: 1,549 | V48: 1,602 | W48: 1,641 | X48: 1,675 | Y48: 1,713 | Z48: 1,758 | AA48: 1,813 | AB48: 1,875 | AC48: 1,943 | AD48: 2,012
A49: Pune | B49: =IF($B$33="Monitored","",IF($B$33="Base Targets",B76,IF($B$33="Enhanced Targets",B103))) -> 0 | C49: 0 | D49: 0 | E49: 500 | F49: 500 | G49: 500 | H49: 500 | I49: 500 | J49: 500 | K49: 500 | L49: 500 | M49: 500 | N49: 500 | O49: 800 | P49: 800 | Q49: 800 | R49: 800 | S49: 800 | T49: 800 | U49: 800 | V49: 800 | W49: 800 | X49: 800 | Y49: 1,070 | Z49: 1,070 | AA49: 1,070 | AB49: 1,070 | AC49: 1,070 | AD49: 1,070
A50: Delhi | B50: =IF($B$33="Monitored","",IF($B$33="Base Targets",B77,IF($B$33="Enhanced Targets",B104))) -> 250 | C50: 1,450 | D50: 2,040 | E50: 1,991 | F50: 760 | G50: 775 | H50: 815 | I50: 897 | J50: 1,040 | K50: 1,040 | L50: 1,040 | M50: 1,040 | N50: 1,040 | O50: 1,500 | P50: 1,500 | Q50: 1,500 | R50: 1,500 | S50: 1,500 | T50: 1,700 | U50: 1,700 | V50: 1,700 | W50: 1,700 | X50: 1,700 | Y50: 2,119 | Z50: 2,119 | AA50: 2,119 | AB50: 2,119 | AC50: 2,119 | AD50: 2,120
A51: Mumbai | B51: =IF($B$33="Monitored","",IF($B$33="Base Targets",B78,IF($B$33="Enhanced Targets",B105))) -> 386 | C51: 22 | D51: 2,398 | E51: 2,399 | F51: 2,402 | G51: 2,412 | H51: 1,100 | I51: 1,100 | J51: 1,300 | K51: 1,300 | L51: 1,300 | M51: 1,300 | N51: 1,300 | O51: 1,750 | P51: 1,750 | Q51: 1,750 | R51: 1,750 | S51: 1,750 | T51: 2,000 | U51: 2,000 | V51: 2,000 | W51: 2,000 | X51: 2,000 | Y51: 2,114 | Z51: 2,008 | AA51: 2,052 | AB51: 2,114 | AC51: 2,169 | AD51: 2,224
A52: Durban | B52: =IF($B$33="Monitored","",IF($B$33="Base Targets",B79,IF($B$33="Enhanced Targets",B106))) -> 0 | C52: 0 | D52: 0 | E52: 500 | F52: 500 | G52: 500 | H52: 500 | I52: 500 | J52: 500 | K52: 500 | L52: 500 | M52: 500 | N52: 500 | O52: 1,000 | P52: 1,000 | Q52: 1,000 | R52: 1,000 | S52: 1,000 | T52: 1,000 | U52: 1,000 | V52: 1,000 | W52: 1,000 | X52: 1,000 | Y52: 1,250 | Z52: 1,250 | AA52: 1,250 | AB52: 1,250 | AC52: 1,250 | AD52: 1,255
A53: Kampala | B53: =IF($B$33="Monitored","",IF($B$33="Base Targets",B80,IF($B$33="Enhanced Targets",B107))) -> 0 | C53: 0 | D53: 0 | E53: 50 | F53: 50 | G53: 50 | H53: 50 | I53: 50 | J53: 50 | K53: 50 | L53: 50 | M53: 50 | N53: 50 | O53: 125 | P53: 125 | Q53: 125 | R53: 125 | S53: 125 | T53: 125 | U53: 125 | V53: 125 | W53: 125 | X53: 125 | Y53: 208 | Z53: 208 | AA53: 208 | AB53: 208 | AC53: 208 | AD53: 211
A54: Nairobi | B54: =IF($B$33="Monitored","",IF($B$33="Base Targets",B81,IF($B$33="Enhanced Targets",B108))) -> 60 | C54: 0 | D54: 20 | E54: 20 | F54: 20 | G54: 20 | H54: 20 | I54: 20 | J54: 40 | K54: 40 | L54: 40 | M54: 40 | N54: 40 | O54: 50 | P54: 50 | Q54: 50 | R54: 50 | S54: 50 | T54: 80 | U54: 80 | V54: 80 | W54: 80 | X54: 80 | Y54: 103 | Z54: 103 | AA54: 103 | AB54: 103 | AC54: 103 | AD54: 105
A55: Jakarta | B55: =IF($B$33="Monitored","",IF($B$33="Base Targets",B82,IF($B$33="Enhanced Targets",B109))) -> 30 | C55: 2,745 | D55: 3,054 | E55: 3,054 | F55: 811 | G55: 811 | H55: 811 | I55: 811 | J55: 811 | K55: 930 | L55: 1,329 | M55: 1,716 | N55: 1,956 | O55: 1,957 | P55: 1,746 | Q55: 1,460 | R55: 1,255 | S55: 1,197 | T55: 1,265 | U55: 1,408 | V55: 1,582 | W55: 1,744 | X55: 1,851 | Y55: 1,880 | Z55: 1,833 | AA55: 1,746 | AB55: 1,668 | AC55: 1,633 | AD55: 1,658
A56: Ho Chi Minh | B56: =IF($B$33="Monitored","",IF($B$33="Base Targets",B83,IF($B$33="Enhanced Targets",B110))) -> 77 | C56: 97 | D56: 97 | E56: 347 | F56: 347 | G56: 347 | H56: 347 | I56: 347 | J56: 346 | K56: 300 | L56: 300 | M56: 300 | N56: 300 | O56: 400 | P56: 400 | Q56: 400 | R56: 400 | S56: 400 | T56: 400 | U56: 400 | V56: 400 | W56: 450 | X56: 450 | Y56: 511 | Z56: 511 | AA56: 511 | AB56: 511 | AC56: 511 | AD56: 509
A57: Chennai | B57: =IF($B$33="Monitored","",IF($B$33="Base Targets",B84,IF($B$33="Enhanced Targets",B111))) -> 0 | C57: 500 | D57: 500 | E57: 705 | F57: 300 | G57: 300 | H57: 300 | I57: 300 | J57: 450 | K57: 450 | L57: 450 | M57: 450 | N57: 450 | O57: 600 | P57: 600 | Q57: 600 | R57: 600 | S57: 600 | T57: 600 | U57: 600 | V57: 600 | W57: 600 | X57: 600 | Y57: 770 | Z57: 770 | AA57: 770 | AB57: 770 | AC57: 770 | AD57: 773
A60: New E-buses (Base Targets)
B62: 2022 | C62: 2023 | D62: 2024 | E62: 2025 | F62: 2026 | G62: 2027 | H62: 2028 | I62: 2029 | J62: 2030 | K62: 2031 | L62: 2032 | M62: 2033 | N62: 2034 | O62: 2035 | P62: 2036 | Q62: 2037 | R62: 2038 | S62: 2039 | T62: 2040 | U62: 2041 | V62: 2042 | W62: 2043 | X62: 2044 | Y62: 2045 | Z62: 2046 | AA62: 2047 | AB62: 2048 | AC62: 2049 | AD62: 2050
A63: Campinas | B63: 15 | C63: 48 | D63: 48 | E63: 48 | F63: 48 | G63: 50 | AE63: =SUM(B63:AD63) -> 257
A64: Curitiba | B64: 0 | C64: 20 | D64: 20 | E64: 146 | F64: 146 | G64: 146 | H64: 146 | I64: 146 | J64: 146 | K64: 146 | L64: 146 | M64: 146 | N64: 146 | O64: 146 | P64: 146 | Q64: 146 | R64: 146 | S64: 146 | T64: 146 | U64: 146 | V64: 146 | W64: 146 | X64: 146 | Y64: 146 | Z64: 146 | AA64: 146 | AB64: 146 | AC64: 146 | AD64: 149 | AE64: =SUM(B64:AD64) -> 3,839
A65: Rio de Janiero | B65: 0 | C65: 34 | D65: 35 | E65: 143 | F65: 143 | G65: 143 | H65: 143 | I65: 143 | J65: 146 | AE65: 930
A66: Salvador | B66: 8 | C66: 8 | D66: 8 | E66: 250 | F66: 250 | G66: 250 | H66: 250 | I66: 250 | J66: 250 | K66: 250 | L66: 250 | M66: 250 | N66: 250 | O66: 250 | P66: 250 | Q66: 250 | R66: 250 | S66: 250 | T66: 250 | U66: 250 | V66: 250 | W66: 250 | X66: 250 | Y66: 250 | Z66: 250 | AA66: 250 | AB66: 250 | AC66: 253 | AD66: 253 | AE66: 6,530
A67: Sao Paolo | B67: 219 | C67: 1,081 | D67: 1,300 | E67: 1,343 | F67: 1,343 | G67: 1,343 | H67: 1,343 | I67: 1,343 | J67: 1,343 | K67: 1,343 | L67: 1,343 | M67: 1,343 | N67: 1,343 | O67: 1,343 | P67: 1,343 | Q67: 1,343 | R67: 1,341 | AE67: 21,400
A68: Guadalajara | C68: 250 | D68: 115 | E68: 115 | F68: 115 | G68: 115 | H68: 115 | I68: 115 | J68: 112 | AE68: 1,052
A69: Mexico City | C69: 59 | D69: 94 | E69: 94 | F69: 94 | G69: 94 | H69: 94 | I69: 94 | J69: 94 | K69: 94 | L69: 94 | M69: 94 | N69: 94 | O69: 90 | AE69: 1,183
A70: Monterrey | B70: 0 | C70: 14 | D70: 14 | E70: 14 | F70: 14 | G70: 14 | H70: 14 | I70: 14 | J70: 16 | AE70: 114
A71: Barranquilla | B71: 0 | C71: 300 | D71: 116 | E71: 116 | F71: 116 | G71: 116 | H71: 116 | I71: 116 | J71: 116 | K71: 116 | L71: 116 | M71: 116 | N71: 119 | AE71: 1,579
A72: Bogota | B72: 1,485 | C72: 173 | D72: 282 | E72: 392 | F72: 502 | G72: 611 | H72: 721 | I72: 830 | J72: 940 | K72: 1050 | L72: 1159 | M72: 1269 | N72: 1378 | O72: 1488 | AE72: 12,280
A73: Valledupar | B73: 12 | C73: 4 | D73: 5 | E73: 5 | F73: 5 | G73: 5 | H73: 5 | I73: 5 | J73: 7 | K73: 34 | L73: 34 | M73: 34 | N73: 34 | O73: 32 | AE73: 221
A74: Ahmedabad | B74: 202 | C74: 298 | D74: 500 | E74: 500 | F74: 503 | AE74: 2,003
A75: Bangalore | B75: 210 | C75: 1,145 | D75: 1,145 | AE75: 2,500
A76: Pune | AE76: 0
A77: Delhi | B77: 250 | C77: 1,450 | D77: 2,040 | E77: 1,991 | F77: 760 | G77: 775 | H77: 815 | I77: 897 | J77: 1040 | AE77: 10,018
A78: Mumbai | B78: 386 | C78: 22 | D78: 2,398 | E78: 2,399 | F78: 2,402 | G78: 2,412 | AE78: 10,019
A79: Durban | AE79: 0
A80: Kampala | AE80: 0
A81: Nairobi | B81: 60 | AE81: 60
A82: Jakarta | B82: 30 | C82: 2,745 | D82: 3,054 | E82: 3,054 | F82: 811 | G82: 811 | H82: 811 | I82: 811 | J82: 811 | AE82: 12,938
A83: Ho Chi Minh | B83: 77 | C83: 97 | D83: 97 | E83: 347 | F83: 347 | G83: 347 | H83: 347 | I83: 347 | J83: 346 | AE83: 2,352
A84: Chennai | C84: 500 | D84: 500 | E84: 500 | AE84: 1,500
B85: =SUM(B63:B84) -> 2,954 | C85: =SUM(C63:C84) -> 8,248 | D85: =SUM(D63:D84) -> 11,771 | E85: =SUM(E63:E84) -> 11,457 | F85: =SUM(F63:F84) -> 7,599 | G85: =SUM(G63:G84) -> 7,232 | H85: =SUM(H63:H84) -> 4,920 | I85: =SUM(I63:I84) -> 5,111 | J85: =SUM(J63:J84) -> 5,367 | K85: =SUM(K63:K84) -> 3,033 | L85: =SUM(L63:L84) -> 3,142 | M85: =SUM(M63:M84) -> 3,252 | N85: =SUM(N63:N84) -> 3,364 | O85: =SUM(O63:O84) -> 3,349 | P85: =SUM(P63:P84) -> 1,739 | Q85: =SUM(Q63:Q84) -> 1,739 | R85: =SUM(R63:R84) -> 1,737 | S85: =SUM(S63:S84) -> 396 | T85: =SUM(T63:T84) -> 396 | U85: =SUM(U63:U84) -> 396 | V85: =SUM(V63:V84) -> 396 | W85: =SUM(W63:W84) -> 396 | X85: =SUM(X63:X84) -> 396 | Y85: =SUM(Y63:Y84) -> 396 | Z85: =SUM(Z63:Z84) -> 396 | AA85: =SUM(AA63:AA84) -> 396 | AB85: =SUM(AB63:AB84) -> 396 | AC85: =SUM(AC63:AC84) -> 399 | AD85: =SUM(AD63:AD84) -> 402 | AE85: =SUM(AE63:AE84) -> 90,775
A87: New E-buses (Enhanced Targets)
B89: 2022 | C89: 2023 | D89: 2024 | E89: 2025 | F89: 2026 | G89: 2027 | H89: 2028 | I89: 2029 | J89: 2030 | K89: 2031 | L89: 2032 | M89: 2033 | N89: 2034 | O89: 2035 | P89: 2036 | Q89: 2037 | R89: 2038 | S89: 2039 | T89: 2040 | U89: 2041 | V89: 2042 | W89: 2043 | X89: 2044 | Y89: 2045 | Z89: 2046 | AA89: 2047 | AB89: 2048 | AC89: 2049 | AD89: 2050
A90: Campinas | B90: 15 | C90: 48 | D90: 48 | E90: 48 | F90: 48 | G90: 50 | H90: 50 | I90: 50 | J90: 50 | K90: 50 | L90: 50 | M90: 50 | N90: 50 | O90: 100 | P90: 100 | Q90: 100 | R90: 100 | S90: 100 | T90: 100 | U90: 100 | V90: 100 | W90: 100 | X90: 100 | Y90: 120 | Z90: 120 | AA90: 120 | AB90: 120 | AC90: 120 | AD90: 120 | AE90: =SUM(B90:AD90) -> 2,327
A91: Curitiba | B91: 0 | C91: 20 | D91: 20 | E91: 146 | F91: 146 | G91: 146 | H91: 146 | I91: 146 | J91: 146 | K91: 146 | L91: 146 | M91: 146 | N91: 146 | O91: 146 | P91: 200 | Q91: 200 | R91: 200 | S91: 200 | T91: 200 | U91: 200 | V91: 200 | W91: 200 | X91: 200 | Y91: 200 | Z91: 224 | AA91: 224 | AB91: 224 | AC91: 224 | AD91: 224 | AE91: =SUM(B91:AD91) -> 4,766
A92: Rio de Janiero | B92: 0 | C92: 34 | D92: 35 | E92: 143 | F92: 143 | G92: 143 | H92: 143 | I92: 143 | J92: 146 | K92: 823 | L92: 823 | M92: 823 | N92: 823 | O92: 823 | P92: 823 | Q92: 823 | R92: 823 | S92: 823 | T92: 823 | U92: 823 | V92: 823 | W92: 823 | X92: 823 | Y92: 823 | Z92: 823 | AA92: 823 | AB92: 823 | AC92: 823 | AD92: 820 | AE92: 17,387
A93: Salvador | B93: 8 | C93: 8 | D93: 8 | E93: 250 | F93: 250 | G93: 250 | H93: 250 | I93: 250 | J93: 250 | K93: 250 | L93: 300 | M93: 300 | N93: 300 | O93: 300 | P93: 300 | Q93: 300 | R93: 300 | S93: 300 | T93: 320 | U93: 320 | V93: 320 | W93: 320 | X93: 320 | Y93: 339 | Z93: 339 | AA93: 339 | AB93: 339 | AC93: 339 | AD93: 340 | AE93: 7,809
A94: Sao Paolo | B94: 219 | C94: 1,081 | D94: 1,300 | E94: 1,343 | F94: 1,343 | G94: 1,343 | H94: 1,343 | I94: 1,343 | J94: 1,343 | K94: 1,343 | L94: 1,343 | M94: 1,343 | N94: 1,343 | O94: 1,343 | P94: 1,343 | Q94: 1,343 | R94: 1,341 | S94: 1,881 | T94: 1,881 | U94: 1,881 | V94: 1,881 | W94: 1,881 | X94: 1,881 | Y94: 1,881 | Z94: 1,881 | AA94: 1,881 | AB94: 1,881 | AC94: 1,881 | AD94: 1,881 | AE94: 43,972
A95: Guadalajara | B95: 0 | C95: 250 | D95: 115 | E95: 115 | F95: 115 | G95: 115 | H95: 115 | I95: 115 | J95: 112 | K95: 300 | L95: 300 | M95: 300 | N95: 300 | O95: 500 | P95: 500 | Q95: 500 | R95: 500 | S95: 500 | T95: 795 | U95: 795 | V95: 795 | W95: 795 | X95: 795 | Y95: 795 | Z95: 795 | AA95: 795 | AB95: 795 | AC95: 795 | AD95: 789 | AE95: 13,491
A96: Mexico City | B96: 0 | C96: 59 | D96: 94 | E96: 94 | F96: 94 | G96: 94 | H96: 94 | I96: 94 | J96: 94 | K96: 94 | L96: 94 | M96: 94 | N96: 94 | O96: 90 | P96: 1,500 | Q96: 1,500 | R96: 1,500 | S96: 1,500 | T96: 1,500 | U96: 1,500 | V96: 1,500 | W96: 1,500 | X96: 1,500 | Y96: 1,760 | Z96: 1,760 | AA96: 1,760 | AB96: 1,760 | AC96: 1,760 | AD96: 1,757 | AE96: 25,240
A97: Monterrey | B97: 0 | C97: 14 | D97: 14 | E97: 14 | F97: 14 | G97: 14 | H97: 14 | I97: 14 | J97: 16 | K97: 16 | L97: 16 | M97: 16 | N97: 16 | O97: 16 | P97: 16 | Q97: 16 | R97: 16 | S97: 16 | T97: 16 | U97: 16 | V97: 16 | W97: 16 | X97: 16 | Y97: 16 | Z97: 16 | AA97: 16 | AB97: 16 | AC97: 16 | AD97: 16 | AE97: 434
A98: Barranquilla | B98: 0 | C98: 300 | D98: 116 | E98: 116 | F98: 116 | G98: 116 | H98: 116 | I98: 116 | J98: 116 | K98: 116 | L98: 116 | M98: 116 | N98: 119 | O98: 400 | P98: 400 | Q98: 400 | R98: 400 | S98: 400 | T98: 400 | U98: 400 | V98: 400 | W98: 400 | X98: 400 | Y98: 511 | Z98: 511 | AA98: 511 | AB98: 511 | AC98: 511 | AD98: 511 | AE98: 8,645
A99: Bogota | B99: 1,485 | C99: 1,200 | D99: 1,200 | E99: 1,200 | F99: 1,200 | G99: 1,200 | H99: 1,200 | I99: 1,200 | J99: 1,300 | K99: 1,300 | L99: 1,300 | M99: 1,300 | N99: 1,300 | O99: 1,500 | P99: 1,500 | Q99: 1,500 | R99: 1,500 | S99: 1,500 | T99: 1,600 | U99: 1,600 | V99: 1,600 | W99: 1,600 | X99: 1,600 | Y99: 1,725 | Z99: 1,725 | AA99: 1,725 | AB99: 1,725 | AC99: 1,725 | AD99: 1,724 | AE99: 42,234
A100: Valledupar | B100: 12 | C100: 4 | D100: 5 | E100: 5 | F100: 5 | G100: 5 | H100: 5 | I100: 5 | J100: 7 | K100: 34 | L100: 34 | M100: 34 | N100: 34 | O100: 32 | P100: 10 | Q100: 12 | R100: 15 | S100: 17 | T100: 23 | U100: 29 | V100: 32 | W100: 33 | X100: 33 | Y100: 29 | Z100: 27 | AA100: 26 | AB100: 25 | AC100: 27 | AD100: 30 | AE100: 589
A101: Ahmedabad | B101: 202 | C101: 298 | D101: 500 | E101: 500 | F101: 503 | G101: 500 | H101: 500 | I101: 500 | J101: 500 | K101: 500 | L101: 500 | M101: 500 | N101: 500 | O101: 750 | P101: 750 | Q101: 750 | R101: 750 | S101: 750 | T101: 750 | U101: 750 | V101: 750 | W101: 750 | X101: 750 | Y101: 915 | Z101: 915 | AA101: 915 | AB101: 915 | AC101: 915 | AD101: 961 | AE101: 19,039
A102: Bangalore | B102: 210 | C102: 1,145 | D102: 1,145 | E102: 900 | F102: 900 | G102: 900 | H102: 900 | I102: 900 | J102: 1,218 | K102: 1,218 | L102: 1,218 | M102: 1,218 | N102: 1,218 | O102: 1,218 | P102: 1,284 | Q102: 1,312 | R102: 1,351 | S102: 1,411 | T102: 1,482 | U102: 1,549 | V102: 1,602 | W102: 1,641 | X102: 1,675 | Y102: 1,713 | Z102: 1,758 | AA102: 1,813 | AB102: 1,875 | AC102: 1,943 | AD102: 2,012 | AE102: 38,729
A103: Pune | B103: 0 | C103: 0 | D103: 0 | E103: 500 | F103: 500 | G103: 500 | H103: 500 | I103: 500 | J103: 500 | K103: 500 | L103: 500 | M103: 500 | N103: 500 | O103: 800 | P103: 800 | Q103: 800 | R103: 800 | S103: 800 | T103: 800 | U103: 800 | V103: 800 | W103: 800 | X103: 800 | Y103: 1,070 | Z103: 1,070 | AA103: 1,070 | AB103: 1,070 | AC103: 1,070 | AD103: 1,070 | AE103: 19,420
A104: Delhi | B104: 250 | C104: 1,450 | D104: 2,040 | E104: 1,991 | F104: 760 | G104: 775 | H104: 815 | I104: 897 | J104: 1,040 | K104: 1,040 | L104: 1,040 | M104: 1,040 | N104: 1,040 | O104: 1,500 | P104: 1,500 | Q104: 1,500 | R104: 1,500 | S104: 1,500 | T104: 1,700 | U104: 1,700 | V104: 1,700 | W104: 1,700 | X104: 1,700 | Y104: 2,119 | Z104: 2,119 | AA104: 2,119 | AB104: 2,119 | AC104: 2,119 | AD104: 2,120 | AE104: 42,893
A105: Mumbai | B105: 386 | C105: 22 | D105: 2,398 | E105: 2,399 | F105: 2,402 | G105: 2,412 | H105: 1,100 | I105: 1,100 | J105: 1,300 | K105: 1,300 | L105: 1,300 | M105: 1,300 | N105: 1,300 | O105: 1,750 | P105: 1,750 | Q105: 1,750 | R105: 1,750 | S105: 1,750 | T105: 2,000 | U105: 2,000 | V105: 2,000 | W105: 2,000 | X105: 2,000 | Y105: 2,114 | Z105: 2,008 | AA105: 2,052 | AB105: 2,114 | AC105: 2,169 | AD105: 2,224 | AE105: 50,150
A106: Durban | B106: 0 | C106: 0 | D106: 0 | E106: 500 | F106: 500 | G106: 500 | H106: 500 | I106: 500 | J106: 500 | K106: 500 | L106: 500 | M106: 500 | N106: 500 | O106: 1,000 | P106: 1,000 | Q106: 1,000 | R106: 1,000 | S106: 1,000 | T106: 1,000 | U106: 1,000 | V106: 1,000 | W106: 1,000 | X106: 1,000 | Y106: 1,250 | Z106: 1,250 | AA106: 1,250 | AB106: 1,250 | AC106: 1,250 | AD106: 1,255 | AE106: 22,505
A107: Kampala | B107: 0 | C107: 0 | D107: 0 | E107: 50 | F107: 50 | G107: 50 | H107: 50 | I107: 50 | J107: 50 | K107: 50 | L107: 50 | M107: 50 | N107: 50 | O107: 125 | P107: 125 | Q107: 125 | R107: 125 | S107: 125 | T107: 125 | U107: 125 | V107: 125 | W107: 125 | X107: 125 | Y107: 208 | Z107: 208 | AA107: 208 | AB107: 208 | AC107: 208 | AD107: 211 | AE107: 3,001
A108: Nairobi | B108: 60 | C108: 0 | D108: 20 | E108: 20 | F108: 20 | G108: 20 | H108: 20 | I108: 20 | J108: 40 | K108: 40 | L108: 40 | M108: 40 | N108: 40 | O108: 50 | P108: 50 | Q108: 50 | R108: 50 | S108: 50 | T108: 80 | U108: 80 | V108: 80 | W108: 80 | X108: 80 | Y108: 103 | Z108: 103 | AA108: 103 | AB108: 103 | AC108: 103 | AD108: 105 | AE108: 1,650
A109: Jakarta | B109: 30 | C109: 2,745 | D109: 3,054 | E109: 3,054 | F109: 811 | G109: 811 | H109: 811 | I109: 811 | J109: 811 | K109: 930 | L109: 1,329 | M109: 1,716 | N109: 1,956 | O109: 1,957 | P109: 1,746 | Q109: 1,460 | R109: 1,255 | S109: 1,197 | T109: 1,265 | U109: 1,408 | V109: 1,582 | W109: 1,744 | X109: 1,851 | Y109: 1,880 | Z109: 1,833 | AA109: 1,746 | AB109: 1,668 | AC109: 1,633 | AD109: 1,658 | AE109: 44,752
A110: Ho Chi Minh | B110: 77 | C110: 97 | D110: 97 | E110: 347 | F110: 347 | G110: 347 | H110: 347 | I110: 347 | J110: 346 | K110: 300 | L110: 300 | M110: 300 | N110: 300 | O110: 400 | P110: 400 | Q110: 400 | R110: 400 | S110: 400 | T110: 400 | U110: 400 | V110: 400 | W110: 450 | X110: 450 | Y110: 511 | Z110: 511 | AA110: 511 | AB110: 511 | AC110: 511 | AD110: 509 | AE110: 10,716
A111: Chennai | B111: 0 | C111: 500 | D111: 500 | E111: 705 | F111: 300 | G111: 300 | H111: 300 | I111: 300 | J111: 450 | K111: 450 | L111: 450 | M111: 450 | N111: 450 | O111: 600 | P111: 600 | Q111: 600 | R111: 600 | S111: 600 | T111: 600 | U111: 600 | V111: 600 | W111: 600 | X111: 600 | Y111: 770 | Z111: 770 | AA111: 770 | AB111: 770 | AC111: 770 | AD111: 773 | AE111: 15,778
B112: =SUM(B90:B111) -> 2,954 | C112: 9,275 | D112: 12,709 | E112: 14,440 | F112: 10,567 | G112: 10,591 | H112: 9,319 | I112: 9,401 | J112: 10,335 | K112: 11,300 | L112: 11,749 | M112: 12,136 | N112: 12,379 | O112: 15,400 | P112: 16,697 | Q112: 16,441 | R112: 16,276 | S112: 16,820 | T112: 17,860 | U112: 18,076 | V112: 18,306 | W112: 18,558 | X112: 18,699 | Y112: 20,852 | Z112: 20,766 | AA112: 20,777 | AB112: 20,822 | AC112: 20,912 | AD112: =SUM(AD90:AD111) -> 21,110 | AE112: =SUM(AE90:AE111) -> 435,527
A117: Speed
B119: City | C119: Defaults
A120: Campinas | C120: 21
A121: Curitiba | B121: 21 | C121: 21
A122: Rio de Janiero | B122: 21.8 | C122: 21.8
A123: Salvador | B123: 17.6 | C123: 17.6
A124: Sao Paolo | B124: 21 | C124: 21
A125: Guadalajara | B125: 21 | C125: 21
A126: Mexico City | B126: 21 | C126: 21
A127: Monterrey | C127: 21
A128: Barranquilla | B128: 22 | C128: 22
A129: Bogota | B129: 27 | C129: 27
A130: Valledupar | C130: 28
A131: Ahmedabad | B131: 23.77 | C131: 23.77
A132: Bangalore | C132: 18
A133: Pune | B133: 13 | C133: 13
A134: Delhi | B134: 13 | C134: 13
A135: Mumbai | B135: 14 | C135: 14
A136: Durban | C136: 30
A137: Kampala | C137: 20.5
A138: Nairobi | C138: 20.5
A139: Jakarta | B139: 19 | C139: 19
A140: Ho Chi Minh | C140: 19.6
A141: Chennai | C141: 18
C142: =AVERAGE(C120:C141) -> 20.535
A144: VKT/bus/year
B146: Average | D146: Minibus | E146: Midibus | F146: Standard | G146: Articulated | H146: Biarticulated | I146: Double decker | J146: BRT Only
A147: Campinas | B147: 40000 | D147: 40000 | E147: 40000 | F147: 40000 | G147: 72432 | H147: 40000 | I147: 40000 | J147: 40000
A148: Curitiba | B148: 40000 | D148: 40000 | E148: 40000 | F148: 40000 | G148: 40000 | H148: 40000 | I148: 40000 | J148: 40000
A149: Rio de Janiero | B149: 57547 | D149: =$B$149 -> 57547 | E149: =$B$149 -> 57547 | F149: 57547 | G149: 57547 | H149: 57547 | I149: 57547 | J149: 57547
A150: Salvador | B150: 40000 | D150: 40000 | E150: 40000 | F150: 40000 | G150: 40000 | H150: 40000 | I150: 40000 | J150: 40000
A151: Sao Paolo | B151: =AVERAGE(D151:G151) -> 69100 | D151: 70100 | E151: 70400 | F151: 72300 | G151: 63600 | H151: 40000 | I151: 40000 | J151: 40000
A152: Guadalajara | B152: 40000 | D152: 40000 | E152: 40000 | F152: 40000 | G152: 40000 | H152: 40000 | I152: 40000 | J152: 40000
A153: Mexico City | B153: 40000 | D153: 40000 | E153: 40000 | F153: 40000 | G153: 40000 | H153: 40000 | I153: 40000 | J153: 40000
A154: Monterrey | B154: 40000 | D154: 40000 | E154: 40000 | F154: 40000 | G154: 40000 | H154: 40000 | I154: 40000 | J154: 40000
A155: Barranquilla | B155: 40000 | D155: 40000 | E155: 40000 | F155: 40000 | G155: 40000 | H155: 40000 | I155: 40000 | J155: 40000
A156: Bogota | B156: =AVERAGE(D156,F156,G156,H156) -> 63143 | D156: 21900 | E156: =B156 -> 63143 | F156: 65700 | G156: 82486 | H156: 82486 | I156: =F156 -> 65700 | J156: =G156 -> 82486
A157: Valledupar | B157: 40000 | D157: =$B157 -> 40000 | E157: =$B157 -> 40000 | F157: 40000 | G157: 40000 | H157: 40000 | I157: 40000 | J157: 40000
A158: Ahmedabad | B158: 40000 | D158: 40000 | E158: 40000 | F158: 40000 | G158: 40000 | H158: 40000 | I158: 40000 | J158: 40000
A159: Bangalore | B159: 40000 | D159: 40000 | E159: 40000 | F159: 40000 | G159: 40000 | H159: 40000 | I159: 40000 | J159: 40000
A160: Pune | B160: 40000 | D160: 40000 | E160: 40000 | F160: 40000 | G160: 40000 | H160: 40000 | I160: 40000 | J160: 40000
A161: Delhi | B161: 40000 | D161: 40000 | E161: 40000 | F161: 40000 | G161: 40000 | H161: 40000 | I161: 40000 | J161: 40000
A162: Mumbai | B162: 40000 | D162: 40000 | E162: 40000 | F162: 40000 | G162: 40000 | H162: 40000 | I162: 40000 | J162: 40000
A163: Durban | B163: 40000 | D163: 40000 | E163: 40000 | F163: 40000 | G163: 40000 | H163: 40000 | I163: 40000 | J163: 40000
A164: Kampala | B164: 40000 | D164: 40000 | E164: 40000 | F164: 40000 | G164: 40000 | H164: 40000 | I164: 40000 | J164: 40000
A165: Nairobi | B165: 40000 | D165: 40000 | E165: 40000 | F165: 40000 | G165: 40000 | H165: 40000 | I165: 40000 | J165: 40000
A166: Jakarta | B166: =J166 -> 54531 | D166: =$J$166 -> 54531 | E166: 54531 | F166: 54531 | G166: 54531 | H166: 54531 | I166: 54531 | J166: 54531
A167: Ho Chi Minh | B167: 40000 | D167: =$B167 -> 40000 | E167: 40000 | F167: 40000 | G167: 40000 | H167: 40000 | I167: 40000 | J167: 40000
A168: Chennai | B168: 40000 | D168: 40000 | E168: 40000 | F168: 40000 | G168: 40000 | H168: 40000 | I168: 40000 | J168: 40000
A172: Transmission and distribution losses
A173: Type | B173: =Ebus_IO!D114 -> Enhanced Targets
AH174: Selected
B175: 2020 | C175: 2021 | D175: 2022 | E175: 2023 | F175: 2024 | G175: 2025 | H175: 2026 | I175: 2027 | J175: 2028 | K175: 2029 | L175: 2030 | M175: 2031 | N175: 2032 | O175: 2033 | P175: 2034 | Q175: 2035 | R175: 2036 | S175: 2037 | T175: 2038 | U175: 2039 | V175: 2040 | W175: 2041 | X175: 2042 | Y175: 2043 | Z175: 2044 | AA175: 2045 | AB175: 2046 | AC175: 2047 | AD175: 2048 | AE175: 2049 | AF175: 2050 | AH175: =Ebus_IO!C116 -> 2020 | AI175: =Ebus_IO!D116 -> 2025 | AJ175: =Ebus_IO!E116 -> 2030 | AK175: =Ebus_IO!F116 -> 2035 | AL175: =Ebus_IO!G116 -> 2040 | AM175: =Ebus_IO!H116 -> 2045 | AN175: =Ebus_IO!I116 -> 2050 | AO175: =Ebus_IO!J116 -> 2055 | AP175: =Ebus_IO!K116 -> 2060
A176: Brazil | B176: =IF($B$173="Monitored","",IF($B$173="Base Targets",B190,IF($B$173="Enhanced Targets",B204,""))) -> 18% | C176: =IF($B$173="Monitored","",IF($B$173="Base Targets",C190,IF($B$173="Enhanced Targets",C204,""))) -> 18% | D176: 18% | E176: 18% | F176: 18% | G176: 17% | H176: 17% | I176: 17% | J176: 16% | K176: 16% | L176: 16% | M176: 15% | N176: 15% | O176: 15% | P176: 14% | Q176: 14% | R176: 14% | S176: 13% | T176: 13% | U176: 13% | V176: 12% | W176: 12% | X176: 12% | Y176: 11% | Z176: 11% | AA176: 11% | AB176: 10% | AC176: 10% | AD176: 10% | AE176: 9% | AF176: 9% | AH176: =IFERROR(VLOOKUP(Ebus_IO!$C$3,TUMI_data!$A$176:$AF$184,MATCH(TUMI_data!AH175,TUMI_data!$A$175:$AF$175,0),FALSE),"") -> 20% | AI176: =IFERROR(VLOOKUP(Ebus_IO!$C$3,TUMI_data!$A$176:$AF$184,MATCH(TUMI_data!AI175,TUMI_data!$A$175:$AF$175,0),FALSE),"") -> 19% | AJ176: =IFERROR(VLOOKUP(Ebus_IO!$C$3,TUMI_data!$A$176:$AF$184,MATCH(TUMI_data!AJ175,TUMI_data!$A$175:$AF$175,0),FALSE),"") -> 17% | AK176: =IFERROR(VLOOKUP(Ebus_IO!$C$3,TUMI_data!$A$176:$AF$184,MATCH(TUMI_data!AK175,TUMI_data!$A$175:$AF$175,0),FALSE),"") -> 16% | AL176: =IFERROR(VLOOKUP(Ebus_IO!$C$3,TUMI_data!$A$176:$AF$184,MATCH(TUMI_data!AL175,TUMI_data!$A$175:$AF$175,0),FALSE),"") -> 14% | AM176: =IFERROR(VLOOKUP(Ebus_IO!$C$3,TUMI_data!$A$176:$AF$184,MATCH(TUMI_data!AM175,TUMI_data!$A$175:$AF$175,0),FALSE),"") -> 12% | AN176: =IFERROR(VLOOKUP(Ebus_IO!$C$3,TUMI_data!$A$176:$AF$184,MATCH(TUMI_data!AN175,TUMI_data!$A$175:$AF$175,0),FALSE),"") -> 10% | AO176: =IFERROR(VLOOKUP(Ebus_IO!$C$3,TUMI_data!$A$176:$AF$184,MATCH(TUMI_data!AO175,TUMI_data!$A$175:$AF$175,0),FALSE),"") ->  | AP176: =IFERROR(VLOOKUP(Ebus_IO!$C$3,TUMI_data!$A$176:$AF$184,MATCH(TUMI_data!AP175,TUMI_data!$A$175:$AF$175,0),FALSE),"") -> 
A177: Mexico | B177: =IF($B$173="Monitored","",IF($B$173="Base Targets",B191,IF($B$173="Enhanced Targets",B205,""))) -> 18% | C177: 18% | D177: 18% | E177: 18% | F177: 17% | G177: 17% | H177: 17% | I177: 16% | J177: 16% | K177: 16% | L177: 15% | M177: 15% | N177: 15% | O177: 14% | P177: 14% | Q177: 14% | R177: 13% | S177: 13% | T177: 13% | U177: 12% | V177: 12% | W177: 12% | X177: 12% | Y177: 11% | Z177: 11% | AA177: 11% | AB177: 10% | AC177: 10% | AD177: 10% | AE177: 9% | AF177: 9%
A178: Colombia | B178: =IF($B$173="Monitored","",IF($B$173="Base Targets",B192,IF($B$173="Enhanced Targets",B206,""))) -> 12% | C178: 12% | D178: 12% | E178: 12% | F178: 12% | G178: 12% | H178: 11% | I178: 11% | J178: 11% | K178: 11% | L178: 10% | M178: 10% | N178: 10% | O178: 10% | P178: 10% | Q178: 9% | R178: 9% | S178: 9% | T178: 9% | U178: 8% | V178: 8% | W178: 8% | X178: 8% | Y178: 8% | Z178: 7% | AA178: 7% | AB178: 7% | AC178: 7% | AD178: 6% | AE178: 6% | AF178: 6%
A179: India | B179: =IF($B$173="Monitored","",IF($B$173="Base Targets",B193,IF($B$173="Enhanced Targets",B207,""))) -> 20% | C179: 20% | D179: 20% | E179: 20% | F179: 20% | G179: 19% | H179: 19% | I179: 19% | J179: 18% | K179: 18% | L179: 17% | M179: 17% | N179: 17% | O179: 16% | P179: 16% | Q179: 16% | R179: 15% | S179: 15% | T179: 14% | U179: 14% | V179: 14% | W179: 13% | X179: 13% | Y179: 13% | Z179: 12% | AA179: 12% | AB179: 11% | AC179: 11% | AD179: 11% | AE179: 10% | AF179: 10%
A180: South Africa | B180: =IF($B$173="Monitored","",IF($B$173="Base Targets",B194,IF($B$173="Enhanced Targets",B208,""))) -> 9% | C180: 9% | D180: 9% | E180: 9% | F180: 8% | G180: 8% | H180: 8% | I180: 8% | J180: 8% | K180: 8% | L180: 7% | M180: 7% | N180: 7% | O180: 7% | P180: 7% | Q180: 7% | R180: 7% | S180: 6% | T180: 6% | U180: 6% | V180: 6% | W180: 6% | X180: 6% | Y180: 5% | Z180: 5% | AA180: 5% | AB180: 5% | AC180: 5% | AD180: 5% | AE180: 4% | AF180: 4%
A181: Uganda | B181: =IF($B$173="Monitored","",IF($B$173="Base Targets",B195,IF($B$173="Enhanced Targets",B209,""))) -> 18% | C181: 18% | D181: 18% | E181: 18% | F181: 17% | G181: 17% | H181: 17% | I181: 16% | J181: 16% | K181: 16% | L181: 15% | M181: 15% | N181: 15% | O181: 14% | P181: 14% | Q181: 14% | R181: 13% | S181: 13% | T181: 13% | U181: 12% | V181: 12% | W181: 12% | X181: 11% | Y181: 11% | Z181: 11% | AA181: 10% | AB181: 10% | AC181: 10% | AD181: 9% | AE181: 9% | AF181: 9%
A182: Kenya | B182: =IF($B$173="Monitored","",IF($B$173="Base Targets",B196,IF($B$173="Enhanced Targets",B210,""))) -> 18% | C182: 18% | D182: 18% | E182: 18% | F182: 18% | G182: 18% | H182: 17% | I182: 17% | J182: 17% | K182: 16% | L182: 16% | M182: 16% | N182: 15% | O182: 15% | P182: 15% | Q182: 14% | R182: 14% | S182: 14% | T182: 13% | U182: 13% | V182: 13% | W182: 12% | X182: 12% | Y182: 12% | Z182: 11% | AA182: 11% | AB182: 11% | AC182: 10% | AD182: 10% | AE182: 10% | AF182: 9%
A183: Indonesia | B183: =IF($B$173="Monitored","",IF($B$173="Base Targets",B197,IF($B$173="Enhanced Targets",B211,""))) -> 9% | C183: 9% | D183: 9% | E183: 9% | F183: 8% | G183: 8% | H183: 8% | I183: 8% | J183: 8% | K183: 8% | L183: 7% | M183: 7% | N183: 7% | O183: 7% | P183: 7% | Q183: 7% | R183: 7% | S183: 6% | T183: 6% | U183: 6% | V183: 6% | W183: 6% | X183: 6% | Y183: 5% | Z183: 5% | AA183: 5% | AB183: 5% | AC183: 5% | AD183: 5% | AE183: 4% | AF183: 4%
A184: Vietnam | B184: =IF($B$173="Monitored","",IF($B$173="Base Targets",B198,IF($B$173="Enhanced Targets",B212,""))) -> 9% | C184: 9% | D184: 9% | E184: 9% | F184: 9% | G184: 9% | H184: 9% | I184: 9% | J184: 9% | K184: 8% | L184: 8% | M184: 8% | N184: 8% | O184: 8% | P184: 7% | Q184: 7% | R184: 7% | S184: 7% | T184: 7% | U184: 7% | V184: 6% | W184: 6% | X184: 6% | Y184: 6% | Z184: 6% | AA184: 6% | AB184: 5% | AC184: 5% | AD184: 5% | AE184: 5% | AF184: 5%
A187: Base
B189: 2020 | C189: 2021 | D189: 2022 | E189: 2023 | F189: 2024 | G189: 2025 | H189: 2026 | I189: 2027 | J189: 2028 | K189: 2029 | L189: 2030 | M189: 2031 | N189: 2032 | O189: 2033 | P189: 2034 | Q189: 2035 | R189: 2036 | S189: 2037 | T189: 2038 | U189: 2039 | V189: 2040 | W189: 2041 | X189: 2042 | Y189: 2043 | Z189: 2044 | AA189: 2045 | AB189: 2046 | AC189: 2047 | AD189: 2048 | AE189: 2049 | AF189: 2050
A190: Brazil | B190: 18% | C190: 18% | D190: 18% | E190: 18% | F190: 18% | G190: 18% | H190: 18% | I190: 18% | J190: 18% | K190: 18% | L190: 18% | M190: 18% | N190: 18% | O190: 18% | P190: 18% | Q190: 18% | R190: 18% | S190: 18% | T190: 18% | U190: 18% | V190: 18% | W190: 18% | X190: 18% | Y190: 18% | Z190: 18% | AA190: 18% | AB190: 18% | AC190: 18% | AD190: 18% | AE190: 18% | AF190: 18%
A191: Mexico | B191: 18% | C191: 18% | D191: 18% | E191: 18% | F191: 18% | G191: 18% | H191: 18% | I191: 18% | J191: 18% | K191: 18% | L191: 18% | M191: 18% | N191: 18% | O191: 18% | P191: 18% | Q191: 18% | R191: 18% | S191: 18% | T191: 18% | U191: 18% | V191: 18% | W191: 18% | X191: 18% | Y191: 18% | Z191: 18% | AA191: 18% | AB191: 18% | AC191: 18% | AD191: 18% | AE191: 18% | AF191: 18%
A192: Colombia | B192: 12% | C192: 12% | D192: 12% | E192: 12% | F192: 12% | G192: 12% | H192: 12% | I192: 12% | J192: 12% | K192: 12% | L192: 12% | M192: 12% | N192: 12% | O192: 12% | P192: 12% | Q192: 12% | R192: 12% | S192: 12% | T192: 12% | U192: 12% | V192: 12% | W192: 12% | X192: 12% | Y192: 12% | Z192: 12% | AA192: 12% | AB192: 12% | AC192: 12% | AD192: 12% | AE192: 12% | AF192: 12%
A193: India | B193: 20% | C193: 20% | D193: 20% | E193: 20% | F193: =E193 -> 20% | G193: =F193 -> 20% | H193: 20% | I193: 20% | J193: 20% | K193: 20% | L193: 20% | M193: 20% | N193: 20% | O193: 20% | P193: 20% | Q193: 20% | R193: 20% | S193: 20% | T193: 20% | U193: 20% | V193: 20% | W193: 20% | X193: 20% | Y193: 20% | Z193: 20% | AA193: 20% | AB193: 20% | AC193: 20% | AD193: 20% | AE193: 20% | AF193: 20%
A194: South Africa | B194: 9% | C194: 9% | D194: 9% | E194: 9% | F194: 9% | G194: 9% | H194: 9% | I194: 9% | J194: 9% | K194: 9% | L194: 9% | M194: 9% | N194: 9% | O194: 9% | P194: 9% | Q194: 9% | R194: 9% | S194: 9% | T194: 9% | U194: 9% | V194: 9% | W194: 9% | X194: 9% | Y194: 9% | Z194: 9% | AA194: 9% | AB194: 9% | AC194: 9% | AD194: 9% | AE194: 9% | AF194: 9%
A195: Uganda | B195: 18% | C195: 18% | D195: 18% | E195: 18% | F195: 18% | G195: 18% | H195: 18% | I195: 18% | J195: 18% | K195: 18% | L195: 18% | M195: 18% | N195: 18% | O195: 18% | P195: 18% | Q195: 18% | R195: 18% | S195: 18% | T195: 18% | U195: 18% | V195: 18% | W195: 18% | X195: 18% | Y195: 18% | Z195: 18% | AA195: 18% | AB195: 18% | AC195: 18% | AD195: 18% | AE195: 18% | AF195: 18%
A196: Kenya | B196: 18% | C196: 18% | D196: 18% | E196: 18% | F196: 18% | G196: 18% | H196: 18% | I196: 18% | J196: 18% | K196: 18% | L196: 18% | M196: 18% | N196: 18% | O196: 18% | P196: 18% | Q196: 18% | R196: 18% | S196: 18% | T196: 18% | U196: 18% | V196: 18% | W196: 18% | X196: 18% | Y196: 18% | Z196: 18% | AA196: 18% | AB196: 18% | AC196: 18% | AD196: 18% | AE196: 18% | AF196: 18%
A197: Indonesia | B197: 9% | C197: 9% | D197: 9% | E197: 9% | F197: 9% | G197: 9% | H197: 9% | I197: 9% | J197: 9% | K197: 9% | L197: 9% | M197: 9% | N197: 9% | O197: 9% | P197: 9% | Q197: 9% | R197: 9% | S197: 9% | T197: 9% | U197: 9% | V197: 9% | W197: 9% | X197: 9% | Y197: 9% | Z197: 9% | AA197: 9% | AB197: 9% | AC197: 9% | AD197: 9% | AE197: 9% | AF197: 9%
A198: Vietnam | B198: 9% | C198: 9% | D198: 9% | E198: 9% | F198: 9% | G198: 9% | H198: 9% | I198: 9% | J198: 9% | K198: 9% | L198: 9% | M198: 9% | N198: 9% | O198: 9% | P198: 9% | Q198: 9% | R198: 9% | S198: 9% | T198: 9% | U198: 9% | V198: 9% | W198: 9% | X198: 9% | Y198: 9% | Z198: 9% | AA198: 9% | AB198: 9% | AC198: 9% | AD198: 9% | AE198: 9% | AF198: 9%
A201: Enhanced
AH202: Interpolate
B203: 2020 | C203: 2021 | D203: 2022 | E203: 2023 | F203: 2024 | G203: 2025 | H203: 2026 | I203: 2027 | J203: 2028 | K203: 2029 | L203: 2030 | M203: 2031 | N203: 2032 | O203: 2033 | P203: 2034 | Q203: 2035 | R203: 2036 | S203: 2037 | T203: 2038 | U203: 2039 | V203: 2040 | W203: 2041 | X203: 2042 | Y203: 2043 | Z203: 2044 | AA203: 2045 | AB203: 2046 | AC203: 2047 | AD203: 2048 | AE203: 2049 | AF203: 2050 | AH203: =E203 -> 2023 | AI203: =AF203 -> 2050
A204: Brazil | B204: 18% | C204: 18% | D204: 18% | E204: 18% | F204: =FORECAST(F$203,$AH204:$AI204,$AH$203:$AI$203) -> 18% | G204: =FORECAST(G$203,$AH204:$AI204,$AH$203:$AI$203) -> 17% | H204: 17% | I204: 17% | J204: 16% | K204: 16% | L204: 16% | M204: 15% | N204: 15% | O204: 15% | P204: 14% | Q204: 14% | R204: 14% | S204: 13% | T204: 13% | U204: 13% | V204: 12% | W204: =FORECAST(W$203,$AH204:$AI204,$AH$203:$AI$203) -> 12% | X204: 12% | Y204: 11% | Z204: 11% | AA204: 11% | AB204: 10% | AC204: 10% | AD204: 10% | AE204: 9% | AF204: =E204/2 -> 9% | AH204: =E204 -> 18% | AI204: =AF204 -> 9%
A205: Mexico | B205: 18% | C205: 18% | D205: 18% | E205: 18% | F205: =FORECAST(F$203,$AH205:$AI205,$AH$203:$AI$203) -> 17% | G205: 17% | H205: 17% | I205: 16% | J205: 16% | K205: 16% | L205: 15% | M205: 15% | N205: 15% | O205: 14% | P205: 14% | Q205: 14% | R205: 13% | S205: 13% | T205: 13% | U205: 12% | V205: 12% | W205: 12% | X205: 12% | Y205: 11% | Z205: 11% | AA205: 11% | AB205: 10% | AC205: 10% | AD205: 10% | AE205: 9% | AF205: =E205/2 -> 9% | AH205: =E205 -> 18% | AI205: =AF205 -> 9%
A206: Colombia | B206: 12% | C206: 12% | D206: 12% | E206: 12% | F206: =FORECAST(F$203,$AH206:$AI206,$AH$203:$AI$203) -> 12% | G206: 12% | H206: 11% | I206: 11% | J206: 11% | K206: 11% | L206: 10% | M206: 10% | N206: 10% | O206: 10% | P206: 10% | Q206: 9% | R206: 9% | S206: 9% | T206: 9% | U206: 8% | V206: 8% | W206: 8% | X206: 8% | Y206: 8% | Z206: 7% | AA206: 7% | AB206: 7% | AC206: 7% | AD206: 6% | AE206: 6% | AF206: 6% | AH206: 12% | AI206: 6%
A207: India | B207: 20% | C207: 20% | D207: 20% | E207: 20% | F207: 20% | G207: 19% | H207: 19% | I207: 19% | J207: 18% | K207: 18% | L207: 17% | M207: 17% | N207: 17% | O207: 16% | P207: 16% | Q207: 16% | R207: 15% | S207: 15% | T207: 14% | U207: 14% | V207: 14% | W207: 13% | X207: 13% | Y207: 13% | Z207: 12% | AA207: 12% | AB207: 11% | AC207: 11% | AD207: 11% | AE207: 10% | AF207: 10% | AH207: 20% | AI207: 10%
A208: South Africa | B208: 9% | C208: 9% | D208: 9% | E208: 9% | F208: 8% | G208: 8% | H208: 8% | I208: 8% | J208: 8% | K208: 8% | L208: 7% | M208: 7% | N208: 7% | O208: 7% | P208: 7% | Q208: 7% | R208: 7% | S208: 6% | T208: 6% | U208: 6% | V208: 6% | W208: 6% | X208: 6% | Y208: 5% | Z208: 5% | AA208: 5% | AB208: 5% | AC208: 5% | AD208: 5% | AE208: 4% | AF208: 4% | AH208: 9% | AI208: 4%
A209: Uganda | B209: 18% | C209: 18% | D209: 18% | E209: 18% | F209: 17% | G209: 17% | H209: 17% | I209: 16% | J209: 16% | K209: 16% | L209: 15% | M209: 15% | N209: 15% | O209: 14% | P209: 14% | Q209: 14% | R209: 13% | S209: 13% | T209: 13% | U209: 12% | V209: 12% | W209: 12% | X209: 11% | Y209: 11% | Z209: 11% | AA209: 10% | AB209: 10% | AC209: 10% | AD209: 9% | AE209: 9% | AF209: 9% | AH209: 18% | AI209: 9%
A210: Kenya | B210: 18% | C210: 18% | D210: 18% | E210: 18% | F210: 18% | G210: 18% | H210: 17% | I210: 17% | J210: 17% | K210: 16% | L210: 16% | M210: 16% | N210: 15% | O210: 15% | P210: 15% | Q210: 14% | R210: 14% | S210: 14% | T210: 13% | U210: 13% | V210: 13% | W210: 12% | X210: 12% | Y210: 12% | Z210: 11% | AA210: 11% | AB210: 11% | AC210: 10% | AD210: 10% | AE210: 10% | AF210: 9% | AH210: 18% | AI210: 9%
A211: Indonesia | B211: 9% | C211: 9% | D211: 9% | E211: 9% | F211: 8% | G211: 8% | H211: 8% | I211: 8% | J211: 8% | K211: 8% | L211: 7% | M211: 7% | N211: 7% | O211: 7% | P211: 7% | Q211: 7% | R211: 7% | S211: 6% | T211: 6% | U211: 6% | V211: 6% | W211: 6% | X211: 6% | Y211: 5% | Z211: 5% | AA211: 5% | AB211: 5% | AC211: 5% | AD211: 5% | AE211: 4% | AF211: 4% | AH211: 9% | AI211: 4%
A212: Vietnam | B212: 9% | C212: 9% | D212: 9% | E212: 9% | F212: 9% | G212: 9% | H212: 9% | I212: 9% | J212: 9% | K212: 8% | L212: 8% | M212: 8% | N212: 8% | O212: 8% | P212: 7% | Q212: 7% | R212: 7% | S212: 7% | T212: 7% | U212: 7% | V212: 6% | W212: 6% | X212: 6% | Y212: 6% | Z212: 6% | AA212: 6% | AB212: 5% | AC212: 5% | AD212: 5% | AE212: 5% | AF212: 5% | AH212: 9% | AI212: 5%
A217: Grid % Generation
A218: Type | B218: =Ebus_IO!D85 -> Enhanced Targets
D220: 2020 | E220: 2021 | F220: 2022 | G220: 2023 | H220: 2024 | I220: 2025 | J220: 2026 | K220: 2027 | L220: 2028 | M220: 2029 | N220: 2030 | O220: 2031 | P220: 2032 | Q220: 2033 | R220: 2034 | S220: 2035 | T220: 2036 | U220: 2037 | V220: 2038 | W220: 2039 | X220: 2040 | Y220: 2041 | Z220: 2042 | AA220: 2043 | AB220: 2044 | AC220: 2045 | AD220: 2046 | AE220: 2047 | AF220: 2048 | AG220: 2049 | AH220: 2050
A221: Brazil | B221: Coal | C221: =_xlfn.CONCAT(A221,B221) -> BrazilCoal | D221: =IF($B$218="Monitored","",IF($B$218="Base Targets",D289,IF($B$218="Enhanced Targets",D358,""))) -> 3% | E221: =IF($B$218="Monitored","",IF($B$218="Base Targets",E289,IF($B$218="Enhanced Targets",E358,""))) -> 3% | F221: 2% | G221: 1% | H221: 1% | I221: 1% | J221: 1% | K221: 1% | L221: 1% | M221: 1% | N221: 1% | O221: 1% | P221: 1% | Q221: 1% | R221: 1% | S221: 1% | T221: 1% | U221: 1% | V221: 1% | W221: 1% | X221: 1% | Y221: 1% | Z221: 1% | AA221: 1% | AB221: 1% | AC221: 1% | AD221: 1% | AE221: 1% | AF221: 1% | AG221: 1% | AH221: 1%
A222: Brazil | B222: Fuel oil | C222: =_xlfn.CONCAT(A222,B222) -> BrazilFuel oil | D222: =IF($B$218="Monitored","",IF($B$218="Base Targets",D290,IF($B$218="Enhanced Targets",D359,""))) -> 2% | E222: 2% | F222: 2% | G222: 2% | H222: 2% | I222: 2% | J222: 2% | K222: 2% | L222: 2% | M222: 2% | N222: 2% | O222: 2% | P222: 2% | Q222: 2% | R222: 2% | S222: 2% | T222: 2% | U222: 2% | V222: 2% | W222: 2% | X222: 2% | Y222: 2% | Z222: 2% | AA222: 2% | AB222: 2% | AC222: 2% | AD222: 2% | AE222: 2% | AF222: 2% | AG222: 2% | AH222: 2%
A223: Brazil | B223: Gas/diesel oil | C223: BrazilGas/diesel oil | D223: =IF($B$218="Monitored","",IF($B$218="Base Targets",D291,IF($B$218="Enhanced Targets",D360,""))) -> 0% | E223: 0% | F223: 0% | G223: 0% | H223: 0% | I223: 0% | J223: 0% | K223: 0% | L223: 0% | M223: 0% | N223: 0% | O223: 0% | P223: 0% | Q223: 0% | R223: 0% | S223: 0% | T223: 0% | U223: 0% | V223: 0% | W223: 0% | X223: 0% | Y223: 0% | Z223: 0% | AA223: 0% | AB223: 0% | AC223: 0% | AD223: 0% | AE223: 0% | AF223: 0% | AG223: 0% | AH223: 0%
A224: Brazil | B224: Natural gas | C224: BrazilNatural gas | D224: =IF($B$218="Monitored","",IF($B$218="Base Targets",D292,IF($B$218="Enhanced Targets",D361,""))) -> 9% | E224: 9% | F224: 7% | G224: 5% | H224: 4% | I224: 4% | J224: 4% | K224: 4% | L224: 4% | M224: 4% | N224: 4% | O224: 4% | P224: 4% | Q224: 4% | R224: 4% | S224: 4% | T224: 4% | U224: 4% | V224: 4% | W224: 4% | X224: 4% | Y224: 4% | Z224: 4% | AA224: 4% | AB224: 4% | AC224: 4% | AD224: 4% | AE224: 4% | AF224: 4% | AG224: 4% | AH224: 4%
A225: Brazil | B225: Biomass | C225: BrazilBiomass | D225: =IF($B$218="Monitored","",IF($B$218="Base Targets",D293,IF($B$218="Enhanced Targets",D362,""))) -> 0% | E225: 0% | F225: 0% | G225: 0% | H225: 0% | I225: 0% | J225: 0% | K225: 0% | L225: 0% | M225: 0% | N225: 0% | O225: 0% | P225: 0% | Q225: 0% | R225: 0% | S225: 0% | T225: 0% | U225: 0% | V225: 0% | W225: 0% | X225: 0% | Y225: 0% | Z225: 0% | AA225: 0% | AB225: 0% | AC225: 0% | AD225: 0% | AE225: 0% | AF225: 0% | AG225: 0% | AH225: 0%
A226: Brazil | B226: Liquid biofuel | C226: BrazilLiquid biofuel | D226: =IF($B$218="Monitored","",IF($B$218="Base Targets",D294,IF($B$218="Enhanced Targets",D363,""))) -> 9% | E226: 9% | F226: 9% | G226: 9% | H226: 8% | I226: 8% | J226: 8% | K226: 8% | L226: 8% | M226: 8% | N226: 8% | O226: 8% | P226: 8% | Q226: 8% | R226: 8% | S226: 8% | T226: 8% | U226: 8% | V226: 8% | W226: 8% | X226: 8% | Y226: 8% | Z226: 8% | AA226: 8% | AB226: 8% | AC226: 8% | AD226: 8% | AE226: 8% | AF226: 8% | AG226: 8% | AH226: 8%
A227: Brazil | B227: Other/RE | C227: BrazilOther/RE | D227: =IF($B$218="Monitored","",IF($B$218="Base Targets",D295,IF($B$218="Enhanced Targets",D364,""))) -> 77% | E227: 77% | F227: 80% | G227: 83% | H227: 85% | I227: 85% | J227: 85% | K227: 85% | L227: 85% | M227: 85% | N227: 85% | O227: 85% | P227: 85% | Q227: 85% | R227: 85% | S227: 85% | T227: 85% | U227: 85% | V227: 85% | W227: 85% | X227: 85% | Y227: 85% | Z227: 85% | AA227: 85% | AB227: 85% | AC227: 85% | AD227: 85% | AE227: 85% | AF227: 85% | AG227: 85% | AH227: 85%
A228: Mexico | B228: Coal | C228: MexicoCoal | D228: =IF($B$218="Monitored","",IF($B$218="Base Targets",D296,IF($B$218="Enhanced Targets",D365,""))) -> 6% | E228: 4% | F228: 2% | G228: 1% | H228: 1% | I228: 1% | J228: 1% | K228: 1% | L228: 2% | M228: 1% | N228: 1% | O228: 1% | P228: 1% | Q228: 1% | R228: 1% | S228: 1% | T228: 1% | U228: 1% | V228: 1% | W228: 1% | X228: 1% | Y228: 1% | Z228: 1% | AA228: 1% | AB228: 1% | AC228: 1% | AD228: 1% | AE228: 1% | AF228: 1% | AG228: 1% | AH228: 1%
A229: Mexico | B229: Fuel oil | C229: MexicoFuel oil | D229: =IF($B$218="Monitored","",IF($B$218="Base Targets",D297,IF($B$218="Enhanced Targets",D366,""))) -> 15% | E229: 14% | F229: 12% | G229: 12% | H229: 12% | I229: 12% | J229: 12% | K229: 12% | L229: 12% | M229: 12% | N229: 11% | O229: 11% | P229: 11% | Q229: 11% | R229: 11% | S229: 11% | T229: 12% | U229: 11% | V229: 11% | W229: 10% | X229: 10% | Y229: 10% | Z229: 9% | AA229: 9% | AB229: 8% | AC229: 8% | AD229: 8% | AE229: 7% | AF229: 7% | AG229: 6% | AH229: 6%
A230: Mexico | B230: Gas/diesel oil | C230: MexicoGas/diesel oil | D230: =IF($B$218="Monitored","",IF($B$218="Base Targets",D298,IF($B$218="Enhanced Targets",D367,""))) -> 0% | E230: 0% | F230: 0% | G230: 0% | H230: 0% | I230: 0% | J230: 0% | K230: 0% | L230: 0% | M230: 0% | N230: 0% | O230: 0% | P230: 0% | Q230: 0% | R230: 0% | S230: 0% | T230: 0% | U230: 0% | V230: 0% | W230: 0% | X230: 0% | Y230: 0% | Z230: 0% | AA230: 0% | AB230: 0% | AC230: 0% | AD230: 0% | AE230: 0% | AF230: 0% | AG230: 0% | AH230: 0%
... 546 more rows

Sheet Sheet1 (hidden)
D1: =Ebus_IO!C7 -> 2020 | E1: =Ebus_IO!D7 -> 2021 | F1: =Ebus_IO!E7 -> 2022 | G1: =Ebus_IO!F7 -> 2023 | H1: =Ebus_IO!G7 -> 2024 | I1: =Ebus_IO!H7 -> 2025 | J1: =Ebus_IO!I7 -> 2026 | K1: =Ebus_IO!J7 -> 2027 | L1: =Ebus_IO!K7 -> 2028 | M1: =Ebus_IO!L7 -> 2029 | N1: =Ebus_IO!M7 -> 2030 | O1: =Ebus_IO!N7 -> 2031 | P1: =Ebus_IO!O7 -> 2032 | Q1: =Ebus_IO!P7 -> 2033 | R1: =Ebus_IO!Q7 -> 2034 | S1: =Ebus_IO!R7 -> 2035 | T1: =Ebus_IO!S7 -> 2036 | U1: =Ebus_IO!T7 -> 2037 | V1: =Ebus_IO!U7 -> 2038 | W1: =Ebus_IO!V7 -> 2039 | X1: =Ebus_IO!W7 -> 2040 | Y1: =Ebus_IO!X7 -> 2041 | Z1: =Ebus_IO!Y7 -> 2042 | AA1: =Ebus_IO!Z7 -> 2043 | AB1: =Ebus_IO!AA7 -> 2044 | AC1: =Ebus_IO!AB7 -> 2045 | AD1: =Ebus_IO!AC7 -> 2046 | AE1: =Ebus_IO!AD7 -> 2047 | AF1: =Ebus_IO!AE7 -> 2048 | AG1: =Ebus_IO!AF7 -> 2049 | AH1: =Ebus_IO!AG7 -> 2050 | AI1: =Ebus_IO!AH7 -> 2051 | AJ1: =Ebus_IO!AI7 -> 2052 | AK1: =Ebus_IO!AJ7 -> 2053 | AL1: =Ebus_IO!AK7 -> 2054 | AM1: =Ebus_IO!AL7 -> 2055 | AN1: =Ebus_IO!AM7 -> 2056 | AO1: =Ebus_IO!AN7 -> 2057 | AP1: =Ebus_IO!AO7 -> 2058 | AQ1: =Ebus_IO!AP7 -> 2059 | AR1: =Ebus_IO!AQ7 -> 2060
A2: =_xlfn.CONCAT(B2,C2) -> Number of New E-busesCampinas | B2: Number of New E-buses | C2: Campinas
A3: =_xlfn.CONCAT(B3,C3) -> Number of New E-busesCuritiba | B3: Number of New E-buses | C3: Curitiba
A4: Number of New E-busesRio de Janiero | B4: Number of New E-buses | C4: Rio de Janiero
A5: Number of New E-busesSalvador | B5: Number of New E-buses | C5: Salvador
A6: Number of New E-busesSao Paolo | B6: Number of New E-buses | C6: Sao Paolo
A7: Number of New E-busesGuadalajara | B7: Number of New E-buses | C7: Guadalajara
A8: Number of New E-busesMexico City | B8: Number of New E-buses | C8: Mexico City
A9: Number of New E-busesMonterrey | B9: Number of New E-buses | C9: Monterrey
A10: Number of New E-busesBarranquilla | B10: Number of New E-buses | C10: Barranquilla
A11: Number of New E-busesBogota | B11: Number of New E-buses | C11: Bogota
A12: Number of New E-busesValledupar | B12: Number of New E-buses | C12: Valledupar
A13: Number of New E-busesAhmedabad | B13: Number of New E-buses | C13: Ahmedabad
A14: Number of New E-busesBangalore | B14: Number of New E-buses | C14: Bangalore
A15: Number of New E-busesPune | B15: Number of New E-buses | C15: Pune
A16: Number of New E-busesDelhi | B16: Number of New E-buses | C16: Delhi
A17: Number of New E-busesMumbai | B17: Number of New E-buses | C17: Mumbai
A18: Number of New E-busesDurban | B18: Number of New E-buses | C18: Durban
A19: Number of New E-busesKampala | B19: Number of New E-buses | C19: Kampala
A20: Number of New E-busesNairobi | B20: Number of New E-buses | C20: Nairobi
A21: Number of New E-busesJakarta | B21: Number of New E-buses | C21: Jakarta
A22: Number of New E-busesHo Chi Minh | B22: Number of New E-buses | C22: Ho Chi Minh
A23: Number of New E-busesChennai | B23: Number of New E-buses | C23: Chennai

Sheet Ebus
B1: Y1 | C1: =Ebus_IO!C7 -> 2020 | I1: Veh type | J1: Ebus
E4: 65%
C5: Parc | D5: =C1-1 -> 2019 | E5: =$C$1 -> 2020 | F5: =E5+1 -> 2021 | G5: 2022 | H5: 2023 | I5: 2024 | J5: 2025 | K5: 2026 | L5: 2027 | M5: 2028 | N5: 2029 | O5: 2030 | P5: 2031 | Q5: 2032 | R5: 2033 | S5: 2034 | T5: 2035 | U5: 2036 | V5: 2037 | W5: 2038 | X5: 2039 | Y5: 2040 | Z5: 2041 | AA5: 2042 | AB5: 2043 | AC5: 2044 | AD5: 2045 | AE5: 2046 | AF5: 2047 | AG5: 2048 | AH5: 2049 | AI5: 2050 | AJ5: 2051 | AK5: 2052 | AL5: 2053 | AM5: 2054 | AN5: 2055 | AO5: 2056 | AP5: 2057 | AQ5: 2058 | AR5: 2059 | AS5: 2060
C6: New E-Buses | D6: 0 | E6: =Ebus_IO!C8 -> 0 | F6: =Ebus_IO!D8 -> 0 | G6: =Ebus_IO!E8 -> 386 | H6: =Ebus_IO!F8 -> 22 | I6: =Ebus_IO!G8 -> 2,398 | J6: =Ebus_IO!H8 -> 2,399 | K6: =Ebus_IO!I8 -> 2,402 | L6: =Ebus_IO!J8 -> 2,412 | M6: =Ebus_IO!K8 -> 1,100 | N6: =Ebus_IO!L8 -> 1,100 | O6: =Ebus_IO!M8 -> 1,300 | P6: =Ebus_IO!N8 -> 1,300 | Q6: =Ebus_IO!O8 -> 1,300 | R6: =Ebus_IO!P8 -> 1,300 | S6: =Ebus_IO!Q8 -> 1,300 | T6: =Ebus_IO!R8 -> 1,750 | U6: =Ebus_IO!S8 -> 1,750 | V6: =Ebus_IO!T8 -> 1,750 | W6: =Ebus_IO!U8 -> 1,750 | X6: =Ebus_IO!V8 -> 1,750 | Y6: =Ebus_IO!W8 -> 2,000 | Z6: =Ebus_IO!X8 -> 2,000 | AA6: =Ebus_IO!Y8 -> 2,000 | AB6: =Ebus_IO!Z8 -> 2,000 | AC6: =Ebus_IO!AA8 -> 2,000 | AD6: =Ebus_IO!AB8 -> 2,114 | AE6: =Ebus_IO!AC8 -> 2,008 | AF6: =Ebus_IO!AD8 -> 2,052 | AG6: =Ebus_IO!AE8 -> 2,114 | AH6: =Ebus_IO!AF8 -> 2,169 | AI6: =Ebus_IO!AG8 -> 2,224 | AJ6: =Ebus_IO!AH8 -> 0 | AK6: =Ebus_IO!AI8 -> 0 | AL6: =Ebus_IO!AJ8 -> 0 | AM6: =Ebus_IO!AK8 -> 0 | AN6: =Ebus_IO!AL8 -> 0 | AO6: =Ebus_IO!AM8 -> 0 | AP6: =Ebus_IO!AN8 -> 0 | AQ6: =Ebus_IO!AO8 -> 0 | AR6: =Ebus_IO!AP8 -> 0 | AS6: =Ebus_IO!AQ8 -> 0
C15: Parc/Year | D15: =D$5 -> 2019 | E15: =E$5 -> 2020 | F15: 2021 | G15: 2022 | H15: 2023 | I15: 2024 | J15: 2025 | K15: 2026 | L15: 2027 | M15: 2028 | N15: 2029 | O15: 2030 | P15: 2031 | Q15: 2032 | R15: 2033 | S15: 2034 | T15: 2035 | U15: 2036 | V15: 2037 | W15: 2038 | X15: 2039 | Y15: 2040 | Z15: 2041 | AA15: 2042 | AB15: 2043 | AC15: 2044 | AD15: 2045 | AE15: 2046 | AF15: 2047 | AG15: 2048 | AH15: 2049 | AI15: 2050 | AJ15: 2051 | AK15: 2052 | AL15: 2053 | AM15: 2054 | AN15: 2055 | AO15: 2056 | AP15: 2057 | AQ15: 2058 | AR15: 2059 | AS15: 2060
C16: =C17-1 -> 2019 | D16: =A16 -> 0 | E16: =D16+1 -> 1 | F16: =E16+1 -> 2 | G16: 3 | H16: 4 | I16: 5 | J16: 6 | K16: 7 | L16: 8 | M16: 9 | N16: 10 | O16: 11 | P16: 12 | Q16: 13 | R16: 14 | S16: 15 | T16: 16 | U16: 17 | V16: =U16+1 -> 18 | W16: 19 | X16: 20 | Y16: 21 | Z16: 22 | AA16: 23 | AB16: 24 | AC16: 25 | AD16: 26 | AE16: 27 | AF16: 28 | AG16: 29 | AH16: 30 | AI16: 31 | AJ16: 32 | AK16: 33 | AL16: =AK16+1 -> 34 | AM16: 35 | AN16: 36 | AO16: 37 | AP16: 38 | AQ16: 39 | AR16: 40 | AS16: 41
A17: 0 | B17: =S_ebus!D9 -> 100% | C17: =$C$1 -> 2020 | D17: =IF(D$15-$C17<0,"",D$15-$C17) ->  | E17: 0 | F17: 1 | G17: 2 | H17: 3 | I17: 4 | J17: 5 | K17: 6 | L17: 7 | M17: 8 | N17: 9 | O17: 10 | P17: 11 | Q17: 12 | R17: 13 | S17: 14 | T17: =IF(T$15-$C17<0,"",T$15-$C17) -> 15 | U17: 16 | V17: 17 | W17: 18 | X17: 19 | Y17: 20 | Z17: 21 | AA17: 22 | AB17: 23 | AC17: 24 | AD17: 25 | AE17: 26 | AF17: 27 | AG17: 28 | AH17: 29 | AI17: 30 | AJ17: =IF(AJ$15-$C17<0,"",AJ$15-$C17) -> 31 | AK17: 32 | AL17: 33 | AM17: 34 | AN17: 35 | AO17: 36 | AP17: 37 | AQ17: 38 | AR17: 39 | AS17: 40
A18: 1 | B18: =S_ebus!D10 -> 100% | C18: =C17+1 -> 2021 | F18: 0 | G18: 1 | H18: 2 | I18: 3 | J18: 4 | K18: 5 | L18: 6 | M18: 7 | N18: 8 | O18: 9 | P18: 10 | Q18: 11 | R18: 12 | S18: 13 | T18: 14 | U18: 15 | V18: 16 | W18: 17 | X18: 18 | Y18: 19 | Z18: 20 | AA18: 21 | AB18: 22 | AC18: 23 | AD18: 24 | AE18: 25 | AF18: 26 | AG18: 27 | AH18: 28 | AI18: 29 | AJ18: 30 | AK18: 31 | AL18: 32 | AM18: 33 | AN18: 34 | AO18: 35 | AP18: 36 | AQ18: 37 | AR18: 38 | AS18: 39
A19: 2 | B19: =S_ebus!D11 -> 100% | C19: 2022 | G19: 0 | H19: 1 | I19: 2 | J19: 3 | K19: 4 | L19: 5 | M19: 6 | N19: 7 | O19: 8 | P19: 9 | Q19: 10 | R19: 11 | S19: 12 | T19: 13 | U19: 14 | V19: 15 | W19: 16 | X19: 17 | Y19: 18 | Z19: 19 | AA19: 20 | AB19: 21 | AC19: 22 | AD19: 23 | AE19: 24 | AF19: 25 | AG19: 26 | AH19: 27 | AI19: 28 | AJ19: 29 | AK19: 30 | AL19: 31 | AM19: 32 | AN19: 33 | AO19: 34 | AP19: 35 | AQ19: 36 | AR19: 37 | AS19: 38
A20: 3 | B20: =S_ebus!D12 -> 100% | C20: 2023 | H20: 0 | I20: 1 | J20: 2 | K20: 3 | L20: 4 | M20: 5 | N20: 6 | O20: 7 | P20: 8 | Q20: 9 | R20: 10 | S20: 11 | T20: 12 | U20: 13 | V20: 14 | W20: 15 | X20: 16 | Y20: 17 | Z20: 18 | AA20: 19 | AB20: 20 | AC20: 21 | AD20: 22 | AE20: 23 | AF20: 24 | AG20: 25 | AH20: 26 | AI20: 27 | AJ20: 28 | AK20: 29 | AL20: 30 | AM20: 31 | AN20: 32 | AO20: 33 | AP20: 34 | AQ20: 35 | AR20: 36 | AS20: 37
A21: 4 | B21: =S_ebus!D13 -> 99% | C21: 2024 | I21: 0 | J21: 1 | K21: 2 | L21: 3 | M21: 4 | N21: 5 | O21: 6 | P21: 7 | Q21: 8 | R21: 9 | S21: 10 | T21: 11 | U21: 12 | V21: 13 | W21: 14 | X21: 15 | Y21: 16 | Z21: 17 | AA21: 18 | AB21: 19 | AC21: 20 | AD21: 21 | AE21: 22 | AF21: 23 | AG21: 24 | AH21: 25 | AI21: 26 | AJ21: 27 | AK21: 28 | AL21: 29 | AM21: 30 | AN21: 31 | AO21: 32 | AP21: 33 | AQ21: 34 | AR21: 35 | AS21: 36
A22: 5 | B22: =S_ebus!D14 -> 97% | C22: 2025 | J22: 0 | K22: 1 | L22: 2 | M22: 3 | N22: 4 | O22: 5 | P22: 6 | Q22: 7 | R22: 8 | S22: 9 | T22: 10 | U22: 11 | V22: 12 | W22: 13 | X22: 14 | Y22: 15 | Z22: 16 | AA22: 17 | AB22: 18 | AC22: 19 | AD22: 20 | AE22: 21 | AF22: 22 | AG22: 23 | AH22: 24 | AI22: 25 | AJ22: 26 | AK22: 27 | AL22: 28 | AM22: 29 | AN22: 30 | AO22: 31 | AP22: 32 | AQ22: 33 | AR22: 34 | AS22: 35
A23: 6 | B23: =S_ebus!D15 -> 93% | C23: 2026 | K23: 0 | L23: 1 | M23: 2 | N23: 3 | O23: 4 | P23: 5 | Q23: 6 | R23: 7 | S23: 8 | T23: 9 | U23: 10 | V23: 11 | W23: 12 | X23: 13 | Y23: 14 | Z23: 15 | AA23: 16 | AB23: 17 | AC23: 18 | AD23: 19 | AE23: 20 | AF23: 21 | AG23: 22 | AH23: 23 | AI23: 24 | AJ23: 25 | AK23: 26 | AL23: 27 | AM23: 28 | AN23: 29 | AO23: 30 | AP23: 31 | AQ23: 32 | AR23: 33 | AS23: 34
A24: 7 | B24: =S_ebus!D16 -> 85% | C24: 2027 | L24: 0 | M24: 1 | N24: 2 | O24: 3 | P24: 4 | Q24: 5 | R24: 6 | S24: 7 | T24: 8 | U24: 9 | V24: 10 | W24: 11 | X24: 12 | Y24: 13 | Z24: 14 | AA24: 15 | AB24: 16 | AC24: 17 | AD24: 18 | AE24: 19 | AF24: 20 | AG24: 21 | AH24: 22 | AI24: 23 | AJ24: 24 | AK24: 25 | AL24: 26 | AM24: 27 | AN24: 28 | AO24: 29 | AP24: 30 | AQ24: 31 | AR24: 32 | AS24: 33
A25: 8 | B25: =S_ebus!D17 -> 72% | C25: 2028 | M25: 0 | N25: 1 | O25: 2 | P25: 3 | Q25: 4 | R25: 5 | S25: 6 | T25: 7 | U25: 8 | V25: 9 | W25: 10 | X25: 11 | Y25: 12 | Z25: 13 | AA25: 14 | AB25: 15 | AC25: 16 | AD25: 17 | AE25: 18 | AF25: 19 | AG25: 20 | AH25: 21 | AI25: 22 | AJ25: 23 | AK25: 24 | AL25: 25 | AM25: 26 | AN25: 27 | AO25: 28 | AP25: 29 | AQ25: 30 | AR25: 31 | AS25: 32
A26: 9 | B26: =S_ebus!D18 -> 55% | C26: 2029 | N26: 0 | O26: 1 | P26: 2 | Q26: 3 | R26: 4 | S26: 5 | T26: 6 | U26: 7 | V26: 8 | W26: 9 | X26: 10 | Y26: 11 | Z26: 12 | AA26: 13 | AB26: 14 | AC26: 15 | AD26: 16 | AE26: 17 | AF26: 18 | AG26: 19 | AH26: 20 | AI26: 21 | AJ26: 22 | AK26: 23 | AL26: 24 | AM26: 25 | AN26: 26 | AO26: 27 | AP26: 28 | AQ26: 29 | AR26: 30 | AS26: 31
A27: 10 | B27: =S_ebus!D19 -> 37% | C27: 2030 | O27: 0 | P27: 1 | Q27: 2 | R27: 3 | S27: 4 | T27: 5 | U27: 6 | V27: 7 | W27: 8 | X27: 9 | Y27: 10 | Z27: 11 | AA27: 12 | AB27: 13 | AC27: 14 | AD27: 15 | AE27: 16 | AF27: 17 | AG27: 18 | AH27: 19 | AI27: 20 | AJ27: 21 | AK27: 22 | AL27: 23 | AM27: 24 | AN27: 25 | AO27: 26 | AP27: 27 | AQ27: 28 | AR27: 29 | AS27: 30
A28: 11 | B28: =S_ebus!D20 -> 20% | C28: 2031 | P28: 0 | Q28: 1 | R28: 2 | S28: 3 | T28: 4 | U28: 5 | V28: 6 | W28: 7 | X28: 8 | Y28: 9 | Z28: 10 | AA28: 11 | AB28: 12 | AC28: 13 | AD28: 14 | AE28: 15 | AF28: 16 | AG28: 17 | AH28: 18 | AI28: 19 | AJ28: 20 | AK28: 21 | AL28: 22 | AM28: 23 | AN28: 24 | AO28: 25 | AP28: 26 | AQ28: 27 | AR28: 28 | AS28: 29
A29: 12 | B29: =S_ebus!D21 -> 8% | C29: 2032 | Q29: 0 | R29: 1 | S29: 2 | T29: 3 | U29: 4 | V29: 5 | W29: 6 | X29: 7 | Y29: 8 | Z29: 9 | AA29: 10 | AB29: 11 | AC29: 12 | AD29: 13 | AE29: 14 | AF29: 15 | AG29: 16 | AH29: 17 | AI29: 18 | AJ29: 19 | AK29: 20 | AL29: 21 | AM29: 22 | AN29: 23 | AO29: 24 | AP29: 25 | AQ29: 26 | AR29: 27 | AS29: 28
A30: 13 | B30: =S_ebus!D22 -> 2% | C30: 2033 | R30: 0 | S30: 1 | T30: 2 | U30: 3 | V30: 4 | W30: 5 | X30: 6 | Y30: 7 | Z30: 8 | AA30: 9 | AB30: 10 | AC30: 11 | AD30: 12 | AE30: 13 | AF30: 14 | AG30: 15 | AH30: 16 | AI30: 17 | AJ30: 18 | AK30: 19 | AL30: 20 | AM30: 21 | AN30: 22 | AO30: 23 | AP30: 24 | AQ30: 25 | AR30: 26 | AS30: 27
A31: 14 | B31: =S_ebus!D23 -> 0% | C31: 2034 | S31: 0 | T31: 1 | U31: 2 | V31: 3 | W31: 4 | X31: 5 | Y31: 6 | Z31: 7 | AA31: 8 | AB31: 9 | AC31: 10 | AD31: 11 | AE31: 12 | AF31: 13 | AG31: 14 | AH31: 15 | AI31: 16 | AJ31: 17 | AK31: 18 | AL31: 19 | AM31: 20 | AN31: 21 | AO31: 22 | AP31: 23 | AQ31: 24 | AR31: 25 | AS31: 26
A32: 15 | B32: =S_ebus!D24 -> 0% | C32: 2035 | S32: =IF(S$15-$C32<0,"",S$15-$C32) ->  | T32: 0 | U32: 1 | V32: 2 | W32: 3 | X32: 4 | Y32: 5 | Z32: 6 | AA32: 7 | AB32: 8 | AC32: 9 | AD32: 10 | AE32: 11 | AF32: 12 | AG32: 13 | AH32: 14 | AI32: 15 | AJ32: 16 | AK32: 17 | AL32: 18 | AM32: 19 | AN32: 20 | AO32: 21 | AP32: 22 | AQ32: 23 | AR32: 24 | AS32: 25
A33: 16 | B33: =S_ebus!D25 -> 0% | C33: 2036 | D33: =IF(D$15-$C33<0,"",D$15-$C33) ->  | U33: 0 | V33: 1 | W33: 2 | X33: 3 | Y33: 4 | Z33: 5 | AA33: 6 | AB33: 7 | AC33: 8 | AD33: 9 | AE33: 10 | AF33: 11 | AG33: 12 | AH33: 13 | AI33: =IF(AI$15-$C33<0,"",AI$15-$C33) -> 14 | AJ33: 15 | AK33: 16 | AL33: 17 | AM33: 18 | AN33: 19 | AO33: 20 | AP33: 21 | AQ33: 22 | AR33: 23 | AS33: 24
A34: 17 | B34: =S_ebus!D26 -> 0% | C34: 2037 | V34: 0 | W34: 1 | X34: 2 | Y34: 3 | Z34: 4 | AA34: 5 | AB34: 6 | AC34: 7 | AD34: 8 | AE34: 9 | AF34: 10 | AG34: 11 | AH34: 12 | AI34: 13 | AJ34: 14 | AK34: 15 | AL34: 16 | AM34: 17 | AN34: 18 | AO34: 19 | AP34: 20 | AQ34: 21 | AR34: 22 | AS34: 23
A35: 18 | B35: =S_ebus!D27 -> 0% | C35: 2038 | W35: 0 | X35: 1 | Y35: 2 | Z35: 3 | AA35: 4 | AB35: 5 | AC35: 6 | AD35: 7 | AE35: 8 | AF35: 9 | AG35: 10 | AH35: 11 | AI35: 12 | AJ35: 13 | AK35: 14 | AL35: 15 | AM35: 16 | AN35: 17 | AO35: 18 | AP35: 19 | AQ35: 20 | AR35: 21 | AS35: 22
A36: 19 | B36: =S_ebus!D28 -> 0% | C36: 2039 | X36: 0 | Y36: 1 | Z36: 2 | AA36: 3 | AB36: 4 | AC36: 5 | AD36: 6 | AE36: 7 | AF36: 8 | AG36: 9 | AH36: 10 | AI36: 11 | AJ36: 12 | AK36: 13 | AL36: 14 | AM36: 15 | AN36: 16 | AO36: 17 | AP36: 18 | AQ36: 19 | AR36: 20 | AS36: 21
A37: 20 | B37: =S_ebus!D29 -> 0% | C37: 2040 | Y37: 0 | Z37: 1 | AA37: 2 | AB37: 3 | AC37: 4 | AD37: 5 | AE37: 6 | AF37: 7 | AG37: 8 | AH37: 9 | AI37: 10 | AJ37: 11 | AK37: 12 | AL37: 13 | AM37: 14 | AN37: 15 | AO37: 16 | AP37: 17 | AQ37: 18 | AR37: 19 | AS37: 20
A38: 21 | B38: =S_ebus!D30 -> 0% | C38: 2041 | Z38: 0 | AA38: 1 | AB38: 2 | AC38: 3 | AD38: 4 | AE38: 5 | AF38: 6 | AG38: 7 | AH38: 8 | AI38: 9 | AJ38: 10 | AK38: 11 | AL38: 12 | AM38: 13 | AN38: 14 | AO38: 15 | AP38: 16 | AQ38: 17 | AR38: 18 | AS38: 19
A39: 22 | B39: =S_ebus!D31 -> 0% | C39: 2042 | AA39: 0 | AB39: 1 | AC39: 2 | AD39: 3 | AE39: 4 | AF39: 5 | AG39: 6 | AH39: 7 | AI39: 8 | AJ39: 9 | AK39: 10 | AL39: 11 | AM39: 12 | AN39: 13 | AO39: 14 | AP39: 15 | AQ39: 16 | AR39: 17 | AS39: 18
A40: 23 | B40: =S_ebus!D32 -> 0% | C40: 2043 | AB40: 0 | AC40: 1 | AD40: 2 | AE40: 3 | AF40: 4 | AG40: 5 | AH40: 6 | AI40: 7 | AJ40: 8 | AK40: 9 | AL40: 10 | AM40: 11 | AN40: 12 | AO40: 13 | AP40: 14 | AQ40: 15 | AR40: 16 | AS40: 17
A41: 24 | B41: =S_ebus!D33 -> 0% | C41: 2044 | AC41: 0 | AD41: 1 | AE41: 2 | AF41: 3 | AG41: 4 | AH41: 5 | AI41: 6 | AJ41: 7 | AK41: 8 | AL41: 9 | AM41: 10 | AN41: 11 | AO41: 12 | AP41: 13 | AQ41: 14 | AR41: 15 | AS41: 16
A42: 25 | B42: =S_ebus!D34 -> 0% | C42: 2045 | AD42: 0 | AE42: 1 | AF42: 2 | AG42: 3 | AH42: 4 | AI42: 5 | AJ42: 6 | AK42: 7 | AL42: 8 | AM42: 9 | AN42: 10 | AO42: 11 | AP42: 12 | AQ42: 13 | AR42: 14 | AS42: 15
A43: 26 | B43: =S_ebus!D35 -> 0% | C43: 2046 | AE43: 0 | AF43: 1 | AG43: 2 | AH43: 3 | AI43: 4 | AJ43: 5 | AK43: 6 | AL43: 7 | AM43: 8 | AN43: 9 | AO43: 10 | AP43: 11 | AQ43: 12 | AR43: 13 | AS43: 14
A44: 27 | B44: =S_ebus!D36 -> 0% | C44: 2047 | AF44: 0 | AG44: 1 | AH44: 2 | AI44: 3 | AJ44: 4 | AK44: 5 | AL44: 6 | AM44: 7 | AN44: 8 | AO44: 9 | AP44: 10 | AQ44: 11 | AR44: 12 | AS44: 13
A45: 28 | B45: =S_ebus!D37 -> 0% | C45: 2048 | AG45: 0 | AH45: 1 | AI45: 2 | AJ45: 3 | AK45: 4 | AL45: 5 | AM45: 6 | AN45: 7 | AO45: 8 | AP45: 9 | AQ45: 10 | AR45: 11 | AS45: 12
A46: 29 | B46: =S_ebus!D38 -> 0% | C46: 2049 | AH46: 0 | AI46: 1 | AJ46: 2 | AK46: 3 | AL46: 4 | AM46: 5 | AN46: 6 | AO46: 7 | AP46: 8 | AQ46: 9 | AR46: 10 | AS46: 11
A47: 30 | B47: =S_ebus!D39 -> 0% | C47: 2050 | AI47: 0 | AJ47: 1 | AK47: 2 | AL47: 3 | AM47: 4 | AN47: 5 | AO47: 6 | AP47: 7 | AQ47: 8 | AR47: 9 | AS47: 10
A48: 31 | B48: =S_ebus!D40 -> 0% | C48: 2051 | S48: =IF(S$15-$C48<0,"",S$15-$C48) ->  | AJ48: 0 | AK48: 1 | AL48: 2 | AM48: 3 | AN48: 4 | AO48: 5 | AP48: 6 | AQ48: 7 | AR48: 8 | AS48: 9
A49: 32 | B49: =S_ebus!D41 -> 0% | C49: 2052 | D49: =IF(D$15-$C49<0,"",D$15-$C49) ->  | AI49: =IF(AI$15-$C49<0,"",AI$15-$C49) ->  | AK49: 0 | AL49: 1 | AM49: 2 | AN49: 3 | AO49: 4 | AP49: 5 | AQ49: 6 | AR49: 7 | AS49: 8
A50: 33 | B50: =S_ebus!D42 -> 0% | C50: 2053 | AL50: 0 | AM50: 1 | AN50: 2 | AO50: 3 | AP50: 4 | AQ50: 5 | AR50: 6 | AS50: 7
A51: 34 | B51: =S_ebus!D43 -> 0% | C51: 2054 | AM51: 0 | AN51: 1 | AO51: 2 | AP51: 3 | AQ51: 4 | AR51: 5 | AS51: 6
A52: 35 | B52: =S_ebus!D44 -> 0% | C52: 2055 | AN52: 0 | AO52: 1 | AP52: 2 | AQ52: 3 | AR52: 4 | AS52: 5
A53: 36 | B53: =S_ebus!D45 -> 0% | C53: 2056 | AO53: 0 | AP53: 1 | AQ53: 2 | AR53: 3 | AS53: 4
A54: 37 | B54: =S_ebus!D46 -> 0% | C54: 2057 | AP54: 0 | AQ54: 1 | AR54: 2 | AS54: 3
A55: 38 | B55: =S_ebus!D47 -> 0% | C55: 2058 | AQ55: 0 | AR55: 1 | AS55: 2
A56: 39 | B56: =S_ebus!D48 -> 0% | C56: 2059 | AR56: 0 | AS56: 1
A57: 40 | B57: =S_ebus!D49 -> 0% | C57: 2060 | AS57: 0
A58: 41 | B58: =S_ebus!D50 -> 0% | C58: 2061
A59: 42 | B59: =S_ebus!D51 -> 0% | C59: 2062
A60: 43 | B60: =S_ebus!D52 -> 0% | C60: 2063
A61: 44 | B61: =S_ebus!D53 -> 0% | C61: 2064
A62: 45 | B62: =S_ebus!D54 -> 0% | C62: 2065
A63: 46 | B63: =S_ebus!D55 -> 0% | C63: 2066
A64: 47 | B64: =S_ebus!D56 -> 0% | C64: 2067 | S64: =IF(S$15-$C64<0,"",S$15-$C64) -> 
A65: 48 | B65: =S_ebus!D57 -> 0% | C65: 2068 | D65: =IF(D$15-$C65<0,"",D$15-$C65) ->  | AI65: =IF(AI$15-$C65<0,"",AI$15-$C65) -> 
A66: 49 | B66: =S_ebus!D58 -> 0% | C66: 2069
A67: 50 | B67: =S_ebus!D59 -> 0% | C67: 2070
B72: Surviving Vehicles (thousands)
C73: Parc/Year of Analysis | D73: =D$5 -> 2019 | E73: =E$5 -> 2020 | F73: 2021 | G73: 2022 | H73: 2023 | I73: 2024 | J73: 2025 | K73: 2026 | L73: 2027 | M73: 2028 | N73: 2029 | O73: 2030 | P73: 2031 | Q73: 2032 | R73: 2033 | S73: 2034 | T73: 2035 | U73: 2036 | V73: 2037 | W73: 2038 | X73: 2039 | Y73: 2040 | Z73: 2041 | AA73: 2042 | AB73: 2043 | AC73: 2044 | AD73: 2045 | AE73: 2046 | AF73: 2047 | AG73: 2048 | AH73: 2049 | AI73: 2050 | AJ73: 2051 | AK73: 2052 | AL73: 2053 | AM73: 2054 | AN73: 2055 | AO73: 2056 | AP73: 2057 | AQ73: 2058 | AR73: 2059 | AS73: 2060
C74: =C75-1 -> 2019 | D74: =IFERROR(LOOKUP($C74,$D$5:$BC$5,$D$6:$BC$6)*LOOKUP(D16,$A$17:$A$67,$B$17:$B$67),"") -> 0 | E74: =IFERROR(LOOKUP($C74,$D$5:$BC$5,$D$6:$BC$6)*LOOKUP(E16,$A$17:$A$67,$B$17:$B$67),"") -> 0 | F74: 0 | G74: 0 | H74: 0 | I74: 0 | J74: 0 | K74: 0 | L74: 0 | M74: 0 | N74: 0 | O74: 0 | P74: 0 | Q74: 0 | R74: 0 | S74: 0 | T74: 0 | U74: 0 | V74: 0 | W74: 0 | X74: 0 | Y74: 0 | Z74: 0 | AA74: 0 | AB74: 0 | AC74: 0 | AD74: 0 | AE74: 0 | AF74: 0 | AG74: 0 | AH74: 0 | AI74: 0 | AJ74: 0 | AK74: 0 | AL74: 0 | AM74: 0 | AN74: 0 | AO74: 0 | AP74: 0 | AQ74: 0 | AR74: 0 | AS74: 0 | BE74: check
C75: =$C$1 -> 2020 | D75: =IFERROR(LOOKUP($C75,$D$5:$BC$5,$D$6:$BC$6)*LOOKUP(D17,$A$17:$A$67,$B$17:$B$67),"") ->  | E75: =IFERROR(LOOKUP($C75,$E$5:$BC$5,$E$6:$BC$6)*LOOKUP(E17,$A$17:$A$67,$B$17:$B$67),"") -> 0 | F75: 0 | G75: 0 | H75: 0 | I75: 0 | J75: 0 | K75: 0 | L75: 0 | M75: 0 | N75: 0 | O75: 0 | P75: 0 | Q75: 0 | R75: 0 | S75: 0 | T75: 0 | U75: 0 | V75: 0 | W75: 0 | X75: 0 | Y75: 0 | Z75: 0 | AA75: 0 | AB75: 0 | AC75: 0 | AD75: 0 | AE75: 0 | AF75: 0 | AG75: 0 | AH75: 0 | AI75: 0 | AJ75: 0 | AK75: 0 | AL75: 0 | AM75: 0 | AN75: 0 | AO75: 0 | AP75: 0 | AQ75: 0 | AR75: 0 | AS75: 0 | BE75: =BB75-BC75 -> 0
C76: =C75+1 -> 2021 | E76: =IFERROR(LOOKUP($C76,$E$5:$BC$5,$E$6:$BC$6)*LOOKUP(E18,$A$17:$A$67,$B$17:$B$67),"") ->  | F76: 0 | G76: 0 | H76: 0 | I76: 0 | J76: 0 | K76: 0 | L76: 0 | M76: 0 | N76: 0 | O76: 0 | P76: 0 | Q76: 0 | R76: 0 | S76: 0 | T76: 0 | U76: 0 | V76: 0 | W76: 0 | X76: 0 | Y76: 0 | Z76: 0 | AA76: 0 | AB76: 0 | AC76: 0 | AD76: 0 | AE76: 0 | AF76: 0 | AG76: 0 | AH76: 0 | AI76: 0 | AJ76: 0 | AK76: 0 | AL76: 0 | AM76: 0 | AN76: 0 | AO76: 0 | AP76: 0 | AQ76: 0 | AR76: 0 | AS76: 0 | BE76: 0
C77: 2022 | E77: =IFERROR(LOOKUP($C77,$E$5:$BC$5,$E$6:$BC$6)*LOOKUP(E19,$A$17:$A$67,$B$17:$B$67),"") ->  | G77: 386 | H77: 386 | I77: 386 | J77: 385 | K77: 382 | L77: 374 | M77: 357 | N77: 326 | O77: 278 | P77: 214 | Q77: 142 | R77: 77 | S77: 32 | T77: 9 | U77: 2 | V77: 0 | W77: 0 | X77: 0 | Y77: 0 | Z77: 0 | AA77: 0 | AB77: 0 | AC77: 0 | AD77: 0 | AE77: 0 | AF77: 0 | AG77: 0 | AH77: 0 | AI77: 0 | AJ77: 0 | AK77: 0 | AL77: 0 | AM77: 0 | AN77: 0 | AO77: 0 | AP77: 0 | AQ77: 0 | AR77: 0 | AS77: 0 | BE77: 0
C78: 2023 | E78: =IFERROR(LOOKUP($C78,$E$5:$BC$5,$E$6:$BC$6)*LOOKUP(E20,$A$17:$A$67,$B$17:$B$67),"") ->  | H78: 22 | I78: 22 | J78: 22 | K78: 22 | L78: 22 | M78: 21 | N78: 20 | O78: 19 | P78: 16 | Q78: 12 | R78: 8 | S78: 4 | T78: 2 | U78: 1 | V78: 0 | W78: 0 | X78: 0 | Y78: 0 | Z78: 0 | AA78: 0 | AB78: 0 | AC78: 0 | AD78: 0 | AE78: 0 | AF78: 0 | AG78: 0 | AH78: 0 | AI78: 0 | AJ78: 0 | AK78: 0 | AL78: 0 | AM78: 0 | AN78: 0 | AO78: 0 | AP78: 0 | AQ78: 0 | AR78: 0 | AS78: 0 | BE78: 0
C79: 2024 | E79: =IFERROR(LOOKUP($C79,$E$5:$BC$5,$E$6:$BC$6)*LOOKUP(E21,$A$17:$A$67,$B$17:$B$67),"") ->  | I79: 2398 | J79: 2398 | K79: 2397 | L79: 2392 | M79: 2374 | N79: 2324 | O79: 2219 | P79: 2027 | Q79: 1728 | R79: 1329 | S79: 882 | T79: 479 | U79: 199 | V79: 59 | W79: 11 | X79: 1 | Y79: 0 | Z79: 0 | AA79: 0 | AB79: 0 | AC79: 0 | AD79: 0 | AE79: 0 | AF79: 0 | AG79: 0 | AH79: 0 | AI79: 0 | AJ79: 0 | AK79: 0 | AL79: 0 | AM79: 0 | AN79: 0 | AO79: 0 | AP79: 0 | AQ79: 0 | AR79: 0 | AS79: 0 | BE79: 0
C80: 2025 | E80: =IFERROR(LOOKUP($C80,$E$5:$BC$5,$E$6:$BC$6)*LOOKUP(E22,$A$17:$A$67,$B$17:$B$67),"") ->  | J80: 2399 | K80: 2399 | L80: 2398 | M80: 2393 | N80: 2375 | O80: 2325 | P80: 2220 | Q80: 2028 | R80: 1729 | S80: 1329 | T80: 883 | U80: 479 | V80: 199 | W80: 59 | X80: 11 | Y80: 1 | Z80: 0 | AA80: 0 | AB80: 0 | AC80: 0 | AD80: 0 | AE80: 0 | AF80: 0 | AG80: 0 | AH80: 0 | AI80: 0 | AJ80: 0 | AK80: 0 | AL80: 0 | AM80: 0 | AN80: 0 | AO80: 0 | AP80: 0 | AQ80: 0 | AR80: 0 | AS80: 0 | BE80: 0
C81: 2026 | E81: =IFERROR(LOOKUP($C81,$E$5:$BC$5,$E$6:$BC$6)*LOOKUP(E23,$A$17:$A$67,$B$17:$B$67),"") ->  | K81: 2402 | L81: 2402 | M81: 2401 | N81: 2396 | O81: 2378 | P81: 2328 | Q81: 2222 | R81: 2030 | S81: 1731 | T81: 1331 | U81: 884 | V81: 480 | W81: 199 | X81: 59 | Y81: 11 | Z81: 1 | AA81: 0 | AB81: 0 | AC81: 0 | AD81: 0 | AE81: 0 | AF81: 0 | AG81: 0 | AH81: 0 | AI81: 0 | AJ81: 0 | AK81: 0 | AL81: 0 | AM81: 0 | AN81: 0 | AO81: 0 | AP81: 0 | AQ81: 0 | AR81: 0 | AS81: 0 | BE81: 0
C82: 2027 | E82: =IFERROR(LOOKUP($C82,$E$5:$BC$5,$E$6:$BC$6)*LOOKUP(E24,$A$17:$A$67,$B$17:$B$67),"") ->  | L82: 2412 | M82: 2412 | N82: 2411 | O82: 2406 | P82: 2387 | Q82: 2338 | R82: 2232 | S82: 2039 | T82: 1738 | U82: 1336 | V82: 887 | W82: 482 | X82: 200 | Y82: 59 | Z82: 11 | AA82: 1 | AB82: 0 | AC82: 0 | AD82: 0 | AE82: 0 | AF82: 0 | AG82: 0 | AH82: 0 | AI82: 0 | AJ82: 0 | AK82: 0 | AL82: 0 | AM82: 0 | AN82: 0 | AO82: 0 | AP82: 0 | AQ82: 0 | AR82: 0 | AS82: 0 | BE82: 0
C83: 2028 | E83: =IFERROR(LOOKUP($C83,$E$5:$BC$5,$E$6:$BC$6)*LOOKUP(E25,$A$17:$A$67,$B$17:$B$67),"") ->  | M83: 1100 | N83: 1100 | O83: 1100 | P83: 1097 | Q83: 1089 | R83: 1066 | S83: 1018 | T83: 930 | U83: 793 | V83: 609 | W83: 405 | X83: 220 | Y83: 91 | Z83: 27 | AA83: 5 | AB83: 1 | AC83: 0 | AD83: 0 | AE83: 0 | AF83: 0 | AG83: 0 | AH83: 0 | AI83: 0 | AJ83: 0 | AK83: 0 | AL83: 0 | AM83: 0 | AN83: 0 | AO83: 0 | AP83: 0 | AQ83: 0 | AR83: 0 | AS83: 0 | BE83: 0
C84: 2029 | E84: =IFERROR(LOOKUP($C84,$E$5:$BC$5,$E$6:$BC$6)*LOOKUP(E26,$A$17:$A$67,$B$17:$B$67),"") ->  | N84: 1100 | O84: 1100 | P84: 1100 | Q84: 1097 | R84: 1089 | S84: 1066 | T84: 1018 | U84: 930 | V84: 793 | W84: 609 | X84: 405 | Y84: 220 | Z84: 91 | AA84: 27 | AB84: 5 | AC84: 1 | AD84: 0 | AE84: 0 | AF84: 0 | AG84: 0 | AH84: 0 | AI84: 0 | AJ84: 0 | AK84: 0 | AL84: 0 | AM84: 0 | AN84: 0 | AO84: 0 | AP84: 0 | AQ84: 0 | AR84: 0 | AS84: 0 | BE84: 0
C85: 2030 | E85: =IFERROR(LOOKUP($C85,$E$5:$BC$5,$E$6:$BC$6)*LOOKUP(E27,$A$17:$A$67,$B$17:$B$67),"") ->  | O85: 1300 | P85: 1300 | Q85: 1300 | R85: 1297 | S85: 1287 | T85: 1260 | U85: 1203 | V85: 1099 | W85: 937 | X85: 720 | Y85: 478 | Z85: 260 | AA85: 108 | AB85: 32 | AC85: 6 | AD85: 1 | AE85: 0 | AF85: 0 | AG85: 0 | AH85: 0 | AI85: 0 | AJ85: 0 | AK85: 0 | AL85: 0 | AM85: 0 | AN85: 0 | AO85: 0 | AP85: 0 | AQ85: 0 | AR85: 0 | AS85: 0 | BE85: 0
C86: 2031 | E86: =IFERROR(LOOKUP($C86,$E$5:$BC$5,$E$6:$BC$6)*LOOKUP(E28,$A$17:$A$67,$B$17:$B$67),"") ->  | P86: 1300 | Q86: 1300 | R86: 1300 | S86: 1297 | T86: 1287 | U86: 1260 | V86: 1203 | W86: 1099 | X86: 937 | Y86: 720 | Z86: 478 | AA86: 260 | AB86: 108 | AC86: 32 | AD86: 6 | AE86: 1 | AF86: 0 | AG86: 0 | AH86: 0 | AI86: 0 | AJ86: 0 | AK86: 0 | AL86: 0 | AM86: 0 | AN86: 0 | AO86: 0 | AP86: 0 | AQ86: 0 | AR86: 0 | AS86: 0 | BE86: 0
C87: 2032 | E87: =IFERROR(LOOKUP($C87,$E$5:$BC$5,$E$6:$BC$6)*LOOKUP(E29,$A$17:$A$67,$B$17:$B$67),"") ->  | Q87: 1300 | R87: 1300 | S87: 1300 | T87: 1297 | U87: 1287 | V87: 1260 | W87: 1203 | X87: 1099 | Y87: 937 | Z87: 720 | AA87: 478 | AB87: 260 | AC87: 108 | AD87: 32 | AE87: 6 | AF87: 1 | AG87: 0 | AH87: 0 | AI87: 0 | AJ87: 0 | AK87: 0 | AL87: 0 | AM87: 0 | AN87: 0 | AO87: 0 | AP87: 0 | AQ87: 0 | AR87: 0 | AS87: 0 | BE87: 0
C88: 2033 | E88: =IFERROR(LOOKUP($C88,$E$5:$BC$5,$E$6:$BC$6)*LOOKUP(E30,$A$17:$A$67,$B$17:$B$67),"") ->  | R88: 1300 | S88: 1300 | T88: 1300 | U88: 1297 | V88: 1287 | W88: 1260 | X88: 1203 | Y88: 1099 | Z88: 937 | AA88: 720 | AB88: 478 | AC88: 260 | AD88: 108 | AE88: 32 | AF88: 6 | AG88: 1 | AH88: 0 | AI88: 0 | AJ88: 0 | AK88: 0 | AL88: 0 | AM88: 0 | AN88: 0 | AO88: 0 | AP88: 0 | AQ88: 0 | AR88: 0 | AS88: 0 | BE88: 0
C89: 2034 | E89: =IFERROR(LOOKUP($C89,$E$5:$BC$5,$E$6:$BC$6)*LOOKUP(E31,$A$17:$A$67,$B$17:$B$67),"") ->  | S89: 1300 | T89: 1300 | U89: 1300 | V89: 1297 | W89: 1287 | X89: 1260 | Y89: 1203 | Z89: 1099 | AA89: 937 | AB89: 720 | AC89: 478 | AD89: 260 | AE89: 108 | AF89: 32 | AG89: 6 | AH89: 1 | AI89: 0 | AJ89: 0 | AK89: 0 | AL89: 0 | AM89: 0 | AN89: 0 | AO89: 0 | AP89: 0 | AQ89: 0 | AR89: 0 | AS89: 0 | BE89: 0
C90: 2035 | E90: =IFERROR(LOOKUP($C90,$E$5:$BC$5,$E$6:$BC$6)*LOOKUP(E32,$A$17:$A$67,$B$17:$B$67),"") ->  | T90: 1750 | U90: 1750 | V90: 1749 | W90: 1746 | X90: 1732 | Y90: 1696 | Z90: 1619 | AA90: 1479 | AB90: 1261 | AC90: 970 | AD90: 644 | AE90: 350 | AF90: 145 | AG90: 43 | AH90: 8 | AI90: 1 | AJ90: 0 | AK90: 0 | AL90: 0 | AM90: 0 | AN90: 0 | AO90: 0 | AP90: 0 | AQ90: 0 | AR90: 0 | AS90: 0 | BE90: 0
C91: 2036 | E91: =IFERROR(LOOKUP($C91,$E$5:$BC$5,$E$6:$BC$6)*LOOKUP(E33,$A$17:$A$67,$B$17:$B$67),"") ->  | U91: 1750 | V91: 1750 | W91: 1749 | X91: 1746 | Y91: 1732 | Z91: 1696 | AA91: 1619 | AB91: 1479 | AC91: 1261 | AD91: 970 | AE91: 644 | AF91: 350 | AG91: 145 | AH91: 43 | AI91: 8 | AJ91: 1 | AK91: 0 | AL91: 0 | AM91: 0 | AN91: 0 | AO91: 0 | AP91: 0 | AQ91: 0 | AR91: 0 | AS91: 0 | BE91: 0
C92: 2037 | E92: =IFERROR(LOOKUP($C92,$E$5:$BC$5,$E$6:$BC$6)*LOOKUP(E34,$A$17:$A$67,$B$17:$B$67),"") ->  | V92: 1750 | W92: 1750 | X92: 1749 | Y92: 1746 | Z92: 1732 | AA92: 1696 | AB92: 1619 | AC92: 1479 | AD92: 1261 | AE92: 970 | AF92: 644 | AG92: 350 | AH92: 145 | AI92: 43 | AJ92: 8 | AK92: 1 | AL92: 0 | AM92: 0 | AN92: 0 | AO92: 0 | AP92: 0 | AQ92: 0 | AR92: 0 | AS92: 0 | BE92: 0
C93: 2038 | E93: =IFERROR(LOOKUP($C93,$E$5:$BC$5,$E$6:$BC$6)*LOOKUP(E35,$A$17:$A$67,$B$17:$B$67),"") ->  | W93: 1750 | X93: 1750 | Y93: 1749 | Z93: 1746 | AA93: 1732 | AB93: 1696 | AC93: 1619 | AD93: 1479 | AE93: 1261 | AF93: 970 | AG93: =IFERROR(LOOKUP($C93,$E$5:$BC$5,$E$6:$BC$6)*LOOKUP(AG35,$A$17:$A$67,$B$17:$B$67),"") -> 644 | AH93: 350 | AI93: 145 | AJ93: 43 | AK93: 8 | AL93: 1 | AM93: 0 | AN93: 0 | AO93: 0 | AP93: 0 | AQ93: 0 | AR93: 0 | AS93: 0 | BE93: 0
C94: 2039 | E94: =IFERROR(LOOKUP($C94,$E$5:$BC$5,$E$6:$BC$6)*LOOKUP(E36,$A$17:$A$67,$B$17:$B$67),"") ->  | X94: 1750 | Y94: 1750 | Z94: 1749 | AA94: 1746 | AB94: 1732 | AC94: 1696 | AD94: 1619 | AE94: 1479 | AF94: 1261 | AG94: =IFERROR(LOOKUP($C94,$E$5:$BC$5,$E$6:$BC$6)*LOOKUP(AG36,$A$17:$A$67,$B$17:$B$67),"") -> 970 | AH94: 644 | AI94: 350 | AJ94: 145 | AK94: 43 | AL94: 8 | AM94: 1 | AN94: 0 | AO94: 0 | AP94: 0 | AQ94: 0 | AR94: 0 | AS94: 0 | BE94: 0
C95: 2040 | E95: =IFERROR(LOOKUP($C95,$E$5:$BC$5,$E$6:$BC$6)*LOOKUP(E37,$A$17:$A$67,$B$17:$B$67),"") ->  | Y95: 2000 | Z95: 2000 | AA95: 1999 | AB95: 1995 | AC95: 1980 | AD95: 1938 | AE95: 1850 | AF95: 1691 | AG95: =IFERROR(LOOKUP($C95,$E$5:$BC$5,$E$6:$BC$6)*LOOKUP(AG37,$A$17:$A$67,$B$17:$B$67),"") -> 1441 | AH95: 1108 | AI95: 736 | AJ95: 400 | AK95: 166 | AL95: 49 | AM95: 9 | AN95: 1 | AO95: 0 | AP95: 0 | AQ95: 0 | AR95: 0 | AS95: 0 | BE95: 0
